Workbook

Sheet Оглавление
B2: № | C2: Группы товаров:
B3: 1 | C3: НОВИНКИ
B4: 2 | C4: Трубы и фитинги PRO AQUA PP-R белого цвета (водоснабжение, отопление)
B5: 3 | C5: Трубы и фитинги PRO AQUA PP-R серого цвета (водоснабжение, отопление)
B6: 4 | C6: Трубы и фитинги для внутренней канализации PRO AQUA COMFORT
B7: 5 | C7: Трубы для внутренней канализации ОТК
B8: 6 | C8: Трубы и фитинги для малошумной канализации PRO AQUA STILTE
B9: 7 | C9: Трубы и фитинги для бесшумной канализации PRO AQUA STILTE plus
B10: 8 | C10: Трубы и фитинги для наружной канализации PRO AQUA TERRA
B11: 9 | C11: Гофрированные канализационные трубы POLYTRON PROKAN
B12: 10 | C12: Гофрированные дренажные трубы PRODREN
B13: 11 | C13: Трубы ПНД для наружных сетей водоснабжения
B14: 12 | C14: Компрессионные фитинги UNIO by Pro Aqua
B15: 13 | C15: Шаровые краны PRO AQUA
B16: 14 | C16: Радиаторная арматура PRO AQUA
B17: 15 | C17: Арматура латунная PRO AQUA / Редукторы давления, группа безопасности
B18: 16 | C18: Латунные резьбовые никелированные фитинги PRO AQUA
B19: 17 | C19: Чугунные резьбовые фитинги BRENNEN
B20: 18 | C20: PE-RT трубы PRO AQUA (Россия)
B21: 19 | C21: PE-Xa трубы PRO AQUA (Россия)
B22: 20 | C22: Трубы защитные гофрированные PRO AQUA FLEXI GUARD
B23: 21 | C23: Водяной тёплый пол PRO AQUA
B24: 22 | C24: Этажные коллекторные узлы
B25: 23 | C25: Аксиальные латунные и PPSU фитинги PRO AQUA
B26: 24 | C26: Компрессионные латунные фитинги PRO AQUA
B27: 25 | C27: Оборудование для монтажа труб

Sheet НОВИНКИ
C2: НОВИНКИ
A9: Фото | B9: Код | C9: Наименование | D9: Типоразмер | E9: Категория товара | F9: Валюта ПРОДАЖИ | G9: Цена ПРОДАЖИ c НДС | H9: Ед. измерения | I9: В коробке | J9: Вес кг | K9: Объем м3
B10: 9960000000X020 | C10: =IFERROR(VLOOKUP(B10,'[1]Хар-ки'!$A:$B,2,0),"") -> UNIO Кран шаровой неразъемный муфта-муфта | D10: =IFERROR(VLOOKUP(B10,'[1]Хар-ки'!$A:$C,3,0),0) -> 20x20 | E10: =IFERROR(VLOOKUP(B10,'[1]Хар-ки'!$A:$D,4,0),0) -> Обычная | F10: =VLOOKUP(B10,[1]ЦеныбезНДС!$A:$C,3,0) -> RUR | G10: =IFERROR(#REF!*1.2,"") ->  | H10: =VLOOKUP(B10,[1]ЦеныбезНДС!$A:$E,4,0) -> шт | I10: =IFERROR(VLOOKUP(B10,'[1]Хар-ки'!$A:$E,5,0),"") -> 200 | J10: =VLOOKUP(B10,'[1]Хар-ки'!$A:$F,6,0) -> 0,080 | K10: =VLOOKUP(B10,'[1]Хар-ки'!$A:$G,7,0) -> 0,000347
B11: 9960000000X025 | C11: =IFERROR(VLOOKUP(B11,'[1]Хар-ки'!$A:$B,2,0),"") -> UNIO Кран шаровой неразъемный муфта-муфта | D11: =IFERROR(VLOOKUP(B11,'[1]Хар-ки'!$A:$C,3,0),0) -> 25x25 | E11: =IFERROR(VLOOKUP(B11,'[1]Хар-ки'!$A:$D,4,0),0) -> Обычная | F11: =VLOOKUP(B11,[1]ЦеныбезНДС!$A:$C,3,0) -> RUR | G11: =IFERROR(#REF!*1.2,"") ->  | H11: =VLOOKUP(B11,[1]ЦеныбезНДС!$A:$E,4,0) -> шт | I11: =IFERROR(VLOOKUP(B11,'[1]Хар-ки'!$A:$E,5,0),"") -> 125 | J11: =VLOOKUP(B11,'[1]Хар-ки'!$A:$F,6,0) -> 0,186 | K11: =VLOOKUP(B11,'[1]Хар-ки'!$A:$G,7,0) -> 0,000554
B12: 9960000000X032 | C12: =IFERROR(VLOOKUP(B12,'[1]Хар-ки'!$A:$B,2,0),"") -> UNIO Кран шаровой неразъемный муфта-муфта | D12: =IFERROR(VLOOKUP(B12,'[1]Хар-ки'!$A:$C,3,0),0) -> 32x32 | E12: =IFERROR(VLOOKUP(B12,'[1]Хар-ки'!$A:$D,4,0),0) -> Обычная | F12: =VLOOKUP(B12,[1]ЦеныбезНДС!$A:$C,3,0) -> RUR | G12: =IFERROR(#REF!*1.2,"") ->  | H12: =VLOOKUP(B12,[1]ЦеныбезНДС!$A:$E,4,0) -> шт | I12: =IFERROR(VLOOKUP(B12,'[1]Хар-ки'!$A:$E,5,0),"") -> 80 | J12: =VLOOKUP(B12,'[1]Хар-ки'!$A:$F,6,0) -> 0,217 | K12: =VLOOKUP(B12,'[1]Хар-ки'!$A:$G,7,0) -> 0,000866
B13: AX5001612L | C13: =IFERROR(VLOOKUP(B13,'[1]Хар-ки'!$A:$B,2,0),"") -> Водорозетка удлинённая | D13: =IFERROR(VLOOKUP(B13,'[1]Хар-ки'!$A:$C,3,0),0) -> 16x1/2 | E13: =IFERROR(VLOOKUP(B13,'[1]Хар-ки'!$A:$D,4,0),0) -> Обычная | F13: =VLOOKUP(B13,[1]ЦеныбезНДС!$A:$C,3,0) -> RUR | G13: =IFERROR(#REF!*1.2,"") ->  | H13: =VLOOKUP(B13,[1]ЦеныбезНДС!$A:$E,4,0) -> шт | I13: =IFERROR(VLOOKUP(B13,'[1]Хар-ки'!$A:$E,5,0),"") -> 80 | J13: =VLOOKUP(B13,'[1]Хар-ки'!$A:$F,6,0) -> 0,157 | K13: =VLOOKUP(B13,'[1]Хар-ки'!$A:$G,7,0) -> 0,000187
B14: AX6001634.EK | C14: =IFERROR(VLOOKUP(B14,'[1]Хар-ки'!$A:$B,2,0),"") -> Муфта евроконус с накидной гайкой | D14: =IFERROR(VLOOKUP(B14,'[1]Хар-ки'!$A:$C,3,0),0) -> 16x3/4 | E14: =IFERROR(VLOOKUP(B14,'[1]Хар-ки'!$A:$D,4,0),0) -> Обычная | F14: =VLOOKUP(B14,[1]ЦеныбезНДС!$A:$C,3,0) -> RUR | G14: =IFERROR(#REF!*1.2,"") ->  | H14: =VLOOKUP(B14,[1]ЦеныбезНДС!$A:$E,4,0) -> шт | I14: =IFERROR(VLOOKUP(B14,'[1]Хар-ки'!$A:$E,5,0),"") -> 300 | J14: =VLOOKUP(B14,'[1]Хар-ки'!$A:$F,6,0) -> 0,075 | K14: =VLOOKUP(B14,'[1]Хар-ки'!$A:$G,7,0) -> 0,000045
B15: AX6002034.EK | C15: =IFERROR(VLOOKUP(B15,'[1]Хар-ки'!$A:$B,2,0),"") -> Муфта евроконус с накидной гайкой | D15: =IFERROR(VLOOKUP(B15,'[1]Хар-ки'!$A:$C,3,0),0) -> 20x3/4 | E15: =IFERROR(VLOOKUP(B15,'[1]Хар-ки'!$A:$D,4,0),0) -> Обычная | F15: =VLOOKUP(B15,[1]ЦеныбезНДС!$A:$C,3,0) -> RUR | G15: =IFERROR(#REF!*1.2,"") ->  | H15: =VLOOKUP(B15,[1]ЦеныбезНДС!$A:$E,4,0) -> шт | I15: =IFERROR(VLOOKUP(B15,'[1]Хар-ки'!$A:$E,5,0),"") -> 250 | J15: =VLOOKUP(B15,'[1]Хар-ки'!$A:$F,6,0) -> 0,078 | K15: =VLOOKUP(B15,'[1]Хар-ки'!$A:$G,7,0) -> 0,000054
B16: AXB.630.16 | C16: =IFERROR(VLOOKUP(B16,'[1]Хар-ки'!$A:$B,2,0),"") -> Заглушка | D16: =IFERROR(VLOOKUP(B16,'[1]Хар-ки'!$A:$C,3,0),0) -> 16 | E16: =IFERROR(VLOOKUP(B16,'[1]Хар-ки'!$A:$D,4,0),0) -> Обычная | F16: =VLOOKUP(B16,[1]ЦеныбезНДС!$A:$C,3,0) -> RUR | G16: =IFERROR(#REF!*1.2,"") ->  | H16: =VLOOKUP(B16,[1]ЦеныбезНДС!$A:$E,4,0) -> шт | I16: =IFERROR(VLOOKUP(B16,'[1]Хар-ки'!$A:$E,5,0),"") -> 750 | J16: =VLOOKUP(B16,'[1]Хар-ки'!$A:$F,6,0) -> 0,022 | K16: =VLOOKUP(B16,'[1]Хар-ки'!$A:$G,7,0) -> 0,000018
B17: AXB.630.20 | C17: =IFERROR(VLOOKUP(B17,'[1]Хар-ки'!$A:$B,2,0),"") -> Заглушка | D17: =IFERROR(VLOOKUP(B17,'[1]Хар-ки'!$A:$C,3,0),0) -> 20 | E17: =IFERROR(VLOOKUP(B17,'[1]Хар-ки'!$A:$D,4,0),0) -> Обычная | F17: =VLOOKUP(B17,[1]ЦеныбезНДС!$A:$C,3,0) -> RUR | G17: =IFERROR(#REF!*1.2,"") ->  | H17: =VLOOKUP(B17,[1]ЦеныбезНДС!$A:$E,4,0) -> шт | I17: =IFERROR(VLOOKUP(B17,'[1]Хар-ки'!$A:$E,5,0),"") -> 500 | J17: =VLOOKUP(B17,'[1]Хар-ки'!$A:$F,6,0) -> 0,034 | K17: =VLOOKUP(B17,'[1]Хар-ки'!$A:$G,7,0) -> 0,000027
B18: AXB.630.25 | C18: =IFERROR(VLOOKUP(B18,'[1]Хар-ки'!$A:$B,2,0),"") -> Заглушка | D18: =IFERROR(VLOOKUP(B18,'[1]Хар-ки'!$A:$C,3,0),0) -> 25 | E18: =IFERROR(VLOOKUP(B18,'[1]Хар-ки'!$A:$D,4,0),0) -> Обычная | F18: =VLOOKUP(B18,[1]ЦеныбезНДС!$A:$C,3,0) -> RUR | G18: =IFERROR(#REF!*1.2,"") ->  | H18: =VLOOKUP(B18,[1]ЦеныбезНДС!$A:$E,4,0) -> шт | I18: =IFERROR(VLOOKUP(B18,'[1]Хар-ки'!$A:$E,5,0),"") -> 250 | J18: =VLOOKUP(B18,'[1]Хар-ки'!$A:$F,6,0) -> 0,057 | K18: =VLOOKUP(B18,'[1]Хар-ки'!$A:$G,7,0) -> 0,000054
B19: PA17016 | C19: =IFERROR(VLOOKUP(B19,'[1]Хар-ки'!$A:$B,2,0),"") -> PP-R Крестовина Белая | D19: =IFERROR(VLOOKUP(B19,'[1]Хар-ки'!$A:$C,3,0),0) -> 50 | E19: =IFERROR(VLOOKUP(B19,'[1]Хар-ки'!$A:$D,4,0),0) -> Обычная | F19: =VLOOKUP(B19,[1]ЦеныбезНДС!$A:$C,3,0) -> RUR | G19: =IFERROR(#REF!*1.2,"") ->  | H19: =VLOOKUP(B19,[1]ЦеныбезНДС!$A:$E,4,0) -> шт | I19: =IFERROR(VLOOKUP(B19,'[1]Хар-ки'!$A:$E,5,0),"") -> 18 | J19: =VLOOKUP(B19,'[1]Хар-ки'!$A:$F,6,0) -> 0,166 | K19: =VLOOKUP(B19,'[1]Хар-ки'!$A:$G,7,0) -> 0,000867
B20: PA1371208 | C20: =IFERROR(VLOOKUP(B20,'[1]Хар-ки'!$A:$B,2,0),"") -> PP-R Угольник переходной 90 градусов Белый | D20: =IFERROR(VLOOKUP(B20,'[1]Хар-ки'!$A:$C,3,0),0) -> 32-20 | E20: =IFERROR(VLOOKUP(B20,'[1]Хар-ки'!$A:$D,4,0),0) -> Обычная | F20: =VLOOKUP(B20,[1]ЦеныбезНДС!$A:$C,3,0) -> RUR | G20: =IFERROR(#REF!*1.2,"") ->  | H20: =VLOOKUP(B20,[1]ЦеныбезНДС!$A:$E,4,0) -> шт | I20: =IFERROR(VLOOKUP(B20,'[1]Хар-ки'!$A:$E,5,0),"") -> 200 | J20: =VLOOKUP(B20,'[1]Хар-ки'!$A:$F,6,0) -> 0,029 | K20: =VLOOKUP(B20,'[1]Хар-ки'!$A:$G,7,0) -> 0,000078
B21: PA20008S | C21: =IFERROR(VLOOKUP(B21,'[1]Хар-ки'!$A:$B,2,0),"") -> PP-R Муфта комбинированная разъемная (американка) УСИЛЕННАЯ ВР Белая | D21: =IFERROR(VLOOKUP(B21,'[1]Хар-ки'!$A:$C,3,0),0) -> 20-1/2 | E21: =IFERROR(VLOOKUP(B21,'[1]Хар-ки'!$A:$D,4,0),0) -> Обычная | F21: =VLOOKUP(B21,[1]ЦеныбезНДС!$A:$C,3,0) -> RUR | G21: =IFERROR(#REF!*1.2,"") ->  | H21: =VLOOKUP(B21,[1]ЦеныбезНДС!$A:$E,4,0) -> шт | I21: =IFERROR(VLOOKUP(B21,'[1]Хар-ки'!$A:$E,5,0),"") -> 150 | J21: =VLOOKUP(B21,'[1]Хар-ки'!$A:$F,6,0) -> 0,090 | K21: =VLOOKUP(B21,'[1]Хар-ки'!$A:$G,7,0) -> 0,000073
B22: PA20014S | C22: =IFERROR(VLOOKUP(B22,'[1]Хар-ки'!$A:$B,2,0),"") -> PP-R Муфта комбинированная разъемная (американка) УСИЛЕННАЯ ВР Белая | D22: =IFERROR(VLOOKUP(B22,'[1]Хар-ки'!$A:$C,3,0),0) -> 25-3/4 | E22: =IFERROR(VLOOKUP(B22,'[1]Хар-ки'!$A:$D,4,0),0) -> Обычная | F22: =VLOOKUP(B22,[1]ЦеныбезНДС!$A:$C,3,0) -> RUR | G22: =IFERROR(#REF!*1.2,"") ->  | H22: =VLOOKUP(B22,[1]ЦеныбезНДС!$A:$E,4,0) -> шт | I22: =IFERROR(VLOOKUP(B22,'[1]Хар-ки'!$A:$E,5,0),"") -> 75 | J22: =VLOOKUP(B22,'[1]Хар-ки'!$A:$F,6,0) -> 0,146 | K22: =VLOOKUP(B22,'[1]Хар-ки'!$A:$G,7,0) -> 0,000158
B23: PA20018S | C23: =IFERROR(VLOOKUP(B23,'[1]Хар-ки'!$A:$B,2,0),"") -> PP-R Муфта комбинированная разъемная (американка) УСИЛЕННАЯ ВР Белая | D23: =IFERROR(VLOOKUP(B23,'[1]Хар-ки'!$A:$C,3,0),0) -> 32-1 | E23: =IFERROR(VLOOKUP(B23,'[1]Хар-ки'!$A:$D,4,0),0) -> Обычная | F23: =VLOOKUP(B23,[1]ЦеныбезНДС!$A:$C,3,0) -> RUR | G23: =IFERROR(#REF!*1.2,"") ->  | H23: =VLOOKUP(B23,[1]ЦеныбезНДС!$A:$E,4,0) -> шт | I23: =IFERROR(VLOOKUP(B23,'[1]Хар-ки'!$A:$E,5,0),"") -> 50 | J23: =VLOOKUP(B23,'[1]Хар-ки'!$A:$F,6,0) -> 0,184 | K23: =VLOOKUP(B23,'[1]Хар-ки'!$A:$G,7,0) -> 0,000238
B24: PA21008S | C24: =IFERROR(VLOOKUP(B24,'[1]Хар-ки'!$A:$B,2,0),"") -> PP-R Муфта комбинированная разъемная (американка) УСИЛЕННАЯ НР Белая | D24: =IFERROR(VLOOKUP(B24,'[1]Хар-ки'!$A:$C,3,0),0) -> 20-1/2 | E24: =IFERROR(VLOOKUP(B24,'[1]Хар-ки'!$A:$D,4,0),0) -> Обычная | F24: =VLOOKUP(B24,[1]ЦеныбезНДС!$A:$C,3,0) -> RUR | G24: =IFERROR(#REF!*1.2,"") ->  | H24: =VLOOKUP(B24,[1]ЦеныбезНДС!$A:$E,4,0) -> шт | I24: =IFERROR(VLOOKUP(B24,'[1]Хар-ки'!$A:$E,5,0),"") -> 125 | J24: =VLOOKUP(B24,'[1]Хар-ки'!$A:$F,6,0) -> 0,097 | K24: =VLOOKUP(B24,'[1]Хар-ки'!$A:$G,7,0) -> 0,000095
B25: PA21014S | C25: =IFERROR(VLOOKUP(B25,'[1]Хар-ки'!$A:$B,2,0),"") -> PP-R Муфта комбинированная разъемная (американка) УСИЛЕННАЯ НР Белая | D25: =IFERROR(VLOOKUP(B25,'[1]Хар-ки'!$A:$C,3,0),0) -> 25-3/4 | E25: =IFERROR(VLOOKUP(B25,'[1]Хар-ки'!$A:$D,4,0),0) -> Обычная | F25: =VLOOKUP(B25,[1]ЦеныбезНДС!$A:$C,3,0) -> RUR | G25: =IFERROR(#REF!*1.2,"") ->  | H25: =VLOOKUP(B25,[1]ЦеныбезНДС!$A:$E,4,0) -> шт | I25: =IFERROR(VLOOKUP(B25,'[1]Хар-ки'!$A:$E,5,0),"") -> 65 | J25: =VLOOKUP(B25,'[1]Хар-ки'!$A:$F,6,0) -> 0,159 | K25: =VLOOKUP(B25,'[1]Хар-ки'!$A:$G,7,0) -> 0,000183
B26: PA21018S | C26: =IFERROR(VLOOKUP(B26,'[1]Хар-ки'!$A:$B,2,0),"") -> PP-R Муфта комбинированная разъемная (американка) УСИЛЕННАЯ НР Белая | D26: =IFERROR(VLOOKUP(B26,'[1]Хар-ки'!$A:$C,3,0),0) -> 32-1 | E26: =IFERROR(VLOOKUP(B26,'[1]Хар-ки'!$A:$D,4,0),0) -> Обычная | F26: =VLOOKUP(B26,[1]ЦеныбезНДС!$A:$C,3,0) -> RUR | G26: =IFERROR(#REF!*1.2,"") ->  | H26: =VLOOKUP(B26,[1]ЦеныбезНДС!$A:$E,4,0) -> шт | I26: =IFERROR(VLOOKUP(B26,'[1]Хар-ки'!$A:$E,5,0),"") -> 50 | J26: =VLOOKUP(B26,'[1]Хар-ки'!$A:$F,6,0) -> 0,224 | K26: =VLOOKUP(B26,'[1]Хар-ки'!$A:$G,7,0) -> 0,000238
B27: PA22013P | C27: =IFERROR(VLOOKUP(B27,'[1]Хар-ки'!$A:$B,2,0),"") -> PP-R Муфта комбинированная ВР Белая | D27: =IFERROR(VLOOKUP(B27,'[1]Хар-ки'!$A:$C,3,0),0) -> 25-1 | E27: =IFERROR(VLOOKUP(B27,'[1]Хар-ки'!$A:$D,4,0),0) -> Обычная | F27: =VLOOKUP(B27,[1]ЦеныбезНДС!$A:$C,3,0) -> RUR | G27: =IFERROR(#REF!*1.2,"") ->  | H27: =VLOOKUP(B27,[1]ЦеныбезНДС!$A:$E,4,0) -> шт | I27: =IFERROR(VLOOKUP(B27,'[1]Хар-ки'!$A:$E,5,0),"") -> 80 | J27: =VLOOKUP(B27,'[1]Хар-ки'!$A:$F,6,0) -> 0,088 | K27: =VLOOKUP(B27,'[1]Хар-ки'!$A:$G,7,0) -> 0,000195
B28: PA22015P | C28: =IFERROR(VLOOKUP(B28,'[1]Хар-ки'!$A:$B,2,0),"") -> PP-R Муфта комбинированная ВР Белая | D28: =IFERROR(VLOOKUP(B28,'[1]Хар-ки'!$A:$C,3,0),0) -> 32-1/2 | E28: =IFERROR(VLOOKUP(B28,'[1]Хар-ки'!$A:$D,4,0),0) -> Обычная | F28: =VLOOKUP(B28,[1]ЦеныбезНДС!$A:$C,3,0) -> RUR | G28: =IFERROR(#REF!*1.2,"") ->  | H28: =VLOOKUP(B28,[1]ЦеныбезНДС!$A:$E,4,0) -> шт | I28: =IFERROR(VLOOKUP(B28,'[1]Хар-ки'!$A:$E,5,0),"") -> 80 | J28: =VLOOKUP(B28,'[1]Хар-ки'!$A:$F,6,0) -> 0,061 | K28: =VLOOKUP(B28,'[1]Хар-ки'!$A:$G,7,0) -> 0,000135
B29: PA23013P | C29: =IFERROR(VLOOKUP(B29,'[1]Хар-ки'!$A:$B,2,0),"") -> PP-R Муфта комбинированная НР Белая | D29: =IFERROR(VLOOKUP(B29,'[1]Хар-ки'!$A:$C,3,0),0) -> 25-1 | E29: =IFERROR(VLOOKUP(B29,'[1]Хар-ки'!$A:$D,4,0),0) -> Обычная | F29: =VLOOKUP(B29,[1]ЦеныбезНДС!$A:$C,3,0) -> RUR | G29: =IFERROR(#REF!*1.2,"") ->  | H29: =VLOOKUP(B29,[1]ЦеныбезНДС!$A:$E,4,0) -> шт | I29: =IFERROR(VLOOKUP(B29,'[1]Хар-ки'!$A:$E,5,0),"") -> 60 | J29: =VLOOKUP(B29,'[1]Хар-ки'!$A:$F,6,0) -> 0,123 | K29: =VLOOKUP(B29,'[1]Хар-ки'!$A:$G,7,0) -> 0,000260
B30: PA23015P | C30: =IFERROR(VLOOKUP(B30,'[1]Хар-ки'!$A:$B,2,0),"") -> PP-R Муфта комбинированная НР Белая | D30: =IFERROR(VLOOKUP(B30,'[1]Хар-ки'!$A:$C,3,0),0) -> 32-1/2 | E30: =IFERROR(VLOOKUP(B30,'[1]Хар-ки'!$A:$D,4,0),0) -> Обычная | F30: =VLOOKUP(B30,[1]ЦеныбезНДС!$A:$C,3,0) -> RUR | G30: =IFERROR(#REF!*1.2,"") ->  | H30: =VLOOKUP(B30,[1]ЦеныбезНДС!$A:$E,4,0) -> шт | I30: =IFERROR(VLOOKUP(B30,'[1]Хар-ки'!$A:$E,5,0),"") -> 80 | J30: =VLOOKUP(B30,'[1]Хар-ки'!$A:$F,6,0) -> 0,070 | K30: =VLOOKUP(B30,'[1]Хар-ки'!$A:$G,7,0) -> 0,000135
B31: PA28014P | C31: =IFERROR(VLOOKUP(B31,'[1]Хар-ки'!$A:$B,2,0),"") -> PP-R Угольник с креплением комбинированный ВР Белый | D31: =IFERROR(VLOOKUP(B31,'[1]Хар-ки'!$A:$C,3,0),0) -> 25-3/4 | E31: =IFERROR(VLOOKUP(B31,'[1]Хар-ки'!$A:$D,4,0),0) -> Обычная | F31: =VLOOKUP(B31,[1]ЦеныбезНДС!$A:$C,3,0) -> RUR | G31: =IFERROR(#REF!*1.2,"") ->  | H31: =VLOOKUP(B31,[1]ЦеныбезНДС!$A:$E,4,0) -> шт | I31: =IFERROR(VLOOKUP(B31,'[1]Хар-ки'!$A:$E,5,0),"") -> 90 | J31: =VLOOKUP(B31,'[1]Хар-ки'!$A:$F,6,0) -> 0,070 | K31: =VLOOKUP(B31,'[1]Хар-ки'!$A:$G,7,0) -> 0,000173
B32: PA28114P | C32: =IFERROR(VLOOKUP(B32,'[1]Хар-ки'!$A:$B,2,0),"") -> PP-R Угольник с креплением комбинированный НР Белый | D32: =IFERROR(VLOOKUP(B32,'[1]Хар-ки'!$A:$C,3,0),0) -> 25-3/4 | E32: =IFERROR(VLOOKUP(B32,'[1]Хар-ки'!$A:$D,4,0),0) -> Обычная | F32: =VLOOKUP(B32,[1]ЦеныбезНДС!$A:$C,3,0) -> RUR | G32: =IFERROR(#REF!*1.2,"") ->  | H32: =VLOOKUP(B32,[1]ЦеныбезНДС!$A:$E,4,0) -> шт | I32: =IFERROR(VLOOKUP(B32,'[1]Хар-ки'!$A:$E,5,0),"") -> 100 | J32: =VLOOKUP(B32,'[1]Хар-ки'!$A:$F,6,0) -> 0,084 | K32: =VLOOKUP(B32,'[1]Хар-ки'!$A:$G,7,0) -> 0,000212
B33: PA29119 | C33: =IFERROR(VLOOKUP(B33,'[1]Хар-ки'!$A:$B,2,0),"") -> PP-R Тройник с накидной гайкой Белый | D33: =IFERROR(VLOOKUP(B33,'[1]Хар-ки'!$A:$C,3,0),0) -> 32-1.1/4 | E33: =IFERROR(VLOOKUP(B33,'[1]Хар-ки'!$A:$D,4,0),0) -> Обычная | F33: =VLOOKUP(B33,[1]ЦеныбезНДС!$A:$C,3,0) -> RUR | G33: =IFERROR(#REF!*1.2,"") ->  | H33: =VLOOKUP(B33,[1]ЦеныбезНДС!$A:$E,4,0) -> шт | I33: =IFERROR(VLOOKUP(B33,'[1]Хар-ки'!$A:$E,5,0),"") -> 30 | J33: =VLOOKUP(B33,'[1]Хар-ки'!$A:$F,6,0) -> 0,243 | K33: =VLOOKUP(B33,'[1]Хар-ки'!$A:$G,7,0) -> 0,000667
B34: PA29219 | C34: =IFERROR(VLOOKUP(B34,'[1]Хар-ки'!$A:$B,2,0),"") -> PP-R Угольник с накидной гайкой Белый | D34: =IFERROR(VLOOKUP(B34,'[1]Хар-ки'!$A:$C,3,0),0) -> 32-1.1/4 | E34: =IFERROR(VLOOKUP(B34,'[1]Хар-ки'!$A:$D,4,0),0) -> Обычная | F34: =VLOOKUP(B34,[1]ЦеныбезНДС!$A:$C,3,0) -> RUR | G34: =IFERROR(#REF!*1.2,"") ->  | H34: =VLOOKUP(B34,[1]ЦеныбезНДС!$A:$E,4,0) -> шт | I34: =IFERROR(VLOOKUP(B34,'[1]Хар-ки'!$A:$E,5,0),"") -> 40 | J34: =VLOOKUP(B34,'[1]Хар-ки'!$A:$F,6,0) -> 0,220 | K34: =VLOOKUP(B34,'[1]Хар-ки'!$A:$G,7,0) -> 0,000500
B35: PA40020 | C35: =IFERROR(VLOOKUP(B35,'[1]Хар-ки'!$A:$B,2,0),"") -> PP-R Шаровой кран полнопроходной Ultra Белый | D35: =IFERROR(VLOOKUP(B35,'[1]Хар-ки'!$A:$C,3,0),0) -> 75 | E35: =IFERROR(VLOOKUP(B35,'[1]Хар-ки'!$A:$D,4,0),0) -> Обычная | F35: =VLOOKUP(B35,[1]ЦеныбезНДС!$A:$C,3,0) -> RUR | G35: =IFERROR(#REF!*1.2,"") ->  | H35: =VLOOKUP(B35,[1]ЦеныбезНДС!$A:$E,4,0) -> шт | I35: =IFERROR(VLOOKUP(B35,'[1]Хар-ки'!$A:$E,5,0),"") -> 6 | J35: =VLOOKUP(B35,'[1]Хар-ки'!$A:$F,6,0) -> 1,343 | K35: =VLOOKUP(B35,'[1]Хар-ки'!$A:$G,7,0) -> 0,003533
B36: PA60010 | C36: =IFERROR(VLOOKUP(B36,'[1]Хар-ки'!$A:$B,2,0),"") -> PP-R Универсальный настенный комплект Белый | D36: =IFERROR(VLOOKUP(B36,'[1]Хар-ки'!$A:$C,3,0),0) -> 25x1/2 | E36: =IFERROR(VLOOKUP(B36,'[1]Хар-ки'!$A:$D,4,0),0) -> Обычная | F36: =VLOOKUP(B36,[1]ЦеныбезНДС!$A:$C,3,0) -> RUR | G36: =IFERROR(#REF!*1.2,"") ->  | H36: =VLOOKUP(B36,[1]ЦеныбезНДС!$A:$E,4,0) -> шт | I36: =IFERROR(VLOOKUP(B36,'[1]Хар-ки'!$A:$E,5,0),"") -> 16 | J36: =VLOOKUP(B36,'[1]Хар-ки'!$A:$F,6,0) -> 0,233 | K36: =VLOOKUP(B36,'[1]Хар-ки'!$A:$G,7,0) -> 0,000975
B37: PA17016G | C37: =IFERROR(VLOOKUP(B37,'[1]Хар-ки'!$A:$B,2,0),"") -> PP-R Крестовина Серая | D37: =IFERROR(VLOOKUP(B37,'[1]Хар-ки'!$A:$C,3,0),0) -> 50 | E37: =IFERROR(VLOOKUP(B37,'[1]Хар-ки'!$A:$D,4,0),0) -> Заказная | F37: =VLOOKUP(B37,[1]ЦеныбезНДС!$A:$C,3,0) -> RUR | G37: =IFERROR(#REF!*1.2,"") ->  | H37: =VLOOKUP(B37,[1]ЦеныбезНДС!$A:$E,4,0) -> шт | I37: =IFERROR(VLOOKUP(B37,'[1]Хар-ки'!$A:$E,5,0),"") -> 1 | J37: =VLOOKUP(B37,'[1]Хар-ки'!$A:$F,6,0) -> 0,000 | K37: =VLOOKUP(B37,'[1]Хар-ки'!$A:$G,7,0) -> 0,000000
B38: PA1371208G | C38: =IFERROR(VLOOKUP(B38,'[1]Хар-ки'!$A:$B,2,0),"") -> PP-R Угольник переходной 90 градусов Серый | D38: =IFERROR(VLOOKUP(B38,'[1]Хар-ки'!$A:$C,3,0),0) -> 32-20 | E38: =IFERROR(VLOOKUP(B38,'[1]Хар-ки'!$A:$D,4,0),0) -> Обычная | F38: =VLOOKUP(B38,[1]ЦеныбезНДС!$A:$C,3,0) -> RUR | G38: =IFERROR(#REF!*1.2,"") ->  | H38: =VLOOKUP(B38,[1]ЦеныбезНДС!$A:$E,4,0) -> шт | I38: =IFERROR(VLOOKUP(B38,'[1]Хар-ки'!$A:$E,5,0),"") -> 200 | J38: =VLOOKUP(B38,'[1]Хар-ки'!$A:$F,6,0) -> 0,029 | K38: =VLOOKUP(B38,'[1]Хар-ки'!$A:$G,7,0) -> 0,000078
B39: PA22013PG | C39: =IFERROR(VLOOKUP(B39,'[1]Хар-ки'!$A:$B,2,0),"") -> PP-R Муфта комбинированная ВР Серая | D39: =IFERROR(VLOOKUP(B39,'[1]Хар-ки'!$A:$C,3,0),0) -> 25-1 | E39: =IFERROR(VLOOKUP(B39,'[1]Хар-ки'!$A:$D,4,0),0) -> Обычная | F39: =VLOOKUP(B39,[1]ЦеныбезНДС!$A:$C,3,0) -> RUR | G39: =IFERROR(#REF!*1.2,"") ->  | H39: =VLOOKUP(B39,[1]ЦеныбезНДС!$A:$E,4,0) -> шт | I39: =IFERROR(VLOOKUP(B39,'[1]Хар-ки'!$A:$E,5,0),"") -> 80 | J39: =VLOOKUP(B39,'[1]Хар-ки'!$A:$F,6,0) -> 0,088 | K39: =VLOOKUP(B39,'[1]Хар-ки'!$A:$G,7,0) -> 0,000195
B40: PA22015PG | C40: =IFERROR(VLOOKUP(B40,'[1]Хар-ки'!$A:$B,2,0),"") -> PP-R Муфта комбинированная ВР Серая | D40: =IFERROR(VLOOKUP(B40,'[1]Хар-ки'!$A:$C,3,0),0) -> 32-1/2 | E40: =IFERROR(VLOOKUP(B40,'[1]Хар-ки'!$A:$D,4,0),0) -> Обычная | F40: =VLOOKUP(B40,[1]ЦеныбезНДС!$A:$C,3,0) -> RUR | G40: =IFERROR(#REF!*1.2,"") ->  | H40: =VLOOKUP(B40,[1]ЦеныбезНДС!$A:$E,4,0) -> шт | I40: =IFERROR(VLOOKUP(B40,'[1]Хар-ки'!$A:$E,5,0),"") -> 80 | J40: =VLOOKUP(B40,'[1]Хар-ки'!$A:$F,6,0) -> 0,061 | K40: =VLOOKUP(B40,'[1]Хар-ки'!$A:$G,7,0) -> 0,000135
B41: PA23013PG | C41: =IFERROR(VLOOKUP(B41,'[1]Хар-ки'!$A:$B,2,0),"") -> PP-R Муфта комбинированная НР Серая | D41: =IFERROR(VLOOKUP(B41,'[1]Хар-ки'!$A:$C,3,0),0) -> 25-1 | E41: =IFERROR(VLOOKUP(B41,'[1]Хар-ки'!$A:$D,4,0),0) -> Обычная | F41: =VLOOKUP(B41,[1]ЦеныбезНДС!$A:$C,3,0) -> RUR | G41: =IFERROR(#REF!*1.2,"") ->  | H41: =VLOOKUP(B41,[1]ЦеныбезНДС!$A:$E,4,0) -> шт | I41: =IFERROR(VLOOKUP(B41,'[1]Хар-ки'!$A:$E,5,0),"") -> 60 | J41: =VLOOKUP(B41,'[1]Хар-ки'!$A:$F,6,0) -> 0,123 | K41: =VLOOKUP(B41,'[1]Хар-ки'!$A:$G,7,0) -> 0,000260
B42: PA23015PG | C42: =IFERROR(VLOOKUP(B42,'[1]Хар-ки'!$A:$B,2,0),"") -> PP-R Муфта комбинированная НР Серая | D42: =IFERROR(VLOOKUP(B42,'[1]Хар-ки'!$A:$C,3,0),0) -> 32-1/2 | E42: =IFERROR(VLOOKUP(B42,'[1]Хар-ки'!$A:$D,4,0),0) -> Обычная | F42: =VLOOKUP(B42,[1]ЦеныбезНДС!$A:$C,3,0) -> RUR | G42: =IFERROR(#REF!*1.2,"") ->  | H42: =VLOOKUP(B42,[1]ЦеныбезНДС!$A:$E,4,0) -> шт | I42: =IFERROR(VLOOKUP(B42,'[1]Хар-ки'!$A:$E,5,0),"") -> 80 | J42: =VLOOKUP(B42,'[1]Хар-ки'!$A:$F,6,0) -> 0,072 | K42: =VLOOKUP(B42,'[1]Хар-ки'!$A:$G,7,0) -> 0,000135
B43: PA28014PG | C43: =IFERROR(VLOOKUP(B43,'[1]Хар-ки'!$A:$B,2,0),"") -> PP-R Угольник с креплением комбинированный ВР Серый | D43: =IFERROR(VLOOKUP(B43,'[1]Хар-ки'!$A:$C,3,0),0) -> 25-3/4 | E43: =IFERROR(VLOOKUP(B43,'[1]Хар-ки'!$A:$D,4,0),0) -> Обычная | F43: =VLOOKUP(B43,[1]ЦеныбезНДС!$A:$C,3,0) -> RUR | G43: =IFERROR(#REF!*1.2,"") ->  | H43: =VLOOKUP(B43,[1]ЦеныбезНДС!$A:$E,4,0) -> шт | I43: =IFERROR(VLOOKUP(B43,'[1]Хар-ки'!$A:$E,5,0),"") -> 90 | J43: =VLOOKUP(B43,'[1]Хар-ки'!$A:$F,6,0) -> 0,070 | K43: =VLOOKUP(B43,'[1]Хар-ки'!$A:$G,7,0) -> 0,000173
B44: PA28114PG | C44: =IFERROR(VLOOKUP(B44,'[1]Хар-ки'!$A:$B,2,0),"") -> PP-R Угольник с креплением комбинированный НР Серый | D44: =IFERROR(VLOOKUP(B44,'[1]Хар-ки'!$A:$C,3,0),0) -> 25-3/4 | E44: =IFERROR(VLOOKUP(B44,'[1]Хар-ки'!$A:$D,4,0),0) -> Обычная | F44: =VLOOKUP(B44,[1]ЦеныбезНДС!$A:$C,3,0) -> RUR | G44: =IFERROR(#REF!*1.2,"") ->  | H44: =VLOOKUP(B44,[1]ЦеныбезНДС!$A:$E,4,0) -> шт | I44: =IFERROR(VLOOKUP(B44,'[1]Хар-ки'!$A:$E,5,0),"") -> 100 | J44: =VLOOKUP(B44,'[1]Хар-ки'!$A:$F,6,0) -> 0,084 | K44: =VLOOKUP(B44,'[1]Хар-ки'!$A:$G,7,0) -> 0,000212
B45: PA29119G | C45: =IFERROR(VLOOKUP(B45,'[1]Хар-ки'!$A:$B,2,0),"") -> PP-R Тройник с накидной гайкой Серый | D45: =IFERROR(VLOOKUP(B45,'[1]Хар-ки'!$A:$C,3,0),0) -> 32-1.1/4 | E45: =IFERROR(VLOOKUP(B45,'[1]Хар-ки'!$A:$D,4,0),0) -> Распродажная | F45: =VLOOKUP(B45,[1]ЦеныбезНДС!$A:$C,3,0) -> RUR | G45: =IFERROR(#REF!*1.2,"") ->  | H45: =VLOOKUP(B45,[1]ЦеныбезНДС!$A:$E,4,0) -> шт | I45: =IFERROR(VLOOKUP(B45,'[1]Хар-ки'!$A:$E,5,0),"") -> 30 | J45: =VLOOKUP(B45,'[1]Хар-ки'!$A:$F,6,0) -> 0,232 | K45: =VLOOKUP(B45,'[1]Хар-ки'!$A:$G,7,0) -> 0,000667
B46: PA29219G | C46: =IFERROR(VLOOKUP(B46,'[1]Хар-ки'!$A:$B,2,0),"") -> PP-R Угольник с накидной гайкой Серый | D46: =IFERROR(VLOOKUP(B46,'[1]Хар-ки'!$A:$C,3,0),0) -> 32-1.1/4 | E46: =IFERROR(VLOOKUP(B46,'[1]Хар-ки'!$A:$D,4,0),0) -> Распродажная | F46: =VLOOKUP(B46,[1]ЦеныбезНДС!$A:$C,3,0) -> RUR | G46: =IFERROR(#REF!*1.2,"") ->  | H46: =VLOOKUP(B46,[1]ЦеныбезНДС!$A:$E,4,0) -> шт | I46: =IFERROR(VLOOKUP(B46,'[1]Хар-ки'!$A:$E,5,0),"") -> 40 | J46: =VLOOKUP(B46,'[1]Хар-ки'!$A:$F,6,0) -> 0,220 | K46: =VLOOKUP(B46,'[1]Хар-ки'!$A:$G,7,0) -> 0,000500
B47: PA40020G | C47: =IFERROR(VLOOKUP(B47,'[1]Хар-ки'!$A:$B,2,0),"") -> PP-R Шаровой кран полнопроходной Ultra Серый | D47: =IFERROR(VLOOKUP(B47,'[1]Хар-ки'!$A:$C,3,0),0) -> 75 | E47: =IFERROR(VLOOKUP(B47,'[1]Хар-ки'!$A:$D,4,0),0) -> Заказная | F47: =VLOOKUP(B47,[1]ЦеныбезНДС!$A:$C,3,0) -> RUR | G47: =IFERROR(#REF!*1.2,"") ->  | H47: =VLOOKUP(B47,[1]ЦеныбезНДС!$A:$E,4,0) -> шт | I47: =IFERROR(VLOOKUP(B47,'[1]Хар-ки'!$A:$E,5,0),"") -> 6 | J47: =VLOOKUP(B47,'[1]Хар-ки'!$A:$F,6,0) -> 1,590 | K47: =VLOOKUP(B47,'[1]Хар-ки'!$A:$G,7,0) -> 0,003533
B48: PA60010G | C48: =IFERROR(VLOOKUP(B48,'[1]Хар-ки'!$A:$B,2,0),"") -> PP-R Универсальный настенный комплект Серый | D48: =IFERROR(VLOOKUP(B48,'[1]Хар-ки'!$A:$C,3,0),0) -> 25x1/2 | E48: =IFERROR(VLOOKUP(B48,'[1]Хар-ки'!$A:$D,4,0),0) -> Заказная | F48: =VLOOKUP(B48,[1]ЦеныбезНДС!$A:$C,3,0) -> RUR | G48: =IFERROR(#REF!*1.2,"") ->  | H48: =VLOOKUP(B48,[1]ЦеныбезНДС!$A:$E,4,0) -> шт | I48: =IFERROR(VLOOKUP(B48,'[1]Хар-ки'!$A:$E,5,0),"") -> 16 | J48: =VLOOKUP(B48,'[1]Хар-ки'!$A:$F,6,0) -> 0,233 | K48: =VLOOKUP(B48,'[1]Хар-ки'!$A:$G,7,0) -> 0,000975
B49: 1005087T | C49: =IFERROR(VLOOKUP(B49,'[1]Хар-ки'!$A:$B,2,0),"") -> PP Отвод поворотный универсальный Pro Aqua Comfort | D49: =IFERROR(VLOOKUP(B49,'[1]Хар-ки'!$A:$C,3,0),0) -> 50 | E49: =IFERROR(VLOOKUP(B49,'[1]Хар-ки'!$A:$D,4,0),0) -> Обычная | F49: =VLOOKUP(B49,[1]ЦеныбезНДС!$A:$C,3,0) -> RUR | G49: =IFERROR(#REF!*1.2,"") ->  | H49: =VLOOKUP(B49,[1]ЦеныбезНДС!$A:$E,4,0) -> шт | I49: =IFERROR(VLOOKUP(B49,'[1]Хар-ки'!$A:$E,5,0),"") -> 25 | J49: =VLOOKUP(B49,'[1]Хар-ки'!$A:$F,6,0) -> 0,066 | K49: =VLOOKUP(B49,'[1]Хар-ки'!$A:$G,7,0) -> 0,004183
B50: 1011087T | C50: =IFERROR(VLOOKUP(B50,'[1]Хар-ки'!$A:$B,2,0),"") -> PP Отвод поворотный универсальный Pro Aqua Comfort | D50: =IFERROR(VLOOKUP(B50,'[1]Хар-ки'!$A:$C,3,0),0) -> 110 | E50: =IFERROR(VLOOKUP(B50,'[1]Хар-ки'!$A:$D,4,0),0) -> Обычная | F50: =VLOOKUP(B50,[1]ЦеныбезНДС!$A:$C,3,0) -> RUR | G50: =IFERROR(#REF!*1.2,"") ->  | H50: =VLOOKUP(B50,[1]ЦеныбезНДС!$A:$E,4,0) -> шт | I50: =IFERROR(VLOOKUP(B50,'[1]Хар-ки'!$A:$E,5,0),"") -> 25 | J50: =VLOOKUP(B50,'[1]Хар-ки'!$A:$F,6,0) -> 0,261 | K50: =VLOOKUP(B50,'[1]Хар-ки'!$A:$G,7,0) -> 0,004183
B51: lube0400 | C51: =IFERROR(VLOOKUP(B51,'[1]Хар-ки'!$A:$B,2,0),"") -> Смазка силиконовая флакон-аэрозоль | D51: =IFERROR(VLOOKUP(B51,'[1]Хар-ки'!$A:$C,3,0),0) -> 400 мл | E51: =IFERROR(VLOOKUP(B51,'[1]Хар-ки'!$A:$D,4,0),0) -> Обычная | F51: =VLOOKUP(B51,[1]Цены!$A:$C,3,0) -> RUR | G51: =VLOOKUP(B51,[1]Цены!$A:$E,5,0) -> 944.00 | H51: =VLOOKUP(B51,[1]Цены!$A:$E,4,0) -> шт | I51: =IFERROR(VLOOKUP(B51,'[1]Хар-ки'!$A:$E,5,0),"") -> 12 | J51: =VLOOKUP(B51,'[1]Хар-ки'!$A:$F,6,0) -> 0,279 | K51: =VLOOKUP(B51,'[1]Хар-ки'!$A:$G,7,0) -> 0,000693
B52: PERT1S7416100 | C52: =IFERROR(VLOOKUP(B52,'[1]Хар-ки'!$A:$B,2,0),"") -> PE-RT Труба однослойная SDR 7,4 Белая | D52: =IFERROR(VLOOKUP(B52,'[1]Хар-ки'!$A:$C,3,0),0) -> 16x2.2 100м | E52: =IFERROR(VLOOKUP(B52,'[1]Хар-ки'!$A:$D,4,0),0) -> Заказная | F52: =VLOOKUP(B52,[1]Цены!$A:$C,3,0) -> RUR | G52: =VLOOKUP(B52,[1]Цены!$A:$E,5,0) -> 71.18 | H52: =VLOOKUP(B52,[1]Цены!$A:$E,4,0) -> м | I52: =IFERROR(VLOOKUP(B52,'[1]Хар-ки'!$A:$E,5,0),"") -> 100 | J52: =VLOOKUP(B52,'[1]Хар-ки'!$A:$F,6,0) -> 0,093 | K52: =VLOOKUP(B52,'[1]Хар-ки'!$A:$G,7,0) -> 0,000228
B53: PERT1S7416200 | C53: =IFERROR(VLOOKUP(B53,'[1]Хар-ки'!$A:$B,2,0),"") -> PE-RT Труба однослойная SDR 7,4 Белая | D53: =IFERROR(VLOOKUP(B53,'[1]Хар-ки'!$A:$C,3,0),0) -> 16x2.2 200м | E53: =IFERROR(VLOOKUP(B53,'[1]Хар-ки'!$A:$D,4,0),0) -> Заказная | F53: =VLOOKUP(B53,[1]Цены!$A:$C,3,0) -> RUR | G53: =VLOOKUP(B53,[1]Цены!$A:$E,5,0) -> 71.18 | H53: =VLOOKUP(B53,[1]Цены!$A:$E,4,0) -> м | I53: =IFERROR(VLOOKUP(B53,'[1]Хар-ки'!$A:$E,5,0),"") -> 200 | J53: =VLOOKUP(B53,'[1]Хар-ки'!$A:$F,6,0) -> 0,093 | K53: =VLOOKUP(B53,'[1]Хар-ки'!$A:$G,7,0) -> 0,000125
B54: PERT1S7416300 | C54: =IFERROR(VLOOKUP(B54,'[1]Хар-ки'!$A:$B,2,0),"") -> PE-RT Труба однослойная SDR 7,4 Белая | D54: =IFERROR(VLOOKUP(B54,'[1]Хар-ки'!$A:$C,3,0),0) -> 16x2.2 300м | E54: =IFERROR(VLOOKUP(B54,'[1]Хар-ки'!$A:$D,4,0),0) -> Заказная | F54: =VLOOKUP(B54,[1]Цены!$A:$C,3,0) -> RUR | G54: =VLOOKUP(B54,[1]Цены!$A:$E,5,0) -> 71.18 | H54: =VLOOKUP(B54,[1]Цены!$A:$E,4,0) -> м | I54: =IFERROR(VLOOKUP(B54,'[1]Хар-ки'!$A:$E,5,0),"") -> 300 | J54: =VLOOKUP(B54,'[1]Хар-ки'!$A:$F,6,0) -> 0,093 | K54: =VLOOKUP(B54,'[1]Хар-ки'!$A:$G,7,0) -> 0,000223
B55: PERT1S7416600 | C55: =IFERROR(VLOOKUP(B55,'[1]Хар-ки'!$A:$B,2,0),"") -> PE-RT Труба однослойная SDR 7,4 Белая | D55: =IFERROR(VLOOKUP(B55,'[1]Хар-ки'!$A:$C,3,0),0) -> 16x2.2 600м | E55: =IFERROR(VLOOKUP(B55,'[1]Хар-ки'!$A:$D,4,0),0) -> Заказная | F55: =VLOOKUP(B55,[1]Цены!$A:$C,3,0) -> RUR | G55: =VLOOKUP(B55,[1]Цены!$A:$E,5,0) -> 71.18 | H55: =VLOOKUP(B55,[1]Цены!$A:$E,4,0) -> м | I55: =IFERROR(VLOOKUP(B55,'[1]Хар-ки'!$A:$E,5,0),"") -> 600 | J55: =VLOOKUP(B55,'[1]Хар-ки'!$A:$F,6,0) -> 0,093 | K55: =VLOOKUP(B55,'[1]Хар-ки'!$A:$G,7,0) -> 0,000126
B56: PERT1S7420100 | C56: =IFERROR(VLOOKUP(B56,'[1]Хар-ки'!$A:$B,2,0),"") -> PE-RT Труба однослойная SDR 7,4 Белая | D56: =IFERROR(VLOOKUP(B56,'[1]Хар-ки'!$A:$C,3,0),0) -> 20x2.8 100м | E56: =IFERROR(VLOOKUP(B56,'[1]Хар-ки'!$A:$D,4,0),0) -> Заказная | F56: =VLOOKUP(B56,[1]Цены!$A:$C,3,0) -> RUR | G56: =VLOOKUP(B56,[1]Цены!$A:$E,5,0) -> 107.03 | H56: =VLOOKUP(B56,[1]Цены!$A:$E,4,0) -> м | I56: =IFERROR(VLOOKUP(B56,'[1]Хар-ки'!$A:$E,5,0),"") -> 100 | J56: =VLOOKUP(B56,'[1]Хар-ки'!$A:$F,6,0) -> 0,142 | K56: =VLOOKUP(B56,'[1]Хар-ки'!$A:$G,7,0) -> 0,000664
B57: PERT1S7420200 | C57: =IFERROR(VLOOKUP(B57,'[1]Хар-ки'!$A:$B,2,0),"") -> PE-RT Труба однослойная SDR 7,4 Белая | D57: =IFERROR(VLOOKUP(B57,'[1]Хар-ки'!$A:$C,3,0),0) -> 20x2.8 200м | E57: =IFERROR(VLOOKUP(B57,'[1]Хар-ки'!$A:$D,4,0),0) -> Обычная | F57: =VLOOKUP(B57,[1]Цены!$A:$C,3,0) -> RUR | G57: =VLOOKUP(B57,[1]Цены!$A:$E,5,0) -> 107.03 | H57: =VLOOKUP(B57,[1]Цены!$A:$E,4,0) -> м | I57: =IFERROR(VLOOKUP(B57,'[1]Хар-ки'!$A:$E,5,0),"") -> 200 | J57: =VLOOKUP(B57,'[1]Хар-ки'!$A:$F,6,0) -> 0,142 | K57: =VLOOKUP(B57,'[1]Хар-ки'!$A:$G,7,0) -> 0,000341
B58: PERT1S7425050 | C58: =IFERROR(VLOOKUP(B58,'[1]Хар-ки'!$A:$B,2,0),"") -> PE-RT Труба однослойная SDR 7,4 Белая | D58: =IFERROR(VLOOKUP(B58,'[1]Хар-ки'!$A:$C,3,0),0) -> 25x3.5 50м | E58: =IFERROR(VLOOKUP(B58,'[1]Хар-ки'!$A:$D,4,0),0) -> Заказная | F58: =VLOOKUP(B58,[1]Цены!$A:$C,3,0) -> RUR | G58: =VLOOKUP(B58,[1]Цены!$A:$E,5,0) -> 170.80 | H58: =VLOOKUP(B58,[1]Цены!$A:$E,4,0) -> м | I58: =IFERROR(VLOOKUP(B58,'[1]Хар-ки'!$A:$E,5,0),"") -> 50 | J58: =VLOOKUP(B58,'[1]Хар-ки'!$A:$F,6,0) -> 0,230 | K58: =VLOOKUP(B58,'[1]Хар-ки'!$A:$G,7,0) -> 0,000467
B59: PERT1S7425100 | C59: =IFERROR(VLOOKUP(B59,'[1]Хар-ки'!$A:$B,2,0),"") -> PE-RT Труба однослойная SDR 7,4 Белая | D59: =IFERROR(VLOOKUP(B59,'[1]Хар-ки'!$A:$C,3,0),0) -> 25x3.5 100м | E59: =IFERROR(VLOOKUP(B59,'[1]Хар-ки'!$A:$D,4,0),0) -> Заказная | F59: =VLOOKUP(B59,[1]Цены!$A:$C,3,0) -> RUR | G59: =VLOOKUP(B59,[1]Цены!$A:$E,5,0) -> 170.80 | H59: =VLOOKUP(B59,[1]Цены!$A:$E,4,0) -> м | I59: =IFERROR(VLOOKUP(B59,'[1]Хар-ки'!$A:$E,5,0),"") -> 100 | J59: =VLOOKUP(B59,'[1]Хар-ки'!$A:$F,6,0) -> 0,230 | K59: =VLOOKUP(B59,'[1]Хар-ки'!$A:$G,7,0) -> 0,000754
B60: PERT1S7432050 | C60: =IFERROR(VLOOKUP(B60,'[1]Хар-ки'!$A:$B,2,0),"") -> PE-RT Труба однослойная SDR 7,4 Белая | D60: =IFERROR(VLOOKUP(B60,'[1]Хар-ки'!$A:$C,3,0),0) -> 32x4.4 50м | E60: =IFERROR(VLOOKUP(B60,'[1]Хар-ки'!$A:$D,4,0),0) -> Заказная | F60: =VLOOKUP(B60,[1]Цены!$A:$C,3,0) -> RUR | G60: =VLOOKUP(B60,[1]Цены!$A:$E,5,0) -> 267.05 | H60: =VLOOKUP(B60,[1]Цены!$A:$E,4,0) -> м | I60: =IFERROR(VLOOKUP(B60,'[1]Хар-ки'!$A:$E,5,0),"") -> 50 | J60: =VLOOKUP(B60,'[1]Хар-ки'!$A:$F,6,0) -> 0,370 | K60: =VLOOKUP(B60,'[1]Хар-ки'!$A:$G,7,0) -> 0,001329
B61: PA65020P | C61: =IFERROR(VLOOKUP(B61,'[1]Хар-ки'!$A:$B,2,0),"") -> Фиксатор поворота трубы | D61: =IFERROR(VLOOKUP(B61,'[1]Хар-ки'!$A:$C,3,0),0) -> 20х90 | E61: =IFERROR(VLOOKUP(B61,'[1]Хар-ки'!$A:$D,4,0),0) -> Обычная | F61: =VLOOKUP(B61,[1]ЦеныбезНДС!$A:$C,3,0) -> RUR | G61: =IFERROR(#REF!*1.2,"") ->  | H61: =VLOOKUP(B61,[1]ЦеныбезНДС!$A:$E,4,0) -> шт | I61: =IFERROR(VLOOKUP(B61,'[1]Хар-ки'!$A:$E,5,0),"") -> 80 | J61: =VLOOKUP(B61,'[1]Хар-ки'!$A:$F,6,0) -> 0,050 | K61: =VLOOKUP(B61,'[1]Хар-ки'!$A:$G,7,0) -> 0,000244
B62: V200.02-m20-m15 | C62: Коллектор латунный с регулировочными вентилями | D62: 2 выхода, 3/4 x 1/2 | E62: =IFERROR(VLOOKUP(B62,'[1]Хар-ки'!$A:$D,4,0),0) -> Обычная | F62: =VLOOKUP(B62,[1]ЦеныбезНДС!$A:$C,3,0) -> RUR | G62: =IFERROR(#REF!*1.2,"") ->  | H62: =VLOOKUP(B62,[1]ЦеныбезНДС!$A:$E,4,0) -> шт | I62: =IFERROR(VLOOKUP(B62,'[1]Хар-ки'!$A:$E,5,0),"") -> 25 | J62: =VLOOKUP(B62,'[1]Хар-ки'!$A:$F,6,0) -> 0,467 | K62: =VLOOKUP(B62,'[1]Хар-ки'!$A:$G,7,0) -> 0,000990
B63: V200.03-m20-m15 | C63: Коллектор латунный с регулировочными вентилями | D63: 3 выхода, 3/4 x 1/2 | E63: =IFERROR(VLOOKUP(B63,'[1]Хар-ки'!$A:$D,4,0),0) -> Обычная | F63: =VLOOKUP(B63,[1]ЦеныбезНДС!$A:$C,3,0) -> RUR | G63: =IFERROR(#REF!*1.2,"") ->  | H63: =VLOOKUP(B63,[1]ЦеныбезНДС!$A:$E,4,0) -> шт | I63: =IFERROR(VLOOKUP(B63,'[1]Хар-ки'!$A:$E,5,0),"") -> 25 | J63: =VLOOKUP(B63,'[1]Хар-ки'!$A:$F,6,0) -> 0,664 | K63: =VLOOKUP(B63,'[1]Хар-ки'!$A:$G,7,0) -> 0,001263
B64: V200.04-m20-m15 | C64: Коллектор латунный с регулировочными вентилями | D64: 4 выхода, 3/4 x 1/2 | E64: =IFERROR(VLOOKUP(B64,'[1]Хар-ки'!$A:$D,4,0),0) -> Обычная | F64: =VLOOKUP(B64,[1]ЦеныбезНДС!$A:$C,3,0) -> RUR | G64: =IFERROR(#REF!*1.2,"") ->  | H64: =VLOOKUP(B64,[1]ЦеныбезНДС!$A:$E,4,0) -> шт | I64: =IFERROR(VLOOKUP(B64,'[1]Хар-ки'!$A:$E,5,0),"") -> 25 | J64: =VLOOKUP(B64,'[1]Хар-ки'!$A:$F,6,0) -> 0,893 | K64: =VLOOKUP(B64,'[1]Хар-ки'!$A:$G,7,0) -> 0,001604
B65: V200.02EK-m25-m20 | C65: Коллектор латунный с регулировочными вентилями, евроконус | D65: 2 выхода, 1 x 3/4 ЕК | E65: =IFERROR(VLOOKUP(B65,'[1]Хар-ки'!$A:$D,4,0),0) -> Обычная | F65: =VLOOKUP(B65,[1]ЦеныбезНДС!$A:$C,3,0) -> RUR | G65: =IFERROR(#REF!*1.2,"") ->  | H65: =VLOOKUP(B65,[1]ЦеныбезНДС!$A:$E,4,0) -> шт | I65: =IFERROR(VLOOKUP(B65,'[1]Хар-ки'!$A:$E,5,0),"") -> 25 | J65: =VLOOKUP(B65,'[1]Хар-ки'!$A:$F,6,0) -> 0,608 | K65: =VLOOKUP(B65,'[1]Хар-ки'!$A:$G,7,0) -> 0,000990
B66: V200.03EK-m25-m20 | C66: Коллектор латунный с регулировочными вентилями, евроконус | D66: 3 выхода, 1 x 3/4 ЕК | E66: =IFERROR(VLOOKUP(B66,'[1]Хар-ки'!$A:$D,4,0),0) -> Обычная | F66: =VLOOKUP(B66,[1]ЦеныбезНДС!$A:$C,3,0) -> RUR | G66: =IFERROR(#REF!*1.2,"") ->  | H66: =VLOOKUP(B66,[1]ЦеныбезНДС!$A:$E,4,0) -> шт | I66: =IFERROR(VLOOKUP(B66,'[1]Хар-ки'!$A:$E,5,0),"") -> 25 | J66: =VLOOKUP(B66,'[1]Хар-ки'!$A:$F,6,0) -> 0,877 | K66: =VLOOKUP(B66,'[1]Хар-ки'!$A:$G,7,0) -> 0,001263
B67: V200.04EK-m25-m20 | C67: Коллектор латунный с регулировочными вентилями, евроконус | D67: 4 выхода, 1 x 3/4 ЕК | E67: =IFERROR(VLOOKUP(B67,'[1]Хар-ки'!$A:$D,4,0),0) -> Обычная | F67: =VLOOKUP(B67,[1]ЦеныбезНДС!$A:$C,3,0) -> RUR | G67: =IFERROR(#REF!*1.2,"") ->  | H67: =VLOOKUP(B67,[1]ЦеныбезНДС!$A:$E,4,0) -> шт | I67: =IFERROR(VLOOKUP(B67,'[1]Хар-ки'!$A:$E,5,0),"") -> 25 | J67: =VLOOKUP(B67,'[1]Хар-ки'!$A:$F,6,0) -> 1,140 | K67: =VLOOKUP(B67,'[1]Хар-ки'!$A:$G,7,0) -> 0,001604
B68: AX41620250 | C68: =IFERROR(VLOOKUP(B68,'[1]Хар-ки'!$A:$B,2,0),"") -> Трубка Т-образная переходная для подключения радиатора | D68: =IFERROR(VLOOKUP(B68,'[1]Хар-ки'!$A:$C,3,0),0) -> 16x250x20 | E68: =IFERROR(VLOOKUP(B68,'[1]Хар-ки'!$A:$D,4,0),0) -> Обычная | F68: =VLOOKUP(B68,[1]Цены!$A:$C,3,0) -> RUR | G68: =VLOOKUP(B68,[1]Цены!$A:$E,5,0) -> 1,463.46 | H68: =VLOOKUP(B68,[1]Цены!$A:$E,4,0) -> шт | I68: =IFERROR(VLOOKUP(B68,'[1]Хар-ки'!$A:$E,5,0),"") -> 50 | J68: =VLOOKUP(B68,'[1]Хар-ки'!$A:$F,6,0) -> 0,211 | K68: =VLOOKUP(B68,'[1]Хар-ки'!$A:$G,7,0) -> 0,000621
B69: AX42016250 | C69: =IFERROR(VLOOKUP(B69,'[1]Хар-ки'!$A:$B,2,0),"") -> Трубка Т-образная переходная для подключения радиатора | D69: =IFERROR(VLOOKUP(B69,'[1]Хар-ки'!$A:$C,3,0),0) -> 20x250x16 | E69: =IFERROR(VLOOKUP(B69,'[1]Хар-ки'!$A:$D,4,0),0) -> Обычная | F69: =VLOOKUP(B69,[1]Цены!$A:$C,3,0) -> RUR | G69: =VLOOKUP(B69,[1]Цены!$A:$E,5,0) -> 1,463.46 | H69: =VLOOKUP(B69,[1]Цены!$A:$E,4,0) -> шт | I69: =IFERROR(VLOOKUP(B69,'[1]Хар-ки'!$A:$E,5,0),"") -> 50 | J69: =VLOOKUP(B69,'[1]Хар-ки'!$A:$F,6,0) -> 0,234 | K69: =VLOOKUP(B69,'[1]Хар-ки'!$A:$G,7,0) -> 0,000621
B70: AX42025250 | C70: =IFERROR(VLOOKUP(B70,'[1]Хар-ки'!$A:$B,2,0),"") -> Трубка Т-образная переходная для подключения радиатора | D70: =IFERROR(VLOOKUP(B70,'[1]Хар-ки'!$A:$C,3,0),0) -> 20x250x25 | E70: =IFERROR(VLOOKUP(B70,'[1]Хар-ки'!$A:$D,4,0),0) -> Обычная | F70: =VLOOKUP(B70,[1]Цены!$A:$C,3,0) -> RUR | G70: =VLOOKUP(B70,[1]Цены!$A:$E,5,0) -> 1,865.74 | H70: =VLOOKUP(B70,[1]Цены!$A:$E,4,0) -> шт | I70: =IFERROR(VLOOKUP(B70,'[1]Хар-ки'!$A:$E,5,0),"") -> 50 | J70: =VLOOKUP(B70,'[1]Хар-ки'!$A:$F,6,0) -> 0,000 | K70: =VLOOKUP(B70,'[1]Хар-ки'!$A:$G,7,0) -> 0,000000
B71: AX42520250 | C71: =IFERROR(VLOOKUP(B71,'[1]Хар-ки'!$A:$B,2,0),"") -> Трубка Т-образная переходная для подключения радиатора | D71: =IFERROR(VLOOKUP(B71,'[1]Хар-ки'!$A:$C,3,0),0) -> 25x250x20 | E71: =IFERROR(VLOOKUP(B71,'[1]Хар-ки'!$A:$D,4,0),0) -> Обычная | F71: =VLOOKUP(B71,[1]Цены!$A:$C,3,0) -> RUR | G71: =VLOOKUP(B71,[1]Цены!$A:$E,5,0) -> 1,865.74 | H71: =VLOOKUP(B71,[1]Цены!$A:$E,4,0) -> шт | I71: =IFERROR(VLOOKUP(B71,'[1]Хар-ки'!$A:$E,5,0),"") -> 50 | J71: =VLOOKUP(B71,'[1]Хар-ки'!$A:$F,6,0) -> 0,000 | K71: =VLOOKUP(B71,'[1]Хар-ки'!$A:$G,7,0) -> 0,000000
B72: AX9253425 | C72: =IFERROR(VLOOKUP(B72,'[1]Хар-ки'!$A:$B,2,0),"") -> Тройник ВР | D72: =IFERROR(VLOOKUP(B72,'[1]Хар-ки'!$A:$C,3,0),0) -> 25x3/4x25 | E72: =IFERROR(VLOOKUP(B72,'[1]Хар-ки'!$A:$D,4,0),0) -> Обычная | F72: =VLOOKUP(B72,[1]Цены!$A:$C,3,0) -> RUR | G72: =VLOOKUP(B72,[1]Цены!$A:$E,5,0) -> 833.66 | H72: =VLOOKUP(B72,[1]Цены!$A:$E,4,0) -> шт | I72: =IFERROR(VLOOKUP(B72,'[1]Хар-ки'!$A:$E,5,0),"") -> 80 | J72: =VLOOKUP(B72,'[1]Хар-ки'!$A:$F,6,0) -> 0,190 | K72: =VLOOKUP(B72,'[1]Хар-ки'!$A:$G,7,0) -> 0,000169
B73: AXB.650.EK | C73: =IFERROR(VLOOKUP(B73,'[1]Хар-ки'!$A:$B,2,0),"") -> Адаптер "евроконус-плоскость" | D73: =IFERROR(VLOOKUP(B73,'[1]Хар-ки'!$A:$C,3,0),0) -> 3/4-3/4E | E73: =IFERROR(VLOOKUP(B73,'[1]Хар-ки'!$A:$D,4,0),0) -> Обычная | F73: =VLOOKUP(B73,[1]Цены!$A:$C,3,0) -> RUR | G73: =VLOOKUP(B73,[1]Цены!$A:$E,5,0) -> 51.58 | H73: =VLOOKUP(B73,[1]Цены!$A:$E,4,0) -> шт | I73: =IFERROR(VLOOKUP(B73,'[1]Хар-ки'!$A:$E,5,0),"") -> 1800 | J73: =VLOOKUP(B73,'[1]Хар-ки'!$A:$F,6,0) -> 0,010 | K73: =VLOOKUP(B73,'[1]Хар-ки'!$A:$G,7,0) -> 0,000003
B74: AXP.100.32.E | C74: =IFERROR(VLOOKUP(B74,'[1]Хар-ки'!$A:$B,2,0),"") -> Гильза PVDF | D74: =IFERROR(VLOOKUP(B74,'[1]Хар-ки'!$A:$C,3,0),0) -> 32 | E74: =IFERROR(VLOOKUP(B74,'[1]Хар-ки'!$A:$D,4,0),0) -> Обычная | F74: =VLOOKUP(B74,[1]Цены!$A:$C,3,0) -> RUR | G74: =VLOOKUP(B74,[1]Цены!$A:$E,5,0) -> 281.83 | H74: =VLOOKUP(B74,[1]Цены!$A:$E,4,0) -> шт | I74: =IFERROR(VLOOKUP(B74,'[1]Хар-ки'!$A:$E,5,0),"") -> 210 | J74: =VLOOKUP(B74,'[1]Хар-ки'!$A:$F,6,0) -> 0,027 | K74: =VLOOKUP(B74,'[1]Хар-ки'!$A:$G,7,0) -> 0,000074
B75: AXP.120.25 | C75: =IFERROR(VLOOKUP(B75,'[1]Хар-ки'!$A:$B,2,0),"") -> Муфта PPSU | D75: =IFERROR(VLOOKUP(B75,'[1]Хар-ки'!$A:$C,3,0),0) -> 25 | E75: =IFERROR(VLOOKUP(B75,'[1]Хар-ки'!$A:$D,4,0),0) -> Обычная | F75: =VLOOKUP(B75,[1]Цены!$A:$C,3,0) -> RUR | G75: =VLOOKUP(B75,[1]Цены!$A:$E,5,0) -> 234.78 | H75: =VLOOKUP(B75,[1]Цены!$A:$E,4,0) -> шт | I75: =IFERROR(VLOOKUP(B75,'[1]Хар-ки'!$A:$E,5,0),"") -> 150 | J75: =VLOOKUP(B75,'[1]Хар-ки'!$A:$F,6,0) -> 0,022 | K75: =VLOOKUP(B75,'[1]Хар-ки'!$A:$G,7,0) -> 0,000104
B76: AXP.120.32 | C76: =IFERROR(VLOOKUP(B76,'[1]Хар-ки'!$A:$B,2,0),"") -> Муфта PPSU | D76: =IFERROR(VLOOKUP(B76,'[1]Хар-ки'!$A:$C,3,0),0) -> 32 | E76: =IFERROR(VLOOKUP(B76,'[1]Хар-ки'!$A:$D,4,0),0) -> Обычная | F76: =VLOOKUP(B76,[1]Цены!$A:$C,3,0) -> RUR | G76: =VLOOKUP(B76,[1]Цены!$A:$E,5,0) -> 362.29 | H76: =VLOOKUP(B76,[1]Цены!$A:$E,4,0) -> шт | I76: =IFERROR(VLOOKUP(B76,'[1]Хар-ки'!$A:$E,5,0),"") -> 100 | J76: =VLOOKUP(B76,'[1]Хар-ки'!$A:$F,6,0) -> 0,038 | K76: =VLOOKUP(B76,'[1]Хар-ки'!$A:$G,7,0) -> 0,000156
B77: AXP.130.2025 | C77: =IFERROR(VLOOKUP(B77,'[1]Хар-ки'!$A:$B,2,0),"") -> Муфта переходная PPSU | D77: =IFERROR(VLOOKUP(B77,'[1]Хар-ки'!$A:$C,3,0),0) -> 20x25 | E77: =IFERROR(VLOOKUP(B77,'[1]Хар-ки'!$A:$D,4,0),0) -> Обычная | F77: =VLOOKUP(B77,[1]Цены!$A:$C,3,0) -> RUR | G77: =VLOOKUP(B77,[1]Цены!$A:$E,5,0) -> 185.29 | H77: =VLOOKUP(B77,[1]Цены!$A:$E,4,0) -> шт | I77: =IFERROR(VLOOKUP(B77,'[1]Хар-ки'!$A:$E,5,0),"") -> 180 | J77: =VLOOKUP(B77,'[1]Хар-ки'!$A:$F,6,0) -> 0,019 | K77: =VLOOKUP(B77,'[1]Хар-ки'!$A:$G,7,0) -> 0,000087
B78: AXP.130.2532 | C78: =IFERROR(VLOOKUP(B78,'[1]Хар-ки'!$A:$B,2,0),"") -> Муфта переходная PPSU | D78: =IFERROR(VLOOKUP(B78,'[1]Хар-ки'!$A:$C,3,0),0) -> 25x32 | E78: =IFERROR(VLOOKUP(B78,'[1]Хар-ки'!$A:$D,4,0),0) -> Обычная | F78: =VLOOKUP(B78,[1]Цены!$A:$C,3,0) -> RUR | G78: =VLOOKUP(B78,[1]Цены!$A:$E,5,0) -> 339.96 | H78: =VLOOKUP(B78,[1]Цены!$A:$E,4,0) -> шт | I78: =IFERROR(VLOOKUP(B78,'[1]Хар-ки'!$A:$E,5,0),"") -> 120 | J78: =VLOOKUP(B78,'[1]Хар-ки'!$A:$F,6,0) -> 0,033 | K78: =VLOOKUP(B78,'[1]Хар-ки'!$A:$G,7,0) -> 0,000130
B79: AXP.220.25 | C79: =IFERROR(VLOOKUP(B79,'[1]Хар-ки'!$A:$B,2,0),"") -> Угольник PPSU | D79: =IFERROR(VLOOKUP(B79,'[1]Хар-ки'!$A:$C,3,0),0) -> 25 | E79: =IFERROR(VLOOKUP(B79,'[1]Хар-ки'!$A:$D,4,0),0) -> Обычная | F79: =VLOOKUP(B79,[1]Цены!$A:$C,3,0) -> RUR | G79: =VLOOKUP(B79,[1]Цены!$A:$E,5,0) -> 319.38 | H79: =VLOOKUP(B79,[1]Цены!$A:$E,4,0) -> шт | I79: =IFERROR(VLOOKUP(B79,'[1]Хар-ки'!$A:$E,5,0),"") -> 100 | J79: =VLOOKUP(B79,'[1]Хар-ки'!$A:$F,6,0) -> 0,033 | K79: =VLOOKUP(B79,'[1]Хар-ки'!$A:$G,7,0) -> 0,000156
B80: AXP.220.32 | C80: =IFERROR(VLOOKUP(B80,'[1]Хар-ки'!$A:$B,2,0),"") -> Угольник PPSU | D80: =IFERROR(VLOOKUP(B80,'[1]Хар-ки'!$A:$C,3,0),0) -> 32 | E80: =IFERROR(VLOOKUP(B80,'[1]Хар-ки'!$A:$D,4,0),0) -> Обычная | F80: =VLOOKUP(B80,[1]Цены!$A:$C,3,0) -> RUR | G80: =VLOOKUP(B80,[1]Цены!$A:$E,5,0) -> 563.21 | H80: =VLOOKUP(B80,[1]Цены!$A:$E,4,0) -> шт | I80: =IFERROR(VLOOKUP(B80,'[1]Хар-ки'!$A:$E,5,0),"") -> 60 | J80: =VLOOKUP(B80,'[1]Хар-ки'!$A:$F,6,0) -> 0,038 | K80: =VLOOKUP(B80,'[1]Хар-ки'!$A:$G,7,0) -> 0,000260
B81: AXP.320.25 | C81: =IFERROR(VLOOKUP(B81,'[1]Хар-ки'!$A:$B,2,0),"") -> Тройник PPSU | D81: =IFERROR(VLOOKUP(B81,'[1]Хар-ки'!$A:$C,3,0),0) -> 25 | E81: =IFERROR(VLOOKUP(B81,'[1]Хар-ки'!$A:$D,4,0),0) -> Обычная | F81: =VLOOKUP(B81,[1]Цены!$A:$C,3,0) -> RUR | G81: =VLOOKUP(B81,[1]Цены!$A:$E,5,0) -> 439.30 | H81: =VLOOKUP(B81,[1]Цены!$A:$E,4,0) -> шт | I81: =IFERROR(VLOOKUP(B81,'[1]Хар-ки'!$A:$E,5,0),"") -> 80 | J81: =VLOOKUP(B81,'[1]Хар-ки'!$A:$F,6,0) -> 0,045 | K81: =VLOOKUP(B81,'[1]Хар-ки'!$A:$G,7,0) -> 0,000195
B82: AXP.320.32 | C82: =IFERROR(VLOOKUP(B82,'[1]Хар-ки'!$A:$B,2,0),"") -> Тройник PPSU | D82: =IFERROR(VLOOKUP(B82,'[1]Хар-ки'!$A:$C,3,0),0) -> 32 | E82: =IFERROR(VLOOKUP(B82,'[1]Хар-ки'!$A:$D,4,0),0) -> Обычная | F82: =VLOOKUP(B82,[1]Цены!$A:$C,3,0) -> RUR | G82: =VLOOKUP(B82,[1]Цены!$A:$E,5,0) -> 628.85 | H82: =VLOOKUP(B82,[1]Цены!$A:$E,4,0) -> шт | I82: =IFERROR(VLOOKUP(B82,'[1]Хар-ки'!$A:$E,5,0),"") -> 40 | J82: =VLOOKUP(B82,'[1]Хар-ки'!$A:$F,6,0) -> 0,079 | K82: =VLOOKUP(B82,'[1]Хар-ки'!$A:$G,7,0) -> 0,000390
B83: AXP.330.202520 | C83: =IFERROR(VLOOKUP(B83,'[1]Хар-ки'!$A:$B,2,0),"") -> Тройник переходной PPSU | D83: =IFERROR(VLOOKUP(B83,'[1]Хар-ки'!$A:$C,3,0),0) -> 20x25x20 | E83: =IFERROR(VLOOKUP(B83,'[1]Хар-ки'!$A:$D,4,0),0) -> Обычная | F83: =VLOOKUP(B83,[1]Цены!$A:$C,3,0) -> RUR | G83: =VLOOKUP(B83,[1]Цены!$A:$E,5,0) -> 276.91 | H83: =VLOOKUP(B83,[1]Цены!$A:$E,4,0) -> шт | I83: =IFERROR(VLOOKUP(B83,'[1]Хар-ки'!$A:$E,5,0),"") -> 100 | J83: =VLOOKUP(B83,'[1]Хар-ки'!$A:$F,6,0) -> 0,033 | K83: =VLOOKUP(B83,'[1]Хар-ки'!$A:$G,7,0) -> 0,000156
B84: AXP.330.251616 | C84: =IFERROR(VLOOKUP(B84,'[1]Хар-ки'!$A:$B,2,0),"") -> Тройник переходной PPSU | D84: =IFERROR(VLOOKUP(B84,'[1]Хар-ки'!$A:$C,3,0),0) -> 25x16x16 | E84: =IFERROR(VLOOKUP(B84,'[1]Хар-ки'!$A:$D,4,0),0) -> Обычная | F84: =VLOOKUP(B84,[1]Цены!$A:$C,3,0) -> RUR | G84: =VLOOKUP(B84,[1]Цены!$A:$E,5,0) -> 245.83 | H84: =VLOOKUP(B84,[1]Цены!$A:$E,4,0) -> шт | I84: =IFERROR(VLOOKUP(B84,'[1]Хар-ки'!$A:$E,5,0),"") -> 150 | J84: =VLOOKUP(B84,'[1]Хар-ки'!$A:$F,6,0) -> 0,027 | K84: =VLOOKUP(B84,'[1]Хар-ки'!$A:$G,7,0) -> 0,000104
B85: AXP.330.251625 | C85: =IFERROR(VLOOKUP(B85,'[1]Хар-ки'!$A:$B,2,0),"") -> Тройник переходной PPSU | D85: =IFERROR(VLOOKUP(B85,'[1]Хар-ки'!$A:$C,3,0),0) -> 25x16x25 | E85: =IFERROR(VLOOKUP(B85,'[1]Хар-ки'!$A:$D,4,0),0) -> Обычная | F85: =VLOOKUP(B85,[1]Цены!$A:$C,3,0) -> RUR | G85: =VLOOKUP(B85,[1]Цены!$A:$E,5,0) -> 314.98 | H85: =VLOOKUP(B85,[1]Цены!$A:$E,4,0) -> шт | I85: =IFERROR(VLOOKUP(B85,'[1]Хар-ки'!$A:$E,5,0),"") -> 100 | J85: =VLOOKUP(B85,'[1]Хар-ки'!$A:$F,6,0) -> 0,034 | K85: =VLOOKUP(B85,'[1]Хар-ки'!$A:$G,7,0) -> 0,000156
B86: AXP.330.252020 | C86: =IFERROR(VLOOKUP(B86,'[1]Хар-ки'!$A:$B,2,0),"") -> Тройник переходной PPSU | D86: =IFERROR(VLOOKUP(B86,'[1]Хар-ки'!$A:$C,3,0),0) -> 25x20x20 | E86: =IFERROR(VLOOKUP(B86,'[1]Хар-ки'!$A:$D,4,0),0) -> Обычная | F86: =VLOOKUP(B86,[1]Цены!$A:$C,3,0) -> RUR | G86: =VLOOKUP(B86,[1]Цены!$A:$E,5,0) -> 311.26 | H86: =VLOOKUP(B86,[1]Цены!$A:$E,4,0) -> шт | I86: =IFERROR(VLOOKUP(B86,'[1]Хар-ки'!$A:$E,5,0),"") -> 100 | J86: =VLOOKUP(B86,'[1]Хар-ки'!$A:$F,6,0) -> 0,033 | K86: =VLOOKUP(B86,'[1]Хар-ки'!$A:$G,7,0) -> 0,000156
B87: AXP.330.322025 | C87: =IFERROR(VLOOKUP(B87,'[1]Хар-ки'!$A:$B,2,0),"") -> Тройник переходной PPSU | D87: =IFERROR(VLOOKUP(B87,'[1]Хар-ки'!$A:$C,3,0),0) -> 32x20x25 | E87: =IFERROR(VLOOKUP(B87,'[1]Хар-ки'!$A:$D,4,0),0) -> Обычная | F87: =VLOOKUP(B87,[1]Цены!$A:$C,3,0) -> RUR | G87: =VLOOKUP(B87,[1]Цены!$A:$E,5,0) -> 491.44 | H87: =VLOOKUP(B87,[1]Цены!$A:$E,4,0) -> шт | I87: =IFERROR(VLOOKUP(B87,'[1]Хар-ки'!$A:$E,5,0),"") -> 60 | J87: =VLOOKUP(B87,'[1]Хар-ки'!$A:$F,6,0) -> 0,050 | K87: =VLOOKUP(B87,'[1]Хар-ки'!$A:$G,7,0) -> 0,000260
B88: AXP.330.322520 | C88: =IFERROR(VLOOKUP(B88,'[1]Хар-ки'!$A:$B,2,0),"") -> Тройник переходной PPSU | D88: =IFERROR(VLOOKUP(B88,'[1]Хар-ки'!$A:$C,3,0),0) -> 32x25x20 | E88: =IFERROR(VLOOKUP(B88,'[1]Хар-ки'!$A:$D,4,0),0) -> Обычная | F88: =VLOOKUP(B88,[1]Цены!$A:$C,3,0) -> RUR | G88: =VLOOKUP(B88,[1]Цены!$A:$E,5,0) -> 506.92 | H88: =VLOOKUP(B88,[1]Цены!$A:$E,4,0) -> шт | I88: =IFERROR(VLOOKUP(B88,'[1]Хар-ки'!$A:$E,5,0),"") -> 60 | J88: =VLOOKUP(B88,'[1]Хар-ки'!$A:$F,6,0) -> 0,053 | K88: =VLOOKUP(B88,'[1]Хар-ки'!$A:$G,7,0) -> 0,000260
B89: AXP.330.321632 | C89: =IFERROR(VLOOKUP(B89,'[1]Хар-ки'!$A:$B,2,0),"") -> Тройник переходной PPSU | D89: =IFERROR(VLOOKUP(B89,'[1]Хар-ки'!$A:$C,3,0),0) -> 32x16x32 | E89: =IFERROR(VLOOKUP(B89,'[1]Хар-ки'!$A:$D,4,0),0) -> Обычная | F89: =VLOOKUP(B89,[1]Цены!$A:$C,3,0) -> RUR | G89: =VLOOKUP(B89,[1]Цены!$A:$E,5,0) -> 570.48 | H89: =VLOOKUP(B89,[1]Цены!$A:$E,4,0) -> шт | I89: =IFERROR(VLOOKUP(B89,'[1]Хар-ки'!$A:$E,5,0),"") -> 60 | J89: =VLOOKUP(B89,'[1]Хар-ки'!$A:$F,6,0) -> 0,054 | K89: =VLOOKUP(B89,'[1]Хар-ки'!$A:$G,7,0) -> 0,000260
B90: AXP.330.202516 | C90: =IFERROR(VLOOKUP(B90,'[1]Хар-ки'!$A:$B,2,0),"") -> Тройник переходной PPSU | D90: =IFERROR(VLOOKUP(B90,'[1]Хар-ки'!$A:$C,3,0),0) -> 20x25x16 | E90: =IFERROR(VLOOKUP(B90,'[1]Хар-ки'!$A:$D,4,0),0) -> Обычная | F90: =VLOOKUP(B90,[1]Цены!$A:$C,3,0) -> RUR | G90: =VLOOKUP(B90,[1]Цены!$A:$E,5,0) -> 265.99 | H90: =VLOOKUP(B90,[1]Цены!$A:$E,4,0) -> шт | I90: =IFERROR(VLOOKUP(B90,'[1]Хар-ки'!$A:$E,5,0),"") -> 150 | J90: =VLOOKUP(B90,'[1]Хар-ки'!$A:$F,6,0) -> 0,027 | K90: =VLOOKUP(B90,'[1]Хар-ки'!$A:$G,7,0) -> 0,000104
B91: AXP.330.251620 | C91: =IFERROR(VLOOKUP(B91,'[1]Хар-ки'!$A:$B,2,0),"") -> Тройник переходной PPSU | D91: =IFERROR(VLOOKUP(B91,'[1]Хар-ки'!$A:$C,3,0),0) -> 25x16x20 | E91: =IFERROR(VLOOKUP(B91,'[1]Хар-ки'!$A:$D,4,0),0) -> Обычная | F91: =VLOOKUP(B91,[1]Цены!$A:$C,3,0) -> RUR | G91: =VLOOKUP(B91,[1]Цены!$A:$E,5,0) -> 274.40 | H91: =VLOOKUP(B91,[1]Цены!$A:$E,4,0) -> шт | I91: =IFERROR(VLOOKUP(B91,'[1]Хар-ки'!$A:$E,5,0),"") -> 100 | J91: =VLOOKUP(B91,'[1]Хар-ки'!$A:$F,6,0) -> 0,029 | K91: =VLOOKUP(B91,'[1]Хар-ки'!$A:$G,7,0) -> 0,000156
B92: AXP.330.252016 | C92: =IFERROR(VLOOKUP(B92,'[1]Хар-ки'!$A:$B,2,0),"") -> Тройник переходной PPSU | D92: =IFERROR(VLOOKUP(B92,'[1]Хар-ки'!$A:$C,3,0),0) -> 25x20x16 | E92: =IFERROR(VLOOKUP(B92,'[1]Хар-ки'!$A:$D,4,0),0) -> Обычная | F92: =VLOOKUP(B92,[1]Цены!$A:$C,3,0) -> RUR | G92: =VLOOKUP(B92,[1]Цены!$A:$E,5,0) -> 283.62 | H92: =VLOOKUP(B92,[1]Цены!$A:$E,4,0) -> шт | I92: =IFERROR(VLOOKUP(B92,'[1]Хар-ки'!$A:$E,5,0),"") -> 100 | J92: =VLOOKUP(B92,'[1]Хар-ки'!$A:$F,6,0) -> 0,031 | K92: =VLOOKUP(B92,'[1]Хар-ки'!$A:$G,7,0) -> 0,000156
B93: AXP.330.252025 | C93: =IFERROR(VLOOKUP(B93,'[1]Хар-ки'!$A:$B,2,0),"") -> Тройник переходной PPSU | D93: =IFERROR(VLOOKUP(B93,'[1]Хар-ки'!$A:$C,3,0),0) -> 25x20x25 | E93: =IFERROR(VLOOKUP(B93,'[1]Хар-ки'!$A:$D,4,0),0) -> Обычная | F93: =VLOOKUP(B93,[1]Цены!$A:$C,3,0) -> RUR | G93: =VLOOKUP(B93,[1]Цены!$A:$E,5,0) -> 347.04 | H93: =VLOOKUP(B93,[1]Цены!$A:$E,4,0) -> шт | I93: =IFERROR(VLOOKUP(B93,'[1]Хар-ки'!$A:$E,5,0),"") -> 80 | J93: =VLOOKUP(B93,'[1]Хар-ки'!$A:$F,6,0) -> 0,038 | K93: =VLOOKUP(B93,'[1]Хар-ки'!$A:$G,7,0) -> 0,000195
B94: AXP.330.252516 | C94: =IFERROR(VLOOKUP(B94,'[1]Хар-ки'!$A:$B,2,0),"") -> Тройник переходной PPSU | D94: =IFERROR(VLOOKUP(B94,'[1]Хар-ки'!$A:$C,3,0),0) -> 25x25x16 | E94: =IFERROR(VLOOKUP(B94,'[1]Хар-ки'!$A:$D,4,0),0) -> Обычная | F94: =VLOOKUP(B94,[1]Цены!$A:$C,3,0) -> RUR | G94: =VLOOKUP(B94,[1]Цены!$A:$E,5,0) -> 338.82 | H94: =VLOOKUP(B94,[1]Цены!$A:$E,4,0) -> шт | I94: =IFERROR(VLOOKUP(B94,'[1]Хар-ки'!$A:$E,5,0),"") -> 80 | J94: =VLOOKUP(B94,'[1]Хар-ки'!$A:$F,6,0) -> 0,036 | K94: =VLOOKUP(B94,'[1]Хар-ки'!$A:$G,7,0) -> 0,000195
B95: AXP.330.322020 | C95: =IFERROR(VLOOKUP(B95,'[1]Хар-ки'!$A:$B,2,0),"") -> Тройник переходной PPSU | D95: =IFERROR(VLOOKUP(B95,'[1]Хар-ки'!$A:$C,3,0),0) -> 32x20x20 | E95: =IFERROR(VLOOKUP(B95,'[1]Хар-ки'!$A:$D,4,0),0) -> Обычная | F95: =VLOOKUP(B95,[1]Цены!$A:$C,3,0) -> RUR | G95: =VLOOKUP(B95,[1]Цены!$A:$E,5,0) -> 432.00 | H95: =VLOOKUP(B95,[1]Цены!$A:$E,4,0) -> шт | I95: =IFERROR(VLOOKUP(B95,'[1]Хар-ки'!$A:$E,5,0),"") -> 60 | J95: =VLOOKUP(B95,'[1]Хар-ки'!$A:$F,6,0) -> 0,045 | K95: =VLOOKUP(B95,'[1]Хар-ки'!$A:$G,7,0) -> 0,000260
B96: AXP.330.322525 | C96: =IFERROR(VLOOKUP(B96,'[1]Хар-ки'!$A:$B,2,0),"") -> Тройник переходной PPSU | D96: =IFERROR(VLOOKUP(B96,'[1]Хар-ки'!$A:$C,3,0),0) -> 32x25x25 | E96: =IFERROR(VLOOKUP(B96,'[1]Хар-ки'!$A:$D,4,0),0) -> Обычная | F96: =VLOOKUP(B96,[1]Цены!$A:$C,3,0) -> RUR | G96: =VLOOKUP(B96,[1]Цены!$A:$E,5,0) -> 552.94 | H96: =VLOOKUP(B96,[1]Цены!$A:$E,4,0) -> шт | I96: =IFERROR(VLOOKUP(B96,'[1]Хар-ки'!$A:$E,5,0),"") -> 60 | J96: =VLOOKUP(B96,'[1]Хар-ки'!$A:$F,6,0) -> 0,057 | K96: =VLOOKUP(B96,'[1]Хар-ки'!$A:$G,7,0) -> 0,000260
B97: AXP.330.322032 | C97: =IFERROR(VLOOKUP(B97,'[1]Хар-ки'!$A:$B,2,0),"") -> Тройник переходной PPSU | D97: =IFERROR(VLOOKUP(B97,'[1]Хар-ки'!$A:$C,3,0),0) -> 32x20x32 | E97: =IFERROR(VLOOKUP(B97,'[1]Хар-ки'!$A:$D,4,0),0) -> Обычная | F97: =VLOOKUP(B97,[1]Цены!$A:$C,3,0) -> RUR | G97: =VLOOKUP(B97,[1]Цены!$A:$E,5,0) -> 618.72 | H97: =VLOOKUP(B97,[1]Цены!$A:$E,4,0) -> шт | I97: =IFERROR(VLOOKUP(B97,'[1]Хар-ки'!$A:$E,5,0),"") -> 60 | J97: =VLOOKUP(B97,'[1]Хар-ки'!$A:$F,6,0) -> 0,059 | K97: =VLOOKUP(B97,'[1]Хар-ки'!$A:$G,7,0) -> 0,000260

Sheet PPR PRO AQUA (белый)
A9: Фото | B9: Код | C9: Наименование | D9: Типоразмер | E9: Категория товара | F9: Валюта продажи | G9: Цена ПРОДАЖИ с НДС | H9: Ед. измерения | I9: В коробке | J9: Вес кг | K9: Объем м3
B10: PA11212 | C10: PP-R Труба SDR 11 Белая 2м | D10: 32 | E10: =IFERROR(VLOOKUP(B10,'[1]Хар-ки'!$A:$D,4,0),0) -> Обычная | F10: =VLOOKUP(B10,[1]Цены!$A:$C,3,0) -> RUR | G10: =VLOOKUP(B10,[1]Цены!$A:$E,5,0) -> 145.73 | H10: =VLOOKUP(B10,[1]Цены!$A:$E,4,0) -> м | I10: =IFERROR(VLOOKUP(B10,'[1]Хар-ки'!$A:$E,5,0),"") -> 24 | J10: =VLOOKUP(B10,'[1]Хар-ки'!$A:$F,6,0) -> 0,255 | K10: =VLOOKUP(B10,'[1]Хар-ки'!$A:$G,7,0) -> 0,001680
B11: PA11008 | C11: PP-R Труба SDR 11 Белая | D11: 20 | E11: =IFERROR(VLOOKUP(B11,'[1]Хар-ки'!$A:$D,4,0),0) -> Обычная | F11: =VLOOKUP(B11,[1]Цены!$A:$C,3,0) -> RUR | G11: =VLOOKUP(B11,[1]Цены!$A:$E,5,0) -> 59.28 | H11: =VLOOKUP(B11,[1]Цены!$A:$E,4,0) -> м | I11: =IFERROR(VLOOKUP(B11,'[1]Хар-ки'!$A:$E,5,0),"") -> 100 | J11: =VLOOKUP(B11,'[1]Хар-ки'!$A:$F,6,0) -> 0,105 | K11: =VLOOKUP(B11,'[1]Хар-ки'!$A:$G,7,0) -> 0,000586
B12: PA11010 | C12: PP-R Труба SDR 11 Белая | D12: 25 | E12: =IFERROR(VLOOKUP(B12,'[1]Хар-ки'!$A:$D,4,0),0) -> Обычная | F12: =VLOOKUP(B12,[1]Цены!$A:$C,3,0) -> RUR | G12: =VLOOKUP(B12,[1]Цены!$A:$E,5,0) -> 89.98 | H12: =VLOOKUP(B12,[1]Цены!$A:$E,4,0) -> м | I12: =IFERROR(VLOOKUP(B12,'[1]Хар-ки'!$A:$E,5,0),"") -> 80 | J12: =VLOOKUP(B12,'[1]Хар-ки'!$A:$F,6,0) -> 0,159 | K12: =VLOOKUP(B12,'[1]Хар-ки'!$A:$G,7,0) -> 0,000861
B13: PA11012 | C13: PP-R Труба SDR 11 Белая | D13: 32 | E13: =IFERROR(VLOOKUP(B13,'[1]Хар-ки'!$A:$D,4,0),0) -> Обычная | F13: =VLOOKUP(B13,[1]Цены!$A:$C,3,0) -> RUR | G13: =VLOOKUP(B13,[1]Цены!$A:$E,5,0) -> 145.74 | H13: =VLOOKUP(B13,[1]Цены!$A:$E,4,0) -> м | I13: =IFERROR(VLOOKUP(B13,'[1]Хар-ки'!$A:$E,5,0),"") -> 48 | J13: =VLOOKUP(B13,'[1]Хар-ки'!$A:$F,6,0) -> 0,255 | K13: =VLOOKUP(B13,'[1]Хар-ки'!$A:$G,7,0) -> 0,001640
B14: PA11014 | C14: PP-R Труба SDR 11 Белая | D14: 40 | E14: =IFERROR(VLOOKUP(B14,'[1]Хар-ки'!$A:$D,4,0),0) -> Обычная | F14: =VLOOKUP(B14,[1]Цены!$A:$C,3,0) -> RUR | G14: =VLOOKUP(B14,[1]Цены!$A:$E,5,0) -> 228.04 | H14: =VLOOKUP(B14,[1]Цены!$A:$E,4,0) -> м | I14: =IFERROR(VLOOKUP(B14,'[1]Хар-ки'!$A:$E,5,0),"") -> 32 | J14: =VLOOKUP(B14,'[1]Хар-ки'!$A:$F,6,0) -> 0,405 | K14: =VLOOKUP(B14,'[1]Хар-ки'!$A:$G,7,0) -> 0,002002
B15: PA11016 | C15: PP-R Труба SDR 11 Белая | D15: 50 | E15: =IFERROR(VLOOKUP(B15,'[1]Хар-ки'!$A:$D,4,0),0) -> Обычная | F15: =VLOOKUP(B15,[1]Цены!$A:$C,3,0) -> RUR | G15: =VLOOKUP(B15,[1]Цены!$A:$E,5,0) -> 358.63 | H15: =VLOOKUP(B15,[1]Цены!$A:$E,4,0) -> м | I15: =IFERROR(VLOOKUP(B15,'[1]Хар-ки'!$A:$E,5,0),"") -> 20 | J15: =VLOOKUP(B15,'[1]Хар-ки'!$A:$F,6,0) -> 0,628 | K15: =VLOOKUP(B15,'[1]Хар-ки'!$A:$G,7,0) -> 0,004080
B16: PA11018 | C16: PP-R Труба SDR 11 Белая | D16: 63 | E16: =IFERROR(VLOOKUP(B16,'[1]Хар-ки'!$A:$D,4,0),0) -> Обычная | F16: =VLOOKUP(B16,[1]Цены!$A:$C,3,0) -> RUR | G16: =VLOOKUP(B16,[1]Цены!$A:$E,5,0) -> 560.36 | H16: =VLOOKUP(B16,[1]Цены!$A:$E,4,0) -> м | I16: =IFERROR(VLOOKUP(B16,'[1]Хар-ки'!$A:$E,5,0),"") -> 12 | J16: =VLOOKUP(B16,'[1]Хар-ки'!$A:$F,6,0) -> 0,999 | K16: =VLOOKUP(B16,'[1]Хар-ки'!$A:$G,7,0) -> 0,006970
B17: PA11020 | C17: PP-R Труба SDR 11 Белая | D17: 75 | E17: =IFERROR(VLOOKUP(B17,'[1]Хар-ки'!$A:$D,4,0),0) -> Обычная | F17: =VLOOKUP(B17,[1]Цены!$A:$C,3,0) -> RUR | G17: =VLOOKUP(B17,[1]Цены!$A:$E,5,0) -> 734.81 | H17: =VLOOKUP(B17,[1]Цены!$A:$E,4,0) -> м | I17: =IFERROR(VLOOKUP(B17,'[1]Хар-ки'!$A:$E,5,0),"") -> 4 | J17: =VLOOKUP(B17,'[1]Хар-ки'!$A:$F,6,0) -> 1,394 | K17: =VLOOKUP(B17,'[1]Хар-ки'!$A:$G,7,0) -> 0,026240
B18: PA11022 | C18: PP-R Труба SDR 11 Белая | D18: 90 | E18: =IFERROR(VLOOKUP(B18,'[1]Хар-ки'!$A:$D,4,0),0) -> Обычная | F18: =VLOOKUP(B18,[1]Цены!$A:$C,3,0) -> RUR | G18: =VLOOKUP(B18,[1]Цены!$A:$E,5,0) -> 1,058.62 | H18: =VLOOKUP(B18,[1]Цены!$A:$E,4,0) -> м | I18: =IFERROR(VLOOKUP(B18,'[1]Хар-ки'!$A:$E,5,0),"") -> 4 | J18: =VLOOKUP(B18,'[1]Хар-ки'!$A:$F,6,0) -> 2,019 | K18: =VLOOKUP(B18,'[1]Хар-ки'!$A:$G,7,0) -> 0,019475
B19: PA11024 | C19: PP-R Труба SDR 11 Белая | D19: 110 | E19: =IFERROR(VLOOKUP(B19,'[1]Хар-ки'!$A:$D,4,0),0) -> Обычная | F19: =VLOOKUP(B19,[1]Цены!$A:$C,3,0) -> RUR | G19: =VLOOKUP(B19,[1]Цены!$A:$E,5,0) -> 1,586.57 | H19: =VLOOKUP(B19,[1]Цены!$A:$E,4,0) -> м | I19: =IFERROR(VLOOKUP(B19,'[1]Хар-ки'!$A:$E,5,0),"") -> 4 | J19: =VLOOKUP(B19,'[1]Хар-ки'!$A:$F,6,0) -> 3,005 | K19: =VLOOKUP(B19,'[1]Хар-ки'!$A:$G,7,0) -> 0,014760
B20: PA11026 | C20: PP-R Труба SDR 11 Белая | D20: 125 | E20: =IFERROR(VLOOKUP(B20,'[1]Хар-ки'!$A:$D,4,0),0) -> Обычная | F20: =VLOOKUP(B20,[1]Цены!$A:$C,3,0) -> RUR | G20: =VLOOKUP(B20,[1]Цены!$A:$E,5,0) -> 2,205.98 | H20: =VLOOKUP(B20,[1]Цены!$A:$E,4,0) -> м | I20: =IFERROR(VLOOKUP(B20,'[1]Хар-ки'!$A:$E,5,0),"") -> 4 | J20: =VLOOKUP(B20,'[1]Хар-ки'!$A:$F,6,0) -> 3,973 | K20: =VLOOKUP(B20,'[1]Хар-ки'!$A:$G,7,0) -> 0,017323
B21: PA11028 | C21: PP-R Труба SDR 11 Белая | D21: 160 | E21: =IFERROR(VLOOKUP(B21,'[1]Хар-ки'!$A:$D,4,0),0) -> Обычная | F21: =VLOOKUP(B21,[1]Цены!$A:$C,3,0) -> RUR | G21: =VLOOKUP(B21,[1]Цены!$A:$E,5,0) -> 3,694.61 | H21: =VLOOKUP(B21,[1]Цены!$A:$E,4,0) -> м | I21: =IFERROR(VLOOKUP(B21,'[1]Хар-ки'!$A:$E,5,0),"") -> 4 | J21: =VLOOKUP(B21,'[1]Хар-ки'!$A:$F,6,0) -> 6,398 | K21: =VLOOKUP(B21,'[1]Хар-ки'!$A:$G,7,0) -> 0,026240
B22: PA10208P | C22: PP-R Труба SDR 6 Белая 2м | D22: 20 | E22: =IFERROR(VLOOKUP(B22,'[1]Хар-ки'!$A:$D,4,0),0) -> Обычная | F22: =VLOOKUP(B22,[1]Цены!$A:$C,3,0) -> RUR | G22: =VLOOKUP(B22,[1]Цены!$A:$E,5,0) -> 79.19 | H22: =VLOOKUP(B22,[1]Цены!$A:$E,4,0) -> м | I22: =IFERROR(VLOOKUP(B22,'[1]Хар-ки'!$A:$E,5,0),"") -> 50 | J22: =VLOOKUP(B22,'[1]Хар-ки'!$A:$F,6,0) -> 0,170 | K22: =VLOOKUP(B22,'[1]Хар-ки'!$A:$G,7,0) -> 0,000504
B23: PA10210P | C23: PP-R Труба SDR 6 Белая 2м | D23: 25 | E23: =IFERROR(VLOOKUP(B23,'[1]Хар-ки'!$A:$D,4,0),0) -> Обычная | F23: =VLOOKUP(B23,[1]Цены!$A:$C,3,0) -> RUR | G23: =VLOOKUP(B23,[1]Цены!$A:$E,5,0) -> 123.14 | H23: =VLOOKUP(B23,[1]Цены!$A:$E,4,0) -> м | I23: =IFERROR(VLOOKUP(B23,'[1]Хар-ки'!$A:$E,5,0),"") -> 40 | J23: =VLOOKUP(B23,'[1]Хар-ки'!$A:$F,6,0) -> 0,264 | K23: =VLOOKUP(B23,'[1]Хар-ки'!$A:$G,7,0) -> 0,000630
B24: PA10212P | C24: PP-R Труба SDR 6 Белая 2м | D24: 32 | E24: =IFERROR(VLOOKUP(B24,'[1]Хар-ки'!$A:$D,4,0),0) -> Обычная | F24: =VLOOKUP(B24,[1]Цены!$A:$C,3,0) -> RUR | G24: =VLOOKUP(B24,[1]Цены!$A:$E,5,0) -> 202.19 | H24: =VLOOKUP(B24,[1]Цены!$A:$E,4,0) -> м | I24: =IFERROR(VLOOKUP(B24,'[1]Хар-ки'!$A:$E,5,0),"") -> 24 | J24: =VLOOKUP(B24,'[1]Хар-ки'!$A:$F,6,0) -> 0,430 | K24: =VLOOKUP(B24,'[1]Хар-ки'!$A:$G,7,0) -> 0,001680
B25: PA10006P | C25: PP-R Труба SDR 6 Белая | D25: 16 | E25: =IFERROR(VLOOKUP(B25,'[1]Хар-ки'!$A:$D,4,0),0) -> Обычная | F25: =VLOOKUP(B25,[1]Цены!$A:$C,3,0) -> RUR | G25: =VLOOKUP(B25,[1]Цены!$A:$E,5,0) -> 77.71 | H25: =VLOOKUP(B25,[1]Цены!$A:$E,4,0) -> м | I25: =IFERROR(VLOOKUP(B25,'[1]Хар-ки'!$A:$E,5,0),"") -> 200 | J25: =VLOOKUP(B25,'[1]Хар-ки'!$A:$F,6,0) -> 0,110 | K25: =VLOOKUP(B25,'[1]Хар-ки'!$A:$G,7,0) -> 0,000344
B26: PA10008 | C26: PP-R Труба SDR 6 Белая | D26: 20 | E26: =IFERROR(VLOOKUP(B26,'[1]Хар-ки'!$A:$D,4,0),0) -> Обычная | F26: =VLOOKUP(B26,[1]Цены!$A:$C,3,0) -> RUR | G26: =VLOOKUP(B26,[1]Цены!$A:$E,5,0) -> 79.39 | H26: =VLOOKUP(B26,[1]Цены!$A:$E,4,0) -> м | I26: =IFERROR(VLOOKUP(B26,'[1]Хар-ки'!$A:$E,5,0),"") -> 100 | J26: =VLOOKUP(B26,'[1]Хар-ки'!$A:$F,6,0) -> 0,169 | K26: =VLOOKUP(B26,'[1]Хар-ки'!$A:$G,7,0) -> 0,000517
B27: PA10010 | C27: PP-R Труба SDR 6 Белая | D27: 25 | E27: =IFERROR(VLOOKUP(B27,'[1]Хар-ки'!$A:$D,4,0),0) -> Обычная | F27: =VLOOKUP(B27,[1]Цены!$A:$C,3,0) -> RUR | G27: =VLOOKUP(B27,[1]Цены!$A:$E,5,0) -> 124.37 | H27: =VLOOKUP(B27,[1]Цены!$A:$E,4,0) -> м | I27: =IFERROR(VLOOKUP(B27,'[1]Хар-ки'!$A:$E,5,0),"") -> 80 | J27: =VLOOKUP(B27,'[1]Хар-ки'!$A:$F,6,0) -> 0,261 | K27: =VLOOKUP(B27,'[1]Хар-ки'!$A:$G,7,0) -> 0,000800
B28: PA10012 | C28: PP-R Труба SDR 6 Белая | D28: 32 | E28: =IFERROR(VLOOKUP(B28,'[1]Хар-ки'!$A:$D,4,0),0) -> Обычная | F28: =VLOOKUP(B28,[1]Цены!$A:$C,3,0) -> RUR | G28: =VLOOKUP(B28,[1]Цены!$A:$E,5,0) -> 203.64 | H28: =VLOOKUP(B28,[1]Цены!$A:$E,4,0) -> м | I28: =IFERROR(VLOOKUP(B28,'[1]Хар-ки'!$A:$E,5,0),"") -> 48 | J28: =VLOOKUP(B28,'[1]Хар-ки'!$A:$F,6,0) -> 0,428 | K28: =VLOOKUP(B28,'[1]Хар-ки'!$A:$G,7,0) -> 0,001333
B29: PA10014 | C29: PP-R Труба SDR 6 Белая | D29: 40 | E29: =IFERROR(VLOOKUP(B29,'[1]Хар-ки'!$A:$D,4,0),0) -> Обычная | F29: =VLOOKUP(B29,[1]Цены!$A:$C,3,0) -> RUR | G29: =VLOOKUP(B29,[1]Цены!$A:$E,5,0) -> 314.17 | H29: =VLOOKUP(B29,[1]Цены!$A:$E,4,0) -> м | I29: =IFERROR(VLOOKUP(B29,'[1]Хар-ки'!$A:$E,5,0),"") -> 32 | J29: =VLOOKUP(B29,'[1]Хар-ки'!$A:$F,6,0) -> 0,663 | K29: =VLOOKUP(B29,'[1]Хар-ки'!$A:$G,7,0) -> 0,002002
B30: PA10016 | C30: PP-R Труба SDR 6 Белая | D30: 50 | E30: =IFERROR(VLOOKUP(B30,'[1]Хар-ки'!$A:$D,4,0),0) -> Обычная | F30: =VLOOKUP(B30,[1]Цены!$A:$C,3,0) -> RUR | G30: =VLOOKUP(B30,[1]Цены!$A:$E,5,0) -> 522.70 | H30: =VLOOKUP(B30,[1]Цены!$A:$E,4,0) -> м | I30: =IFERROR(VLOOKUP(B30,'[1]Хар-ки'!$A:$E,5,0),"") -> 20 | J30: =VLOOKUP(B30,'[1]Хар-ки'!$A:$F,6,0) -> 1,029 | K30: =VLOOKUP(B30,'[1]Хар-ки'!$A:$G,7,0) -> 0,003075
B31: PA10018 | C31: PP-R Труба SDR 6 Белая | D31: 63 | E31: =IFERROR(VLOOKUP(B31,'[1]Хар-ки'!$A:$D,4,0),0) -> Обычная | F31: =VLOOKUP(B31,[1]Цены!$A:$C,3,0) -> RUR | G31: =VLOOKUP(B31,[1]Цены!$A:$E,5,0) -> 848.30 | H31: =VLOOKUP(B31,[1]Цены!$A:$E,4,0) -> м | I31: =IFERROR(VLOOKUP(B31,'[1]Хар-ки'!$A:$E,5,0),"") -> 12 | J31: =VLOOKUP(B31,'[1]Хар-ки'!$A:$F,6,0) -> 1,636 | K31: =VLOOKUP(B31,'[1]Хар-ки'!$A:$G,7,0) -> 0,006970
B32: PA10020 | C32: PP-R Труба SDR 6 Белая | D32: 75 | E32: =IFERROR(VLOOKUP(B32,'[1]Хар-ки'!$A:$D,4,0),0) -> Обычная | F32: =VLOOKUP(B32,[1]Цены!$A:$C,3,0) -> RUR | G32: =VLOOKUP(B32,[1]Цены!$A:$E,5,0) -> 1,164.05 | H32: =VLOOKUP(B32,[1]Цены!$A:$E,4,0) -> м | I32: =IFERROR(VLOOKUP(B32,'[1]Хар-ки'!$A:$E,5,0),"") -> 4 | J32: =VLOOKUP(B32,'[1]Хар-ки'!$A:$F,6,0) -> 2,315 | K32: =VLOOKUP(B32,'[1]Хар-ки'!$A:$G,7,0) -> 0,016503
B33: PA10022 | C33: PP-R Труба SDR 6 Белая | D33: 90 | E33: =IFERROR(VLOOKUP(B33,'[1]Хар-ки'!$A:$D,4,0),0) -> Обычная | F33: =VLOOKUP(B33,[1]Цены!$A:$C,3,0) -> RUR | G33: =VLOOKUP(B33,[1]Цены!$A:$E,5,0) -> 1,678.39 | H33: =VLOOKUP(B33,[1]Цены!$A:$E,4,0) -> м | I33: =IFERROR(VLOOKUP(B33,'[1]Хар-ки'!$A:$E,5,0),"") -> 4 | J33: =VLOOKUP(B33,'[1]Хар-ки'!$A:$F,6,0) -> 3,333 | K33: =VLOOKUP(B33,'[1]Хар-ки'!$A:$G,7,0) -> 0,016605
B34: PA10024 | C34: PP-R Труба SDR 6 Белая | D34: 110 | E34: =IFERROR(VLOOKUP(B34,'[1]Хар-ки'!$A:$D,4,0),0) -> Обычная | F34: =VLOOKUP(B34,[1]Цены!$A:$C,3,0) -> RUR | G34: =VLOOKUP(B34,[1]Цены!$A:$E,5,0) -> 2,499.73 | H34: =VLOOKUP(B34,[1]Цены!$A:$E,4,0) -> м | I34: =IFERROR(VLOOKUP(B34,'[1]Хар-ки'!$A:$E,5,0),"") -> 4 | J34: =VLOOKUP(B34,'[1]Хар-ки'!$A:$F,6,0) -> 4,976 | K34: =VLOOKUP(B34,'[1]Хар-ки'!$A:$G,7,0) -> 0,012403
B35: PA10026 | C35: PP-R Труба SDR 6 Белая | D35: 125 | E35: =IFERROR(VLOOKUP(B35,'[1]Хар-ки'!$A:$D,4,0),0) -> Обычная | F35: =VLOOKUP(B35,[1]Цены!$A:$C,3,0) -> RUR | G35: =VLOOKUP(B35,[1]Цены!$A:$E,5,0) -> 3,739.50 | H35: =VLOOKUP(B35,[1]Цены!$A:$E,4,0) -> м | I35: =IFERROR(VLOOKUP(B35,'[1]Хар-ки'!$A:$E,5,0),"") -> 4 | J35: =VLOOKUP(B35,'[1]Хар-ки'!$A:$F,6,0) -> 6,573 | K35: =VLOOKUP(B35,'[1]Хар-ки'!$A:$G,7,0) -> 0,014760
B36: PA10028 | C36: PP-R Труба SDR 6 Белая | D36: 160 | E36: =IFERROR(VLOOKUP(B36,'[1]Хар-ки'!$A:$D,4,0),0) -> Обычная | F36: =VLOOKUP(B36,[1]Цены!$A:$C,3,0) -> RUR | G36: =VLOOKUP(B36,[1]Цены!$A:$E,5,0) -> 6,208.38 | H36: =VLOOKUP(B36,[1]Цены!$A:$E,4,0) -> м | I36: =IFERROR(VLOOKUP(B36,'[1]Хар-ки'!$A:$E,5,0),"") -> 4 | J36: =VLOOKUP(B36,'[1]Хар-ки'!$A:$F,6,0) -> 10,628 | K36: =VLOOKUP(B36,'[1]Хар-ки'!$A:$G,7,0) -> 0,026240
B37: PA35208P | C37: PP-R Труба армированная стекловолокном RUBIS SDR 7,4 Белая 2м | D37: 20 | E37: =IFERROR(VLOOKUP(B37,'[1]Хар-ки'!$A:$D,4,0),0) -> Обычная | F37: =VLOOKUP(B37,[1]Цены!$A:$C,3,0) -> RUR | G37: =VLOOKUP(B37,[1]Цены!$A:$E,5,0) -> 77.78 | H37: =VLOOKUP(B37,[1]Цены!$A:$E,4,0) -> м | I37: =IFERROR(VLOOKUP(B37,'[1]Хар-ки'!$A:$E,5,0),"") -> 50 | J37: =VLOOKUP(B37,'[1]Хар-ки'!$A:$F,6,0) -> 0,155 | K37: =VLOOKUP(B37,'[1]Хар-ки'!$A:$G,7,0) -> 0,000504
B38: PA35210P | C38: PP-R Труба армированная стекловолокном RUBIS SDR 7,4 Белая 2м | D38: 25 | E38: =IFERROR(VLOOKUP(B38,'[1]Хар-ки'!$A:$D,4,0),0) -> Обычная | F38: =VLOOKUP(B38,[1]Цены!$A:$C,3,0) -> RUR | G38: =VLOOKUP(B38,[1]Цены!$A:$E,5,0) -> 118.12 | H38: =VLOOKUP(B38,[1]Цены!$A:$E,4,0) -> м | I38: =IFERROR(VLOOKUP(B38,'[1]Хар-ки'!$A:$E,5,0),"") -> 40 | J38: =VLOOKUP(B38,'[1]Хар-ки'!$A:$F,6,0) -> 0,239 | K38: =VLOOKUP(B38,'[1]Хар-ки'!$A:$G,7,0) -> 0,000630
B39: PA35212P | C39: PP-R Труба армированная стекловолокном RUBIS SDR 7,4 Белая 2м | D39: 32 | E39: =IFERROR(VLOOKUP(B39,'[1]Хар-ки'!$A:$D,4,0),0) -> Обычная | F39: =VLOOKUP(B39,[1]Цены!$A:$C,3,0) -> RUR | G39: =VLOOKUP(B39,[1]Цены!$A:$E,5,0) -> 188.33 | H39: =VLOOKUP(B39,[1]Цены!$A:$E,4,0) -> м | I39: =IFERROR(VLOOKUP(B39,'[1]Хар-ки'!$A:$E,5,0),"") -> 24 | J39: =VLOOKUP(B39,'[1]Хар-ки'!$A:$F,6,0) -> 0,383 | K39: =VLOOKUP(B39,'[1]Хар-ки'!$A:$G,7,0) -> 0,001680
B40: PA35008P | C40: PP-R Труба армированная стекловолокном RUBIS SDR 7,4 Белая | D40: 20 | E40: =IFERROR(VLOOKUP(B40,'[1]Хар-ки'!$A:$D,4,0),0) -> Обычная | F40: =VLOOKUP(B40,[1]Цены!$A:$C,3,0) -> RUR | G40: =VLOOKUP(B40,[1]Цены!$A:$E,5,0) -> 79.06 | H40: =VLOOKUP(B40,[1]Цены!$A:$E,4,0) -> м | I40: =IFERROR(VLOOKUP(B40,'[1]Хар-ки'!$A:$E,5,0),"") -> 100 | J40: =VLOOKUP(B40,'[1]Хар-ки'!$A:$F,6,0) -> 0,155 | K40: =VLOOKUP(B40,'[1]Хар-ки'!$A:$G,7,0) -> 0,000533
B41: PA35010P | C41: PP-R Труба армированная стекловолокном RUBIS SDR 7,4 Белая | D41: 25 | E41: =IFERROR(VLOOKUP(B41,'[1]Хар-ки'!$A:$D,4,0),0) -> Обычная | F41: =VLOOKUP(B41,[1]Цены!$A:$C,3,0) -> RUR | G41: =VLOOKUP(B41,[1]Цены!$A:$E,5,0) -> 121.12 | H41: =VLOOKUP(B41,[1]Цены!$A:$E,4,0) -> м | I41: =IFERROR(VLOOKUP(B41,'[1]Хар-ки'!$A:$E,5,0),"") -> 80 | J41: =VLOOKUP(B41,'[1]Хар-ки'!$A:$F,6,0) -> 0,236 | K41: =VLOOKUP(B41,'[1]Хар-ки'!$A:$G,7,0) -> 0,000866
B42: PA35012P | C42: PP-R Труба армированная стекловолокном RUBIS SDR 7,4 Белая | D42: 32 | E42: =IFERROR(VLOOKUP(B42,'[1]Хар-ки'!$A:$D,4,0),0) -> Обычная | F42: =VLOOKUP(B42,[1]Цены!$A:$C,3,0) -> RUR | G42: =VLOOKUP(B42,[1]Цены!$A:$E,5,0) -> 193.85 | H42: =VLOOKUP(B42,[1]Цены!$A:$E,4,0) -> м | I42: =IFERROR(VLOOKUP(B42,'[1]Хар-ки'!$A:$E,5,0),"") -> 48 | J42: =VLOOKUP(B42,'[1]Хар-ки'!$A:$F,6,0) -> 0,381 | K42: =VLOOKUP(B42,'[1]Хар-ки'!$A:$G,7,0) -> 0,001333
B43: PA35014P | C43: PP-R Труба армированная стекловолокном RUBIS SDR 7,4 Белая | D43: 40 | E43: =IFERROR(VLOOKUP(B43,'[1]Хар-ки'!$A:$D,4,0),0) -> Обычная | F43: =VLOOKUP(B43,[1]Цены!$A:$C,3,0) -> RUR | G43: =VLOOKUP(B43,[1]Цены!$A:$E,5,0) -> 300.68 | H43: =VLOOKUP(B43,[1]Цены!$A:$E,4,0) -> м | I43: =IFERROR(VLOOKUP(B43,'[1]Хар-ки'!$A:$E,5,0),"") -> 32 | J43: =VLOOKUP(B43,'[1]Хар-ки'!$A:$F,6,0) -> 0,593 | K43: =VLOOKUP(B43,'[1]Хар-ки'!$A:$G,7,0) -> 0,002002
B44: PA35016P | C44: PP-R Труба армированная стекловолокном RUBIS SDR 7,4 Белая | D44: 50 | E44: =IFERROR(VLOOKUP(B44,'[1]Хар-ки'!$A:$D,4,0),0) -> Обычная | F44: =VLOOKUP(B44,[1]Цены!$A:$C,3,0) -> RUR | G44: =VLOOKUP(B44,[1]Цены!$A:$E,5,0) -> 479.20 | H44: =VLOOKUP(B44,[1]Цены!$A:$E,4,0) -> м | I44: =IFERROR(VLOOKUP(B44,'[1]Хар-ки'!$A:$E,5,0),"") -> 20 | J44: =VLOOKUP(B44,'[1]Хар-ки'!$A:$F,6,0) -> 0,927 | K44: =VLOOKUP(B44,'[1]Хар-ки'!$A:$G,7,0) -> 0,003075
B45: PA35018P | C45: PP-R Труба армированная стекловолокном RUBIS SDR 7,4 Белая | D45: 63 | E45: =IFERROR(VLOOKUP(B45,'[1]Хар-ки'!$A:$D,4,0),0) -> Обычная | F45: =VLOOKUP(B45,[1]Цены!$A:$C,3,0) -> RUR | G45: =VLOOKUP(B45,[1]Цены!$A:$E,5,0) -> 767.83 | H45: =VLOOKUP(B45,[1]Цены!$A:$E,4,0) -> м | I45: =IFERROR(VLOOKUP(B45,'[1]Хар-ки'!$A:$E,5,0),"") -> 12 | J45: =VLOOKUP(B45,'[1]Хар-ки'!$A:$F,6,0) -> 1,460 | K45: =VLOOKUP(B45,'[1]Хар-ки'!$A:$G,7,0) -> 0,006970
B46: PA35020P | C46: PP-R Труба армированная стекловолокном RUBIS SDR 7,4 Белая | D46: 75 | E46: =IFERROR(VLOOKUP(B46,'[1]Хар-ки'!$A:$D,4,0),0) -> Обычная | F46: =VLOOKUP(B46,[1]Цены!$A:$C,3,0) -> RUR | G46: =VLOOKUP(B46,[1]Цены!$A:$E,5,0) -> 1,065.16 | H46: =VLOOKUP(B46,[1]Цены!$A:$E,4,0) -> м | I46: =IFERROR(VLOOKUP(B46,'[1]Хар-ки'!$A:$E,5,0),"") -> 4 | J46: =VLOOKUP(B46,'[1]Хар-ки'!$A:$F,6,0) -> 2,077 | K46: =VLOOKUP(B46,'[1]Хар-ки'!$A:$G,7,0) -> 0,015785
B47: PA35022P | C47: PP-R Труба армированная стекловолокном RUBIS SDR 7,4 Белая | D47: 90 | E47: =IFERROR(VLOOKUP(B47,'[1]Хар-ки'!$A:$D,4,0),0) -> Обычная | F47: =VLOOKUP(B47,[1]Цены!$A:$C,3,0) -> RUR | G47: =VLOOKUP(B47,[1]Цены!$A:$E,5,0) -> 1,537.31 | H47: =VLOOKUP(B47,[1]Цены!$A:$E,4,0) -> м | I47: =IFERROR(VLOOKUP(B47,'[1]Хар-ки'!$A:$E,5,0),"") -> 4 | J47: =VLOOKUP(B47,'[1]Хар-ки'!$A:$F,6,0) -> 2,979 | K47: =VLOOKUP(B47,'[1]Хар-ки'!$A:$G,7,0) -> 0,012300
B48: PA35024P | C48: PP-R Труба армированная стекловолокном RUBIS SDR 7,4 Белая | D48: 110 | E48: =IFERROR(VLOOKUP(B48,'[1]Хар-ки'!$A:$D,4,0),0) -> Обычная | F48: =VLOOKUP(B48,[1]Цены!$A:$C,3,0) -> RUR | G48: =VLOOKUP(B48,[1]Цены!$A:$E,5,0) -> 2,421.10 | H48: =VLOOKUP(B48,[1]Цены!$A:$E,4,0) -> м | I48: =IFERROR(VLOOKUP(B48,'[1]Хар-ки'!$A:$E,5,0),"") -> 4 | J48: =VLOOKUP(B48,'[1]Хар-ки'!$A:$F,6,0) -> 4,468 | K48: =VLOOKUP(B48,'[1]Хар-ки'!$A:$G,7,0) -> 0,012403
B49: PA35026P | C49: PP-R Труба армированная стекловолокном RUBIS SDR 7,4 Белая | D49: 125 | E49: =IFERROR(VLOOKUP(B49,'[1]Хар-ки'!$A:$D,4,0),0) -> Обычная | F49: =VLOOKUP(B49,[1]Цены!$A:$C,3,0) -> RUR | G49: =VLOOKUP(B49,[1]Цены!$A:$E,5,0) -> 3,966.60 | H49: =VLOOKUP(B49,[1]Цены!$A:$E,4,0) -> м | I49: =IFERROR(VLOOKUP(B49,'[1]Хар-ки'!$A:$E,5,0),"") -> 4 | J49: =VLOOKUP(B49,'[1]Хар-ки'!$A:$F,6,0) -> 5,949 | K49: =VLOOKUP(B49,'[1]Хар-ки'!$A:$G,7,0) -> 0,037003
B50: PA35028P | C50: PP-R Труба армированная стекловолокном RUBIS SDR 7,4 Белая | D50: 160 | E50: =IFERROR(VLOOKUP(B50,'[1]Хар-ки'!$A:$D,4,0),0) -> Обычная | F50: =VLOOKUP(B50,[1]Цены!$A:$C,3,0) -> RUR | G50: =VLOOKUP(B50,[1]Цены!$A:$E,5,0) -> 7,536.04 | H50: =VLOOKUP(B50,[1]Цены!$A:$E,4,0) -> м | I50: =IFERROR(VLOOKUP(B50,'[1]Хар-ки'!$A:$E,5,0),"") -> 4 | J50: =VLOOKUP(B50,'[1]Хар-ки'!$A:$F,6,0) -> 9,611 | K50: =VLOOKUP(B50,'[1]Хар-ки'!$A:$G,7,0) -> 0,026240
B51: PA37208P | C51: PP-R Труба армированная стекловолокном RUBIS SDR 6 Белая 2м | D51: 20 | E51: =IFERROR(VLOOKUP(B51,'[1]Хар-ки'!$A:$D,4,0),0) -> Обычная | F51: =VLOOKUP(B51,[1]Цены!$A:$C,3,0) -> RUR | G51: =VLOOKUP(B51,[1]Цены!$A:$E,5,0) -> 89.29 | H51: =VLOOKUP(B51,[1]Цены!$A:$E,4,0) -> м | I51: =IFERROR(VLOOKUP(B51,'[1]Хар-ки'!$A:$E,5,0),"") -> 50 | J51: =VLOOKUP(B51,'[1]Хар-ки'!$A:$F,6,0) -> 0,178 | K51: =VLOOKUP(B51,'[1]Хар-ки'!$A:$G,7,0) -> 0,000504
B52: PA37210P | C52: PP-R Труба армированная стекловолокном RUBIS SDR 6 Белая 2м | D52: 25 | E52: =IFERROR(VLOOKUP(B52,'[1]Хар-ки'!$A:$D,4,0),0) -> Обычная | F52: =VLOOKUP(B52,[1]Цены!$A:$C,3,0) -> RUR | G52: =VLOOKUP(B52,[1]Цены!$A:$E,5,0) -> 134.47 | H52: =VLOOKUP(B52,[1]Цены!$A:$E,4,0) -> м | I52: =IFERROR(VLOOKUP(B52,'[1]Хар-ки'!$A:$E,5,0),"") -> 40 | J52: =VLOOKUP(B52,'[1]Хар-ки'!$A:$F,6,0) -> 0,276 | K52: =VLOOKUP(B52,'[1]Хар-ки'!$A:$G,7,0) -> 0,000630
B53: PA37212P | C53: PP-R Труба армированная стекловолокном RUBIS SDR 6 Белая 2м | D53: 32 | E53: =IFERROR(VLOOKUP(B53,'[1]Хар-ки'!$A:$D,4,0),0) -> Обычная | F53: =VLOOKUP(B53,[1]Цены!$A:$C,3,0) -> RUR | G53: =VLOOKUP(B53,[1]Цены!$A:$E,5,0) -> 223.57 | H53: =VLOOKUP(B53,[1]Цены!$A:$E,4,0) -> м | I53: =IFERROR(VLOOKUP(B53,'[1]Хар-ки'!$A:$E,5,0),"") -> 24 | J53: =VLOOKUP(B53,'[1]Хар-ки'!$A:$F,6,0) -> 0,450 | K53: =VLOOKUP(B53,'[1]Хар-ки'!$A:$G,7,0) -> 0,001680
B54: PA37214P | C54: PP-R Труба армированная стекловолокном RUBIS SDR 6 Белая 2м | D54: 40 | E54: =IFERROR(VLOOKUP(B54,'[1]Хар-ки'!$A:$D,4,0),0) -> Обычная | F54: =VLOOKUP(B54,[1]Цены!$A:$C,3,0) -> RUR | G54: =VLOOKUP(B54,[1]Цены!$A:$E,5,0) -> 351.55 | H54: =VLOOKUP(B54,[1]Цены!$A:$E,4,0) -> м | I54: =IFERROR(VLOOKUP(B54,'[1]Хар-ки'!$A:$E,5,0),"") -> 16 | J54: =VLOOKUP(B54,'[1]Хар-ки'!$A:$F,6,0) -> 0,695 | K54: =VLOOKUP(B54,'[1]Хар-ки'!$A:$G,7,0) -> 0,002520
B55: PA37008P | C55: PP-R Труба армированная стекловолокном RUBIS SDR 6 Белая | D55: 20 | E55: =IFERROR(VLOOKUP(B55,'[1]Хар-ки'!$A:$D,4,0),0) -> Обычная | F55: =VLOOKUP(B55,[1]Цены!$A:$C,3,0) -> RUR | G55: =VLOOKUP(B55,[1]Цены!$A:$E,5,0) -> 89.80 | H55: =VLOOKUP(B55,[1]Цены!$A:$E,4,0) -> м | I55: =IFERROR(VLOOKUP(B55,'[1]Хар-ки'!$A:$E,5,0),"") -> 100 | J55: =VLOOKUP(B55,'[1]Хар-ки'!$A:$F,6,0) -> 0,175 | K55: =VLOOKUP(B55,'[1]Хар-ки'!$A:$G,7,0) -> 0,000472
B56: PA37010P | C56: PP-R Труба армированная стекловолокном RUBIS SDR 6 Белая | D56: 25 | E56: =IFERROR(VLOOKUP(B56,'[1]Хар-ки'!$A:$D,4,0),0) -> Обычная | F56: =VLOOKUP(B56,[1]Цены!$A:$C,3,0) -> RUR | G56: =VLOOKUP(B56,[1]Цены!$A:$E,5,0) -> 136.42 | H56: =VLOOKUP(B56,[1]Цены!$A:$E,4,0) -> м | I56: =IFERROR(VLOOKUP(B56,'[1]Хар-ки'!$A:$E,5,0),"") -> 80 | J56: =VLOOKUP(B56,'[1]Хар-ки'!$A:$F,6,0) -> 0,273 | K56: =VLOOKUP(B56,'[1]Хар-ки'!$A:$G,7,0) -> 0,000866
B57: PA37012P | C57: PP-R Труба армированная стекловолокном RUBIS SDR 6 Белая | D57: 32 | E57: =IFERROR(VLOOKUP(B57,'[1]Хар-ки'!$A:$D,4,0),0) -> Обычная | F57: =VLOOKUP(B57,[1]Цены!$A:$C,3,0) -> RUR | G57: =VLOOKUP(B57,[1]Цены!$A:$E,5,0) -> 226.33 | H57: =VLOOKUP(B57,[1]Цены!$A:$E,4,0) -> м | I57: =IFERROR(VLOOKUP(B57,'[1]Хар-ки'!$A:$E,5,0),"") -> 48 | J57: =VLOOKUP(B57,'[1]Хар-ки'!$A:$F,6,0) -> 0,448 | K57: =VLOOKUP(B57,'[1]Хар-ки'!$A:$G,7,0) -> 0,001333
B58: PA37014P | C58: PP-R Труба армированная стекловолокном RUBIS SDR 6 Белая | D58: 40 | E58: =IFERROR(VLOOKUP(B58,'[1]Хар-ки'!$A:$D,4,0),0) -> Обычная | F58: =VLOOKUP(B58,[1]Цены!$A:$C,3,0) -> RUR | G58: =VLOOKUP(B58,[1]Цены!$A:$E,5,0) -> 355.92 | H58: =VLOOKUP(B58,[1]Цены!$A:$E,4,0) -> м | I58: =IFERROR(VLOOKUP(B58,'[1]Хар-ки'!$A:$E,5,0),"") -> 32 | J58: =VLOOKUP(B58,'[1]Хар-ки'!$A:$F,6,0) -> 0,693 | K58: =VLOOKUP(B58,'[1]Хар-ки'!$A:$G,7,0) -> 0,002002
B59: PA37016P | C59: PP-R Труба армированная стекловолокном RUBIS SDR 6 Белая | D59: 50 | E59: =IFERROR(VLOOKUP(B59,'[1]Хар-ки'!$A:$D,4,0),0) -> Обычная | F59: =VLOOKUP(B59,[1]Цены!$A:$C,3,0) -> RUR | G59: =VLOOKUP(B59,[1]Цены!$A:$E,5,0) -> 549.10 | H59: =VLOOKUP(B59,[1]Цены!$A:$E,4,0) -> м | I59: =IFERROR(VLOOKUP(B59,'[1]Хар-ки'!$A:$E,5,0),"") -> 20 | J59: =VLOOKUP(B59,'[1]Хар-ки'!$A:$F,6,0) -> 1,077 | K59: =VLOOKUP(B59,'[1]Хар-ки'!$A:$G,7,0) -> 0,004182
B60: PA37018P | C60: PP-R Труба армированная стекловолокном RUBIS SDR 6 Белая | D60: 63 | E60: =IFERROR(VLOOKUP(B60,'[1]Хар-ки'!$A:$D,4,0),0) -> Обычная | F60: =VLOOKUP(B60,[1]Цены!$A:$C,3,0) -> RUR | G60: =VLOOKUP(B60,[1]Цены!$A:$E,5,0) -> 872.06 | H60: =VLOOKUP(B60,[1]Цены!$A:$E,4,0) -> м | I60: =IFERROR(VLOOKUP(B60,'[1]Хар-ки'!$A:$E,5,0),"") -> 12 | J60: =VLOOKUP(B60,'[1]Хар-ки'!$A:$F,6,0) -> 1,713 | K60: =VLOOKUP(B60,'[1]Хар-ки'!$A:$G,7,0) -> 0,006970
B61: PA37020P | C61: PP-R Труба армированная стекловолокном RUBIS SDR 6 Белая | D61: 75 | E61: =IFERROR(VLOOKUP(B61,'[1]Хар-ки'!$A:$D,4,0),0) -> Обычная | F61: =VLOOKUP(B61,[1]Цены!$A:$C,3,0) -> RUR | G61: =VLOOKUP(B61,[1]Цены!$A:$E,5,0) -> 1,250.20 | H61: =VLOOKUP(B61,[1]Цены!$A:$E,4,0) -> м | I61: =IFERROR(VLOOKUP(B61,'[1]Хар-ки'!$A:$E,5,0),"") -> 4 | J61: =VLOOKUP(B61,'[1]Хар-ки'!$A:$F,6,0) -> 2,424 | K61: =VLOOKUP(B61,'[1]Хар-ки'!$A:$G,7,0) -> 0,006560
B62: PA37022P | C62: PP-R Труба армированная стекловолокном RUBIS SDR 6 Белая | D62: 90 | E62: =IFERROR(VLOOKUP(B62,'[1]Хар-ки'!$A:$D,4,0),0) -> Обычная | F62: =VLOOKUP(B62,[1]Цены!$A:$C,3,0) -> RUR | G62: =VLOOKUP(B62,[1]Цены!$A:$E,5,0) -> 1,775.48 | H62: =VLOOKUP(B62,[1]Цены!$A:$E,4,0) -> м | I62: =IFERROR(VLOOKUP(B62,'[1]Хар-ки'!$A:$E,5,0),"") -> 4 | J62: =VLOOKUP(B62,'[1]Хар-ки'!$A:$F,6,0) -> 3,489 | K62: =VLOOKUP(B62,'[1]Хар-ки'!$A:$G,7,0) -> 0,016605
B63: PA37024P | C63: PP-R Труба армированная стекловолокном RUBIS SDR 6 Белая | D63: 110 | E63: =IFERROR(VLOOKUP(B63,'[1]Хар-ки'!$A:$D,4,0),0) -> Обычная | F63: =VLOOKUP(B63,[1]Цены!$A:$C,3,0) -> RUR | G63: =VLOOKUP(B63,[1]Цены!$A:$E,5,0) -> 2,712.76 | H63: =VLOOKUP(B63,[1]Цены!$A:$E,4,0) -> м | I63: =IFERROR(VLOOKUP(B63,'[1]Хар-ки'!$A:$E,5,0),"") -> 4 | J63: =VLOOKUP(B63,'[1]Хар-ки'!$A:$F,6,0) -> 5,210 | K63: =VLOOKUP(B63,'[1]Хар-ки'!$A:$G,7,0) -> 0,012403
B64: PA37026P | C64: PP-R Труба армированная стекловолокном RUBIS SDR 6 Белая | D64: 125 | E64: =IFERROR(VLOOKUP(B64,'[1]Хар-ки'!$A:$D,4,0),0) -> Обычная | F64: =VLOOKUP(B64,[1]Цены!$A:$C,3,0) -> RUR | G64: =VLOOKUP(B64,[1]Цены!$A:$E,5,0) -> 4,661.40 | H64: =VLOOKUP(B64,[1]Цены!$A:$E,4,0) -> м | I64: =IFERROR(VLOOKUP(B64,'[1]Хар-ки'!$A:$E,5,0),"") -> 4 | J64: =VLOOKUP(B64,'[1]Хар-ки'!$A:$F,6,0) -> 6,828 | K64: =VLOOKUP(B64,'[1]Хар-ки'!$A:$G,7,0) -> 0,029315
B65: PA37028P | C65: PP-R Труба армированная стекловолокном RUBIS SDR 6 Белая | D65: 160 | E65: =IFERROR(VLOOKUP(B65,'[1]Хар-ки'!$A:$D,4,0),0) -> Заказная | F65: =VLOOKUP(B65,[1]Цены!$A:$C,3,0) -> RUR | G65: =VLOOKUP(B65,[1]Цены!$A:$E,5,0) -> 8,259.16 | H65: =VLOOKUP(B65,[1]Цены!$A:$E,4,0) -> м | I65: =IFERROR(VLOOKUP(B65,'[1]Хар-ки'!$A:$E,5,0),"") -> 4 | J65: =VLOOKUP(B65,'[1]Хар-ки'!$A:$F,6,0) -> 10,879 | K65: =VLOOKUP(B65,'[1]Хар-ки'!$A:$G,7,0) -> 0,026240
B66: PA30216pr | C66: PP-R Труба армированная фольгой SDR 5 Белая 2м | D66: 50 | E66: =IFERROR(VLOOKUP(B66,'[1]Хар-ки'!$A:$D,4,0),0) -> Заказная | F66: =VLOOKUP(B66,[1]Цены!$A:$C,3,0) -> RUR | G66: =VLOOKUP(B66,[1]Цены!$A:$E,5,0) -> 1,012.66 | H66: =VLOOKUP(B66,[1]Цены!$A:$E,4,0) -> м | I66: =IFERROR(VLOOKUP(B66,'[1]Хар-ки'!$A:$E,5,0),"") -> 4 | J66: =VLOOKUP(B66,'[1]Хар-ки'!$A:$F,6,0) -> 1,304 | K66: =VLOOKUP(B66,'[1]Хар-ки'!$A:$G,7,0) -> 0,007875
B67: PA30008PR | C67: PP-R Труба армированная фольгой SDR 5 Белая | D67: 20 | E67: =IFERROR(VLOOKUP(B67,'[1]Хар-ки'!$A:$D,4,0),0) -> Обычная | F67: =VLOOKUP(B67,[1]Цены!$A:$C,3,0) -> RUR | G67: =VLOOKUP(B67,[1]Цены!$A:$E,5,0) -> 200.20 | H67: =VLOOKUP(B67,[1]Цены!$A:$E,4,0) -> м | I67: =IFERROR(VLOOKUP(B67,'[1]Хар-ки'!$A:$E,5,0),"") -> 100 | J67: =VLOOKUP(B67,'[1]Хар-ки'!$A:$F,6,0) -> 0,236 | K67: =VLOOKUP(B67,'[1]Хар-ки'!$A:$G,7,0) -> 0,000410
B68: PA30010PR | C68: PP-R Труба армированная фольгой SDR 5 Белая | D68: 25 | E68: =IFERROR(VLOOKUP(B68,'[1]Хар-ки'!$A:$D,4,0),0) -> Обычная | F68: =VLOOKUP(B68,[1]Цены!$A:$C,3,0) -> RUR | G68: =VLOOKUP(B68,[1]Цены!$A:$E,5,0) -> 286.04 | H68: =VLOOKUP(B68,[1]Цены!$A:$E,4,0) -> м | I68: =IFERROR(VLOOKUP(B68,'[1]Хар-ки'!$A:$E,5,0),"") -> 80 | J68: =VLOOKUP(B68,'[1]Хар-ки'!$A:$F,6,0) -> 0,348 | K68: =VLOOKUP(B68,'[1]Хар-ки'!$A:$G,7,0) -> 0,000677
B69: PA30012PR | C69: PP-R Труба армированная фольгой SDR 5 Белая | D69: 32 | E69: =IFERROR(VLOOKUP(B69,'[1]Хар-ки'!$A:$D,4,0),0) -> Обычная | F69: =VLOOKUP(B69,[1]Цены!$A:$C,3,0) -> RUR | G69: =VLOOKUP(B69,[1]Цены!$A:$E,5,0) -> 479.10 | H69: =VLOOKUP(B69,[1]Цены!$A:$E,4,0) -> м | I69: =IFERROR(VLOOKUP(B69,'[1]Хар-ки'!$A:$E,5,0),"") -> 60 | J69: =VLOOKUP(B69,'[1]Хар-ки'!$A:$F,6,0) -> 0,551 | K69: =VLOOKUP(B69,'[1]Хар-ки'!$A:$G,7,0) -> 0,001538
B70: PA30014PR | C70: PP-R Труба армированная фольгой SDR 5 Белая | D70: 40 | E70: =IFERROR(VLOOKUP(B70,'[1]Хар-ки'!$A:$D,4,0),0) -> Обычная | F70: =VLOOKUP(B70,[1]Цены!$A:$C,3,0) -> RUR | G70: =VLOOKUP(B70,[1]Цены!$A:$E,5,0) -> 699.84 | H70: =VLOOKUP(B70,[1]Цены!$A:$E,4,0) -> м | I70: =IFERROR(VLOOKUP(B70,'[1]Хар-ки'!$A:$E,5,0),"") -> 40 | J70: =VLOOKUP(B70,'[1]Хар-ки'!$A:$F,6,0) -> 0,840 | K70: =VLOOKUP(B70,'[1]Хар-ки'!$A:$G,7,0) -> 0,002306
B71: PA30016PR | C71: PP-R Труба армированная фольгой SDR 5 Белая | D71: 50 | E71: =IFERROR(VLOOKUP(B71,'[1]Хар-ки'!$A:$D,4,0),0) -> Обычная | F71: =VLOOKUP(B71,[1]Цены!$A:$C,3,0) -> RUR | G71: =VLOOKUP(B71,[1]Цены!$A:$E,5,0) -> 1,026.37 | H71: =VLOOKUP(B71,[1]Цены!$A:$E,4,0) -> м | I71: =IFERROR(VLOOKUP(B71,'[1]Хар-ки'!$A:$E,5,0),"") -> 24 | J71: =VLOOKUP(B71,'[1]Хар-ки'!$A:$F,6,0) -> 1,290 | K71: =VLOOKUP(B71,'[1]Хар-ки'!$A:$G,7,0) -> 0,003007
B72: PA30018PR | C72: PP-R Труба армированная фольгой SDR 5 Белая | D72: 63 | E72: =IFERROR(VLOOKUP(B72,'[1]Хар-ки'!$A:$D,4,0),0) -> Обычная | F72: =VLOOKUP(B72,[1]Цены!$A:$C,3,0) -> RUR | G72: =VLOOKUP(B72,[1]Цены!$A:$E,5,0) -> 1,682.32 | H72: =VLOOKUP(B72,[1]Цены!$A:$E,4,0) -> м | I72: =IFERROR(VLOOKUP(B72,'[1]Хар-ки'!$A:$E,5,0),"") -> 16 | J72: =VLOOKUP(B72,'[1]Хар-ки'!$A:$F,6,0) -> 3,003 | K72: =VLOOKUP(B72,'[1]Хар-ки'!$A:$G,7,0) -> 0,005381
B73: PA30020PR | C73: PP-R Труба армированная фольгой SDR 5 Белая | D73: 75 | E73: =IFERROR(VLOOKUP(B73,'[1]Хар-ки'!$A:$D,4,0),0) -> Заказная | F73: =VLOOKUP(B73,[1]Цены!$A:$C,3,0) -> RUR | G73: =VLOOKUP(B73,[1]Цены!$A:$E,5,0) -> 2,324.62 | H73: =VLOOKUP(B73,[1]Цены!$A:$E,4,0) -> м | I73: =IFERROR(VLOOKUP(B73,'[1]Хар-ки'!$A:$E,5,0),"") -> 12 | J73: =VLOOKUP(B73,'[1]Хар-ки'!$A:$F,6,0) -> 2,901 | K73: =VLOOKUP(B73,'[1]Хар-ки'!$A:$G,7,0) -> 0,006287
B74: PA39214 | C74: PP-R Труба армированная фольгой в центре DUO SDR 6 Белая 2м | D74: 40 | E74: =IFERROR(VLOOKUP(B74,'[1]Хар-ки'!$A:$D,4,0),0) -> Обычная | F74: =VLOOKUP(B74,[1]Цены!$A:$C,3,0) -> RUR | G74: =VLOOKUP(B74,[1]Цены!$A:$E,5,0) -> 471.70 | H74: =VLOOKUP(B74,[1]Цены!$A:$E,4,0) -> м | I74: =IFERROR(VLOOKUP(B74,'[1]Хар-ки'!$A:$E,5,0),"") -> 16 | J74: =VLOOKUP(B74,'[1]Хар-ки'!$A:$F,6,0) -> 0,738 | K74: =VLOOKUP(B74,'[1]Хар-ки'!$A:$G,7,0) -> 0,005250
B75: PA39008 | C75: PP-R Труба армированная фольгой в центре DUO SDR 6 Белая | D75: 20 | E75: =IFERROR(VLOOKUP(B75,'[1]Хар-ки'!$A:$D,4,0),0) -> Обычная | F75: =VLOOKUP(B75,[1]Цены!$A:$C,3,0) -> RUR | G75: =VLOOKUP(B75,[1]Цены!$A:$E,5,0) -> 122.71 | H75: =VLOOKUP(B75,[1]Цены!$A:$E,4,0) -> м | I75: =IFERROR(VLOOKUP(B75,'[1]Хар-ки'!$A:$E,5,0),"") -> 100 | J75: =VLOOKUP(B75,'[1]Хар-ки'!$A:$F,6,0) -> 0,206 | K75: =VLOOKUP(B75,'[1]Хар-ки'!$A:$G,7,0) -> 0,000492
B76: PA39010 | C76: PP-R Труба армированная фольгой в центре DUO SDR 6 Белая | D76: 25 | E76: =IFERROR(VLOOKUP(B76,'[1]Хар-ки'!$A:$D,4,0),0) -> Обычная | F76: =VLOOKUP(B76,[1]Цены!$A:$C,3,0) -> RUR | G76: =VLOOKUP(B76,[1]Цены!$A:$E,5,0) -> 180.90 | H76: =VLOOKUP(B76,[1]Цены!$A:$E,4,0) -> м | I76: =IFERROR(VLOOKUP(B76,'[1]Хар-ки'!$A:$E,5,0),"") -> 80 | J76: =VLOOKUP(B76,'[1]Хар-ки'!$A:$F,6,0) -> 0,306 | K76: =VLOOKUP(B76,'[1]Хар-ки'!$A:$G,7,0) -> 0,000866
B77: PA39012 | C77: PP-R Труба армированная фольгой в центре DUO SDR 6 Белая | D77: 32 | E77: =IFERROR(VLOOKUP(B77,'[1]Хар-ки'!$A:$D,4,0),0) -> Обычная | F77: =VLOOKUP(B77,[1]Цены!$A:$C,3,0) -> RUR | G77: =VLOOKUP(B77,[1]Цены!$A:$E,5,0) -> 321.94 | H77: =VLOOKUP(B77,[1]Цены!$A:$E,4,0) -> м | I77: =IFERROR(VLOOKUP(B77,'[1]Хар-ки'!$A:$E,5,0),"") -> 60 | J77: =VLOOKUP(B77,'[1]Хар-ки'!$A:$F,6,0) -> 0,485 | K77: =VLOOKUP(B77,'[1]Хар-ки'!$A:$G,7,0) -> 0,001476
B78: PA39014 | C78: PP-R Труба армированная фольгой в центре DUO SDR 6 Белая | D78: 40 | E78: =IFERROR(VLOOKUP(B78,'[1]Хар-ки'!$A:$D,4,0),0) -> Обычная | F78: =VLOOKUP(B78,[1]Цены!$A:$C,3,0) -> RUR | G78: =VLOOKUP(B78,[1]Цены!$A:$E,5,0) -> 489.46 | H78: =VLOOKUP(B78,[1]Цены!$A:$E,4,0) -> м | I78: =IFERROR(VLOOKUP(B78,'[1]Хар-ки'!$A:$E,5,0),"") -> 32 | J78: =VLOOKUP(B78,'[1]Хар-ки'!$A:$F,6,0) -> 0,731 | K78: =VLOOKUP(B78,'[1]Хар-ки'!$A:$G,7,0) -> 0,002537
B79: PA39016 | C79: PP-R Труба армированная фольгой в центре DUO SDR 6 Белая | D79: 50 | E79: =IFERROR(VLOOKUP(B79,'[1]Хар-ки'!$A:$D,4,0),0) -> Обычная | F79: =VLOOKUP(B79,[1]Цены!$A:$C,3,0) -> RUR | G79: =VLOOKUP(B79,[1]Цены!$A:$E,5,0) -> 747.72 | H79: =VLOOKUP(B79,[1]Цены!$A:$E,4,0) -> м | I79: =IFERROR(VLOOKUP(B79,'[1]Хар-ки'!$A:$E,5,0),"") -> 20 | J79: =VLOOKUP(B79,'[1]Хар-ки'!$A:$F,6,0) -> 1,112 | K79: =VLOOKUP(B79,'[1]Хар-ки'!$A:$G,7,0) -> 0,003137
B80: PA39018 | C80: PP-R Труба армированная фольгой в центре DUO SDR 6 Белая | D80: 63 | E80: =IFERROR(VLOOKUP(B80,'[1]Хар-ки'!$A:$D,4,0),0) -> Обычная | F80: =VLOOKUP(B80,[1]Цены!$A:$C,3,0) -> RUR | G80: =VLOOKUP(B80,[1]Цены!$A:$E,5,0) -> 1,156.19 | H80: =VLOOKUP(B80,[1]Цены!$A:$E,4,0) -> м | I80: =IFERROR(VLOOKUP(B80,'[1]Хар-ки'!$A:$E,5,0),"") -> 16 | J80: =VLOOKUP(B80,'[1]Хар-ки'!$A:$F,6,0) -> 1,740 | K80: =VLOOKUP(B80,'[1]Хар-ки'!$A:$G,7,0) -> 0,006560
B81: PA39020 | C81: PP-R Труба армированная фольгой в центре DUO SDR 6 Белая | D81: 75 | E81: =IFERROR(VLOOKUP(B81,'[1]Хар-ки'!$A:$D,4,0),0) -> Обычная | F81: =VLOOKUP(B81,[1]Цены!$A:$C,3,0) -> RUR | G81: =VLOOKUP(B81,[1]Цены!$A:$E,5,0) -> 1,891.72 | H81: =VLOOKUP(B81,[1]Цены!$A:$E,4,0) -> м | I81: =IFERROR(VLOOKUP(B81,'[1]Хар-ки'!$A:$E,5,0),"") -> 4 | J81: =VLOOKUP(B81,'[1]Хар-ки'!$A:$F,6,0) -> 3,439 | K81: =VLOOKUP(B81,'[1]Хар-ки'!$A:$G,7,0) -> 0,023063
B82: PA12008P | C82: PP-R Муфта Белая | D82: 20 | E82: =IFERROR(VLOOKUP(B82,'[1]Хар-ки'!$A:$D,4,0),0) -> Обычная | F82: =VLOOKUP(B82,[1]Цены!$A:$C,3,0) -> RUR | G82: =VLOOKUP(B82,[1]Цены!$A:$E,5,0) -> 6.54 | H82: =VLOOKUP(B82,[1]Цены!$A:$E,4,0) -> шт | I82: =IFERROR(VLOOKUP(B82,'[1]Хар-ки'!$A:$E,5,0),"") -> 500 | J82: =VLOOKUP(B82,'[1]Хар-ки'!$A:$F,6,0) -> 0,011 | K82: =VLOOKUP(B82,'[1]Хар-ки'!$A:$G,7,0) -> 0,000042
B83: PA12010P | C83: PP-R Муфта Белая | D83: 25 | E83: =IFERROR(VLOOKUP(B83,'[1]Хар-ки'!$A:$D,4,0),0) -> Обычная | F83: =VLOOKUP(B83,[1]Цены!$A:$C,3,0) -> RUR | G83: =VLOOKUP(B83,[1]Цены!$A:$E,5,0) -> 9.76 | H83: =VLOOKUP(B83,[1]Цены!$A:$E,4,0) -> шт | I83: =IFERROR(VLOOKUP(B83,'[1]Хар-ки'!$A:$E,5,0),"") -> 300 | J83: =VLOOKUP(B83,'[1]Хар-ки'!$A:$F,6,0) -> 0,017 | K83: =VLOOKUP(B83,'[1]Хар-ки'!$A:$G,7,0) -> 0,000072
B84: PA12012P | C84: PP-R Муфта Белая | D84: 32 | E84: =IFERROR(VLOOKUP(B84,'[1]Хар-ки'!$A:$D,4,0),0) -> Обычная | F84: =VLOOKUP(B84,[1]Цены!$A:$C,3,0) -> RUR | G84: =VLOOKUP(B84,[1]Цены!$A:$E,5,0) -> 17.86 | H84: =VLOOKUP(B84,[1]Цены!$A:$E,4,0) -> шт | I84: =IFERROR(VLOOKUP(B84,'[1]Хар-ки'!$A:$E,5,0),"") -> 175 | J84: =VLOOKUP(B84,'[1]Хар-ки'!$A:$F,6,0) -> 0,030 | K84: =VLOOKUP(B84,'[1]Хар-ки'!$A:$G,7,0) -> 0,000123
B85: PA12014P | C85: PP-R Муфта Белая | D85: 40 | E85: =IFERROR(VLOOKUP(B85,'[1]Хар-ки'!$A:$D,4,0),0) -> Обычная | F85: =VLOOKUP(B85,[1]Цены!$A:$C,3,0) -> RUR | G85: =VLOOKUP(B85,[1]Цены!$A:$E,5,0) -> 32.92 | H85: =VLOOKUP(B85,[1]Цены!$A:$E,4,0) -> шт | I85: =IFERROR(VLOOKUP(B85,'[1]Хар-ки'!$A:$E,5,0),"") -> 100 | J85: =VLOOKUP(B85,'[1]Хар-ки'!$A:$F,6,0) -> 0,044 | K85: =VLOOKUP(B85,'[1]Хар-ки'!$A:$G,7,0) -> 0,000216
B86: PA12016P | C86: PP-R Муфта Белая | D86: 50 | E86: =IFERROR(VLOOKUP(B86,'[1]Хар-ки'!$A:$D,4,0),0) -> Обычная | F86: =VLOOKUP(B86,[1]Цены!$A:$C,3,0) -> RUR | G86: =VLOOKUP(B86,[1]Цены!$A:$E,5,0) -> 52.54 | H86: =VLOOKUP(B86,[1]Цены!$A:$E,4,0) -> шт | I86: =IFERROR(VLOOKUP(B86,'[1]Хар-ки'!$A:$E,5,0),"") -> 60 | J86: =VLOOKUP(B86,'[1]Хар-ки'!$A:$F,6,0) -> 0,074 | K86: =VLOOKUP(B86,'[1]Хар-ки'!$A:$G,7,0) -> 0,000360
B87: PA12018P | C87: PP-R Муфта Белая | D87: 63 | E87: =IFERROR(VLOOKUP(B87,'[1]Хар-ки'!$A:$D,4,0),0) -> Обычная | F87: =VLOOKUP(B87,[1]Цены!$A:$C,3,0) -> RUR | G87: =VLOOKUP(B87,[1]Цены!$A:$E,5,0) -> 100.16 | H87: =VLOOKUP(B87,[1]Цены!$A:$E,4,0) -> шт | I87: =IFERROR(VLOOKUP(B87,'[1]Хар-ки'!$A:$E,5,0),"") -> 42 | J87: =VLOOKUP(B87,'[1]Хар-ки'!$A:$F,6,0) -> 0,133 | K87: =VLOOKUP(B87,'[1]Хар-ки'!$A:$G,7,0) -> 0,000505
B88: PA12020P | C88: PP-R Муфта Белая | D88: 75 | E88: =IFERROR(VLOOKUP(B88,'[1]Хар-ки'!$A:$D,4,0),0) -> Обычная | F88: =VLOOKUP(B88,[1]Цены!$A:$C,3,0) -> RUR | G88: =VLOOKUP(B88,[1]Цены!$A:$E,5,0) -> 185.62 | H88: =VLOOKUP(B88,[1]Цены!$A:$E,4,0) -> шт | I88: =IFERROR(VLOOKUP(B88,'[1]Хар-ки'!$A:$E,5,0),"") -> 24 | J88: =VLOOKUP(B88,'[1]Хар-ки'!$A:$F,6,0) -> 0,214 | K88: =VLOOKUP(B88,'[1]Хар-ки'!$A:$G,7,0) -> 0,000709
B89: PA12022P | C89: PP-R Муфта Белая | D89: 90 | E89: =IFERROR(VLOOKUP(B89,'[1]Хар-ки'!$A:$D,4,0),0) -> Обычная | F89: =VLOOKUP(B89,[1]Цены!$A:$C,3,0) -> RUR | G89: =VLOOKUP(B89,[1]Цены!$A:$E,5,0) -> 303.59 | H89: =VLOOKUP(B89,[1]Цены!$A:$E,4,0) -> шт | I89: =IFERROR(VLOOKUP(B89,'[1]Хар-ки'!$A:$E,5,0),"") -> 12 | J89: =VLOOKUP(B89,'[1]Хар-ки'!$A:$F,6,0) -> 0,324 | K89: =VLOOKUP(B89,'[1]Хар-ки'!$A:$G,7,0) -> 0,001300
B90: PA12024P | C90: PP-R Муфта Белая | D90: 110 | E90: =IFERROR(VLOOKUP(B90,'[1]Хар-ки'!$A:$D,4,0),0) -> Обычная | F90: =VLOOKUP(B90,[1]Цены!$A:$C,3,0) -> RUR | G90: =VLOOKUP(B90,[1]Цены!$A:$E,5,0) -> 569.78 | H90: =VLOOKUP(B90,[1]Цены!$A:$E,4,0) -> шт | I90: =IFERROR(VLOOKUP(B90,'[1]Хар-ки'!$A:$E,5,0),"") -> 6 | J90: =VLOOKUP(B90,'[1]Хар-ки'!$A:$F,6,0) -> 0,619 | K90: =VLOOKUP(B90,'[1]Хар-ки'!$A:$G,7,0) -> 0,002600
B91: PA12026P | C91: PP-R Муфта Белая | D91: 125 | E91: =IFERROR(VLOOKUP(B91,'[1]Хар-ки'!$A:$D,4,0),0) -> Обычная | F91: =VLOOKUP(B91,[1]Цены!$A:$C,3,0) -> RUR | G91: =VLOOKUP(B91,[1]Цены!$A:$E,5,0) -> 1,035.67 | H91: =VLOOKUP(B91,[1]Цены!$A:$E,4,0) -> шт | I91: =IFERROR(VLOOKUP(B91,'[1]Хар-ки'!$A:$E,5,0),"") -> 6 | J91: =VLOOKUP(B91,'[1]Хар-ки'!$A:$F,6,0) -> 0,821 | K91: =VLOOKUP(B91,'[1]Хар-ки'!$A:$G,7,0) -> 0,003533
B92: PA12028P | C92: PP-R Муфта Белая | D92: 160 | E92: =IFERROR(VLOOKUP(B92,'[1]Хар-ки'!$A:$D,4,0),0) -> Обычная | F92: =VLOOKUP(B92,[1]Цены!$A:$C,3,0) -> RUR | G92: =VLOOKUP(B92,[1]Цены!$A:$E,5,0) -> 4,218.37 | H92: =VLOOKUP(B92,[1]Цены!$A:$E,4,0) -> шт | I92: =IFERROR(VLOOKUP(B92,'[1]Хар-ки'!$A:$E,5,0),"") -> 2 | J92: =VLOOKUP(B92,'[1]Хар-ки'!$A:$F,6,0) -> 1,340 | K92: =VLOOKUP(B92,'[1]Хар-ки'!$A:$G,7,0) -> 0,008285
B93: PA12512P | C93: PP-R Муфта переходная Н-В Белая | D93: 25-20 | E93: =IFERROR(VLOOKUP(B93,'[1]Хар-ки'!$A:$D,4,0),0) -> Обычная | F93: =VLOOKUP(B93,[1]Цены!$A:$C,3,0) -> RUR | G93: =VLOOKUP(B93,[1]Цены!$A:$E,5,0) -> 7.72 | H93: =VLOOKUP(B93,[1]Цены!$A:$E,4,0) -> шт | I93: =IFERROR(VLOOKUP(B93,'[1]Хар-ки'!$A:$E,5,0),"") -> 500 | J93: =VLOOKUP(B93,'[1]Хар-ки'!$A:$F,6,0) -> 0,013 | K93: =VLOOKUP(B93,'[1]Хар-ки'!$A:$G,7,0) -> 0,000043
B94: PA12514P | C94: PP-R Муфта переходная Н-В Белая | D94: 32-20 | E94: =IFERROR(VLOOKUP(B94,'[1]Хар-ки'!$A:$D,4,0),0) -> Обычная | F94: =VLOOKUP(B94,[1]Цены!$A:$C,3,0) -> RUR | G94: =VLOOKUP(B94,[1]Цены!$A:$E,5,0) -> 12.44 | H94: =VLOOKUP(B94,[1]Цены!$A:$E,4,0) -> шт | I94: =IFERROR(VLOOKUP(B94,'[1]Хар-ки'!$A:$E,5,0),"") -> 300 | J94: =VLOOKUP(B94,'[1]Хар-ки'!$A:$F,6,0) -> 0,016 | K94: =VLOOKUP(B94,'[1]Хар-ки'!$A:$G,7,0) -> 0,000071
B95: PA12516P | C95: PP-R Муфта переходная Н-В Белая | D95: 32-25 | E95: =IFERROR(VLOOKUP(B95,'[1]Хар-ки'!$A:$D,4,0),0) -> Обычная | F95: =VLOOKUP(B95,[1]Цены!$A:$C,3,0) -> RUR | G95: =VLOOKUP(B95,[1]Цены!$A:$E,5,0) -> 13.42 | H95: =VLOOKUP(B95,[1]Цены!$A:$E,4,0) -> шт | I95: =IFERROR(VLOOKUP(B95,'[1]Хар-ки'!$A:$E,5,0),"") -> 300 | J95: =VLOOKUP(B95,'[1]Хар-ки'!$A:$F,6,0) -> 0,019 | K95: =VLOOKUP(B95,'[1]Хар-ки'!$A:$G,7,0) -> 0,000072
B96: PA12518P | C96: PP-R Муфта переходная Н-В Белая | D96: 40-20 | E96: =IFERROR(VLOOKUP(B96,'[1]Хар-ки'!$A:$D,4,0),0) -> Обычная | F96: =VLOOKUP(B96,[1]Цены!$A:$C,3,0) -> RUR | G96: =VLOOKUP(B96,[1]Цены!$A:$E,5,0) -> 19.96 | H96: =VLOOKUP(B96,[1]Цены!$A:$E,4,0) -> шт | I96: =IFERROR(VLOOKUP(B96,'[1]Хар-ки'!$A:$E,5,0),"") -> 200 | J96: =VLOOKUP(B96,'[1]Хар-ки'!$A:$F,6,0) -> 0,024 | K96: =VLOOKUP(B96,'[1]Хар-ки'!$A:$G,7,0) -> 0,000106
B97: PA12520P | C97: PP-R Муфта переходная Н-В Белая | D97: 40-25 | E97: =IFERROR(VLOOKUP(B97,'[1]Хар-ки'!$A:$D,4,0),0) -> Обычная | F97: =VLOOKUP(B97,[1]Цены!$A:$C,3,0) -> RUR | G97: =VLOOKUP(B97,[1]Цены!$A:$E,5,0) -> 21.11 | H97: =VLOOKUP(B97,[1]Цены!$A:$E,4,0) -> шт | I97: =IFERROR(VLOOKUP(B97,'[1]Хар-ки'!$A:$E,5,0),"") -> 200 | J97: =VLOOKUP(B97,'[1]Хар-ки'!$A:$F,6,0) -> 0,025 | K97: =VLOOKUP(B97,'[1]Хар-ки'!$A:$G,7,0) -> 0,000106
B98: PA12522P | C98: PP-R Муфта переходная Н-В Белая | D98: 40-32 | E98: =IFERROR(VLOOKUP(B98,'[1]Хар-ки'!$A:$D,4,0),0) -> Обычная | F98: =VLOOKUP(B98,[1]Цены!$A:$C,3,0) -> RUR | G98: =VLOOKUP(B98,[1]Цены!$A:$E,5,0) -> 24.82 | H98: =VLOOKUP(B98,[1]Цены!$A:$E,4,0) -> шт | I98: =IFERROR(VLOOKUP(B98,'[1]Хар-ки'!$A:$E,5,0),"") -> 200 | J98: =VLOOKUP(B98,'[1]Хар-ки'!$A:$F,6,0) -> 0,029 | K98: =VLOOKUP(B98,'[1]Хар-ки'!$A:$G,7,0) -> 0,000108
B99: PA12524P | C99: PP-R Муфта переходная Н-В Белая | D99: 50-20 | E99: =IFERROR(VLOOKUP(B99,'[1]Хар-ки'!$A:$D,4,0),0) -> Обычная | F99: =VLOOKUP(B99,[1]Цены!$A:$C,3,0) -> RUR | G99: =VLOOKUP(B99,[1]Цены!$A:$E,5,0) -> 32.83 | H99: =VLOOKUP(B99,[1]Цены!$A:$E,4,0) -> шт | I99: =IFERROR(VLOOKUP(B99,'[1]Хар-ки'!$A:$E,5,0),"") -> 120 | J99: =VLOOKUP(B99,'[1]Хар-ки'!$A:$F,6,0) -> 0,043 | K99: =VLOOKUP(B99,'[1]Хар-ки'!$A:$G,7,0) -> 0,000177
B100: PA12526P | C100: PP-R Муфта переходная Н-В Белая | D100: 50-25 | E100: =IFERROR(VLOOKUP(B100,'[1]Хар-ки'!$A:$D,4,0),0) -> Обычная | F100: =VLOOKUP(B100,[1]Цены!$A:$C,3,0) -> RUR | G100: =VLOOKUP(B100,[1]Цены!$A:$E,5,0) -> 35.33 | H100: =VLOOKUP(B100,[1]Цены!$A:$E,4,0) -> шт | I100: =IFERROR(VLOOKUP(B100,'[1]Хар-ки'!$A:$E,5,0),"") -> 120 | J100: =VLOOKUP(B100,'[1]Хар-ки'!$A:$F,6,0) -> 0,044 | K100: =VLOOKUP(B100,'[1]Хар-ки'!$A:$G,7,0) -> 0,000177
B101: PA12528P | C101: PP-R Муфта переходная Н-В Белая | D101: 50-32 | E101: =IFERROR(VLOOKUP(B101,'[1]Хар-ки'!$A:$D,4,0),0) -> Обычная | F101: =VLOOKUP(B101,[1]Цены!$A:$C,3,0) -> RUR | G101: =VLOOKUP(B101,[1]Цены!$A:$E,5,0) -> 39.37 | H101: =VLOOKUP(B101,[1]Цены!$A:$E,4,0) -> шт | I101: =IFERROR(VLOOKUP(B101,'[1]Хар-ки'!$A:$E,5,0),"") -> 100 | J101: =VLOOKUP(B101,'[1]Хар-ки'!$A:$F,6,0) -> 0,062 | K101: =VLOOKUP(B101,'[1]Хар-ки'!$A:$G,7,0) -> 0,000212
B102: PA12530P | C102: PP-R Муфта переходная Н-В Белая | D102: 50-40 | E102: =IFERROR(VLOOKUP(B102,'[1]Хар-ки'!$A:$D,4,0),0) -> Обычная | F102: =VLOOKUP(B102,[1]Цены!$A:$C,3,0) -> RUR | G102: =VLOOKUP(B102,[1]Цены!$A:$E,5,0) -> 46.37 | H102: =VLOOKUP(B102,[1]Цены!$A:$E,4,0) -> шт | I102: =IFERROR(VLOOKUP(B102,'[1]Хар-ки'!$A:$E,5,0),"") -> 80 | J102: =VLOOKUP(B102,'[1]Хар-ки'!$A:$F,6,0) -> 0,063 | K102: =VLOOKUP(B102,'[1]Хар-ки'!$A:$G,7,0) -> 0,000265
B103: PA12531 | C103: PP-R Муфта переходная Н-В Белая | D103: 63-20 | E103: =IFERROR(VLOOKUP(B103,'[1]Хар-ки'!$A:$D,4,0),0) -> Обычная | F103: =VLOOKUP(B103,[1]Цены!$A:$C,3,0) -> RUR | G103: =VLOOKUP(B103,[1]Цены!$A:$E,5,0) -> 57.85 | H103: =VLOOKUP(B103,[1]Цены!$A:$E,4,0) -> шт | I103: =IFERROR(VLOOKUP(B103,'[1]Хар-ки'!$A:$E,5,0),"") -> 100 | J103: =VLOOKUP(B103,'[1]Хар-ки'!$A:$F,6,0) -> 0,064 | K103: =VLOOKUP(B103,'[1]Хар-ки'!$A:$G,7,0) -> 0,000212
B104: PA12532P | C104: PP-R Муфта переходная Н-В Белая | D104: 63-25 | E104: =IFERROR(VLOOKUP(B104,'[1]Хар-ки'!$A:$D,4,0),0) -> Обычная | F104: =VLOOKUP(B104,[1]Цены!$A:$C,3,0) -> RUR | G104: =VLOOKUP(B104,[1]Цены!$A:$E,5,0) -> 59.32 | H104: =VLOOKUP(B104,[1]Цены!$A:$E,4,0) -> шт | I104: =IFERROR(VLOOKUP(B104,'[1]Хар-ки'!$A:$E,5,0),"") -> 90 | J104: =VLOOKUP(B104,'[1]Хар-ки'!$A:$F,6,0) -> 0,069 | K104: =VLOOKUP(B104,'[1]Хар-ки'!$A:$G,7,0) -> 0,000173
B105: PA12534P | C105: PP-R Муфта переходная Н-В Белая | D105: 63-32 | E105: =IFERROR(VLOOKUP(B105,'[1]Хар-ки'!$A:$D,4,0),0) -> Обычная | F105: =VLOOKUP(B105,[1]Цены!$A:$C,3,0) -> RUR | G105: =VLOOKUP(B105,[1]Цены!$A:$E,5,0) -> 59.51 | H105: =VLOOKUP(B105,[1]Цены!$A:$E,4,0) -> шт | I105: =IFERROR(VLOOKUP(B105,'[1]Хар-ки'!$A:$E,5,0),"") -> 60 | J105: =VLOOKUP(B105,'[1]Хар-ки'!$A:$F,6,0) -> 0,077 | K105: =VLOOKUP(B105,'[1]Хар-ки'!$A:$G,7,0) -> 0,000260
B106: PA12536P | C106: PP-R Муфта переходная Н-В Белая | D106: 63-40 | E106: =IFERROR(VLOOKUP(B106,'[1]Хар-ки'!$A:$D,4,0),0) -> Обычная | F106: =VLOOKUP(B106,[1]Цены!$A:$C,3,0) -> RUR | G106: =VLOOKUP(B106,[1]Цены!$A:$E,5,0) -> 62.46 | H106: =VLOOKUP(B106,[1]Цены!$A:$E,4,0) -> шт | I106: =IFERROR(VLOOKUP(B106,'[1]Хар-ки'!$A:$E,5,0),"") -> 60 | J106: =VLOOKUP(B106,'[1]Хар-ки'!$A:$F,6,0) -> 0,085 | K106: =VLOOKUP(B106,'[1]Хар-ки'!$A:$G,7,0) -> 0,000260
B107: PA12538P | C107: PP-R Муфта переходная Н-В Белая | D107: 63-50 | E107: =IFERROR(VLOOKUP(B107,'[1]Хар-ки'!$A:$D,4,0),0) -> Обычная | F107: =VLOOKUP(B107,[1]Цены!$A:$C,3,0) -> RUR | G107: =VLOOKUP(B107,[1]Цены!$A:$E,5,0) -> 76.45 | H107: =VLOOKUP(B107,[1]Цены!$A:$E,4,0) -> шт | I107: =IFERROR(VLOOKUP(B107,'[1]Хар-ки'!$A:$E,5,0),"") -> 48 | J107: =VLOOKUP(B107,'[1]Хар-ки'!$A:$F,6,0) -> 0,106 | K107: =VLOOKUP(B107,'[1]Хар-ки'!$A:$G,7,0) -> 0,000325
B108: PA12540P | C108: PP-R Муфта переходная Н-В Белая | D108: 75-50 | E108: =IFERROR(VLOOKUP(B108,'[1]Хар-ки'!$A:$D,4,0),0) -> Обычная | F108: =VLOOKUP(B108,[1]Цены!$A:$C,3,0) -> RUR | G108: =VLOOKUP(B108,[1]Цены!$A:$E,5,0) -> 121.33 | H108: =VLOOKUP(B108,[1]Цены!$A:$E,4,0) -> шт | I108: =IFERROR(VLOOKUP(B108,'[1]Хар-ки'!$A:$E,5,0),"") -> 36 | J108: =VLOOKUP(B108,'[1]Хар-ки'!$A:$F,6,0) -> 0,133 | K108: =VLOOKUP(B108,'[1]Хар-ки'!$A:$G,7,0) -> 0,000433
B109: PA12542P | C109: PP-R Муфта переходная Н-В Белая | D109: 75-63 | E109: =IFERROR(VLOOKUP(B109,'[1]Хар-ки'!$A:$D,4,0),0) -> Обычная | F109: =VLOOKUP(B109,[1]Цены!$A:$C,3,0) -> RUR | G109: =VLOOKUP(B109,[1]Цены!$A:$E,5,0) -> 174.19 | H109: =VLOOKUP(B109,[1]Цены!$A:$E,4,0) -> шт | I109: =IFERROR(VLOOKUP(B109,'[1]Хар-ки'!$A:$E,5,0),"") -> 24 | J109: =VLOOKUP(B109,'[1]Хар-ки'!$A:$F,6,0) -> 0,170 | K109: =VLOOKUP(B109,'[1]Хар-ки'!$A:$G,7,0) -> 0,000650
B110: PA12544P | C110: PP-R Муфта переходная Н-В Белая | D110: 90-63 | E110: =IFERROR(VLOOKUP(B110,'[1]Хар-ки'!$A:$D,4,0),0) -> Обычная | F110: =VLOOKUP(B110,[1]Цены!$A:$C,3,0) -> RUR | G110: =VLOOKUP(B110,[1]Цены!$A:$E,5,0) -> 213.18 | H110: =VLOOKUP(B110,[1]Цены!$A:$E,4,0) -> шт | I110: =IFERROR(VLOOKUP(B110,'[1]Хар-ки'!$A:$E,5,0),"") -> 18 | J110: =VLOOKUP(B110,'[1]Хар-ки'!$A:$F,6,0) -> 0,230 | K110: =VLOOKUP(B110,'[1]Хар-ки'!$A:$G,7,0) -> 0,000867
B111: PA12546P | C111: PP-R Муфта переходная Н-В Белая | D111: 90-75 | E111: =IFERROR(VLOOKUP(B111,'[1]Хар-ки'!$A:$D,4,0),0) -> Обычная | F111: =VLOOKUP(B111,[1]Цены!$A:$C,3,0) -> RUR | G111: =VLOOKUP(B111,[1]Цены!$A:$E,5,0) -> 285.07 | H111: =VLOOKUP(B111,[1]Цены!$A:$E,4,0) -> шт | I111: =IFERROR(VLOOKUP(B111,'[1]Хар-ки'!$A:$E,5,0),"") -> 18 | J111: =VLOOKUP(B111,'[1]Хар-ки'!$A:$F,6,0) -> 0,286 | K111: =VLOOKUP(B111,'[1]Хар-ки'!$A:$G,7,0) -> 0,000867
B112: PA12547P | C112: PP-R Муфта переходная Н-В Белая | D112: 110-75 | E112: =IFERROR(VLOOKUP(B112,'[1]Хар-ки'!$A:$D,4,0),0) -> Обычная | F112: =VLOOKUP(B112,[1]Цены!$A:$C,3,0) -> RUR | G112: =VLOOKUP(B112,[1]Цены!$A:$E,5,0) -> 342.40 | H112: =VLOOKUP(B112,[1]Цены!$A:$E,4,0) -> шт | I112: =IFERROR(VLOOKUP(B112,'[1]Хар-ки'!$A:$E,5,0),"") -> 12 | J112: =VLOOKUP(B112,'[1]Хар-ки'!$A:$F,6,0) -> 0,326 | K112: =VLOOKUP(B112,'[1]Хар-ки'!$A:$G,7,0) -> 0,001300
B113: PA12548P | C113: PP-R Муфта переходная Н-В Белая | D113: 110-90 | E113: =IFERROR(VLOOKUP(B113,'[1]Хар-ки'!$A:$D,4,0),0) -> Обычная | F113: =VLOOKUP(B113,[1]Цены!$A:$C,3,0) -> RUR | G113: =VLOOKUP(B113,[1]Цены!$A:$E,5,0) -> 381.30 | H113: =VLOOKUP(B113,[1]Цены!$A:$E,4,0) -> шт | I113: =IFERROR(VLOOKUP(B113,'[1]Хар-ки'!$A:$E,5,0),"") -> 10 | J113: =VLOOKUP(B113,'[1]Хар-ки'!$A:$F,6,0) -> 0,468 | K113: =VLOOKUP(B113,'[1]Хар-ки'!$A:$G,7,0) -> 0,001560
B114: PA12550P | C114: PP-R Муфта переходная Н-В Белая | D114: 125-110 | E114: =IFERROR(VLOOKUP(B114,'[1]Хар-ки'!$A:$D,4,0),0) -> Обычная | F114: =VLOOKUP(B114,[1]Цены!$A:$C,3,0) -> RUR | G114: =VLOOKUP(B114,[1]Цены!$A:$E,5,0) -> 1,356.29 | H114: =VLOOKUP(B114,[1]Цены!$A:$E,4,0) -> шт | I114: =IFERROR(VLOOKUP(B114,'[1]Хар-ки'!$A:$E,5,0),"") -> 5 | J114: =VLOOKUP(B114,'[1]Хар-ки'!$A:$F,6,0) -> 0,738 | K114: =VLOOKUP(B114,'[1]Хар-ки'!$A:$G,7,0) -> 0,003120
B115: PA12612824 | C115: PP-R Муфта переходная Белая | D115: 160-110 | E115: =IFERROR(VLOOKUP(B115,'[1]Хар-ки'!$A:$D,4,0),0) -> Обычная | F115: =VLOOKUP(B115,[1]Цены!$A:$C,3,0) -> RUR | G115: =VLOOKUP(B115,[1]Цены!$A:$E,5,0) -> 2,172.80 | H115: =VLOOKUP(B115,[1]Цены!$A:$E,4,0) -> шт | I115: =IFERROR(VLOOKUP(B115,'[1]Хар-ки'!$A:$E,5,0),"") -> 2 | J115: =VLOOKUP(B115,'[1]Хар-ки'!$A:$F,6,0) -> 1,770 | K115: =VLOOKUP(B115,'[1]Хар-ки'!$A:$G,7,0) -> 0,005689
B116: PA1261008 | C116: PP-R Муфта переходная Белая | D116: 25-20 | E116: =IFERROR(VLOOKUP(B116,'[1]Хар-ки'!$A:$D,4,0),0) -> Обычная | F116: =VLOOKUP(B116,[1]Цены!$A:$C,3,0) -> RUR | G116: =VLOOKUP(B116,[1]Цены!$A:$E,5,0) -> 10.81 | H116: =VLOOKUP(B116,[1]Цены!$A:$E,4,0) -> шт | I116: =IFERROR(VLOOKUP(B116,'[1]Хар-ки'!$A:$E,5,0),"") -> 300 | J116: =VLOOKUP(B116,'[1]Хар-ки'!$A:$F,6,0) -> 0,016 | K116: =VLOOKUP(B116,'[1]Хар-ки'!$A:$G,7,0) -> 0,000071
B117: PA1261208 | C117: PP-R Муфта переходная Белая | D117: 32-20 | E117: =IFERROR(VLOOKUP(B117,'[1]Хар-ки'!$A:$D,4,0),0) -> Обычная | F117: =VLOOKUP(B117,[1]Цены!$A:$C,3,0) -> RUR | G117: =VLOOKUP(B117,[1]Цены!$A:$E,5,0) -> 16.30 | H117: =VLOOKUP(B117,[1]Цены!$A:$E,4,0) -> шт | I117: =IFERROR(VLOOKUP(B117,'[1]Хар-ки'!$A:$E,5,0),"") -> 200 | J117: =VLOOKUP(B117,'[1]Хар-ки'!$A:$F,6,0) -> 0,025 | K117: =VLOOKUP(B117,'[1]Хар-ки'!$A:$G,7,0) -> 0,000095
B118: PA1261210 | C118: PP-R Муфта переходная Белая | D118: 32-25 | E118: =IFERROR(VLOOKUP(B118,'[1]Хар-ки'!$A:$D,4,0),0) -> Обычная | F118: =VLOOKUP(B118,[1]Цены!$A:$C,3,0) -> RUR | G118: =VLOOKUP(B118,[1]Цены!$A:$E,5,0) -> 16.78 | H118: =VLOOKUP(B118,[1]Цены!$A:$E,4,0) -> шт | I118: =IFERROR(VLOOKUP(B118,'[1]Хар-ки'!$A:$E,5,0),"") -> 210 | J118: =VLOOKUP(B118,'[1]Хар-ки'!$A:$F,6,0) -> 0,024 | K118: =VLOOKUP(B118,'[1]Хар-ки'!$A:$G,7,0) -> 0,000091
B119: PA12614008 | C119: PP-R Муфта переходная Белая | D119: 40-20 | E119: =IFERROR(VLOOKUP(B119,'[1]Хар-ки'!$A:$D,4,0),0) -> Обычная | F119: =VLOOKUP(B119,[1]Цены!$A:$C,3,0) -> RUR | G119: =VLOOKUP(B119,[1]Цены!$A:$E,5,0) -> 27.08 | H119: =VLOOKUP(B119,[1]Цены!$A:$E,4,0) -> шт | I119: =IFERROR(VLOOKUP(B119,'[1]Хар-ки'!$A:$E,5,0),"") -> 150 | J119: =VLOOKUP(B119,'[1]Хар-ки'!$A:$F,6,0) -> 0,038 | K119: =VLOOKUP(B119,'[1]Хар-ки'!$A:$G,7,0) -> 0,000104
B120: PA12614010 | C120: PP-R Муфта переходная Белая | D120: 40-25 | E120: =IFERROR(VLOOKUP(B120,'[1]Хар-ки'!$A:$D,4,0),0) -> Обычная | F120: =VLOOKUP(B120,[1]Цены!$A:$C,3,0) -> RUR | G120: =VLOOKUP(B120,[1]Цены!$A:$E,5,0) -> 28.70 | H120: =VLOOKUP(B120,[1]Цены!$A:$E,4,0) -> шт | I120: =IFERROR(VLOOKUP(B120,'[1]Хар-ки'!$A:$E,5,0),"") -> 180 | J120: =VLOOKUP(B120,'[1]Хар-ки'!$A:$F,6,0) -> 0,039 | K120: =VLOOKUP(B120,'[1]Хар-ки'!$A:$G,7,0) -> 0,000087
B121: PA12614012 | C121: PP-R Муфта переходная Белая | D121: 40-32 | E121: =IFERROR(VLOOKUP(B121,'[1]Хар-ки'!$A:$D,4,0),0) -> Обычная | F121: =VLOOKUP(B121,[1]Цены!$A:$C,3,0) -> RUR | G121: =VLOOKUP(B121,[1]Цены!$A:$E,5,0) -> 30.48 | H121: =VLOOKUP(B121,[1]Цены!$A:$E,4,0) -> шт | I121: =IFERROR(VLOOKUP(B121,'[1]Хар-ки'!$A:$E,5,0),"") -> 120 | J121: =VLOOKUP(B121,'[1]Хар-ки'!$A:$F,6,0) -> 0,038 | K121: =VLOOKUP(B121,'[1]Хар-ки'!$A:$G,7,0) -> 0,000130
B122: PA12616008 | C122: PP-R Муфта переходная Белая | D122: 50-20 | E122: =IFERROR(VLOOKUP(B122,'[1]Хар-ки'!$A:$D,4,0),0) -> Обычная | F122: =VLOOKUP(B122,[1]Цены!$A:$C,3,0) -> RUR | G122: =VLOOKUP(B122,[1]Цены!$A:$E,5,0) -> 43.00 | H122: =VLOOKUP(B122,[1]Цены!$A:$E,4,0) -> шт | I122: =IFERROR(VLOOKUP(B122,'[1]Хар-ки'!$A:$E,5,0),"") -> 120 | J122: =VLOOKUP(B122,'[1]Хар-ки'!$A:$F,6,0) -> 0,055 | K122: =VLOOKUP(B122,'[1]Хар-ки'!$A:$G,7,0) -> 0,000130
B123: PA12616010 | C123: PP-R Муфта переходная Белая | D123: 50-25 | E123: =IFERROR(VLOOKUP(B123,'[1]Хар-ки'!$A:$D,4,0),0) -> Обычная | F123: =VLOOKUP(B123,[1]Цены!$A:$C,3,0) -> RUR | G123: =VLOOKUP(B123,[1]Цены!$A:$E,5,0) -> 44.47 | H123: =VLOOKUP(B123,[1]Цены!$A:$E,4,0) -> шт | I123: =IFERROR(VLOOKUP(B123,'[1]Хар-ки'!$A:$E,5,0),"") -> 120 | J123: =VLOOKUP(B123,'[1]Хар-ки'!$A:$F,6,0) -> 0,056 | K123: =VLOOKUP(B123,'[1]Хар-ки'!$A:$G,7,0) -> 0,000130
B124: PA12616012 | C124: PP-R Муфта переходная Белая | D124: 50-32 | E124: =IFERROR(VLOOKUP(B124,'[1]Хар-ки'!$A:$D,4,0),0) -> Обычная | F124: =VLOOKUP(B124,[1]Цены!$A:$C,3,0) -> RUR | G124: =VLOOKUP(B124,[1]Цены!$A:$E,5,0) -> 45.61 | H124: =VLOOKUP(B124,[1]Цены!$A:$E,4,0) -> шт | I124: =IFERROR(VLOOKUP(B124,'[1]Хар-ки'!$A:$E,5,0),"") -> 90 | J124: =VLOOKUP(B124,'[1]Хар-ки'!$A:$F,6,0) -> 0,060 | K124: =VLOOKUP(B124,'[1]Хар-ки'!$A:$G,7,0) -> 0,000173
B125: PA12616014 | C125: PP-R Муфта переходная Белая | D125: 50-40 | E125: =IFERROR(VLOOKUP(B125,'[1]Хар-ки'!$A:$D,4,0),0) -> Обычная | F125: =VLOOKUP(B125,[1]Цены!$A:$C,3,0) -> RUR | G125: =VLOOKUP(B125,[1]Цены!$A:$E,5,0) -> 55.20 | H125: =VLOOKUP(B125,[1]Цены!$A:$E,4,0) -> шт | I125: =IFERROR(VLOOKUP(B125,'[1]Хар-ки'!$A:$E,5,0),"") -> 60 | J125: =VLOOKUP(B125,'[1]Хар-ки'!$A:$F,6,0) -> 0,062 | K125: =VLOOKUP(B125,'[1]Хар-ки'!$A:$G,7,0) -> 0,000260
B126: PA1261808 | C126: PP-R Муфта переходная Белая | D126: 63-20 | E126: =IFERROR(VLOOKUP(B126,'[1]Хар-ки'!$A:$D,4,0),0) -> Обычная | F126: =VLOOKUP(B126,[1]Цены!$A:$C,3,0) -> RUR | G126: =VLOOKUP(B126,[1]Цены!$A:$E,5,0) -> 92.80 | H126: =VLOOKUP(B126,[1]Цены!$A:$E,4,0) -> шт | I126: =IFERROR(VLOOKUP(B126,'[1]Хар-ки'!$A:$E,5,0),"") -> 60 | J126: =VLOOKUP(B126,'[1]Хар-ки'!$A:$F,6,0) -> 0,116 | K126: =VLOOKUP(B126,'[1]Хар-ки'!$A:$G,7,0) -> 0,000353
B127: PA12618010 | C127: PP-R Муфта переходная Белая | D127: 63-25 | E127: =IFERROR(VLOOKUP(B127,'[1]Хар-ки'!$A:$D,4,0),0) -> Обычная | F127: =VLOOKUP(B127,[1]Цены!$A:$C,3,0) -> RUR | G127: =VLOOKUP(B127,[1]Цены!$A:$E,5,0) -> 93.53 | H127: =VLOOKUP(B127,[1]Цены!$A:$E,4,0) -> шт | I127: =IFERROR(VLOOKUP(B127,'[1]Хар-ки'!$A:$E,5,0),"") -> 50 | J127: =VLOOKUP(B127,'[1]Хар-ки'!$A:$F,6,0) -> 0,114 | K127: =VLOOKUP(B127,'[1]Хар-ки'!$A:$G,7,0) -> 0,000312
B128: PA12618012 | C128: PP-R Муфта переходная Белая | D128: 63-32 | E128: =IFERROR(VLOOKUP(B128,'[1]Хар-ки'!$A:$D,4,0),0) -> Обычная | F128: =VLOOKUP(B128,[1]Цены!$A:$C,3,0) -> RUR | G128: =VLOOKUP(B128,[1]Цены!$A:$E,5,0) -> 98.03 | H128: =VLOOKUP(B128,[1]Цены!$A:$E,4,0) -> шт | I128: =IFERROR(VLOOKUP(B128,'[1]Хар-ки'!$A:$E,5,0),"") -> 48 | J128: =VLOOKUP(B128,'[1]Хар-ки'!$A:$F,6,0) -> 0,116 | K128: =VLOOKUP(B128,'[1]Хар-ки'!$A:$G,7,0) -> 0,000325
B129: PA12618014 | C129: PP-R Муфта переходная Белая | D129: 63-40 | E129: =IFERROR(VLOOKUP(B129,'[1]Хар-ки'!$A:$D,4,0),0) -> Обычная | F129: =VLOOKUP(B129,[1]Цены!$A:$C,3,0) -> RUR | G129: =VLOOKUP(B129,[1]Цены!$A:$E,5,0) -> 99.76 | H129: =VLOOKUP(B129,[1]Цены!$A:$E,4,0) -> шт | I129: =IFERROR(VLOOKUP(B129,'[1]Хар-ки'!$A:$E,5,0),"") -> 60 | J129: =VLOOKUP(B129,'[1]Хар-ки'!$A:$F,6,0) -> 0,117 | K129: =VLOOKUP(B129,'[1]Хар-ки'!$A:$G,7,0) -> 0,000400
B130: PA12618016 | C130: PP-R Муфта переходная Белая | D130: 63-50 | E130: =IFERROR(VLOOKUP(B130,'[1]Хар-ки'!$A:$D,4,0),0) -> Обычная | F130: =VLOOKUP(B130,[1]Цены!$A:$C,3,0) -> RUR | G130: =VLOOKUP(B130,[1]Цены!$A:$E,5,0) -> 109.97 | H130: =VLOOKUP(B130,[1]Цены!$A:$E,4,0) -> шт | I130: =IFERROR(VLOOKUP(B130,'[1]Хар-ки'!$A:$E,5,0),"") -> 36 | J130: =VLOOKUP(B130,'[1]Хар-ки'!$A:$F,6,0) -> 0,124 | K130: =VLOOKUP(B130,'[1]Хар-ки'!$A:$G,7,0) -> 0,000589
B131: PA19008 | C131: PP-R Муфта разъемная пластиковая Белая PN10 | D131: 20 | E131: =IFERROR(VLOOKUP(B131,'[1]Хар-ки'!$A:$D,4,0),0) -> Обычная | F131: =VLOOKUP(B131,[1]Цены!$A:$C,3,0) -> RUR | G131: =VLOOKUP(B131,[1]Цены!$A:$E,5,0) -> 165.13 | H131: =VLOOKUP(B131,[1]Цены!$A:$E,4,0) -> шт | I131: =IFERROR(VLOOKUP(B131,'[1]Хар-ки'!$A:$E,5,0),"") -> 160 | J131: =VLOOKUP(B131,'[1]Хар-ки'!$A:$F,6,0) -> 0,034 | K131: =VLOOKUP(B131,'[1]Хар-ки'!$A:$G,7,0) -> 0,000068
B132: PA19010 | C132: PP-R Муфта разъемная пластиковая Белая PN 10 | D132: 25 | E132: =IFERROR(VLOOKUP(B132,'[1]Хар-ки'!$A:$D,4,0),0) -> Обычная | F132: =VLOOKUP(B132,[1]Цены!$A:$C,3,0) -> RUR | G132: =VLOOKUP(B132,[1]Цены!$A:$E,5,0) -> 242.50 | H132: =VLOOKUP(B132,[1]Цены!$A:$E,4,0) -> шт | I132: =IFERROR(VLOOKUP(B132,'[1]Хар-ки'!$A:$E,5,0),"") -> 100 | J132: =VLOOKUP(B132,'[1]Хар-ки'!$A:$F,6,0) -> 0,056 | K132: =VLOOKUP(B132,'[1]Хар-ки'!$A:$G,7,0) -> 0,000108
B133: PA19012 | C133: PP-R Муфта разъемная пластиковая Белая PN 10 | D133: 32 | E133: =IFERROR(VLOOKUP(B133,'[1]Хар-ки'!$A:$D,4,0),0) -> Обычная | F133: =VLOOKUP(B133,[1]Цены!$A:$C,3,0) -> RUR | G133: =VLOOKUP(B133,[1]Цены!$A:$E,5,0) -> 332.66 | H133: =VLOOKUP(B133,[1]Цены!$A:$E,4,0) -> шт | I133: =IFERROR(VLOOKUP(B133,'[1]Хар-ки'!$A:$E,5,0),"") -> 24 | J133: =VLOOKUP(B133,'[1]Хар-ки'!$A:$F,6,0) -> 0,091 | K133: =VLOOKUP(B133,'[1]Хар-ки'!$A:$G,7,0) -> 0,000450
B134: PA19014 | C134: PP-R Муфта разъемная пластиковая Белая PN 10 | D134: 40 | E134: =IFERROR(VLOOKUP(B134,'[1]Хар-ки'!$A:$D,4,0),0) -> Обычная | F134: =VLOOKUP(B134,[1]Цены!$A:$C,3,0) -> RUR | G134: =VLOOKUP(B134,[1]Цены!$A:$E,5,0) -> 344.86 | H134: =VLOOKUP(B134,[1]Цены!$A:$E,4,0) -> шт | I134: =IFERROR(VLOOKUP(B134,'[1]Хар-ки'!$A:$E,5,0),"") -> 72 | J134: =VLOOKUP(B134,'[1]Хар-ки'!$A:$F,6,0) -> 0,163 | K134: =VLOOKUP(B134,'[1]Хар-ки'!$A:$G,7,0) -> 0,000694
B135: PA19016 | C135: PP-R Муфта разъемная пластиковая Белая PN 10 | D135: 50 | E135: =IFERROR(VLOOKUP(B135,'[1]Хар-ки'!$A:$D,4,0),0) -> Обычная | F135: =VLOOKUP(B135,[1]Цены!$A:$C,3,0) -> RUR | G135: =VLOOKUP(B135,[1]Цены!$A:$E,5,0) -> 847.66 | H135: =VLOOKUP(B135,[1]Цены!$A:$E,4,0) -> шт | I135: =IFERROR(VLOOKUP(B135,'[1]Хар-ки'!$A:$E,5,0),"") -> 40 | J135: =VLOOKUP(B135,'[1]Хар-ки'!$A:$F,6,0) -> 0,262 | K135: =VLOOKUP(B135,'[1]Хар-ки'!$A:$G,7,0) -> 0,001148
B136: PA19018 | C136: PP-R Муфта разъемная пластиковая Белая PN 10 | D136: 63 | E136: =IFERROR(VLOOKUP(B136,'[1]Хар-ки'!$A:$D,4,0),0) -> Обычная | F136: =VLOOKUP(B136,[1]Цены!$A:$C,3,0) -> RUR | G136: =VLOOKUP(B136,[1]Цены!$A:$E,5,0) -> 1,873.57 | H136: =VLOOKUP(B136,[1]Цены!$A:$E,4,0) -> шт | I136: =IFERROR(VLOOKUP(B136,'[1]Хар-ки'!$A:$E,5,0),"") -> 24 | J136: =VLOOKUP(B136,'[1]Хар-ки'!$A:$F,6,0) -> 0,190 | K136: =VLOOKUP(B136,'[1]Хар-ки'!$A:$G,7,0) -> 0,001960
B137: PA19024n | C137: PP-R Муфта разъемная пластиковая Белая | D137: 110 | E137: =IFERROR(VLOOKUP(B137,'[1]Хар-ки'!$A:$D,4,0),0) -> Заказная | F137: =VLOOKUP(B137,[1]Цены!$A:$C,3,0) -> RUR | G137: =VLOOKUP(B137,[1]Цены!$A:$E,5,0) -> 1,865.92 | H137: =VLOOKUP(B137,[1]Цены!$A:$E,4,0) -> шт | I137: =IFERROR(VLOOKUP(B137,'[1]Хар-ки'!$A:$E,5,0),"") -> 1 | J137: =VLOOKUP(B137,'[1]Хар-ки'!$A:$F,6,0) -> 0,308 | K137: =VLOOKUP(B137,'[1]Хар-ки'!$A:$G,7,0) -> 0,018720
B138: PA13508P | C138: PP-R Угольник 45 градусов Белый | D138: 20 | E138: =IFERROR(VLOOKUP(B138,'[1]Хар-ки'!$A:$D,4,0),0) -> Обычная | F138: =VLOOKUP(B138,[1]Цены!$A:$C,3,0) -> RUR | G138: =VLOOKUP(B138,[1]Цены!$A:$E,5,0) -> 6.74 | H138: =VLOOKUP(B138,[1]Цены!$A:$E,4,0) -> шт | I138: =IFERROR(VLOOKUP(B138,'[1]Хар-ки'!$A:$E,5,0),"") -> 400 | J138: =VLOOKUP(B138,'[1]Хар-ки'!$A:$F,6,0) -> 0,013 | K138: =VLOOKUP(B138,'[1]Хар-ки'!$A:$G,7,0) -> 0,000054
B139: PA13510P | C139: PP-R Угольник 45 градусов Белый | D139: 25 | E139: =IFERROR(VLOOKUP(B139,'[1]Хар-ки'!$A:$D,4,0),0) -> Обычная | F139: =VLOOKUP(B139,[1]Цены!$A:$C,3,0) -> RUR | G139: =VLOOKUP(B139,[1]Цены!$A:$E,5,0) -> 11.22 | H139: =VLOOKUP(B139,[1]Цены!$A:$E,4,0) -> шт | I139: =IFERROR(VLOOKUP(B139,'[1]Хар-ки'!$A:$E,5,0),"") -> 250 | J139: =VLOOKUP(B139,'[1]Хар-ки'!$A:$F,6,0) -> 0,019 | K139: =VLOOKUP(B139,'[1]Хар-ки'!$A:$G,7,0) -> 0,000086
B140: PA13512P | C140: PP-R Угольник 45 градусов Белый | D140: 32 | E140: =IFERROR(VLOOKUP(B140,'[1]Хар-ки'!$A:$D,4,0),0) -> Обычная | F140: =VLOOKUP(B140,[1]Цены!$A:$C,3,0) -> RUR | G140: =VLOOKUP(B140,[1]Цены!$A:$E,5,0) -> 20.89 | H140: =VLOOKUP(B140,[1]Цены!$A:$E,4,0) -> шт | I140: =IFERROR(VLOOKUP(B140,'[1]Хар-ки'!$A:$E,5,0),"") -> 125 | J140: =VLOOKUP(B140,'[1]Хар-ки'!$A:$F,6,0) -> 0,038 | K140: =VLOOKUP(B140,'[1]Хар-ки'!$A:$G,7,0) -> 0,000173
B141: PA13514P | C141: PP-R Угольник 45 градусов Белый | D141: 40 | E141: =IFERROR(VLOOKUP(B141,'[1]Хар-ки'!$A:$D,4,0),0) -> Обычная | F141: =VLOOKUP(B141,[1]Цены!$A:$C,3,0) -> RUR | G141: =VLOOKUP(B141,[1]Цены!$A:$E,5,0) -> 46.10 | H141: =VLOOKUP(B141,[1]Цены!$A:$E,4,0) -> шт | I141: =IFERROR(VLOOKUP(B141,'[1]Хар-ки'!$A:$E,5,0),"") -> 80 | J141: =VLOOKUP(B141,'[1]Хар-ки'!$A:$F,6,0) -> 0,059 | K141: =VLOOKUP(B141,'[1]Хар-ки'!$A:$G,7,0) -> 0,000265
B142: PA13516P | C142: PP-R Угольник 45 градусов Белый | D142: 50 | E142: =IFERROR(VLOOKUP(B142,'[1]Хар-ки'!$A:$D,4,0),0) -> Обычная | F142: =VLOOKUP(B142,[1]Цены!$A:$C,3,0) -> RUR | G142: =VLOOKUP(B142,[1]Цены!$A:$E,5,0) -> 78.58 | H142: =VLOOKUP(B142,[1]Цены!$A:$E,4,0) -> шт | I142: =IFERROR(VLOOKUP(B142,'[1]Хар-ки'!$A:$E,5,0),"") -> 40 | J142: =VLOOKUP(B142,'[1]Хар-ки'!$A:$F,6,0) -> 0,112 | K142: =VLOOKUP(B142,'[1]Хар-ки'!$A:$G,7,0) -> 0,000530
B143: PA13518P | C143: PP-R Угольник 45 градусов Белый | D143: 63 | E143: =IFERROR(VLOOKUP(B143,'[1]Хар-ки'!$A:$D,4,0),0) -> Обычная | F143: =VLOOKUP(B143,[1]Цены!$A:$C,3,0) -> RUR | G143: =VLOOKUP(B143,[1]Цены!$A:$E,5,0) -> 126.47 | H143: =VLOOKUP(B143,[1]Цены!$A:$E,4,0) -> шт | I143: =IFERROR(VLOOKUP(B143,'[1]Хар-ки'!$A:$E,5,0),"") -> 20 | J143: =VLOOKUP(B143,'[1]Хар-ки'!$A:$F,6,0) -> 0,210 | K143: =VLOOKUP(B143,'[1]Хар-ки'!$A:$G,7,0) -> 0,001060
B144: PA13520P | C144: PP-R Угольник 45 градусов Белый | D144: 75 | E144: =IFERROR(VLOOKUP(B144,'[1]Хар-ки'!$A:$D,4,0),0) -> Обычная | F144: =VLOOKUP(B144,[1]Цены!$A:$C,3,0) -> RUR | G144: =VLOOKUP(B144,[1]Цены!$A:$E,5,0) -> 320.71 | H144: =VLOOKUP(B144,[1]Цены!$A:$E,4,0) -> шт | I144: =IFERROR(VLOOKUP(B144,'[1]Хар-ки'!$A:$E,5,0),"") -> 12 | J144: =VLOOKUP(B144,'[1]Хар-ки'!$A:$F,6,0) -> 0,359 | K144: =VLOOKUP(B144,'[1]Хар-ки'!$A:$G,7,0) -> 0,001767
B145: PA13522P | C145: PP-R Угольник 45 градусов Белый | D145: 90 | E145: =IFERROR(VLOOKUP(B145,'[1]Хар-ки'!$A:$D,4,0),0) -> Обычная | F145: =VLOOKUP(B145,[1]Цены!$A:$C,3,0) -> RUR | G145: =VLOOKUP(B145,[1]Цены!$A:$E,5,0) -> 555.60 | H145: =VLOOKUP(B145,[1]Цены!$A:$E,4,0) -> шт | I145: =IFERROR(VLOOKUP(B145,'[1]Хар-ки'!$A:$E,5,0),"") -> 6 | J145: =VLOOKUP(B145,'[1]Хар-ки'!$A:$F,6,0) -> 0,567 | K145: =VLOOKUP(B145,'[1]Хар-ки'!$A:$G,7,0) -> 0,002600
B146: PA13524 | C146: PP-R Угольник 45 градусов Белый | D146: 110 | E146: =IFERROR(VLOOKUP(B146,'[1]Хар-ки'!$A:$D,4,0),0) -> Обычная | F146: =VLOOKUP(B146,[1]Цены!$A:$C,3,0) -> RUR | G146: =VLOOKUP(B146,[1]Цены!$A:$E,5,0) -> 624.47 | H146: =VLOOKUP(B146,[1]Цены!$A:$E,4,0) -> шт | I146: =IFERROR(VLOOKUP(B146,'[1]Хар-ки'!$A:$E,5,0),"") -> 4 | J146: =VLOOKUP(B146,'[1]Хар-ки'!$A:$F,6,0) -> 0,968 | K146: =VLOOKUP(B146,'[1]Хар-ки'!$A:$G,7,0) -> 0,003900
B147: PA13526P | C147: PP-R Угольник 45 градусов Белый | D147: 125 | E147: =IFERROR(VLOOKUP(B147,'[1]Хар-ки'!$A:$D,4,0),0) -> Обычная | F147: =VLOOKUP(B147,[1]Цены!$A:$C,3,0) -> RUR | G147: =VLOOKUP(B147,[1]Цены!$A:$E,5,0) -> 2,044.61 | H147: =VLOOKUP(B147,[1]Цены!$A:$E,4,0) -> шт | I147: =IFERROR(VLOOKUP(B147,'[1]Хар-ки'!$A:$E,5,0),"") -> 2 | J147: =VLOOKUP(B147,'[1]Хар-ки'!$A:$F,6,0) -> 1,425 | K147: =VLOOKUP(B147,'[1]Хар-ки'!$A:$G,7,0) -> 0,007800
B148: PA13528P | C148: PP-R Угольник 45 градусов Белый | D148: 160 | E148: =IFERROR(VLOOKUP(B148,'[1]Хар-ки'!$A:$D,4,0),0) -> Обычная | F148: =VLOOKUP(B148,[1]Цены!$A:$C,3,0) -> RUR | G148: =VLOOKUP(B148,[1]Цены!$A:$E,5,0) -> 5,640.26 | H148: =VLOOKUP(B148,[1]Цены!$A:$E,4,0) -> шт | I148: =IFERROR(VLOOKUP(B148,'[1]Хар-ки'!$A:$E,5,0),"") -> 1 | J148: =VLOOKUP(B148,'[1]Хар-ки'!$A:$F,6,0) -> 2,415 | K148: =VLOOKUP(B148,'[1]Хар-ки'!$A:$G,7,0) -> 0,016569
B149: PA13008P | C149: PP-R Угольник 90 градусов Белый | D149: 20 | E149: =IFERROR(VLOOKUP(B149,'[1]Хар-ки'!$A:$D,4,0),0) -> Обычная | F149: =VLOOKUP(B149,[1]Цены!$A:$C,3,0) -> RUR | G149: =VLOOKUP(B149,[1]Цены!$A:$E,5,0) -> 8.93 | H149: =VLOOKUP(B149,[1]Цены!$A:$E,4,0) -> шт | I149: =IFERROR(VLOOKUP(B149,'[1]Хар-ки'!$A:$E,5,0),"") -> 350 | J149: =VLOOKUP(B149,'[1]Хар-ки'!$A:$F,6,0) -> 0,017 | K149: =VLOOKUP(B149,'[1]Хар-ки'!$A:$G,7,0) -> 0,000061
B150: PA13010P | C150: PP-R Угольник 90 градусов Белый | D150: 25 | E150: =IFERROR(VLOOKUP(B150,'[1]Хар-ки'!$A:$D,4,0),0) -> Обычная | F150: =VLOOKUP(B150,[1]Цены!$A:$C,3,0) -> RUR | G150: =VLOOKUP(B150,[1]Цены!$A:$E,5,0) -> 14.26 | H150: =VLOOKUP(B150,[1]Цены!$A:$E,4,0) -> шт | I150: =IFERROR(VLOOKUP(B150,'[1]Хар-ки'!$A:$E,5,0),"") -> 200 | J150: =VLOOKUP(B150,'[1]Хар-ки'!$A:$F,6,0) -> 0,026 | K150: =VLOOKUP(B150,'[1]Хар-ки'!$A:$G,7,0) -> 0,000108
B151: PA13012P | C151: PP-R Угольник 90 градусов Белый | D151: 32 | E151: =IFERROR(VLOOKUP(B151,'[1]Хар-ки'!$A:$D,4,0),0) -> Обычная | F151: =VLOOKUP(B151,[1]Цены!$A:$C,3,0) -> RUR | G151: =VLOOKUP(B151,[1]Цены!$A:$E,5,0) -> 26.65 | H151: =VLOOKUP(B151,[1]Цены!$A:$E,4,0) -> шт | I151: =IFERROR(VLOOKUP(B151,'[1]Хар-ки'!$A:$E,5,0),"") -> 100 | J151: =VLOOKUP(B151,'[1]Хар-ки'!$A:$F,6,0) -> 0,047 | K151: =VLOOKUP(B151,'[1]Хар-ки'!$A:$G,7,0) -> 0,000216
B152: PA13014P | C152: PP-R Угольник 90 градусов Белый | D152: 40 | E152: =IFERROR(VLOOKUP(B152,'[1]Хар-ки'!$A:$D,4,0),0) -> Обычная | F152: =VLOOKUP(B152,[1]Цены!$A:$C,3,0) -> RUR | G152: =VLOOKUP(B152,[1]Цены!$A:$E,5,0) -> 50.63 | H152: =VLOOKUP(B152,[1]Цены!$A:$E,4,0) -> шт | I152: =IFERROR(VLOOKUP(B152,'[1]Хар-ки'!$A:$E,5,0),"") -> 60 | J152: =VLOOKUP(B152,'[1]Хар-ки'!$A:$F,6,0) -> 0,075 | K152: =VLOOKUP(B152,'[1]Хар-ки'!$A:$G,7,0) -> 0,000353
B153: PA13016P | C153: PP-R Угольник 90 градусов Белый | D153: 50 | E153: =IFERROR(VLOOKUP(B153,'[1]Хар-ки'!$A:$D,4,0),0) -> Обычная | F153: =VLOOKUP(B153,[1]Цены!$A:$C,3,0) -> RUR | G153: =VLOOKUP(B153,[1]Цены!$A:$E,5,0) -> 87.13 | H153: =VLOOKUP(B153,[1]Цены!$A:$E,4,0) -> шт | I153: =IFERROR(VLOOKUP(B153,'[1]Хар-ки'!$A:$E,5,0),"") -> 30 | J153: =VLOOKUP(B153,'[1]Хар-ки'!$A:$F,6,0) -> 0,131 | K153: =VLOOKUP(B153,'[1]Хар-ки'!$A:$G,7,0) -> 0,000707
B154: PA13018P | C154: PP-R Угольник 90 градусов Белый | D154: 63 | E154: =IFERROR(VLOOKUP(B154,'[1]Хар-ки'!$A:$D,4,0),0) -> Обычная | F154: =VLOOKUP(B154,[1]Цены!$A:$C,3,0) -> RUR | G154: =VLOOKUP(B154,[1]Цены!$A:$E,5,0) -> 173.56 | H154: =VLOOKUP(B154,[1]Цены!$A:$E,4,0) -> шт | I154: =IFERROR(VLOOKUP(B154,'[1]Хар-ки'!$A:$E,5,0),"") -> 20 | J154: =VLOOKUP(B154,'[1]Хар-ки'!$A:$F,6,0) -> 0,261 | K154: =VLOOKUP(B154,'[1]Хар-ки'!$A:$G,7,0) -> 0,001060
B155: PA13020P | C155: PP-R Угольник 90 градусов Белый | D155: 75 | E155: =IFERROR(VLOOKUP(B155,'[1]Хар-ки'!$A:$D,4,0),0) -> Обычная | F155: =VLOOKUP(B155,[1]Цены!$A:$C,3,0) -> RUR | G155: =VLOOKUP(B155,[1]Цены!$A:$E,5,0) -> 353.40 | H155: =VLOOKUP(B155,[1]Цены!$A:$E,4,0) -> шт | I155: =IFERROR(VLOOKUP(B155,'[1]Хар-ки'!$A:$E,5,0),"") -> 8 | J155: =VLOOKUP(B155,'[1]Хар-ки'!$A:$F,6,0) -> 0,404 | K155: =VLOOKUP(B155,'[1]Хар-ки'!$A:$G,7,0) -> 0,002126
B156: PA13022P | C156: PP-R Угольник 90 градусов Белый | D156: 90 | E156: =IFERROR(VLOOKUP(B156,'[1]Хар-ки'!$A:$D,4,0),0) -> Обычная | F156: =VLOOKUP(B156,[1]Цены!$A:$C,3,0) -> RUR | G156: =VLOOKUP(B156,[1]Цены!$A:$E,5,0) -> 555.98 | H156: =VLOOKUP(B156,[1]Цены!$A:$E,4,0) -> шт | I156: =IFERROR(VLOOKUP(B156,'[1]Хар-ки'!$A:$E,5,0),"") -> 4 | J156: =VLOOKUP(B156,'[1]Хар-ки'!$A:$F,6,0) -> 0,676 | K156: =VLOOKUP(B156,'[1]Хар-ки'!$A:$G,7,0) -> 0,003900
B157: PA13024P | C157: PP-R Угольник 90 градусов Белый | D157: 110 | E157: =IFERROR(VLOOKUP(B157,'[1]Хар-ки'!$A:$D,4,0),0) -> Обычная | F157: =VLOOKUP(B157,[1]Цены!$A:$C,3,0) -> RUR | G157: =VLOOKUP(B157,[1]Цены!$A:$E,5,0) -> 765.34 | H157: =VLOOKUP(B157,[1]Цены!$A:$E,4,0) -> шт | I157: =IFERROR(VLOOKUP(B157,'[1]Хар-ки'!$A:$E,5,0),"") -> 2 | J157: =VLOOKUP(B157,'[1]Хар-ки'!$A:$F,6,0) -> 1,262 | K157: =VLOOKUP(B157,'[1]Хар-ки'!$A:$G,7,0) -> 0,005400
B158: PA13026P | C158: PP-R Угольник 90 градусов Белый | D158: 125 | E158: =IFERROR(VLOOKUP(B158,'[1]Хар-ки'!$A:$D,4,0),0) -> Обычная | F158: =VLOOKUP(B158,[1]Цены!$A:$C,3,0) -> RUR | G158: =VLOOKUP(B158,[1]Цены!$A:$E,5,0) -> 2,027.95 | H158: =VLOOKUP(B158,[1]Цены!$A:$E,4,0) -> шт | I158: =IFERROR(VLOOKUP(B158,'[1]Хар-ки'!$A:$E,5,0),"") -> 2 | J158: =VLOOKUP(B158,'[1]Хар-ки'!$A:$F,6,0) -> 1,762 | K158: =VLOOKUP(B158,'[1]Хар-ки'!$A:$G,7,0) -> 0,010600
B159: PA13028P | C159: PP-R Угольник 90 градусов Белый | D159: 160 | E159: =IFERROR(VLOOKUP(B159,'[1]Хар-ки'!$A:$D,4,0),0) -> Обычная | F159: =VLOOKUP(B159,[1]Цены!$A:$C,3,0) -> RUR | G159: =VLOOKUP(B159,[1]Цены!$A:$E,5,0) -> 9,936.46 | H159: =VLOOKUP(B159,[1]Цены!$A:$E,4,0) -> шт | I159: =IFERROR(VLOOKUP(B159,'[1]Хар-ки'!$A:$E,5,0),"") -> 1 | J159: =VLOOKUP(B159,'[1]Хар-ки'!$A:$F,6,0) -> 3,995 | K159: =VLOOKUP(B159,'[1]Хар-ки'!$A:$G,7,0) -> 0,016695
B160: PA13808 | C160: PP-R Угольник 45 градусов переходной Н-В Белый | D160: 20 | E160: =IFERROR(VLOOKUP(B160,'[1]Хар-ки'!$A:$D,4,0),0) -> Обычная | F160: =VLOOKUP(B160,[1]Цены!$A:$C,3,0) -> RUR | G160: =VLOOKUP(B160,[1]Цены!$A:$E,5,0) -> 27.53 | H160: =VLOOKUP(B160,[1]Цены!$A:$E,4,0) -> шт | I160: =IFERROR(VLOOKUP(B160,'[1]Хар-ки'!$A:$E,5,0),"") -> 200 | J160: =VLOOKUP(B160,'[1]Хар-ки'!$A:$F,6,0) -> 0,013 | K160: =VLOOKUP(B160,'[1]Хар-ки'!$A:$G,7,0) -> 0,000078
B161: PA13810 | C161: PP-R Угольник 45 градусов переходной Н-В Белый | D161: 25 | E161: =IFERROR(VLOOKUP(B161,'[1]Хар-ки'!$A:$D,4,0),0) -> Обычная | F161: =VLOOKUP(B161,[1]Цены!$A:$C,3,0) -> RUR | G161: =VLOOKUP(B161,[1]Цены!$A:$E,5,0) -> 39.49 | H161: =VLOOKUP(B161,[1]Цены!$A:$E,4,0) -> шт | I161: =IFERROR(VLOOKUP(B161,'[1]Хар-ки'!$A:$E,5,0),"") -> 200 | J161: =VLOOKUP(B161,'[1]Хар-ки'!$A:$F,6,0) -> 0,023 | K161: =VLOOKUP(B161,'[1]Хар-ки'!$A:$G,7,0) -> 0,000094
B162: PA13608P | C162: PP-R Угольник 90 градусов переходной Н-В Белый | D162: 20 | E162: =IFERROR(VLOOKUP(B162,'[1]Хар-ки'!$A:$D,4,0),0) -> Обычная | F162: =VLOOKUP(B162,[1]Цены!$A:$C,3,0) -> RUR | G162: =VLOOKUP(B162,[1]Цены!$A:$E,5,0) -> 12.40 | H162: =VLOOKUP(B162,[1]Цены!$A:$E,4,0) -> шт | I162: =IFERROR(VLOOKUP(B162,'[1]Хар-ки'!$A:$E,5,0),"") -> 300 | J162: =VLOOKUP(B162,'[1]Хар-ки'!$A:$F,6,0) -> 0,023 | K162: =VLOOKUP(B162,'[1]Хар-ки'!$A:$G,7,0) -> 0,000071
B163: PA13610P | C163: PP-R Угольник 90 градусов переходной Н-В Белый | D163: 25 | E163: =IFERROR(VLOOKUP(B163,'[1]Хар-ки'!$A:$D,4,0),0) -> Обычная | F163: =VLOOKUP(B163,[1]Цены!$A:$C,3,0) -> RUR | G163: =VLOOKUP(B163,[1]Цены!$A:$E,5,0) -> 19.84 | H163: =VLOOKUP(B163,[1]Цены!$A:$E,4,0) -> шт | I163: =IFERROR(VLOOKUP(B163,'[1]Хар-ки'!$A:$E,5,0),"") -> 175 | J163: =VLOOKUP(B163,'[1]Хар-ки'!$A:$F,6,0) -> 0,035 | K163: =VLOOKUP(B163,'[1]Хар-ки'!$A:$G,7,0) -> 0,000121
B164: PA13612P | C164: PP-R Угольник 90 градусов переходной Н-В Белый | D164: 32 | E164: =IFERROR(VLOOKUP(B164,'[1]Хар-ки'!$A:$D,4,0),0) -> Обычная | F164: =VLOOKUP(B164,[1]Цены!$A:$C,3,0) -> RUR | G164: =VLOOKUP(B164,[1]Цены!$A:$E,5,0) -> 36.60 | H164: =VLOOKUP(B164,[1]Цены!$A:$E,4,0) -> шт | I164: =IFERROR(VLOOKUP(B164,'[1]Хар-ки'!$A:$E,5,0),"") -> 80 | J164: =VLOOKUP(B164,'[1]Хар-ки'!$A:$F,6,0) -> 0,067 | K164: =VLOOKUP(B164,'[1]Хар-ки'!$A:$G,7,0) -> 0,000265
B165: PA1371008 | C165: PP-R Угольник переходной 90 градусов Белый | D165: 25-20 | E165: =IFERROR(VLOOKUP(B165,'[1]Хар-ки'!$A:$D,4,0),0) -> Обычная | F165: =VLOOKUP(B165,[1]Цены!$A:$C,3,0) -> RUR | G165: =VLOOKUP(B165,[1]Цены!$A:$E,5,0) -> 25.31 | H165: =VLOOKUP(B165,[1]Цены!$A:$E,4,0) -> шт | I165: =IFERROR(VLOOKUP(B165,'[1]Хар-ки'!$A:$E,5,0),"") -> 200 | J165: =VLOOKUP(B165,'[1]Хар-ки'!$A:$F,6,0) -> 0,019 | K165: =VLOOKUP(B165,'[1]Хар-ки'!$A:$G,7,0) -> 0,000078
B166: PA1371208 | C166: PP-R Угольник переходной 90 градусов Белый | D166: 32-20 | E166: =IFERROR(VLOOKUP(B166,'[1]Хар-ки'!$A:$D,4,0),0) -> Обычная | F166: =VLOOKUP(B166,[1]Цены!$A:$C,3,0) -> RUR | G166: =VLOOKUP(B166,[1]Цены!$A:$E,5,0) -> 31.63 | H166: =VLOOKUP(B166,[1]Цены!$A:$E,4,0) -> шт | I166: =IFERROR(VLOOKUP(B166,'[1]Хар-ки'!$A:$E,5,0),"") -> 200 | J166: =VLOOKUP(B166,'[1]Хар-ки'!$A:$F,6,0) -> 0,029 | K166: =VLOOKUP(B166,'[1]Хар-ки'!$A:$G,7,0) -> 0,000078
B167: PA1371210 | C167: PP-R Угольник переходной 90 градусов Белый | D167: 32-25 | E167: =IFERROR(VLOOKUP(B167,'[1]Хар-ки'!$A:$D,4,0),0) -> Обычная | F167: =VLOOKUP(B167,[1]Цены!$A:$C,3,0) -> RUR | G167: =VLOOKUP(B167,[1]Цены!$A:$E,5,0) -> 34.96 | H167: =VLOOKUP(B167,[1]Цены!$A:$E,4,0) -> шт | I167: =IFERROR(VLOOKUP(B167,'[1]Хар-ки'!$A:$E,5,0),"") -> 100 | J167: =VLOOKUP(B167,'[1]Хар-ки'!$A:$F,6,0) -> 0,036 | K167: =VLOOKUP(B167,'[1]Хар-ки'!$A:$G,7,0) -> 0,000156
B168: PA14008P | C168: PP-R Тройник Белый | D168: 20 | E168: =IFERROR(VLOOKUP(B168,'[1]Хар-ки'!$A:$D,4,0),0) -> Обычная | F168: =VLOOKUP(B168,[1]Цены!$A:$C,3,0) -> RUR | G168: =VLOOKUP(B168,[1]Цены!$A:$E,5,0) -> 11.16 | H168: =VLOOKUP(B168,[1]Цены!$A:$E,4,0) -> шт | I168: =IFERROR(VLOOKUP(B168,'[1]Хар-ки'!$A:$E,5,0),"") -> 200 | J168: =VLOOKUP(B168,'[1]Хар-ки'!$A:$F,6,0) -> 0,022 | K168: =VLOOKUP(B168,'[1]Хар-ки'!$A:$G,7,0) -> 0,000106
B169: PA14010P | C169: PP-R Тройник Белый | D169: 25 | E169: =IFERROR(VLOOKUP(B169,'[1]Хар-ки'!$A:$D,4,0),0) -> Обычная | F169: =VLOOKUP(B169,[1]Цены!$A:$C,3,0) -> RUR | G169: =VLOOKUP(B169,[1]Цены!$A:$E,5,0) -> 18.56 | H169: =VLOOKUP(B169,[1]Цены!$A:$E,4,0) -> шт | I169: =IFERROR(VLOOKUP(B169,'[1]Хар-ки'!$A:$E,5,0),"") -> 150 | J169: =VLOOKUP(B169,'[1]Хар-ки'!$A:$F,6,0) -> 0,036 | K169: =VLOOKUP(B169,'[1]Хар-ки'!$A:$G,7,0) -> 0,000141
B170: PA14012P | C170: PP-R Тройник Белый | D170: 32 | E170: =IFERROR(VLOOKUP(B170,'[1]Хар-ки'!$A:$D,4,0),0) -> Обычная | F170: =VLOOKUP(B170,[1]Цены!$A:$C,3,0) -> RUR | G170: =VLOOKUP(B170,[1]Цены!$A:$E,5,0) -> 35.02 | H170: =VLOOKUP(B170,[1]Цены!$A:$E,4,0) -> шт | I170: =IFERROR(VLOOKUP(B170,'[1]Хар-ки'!$A:$E,5,0),"") -> 60 | J170: =VLOOKUP(B170,'[1]Хар-ки'!$A:$F,6,0) -> 0,065 | K170: =VLOOKUP(B170,'[1]Хар-ки'!$A:$G,7,0) -> 0,000360
B171: PA14014P | C171: PP-R Тройник Белый | D171: 40 | E171: =IFERROR(VLOOKUP(B171,'[1]Хар-ки'!$A:$D,4,0),0) -> Обычная | F171: =VLOOKUP(B171,[1]Цены!$A:$C,3,0) -> RUR | G171: =VLOOKUP(B171,[1]Цены!$A:$E,5,0) -> 63.23 | H171: =VLOOKUP(B171,[1]Цены!$A:$E,4,0) -> шт | I171: =IFERROR(VLOOKUP(B171,'[1]Хар-ки'!$A:$E,5,0),"") -> 40 | J171: =VLOOKUP(B171,'[1]Хар-ки'!$A:$F,6,0) -> 0,098 | K171: =VLOOKUP(B171,'[1]Хар-ки'!$A:$G,7,0) -> 0,000530
B172: PA14016P | C172: PP-R Тройник Белый | D172: 50 | E172: =IFERROR(VLOOKUP(B172,'[1]Хар-ки'!$A:$D,4,0),0) -> Обычная | F172: =VLOOKUP(B172,[1]Цены!$A:$C,3,0) -> RUR | G172: =VLOOKUP(B172,[1]Цены!$A:$E,5,0) -> 113.83 | H172: =VLOOKUP(B172,[1]Цены!$A:$E,4,0) -> шт | I172: =IFERROR(VLOOKUP(B172,'[1]Хар-ки'!$A:$E,5,0),"") -> 20 | J172: =VLOOKUP(B172,'[1]Хар-ки'!$A:$F,6,0) -> 0,172 | K172: =VLOOKUP(B172,'[1]Хар-ки'!$A:$G,7,0) -> 0,001080
B173: PA14018P | C173: PP-R Тройник Белый | D173: 63 | E173: =IFERROR(VLOOKUP(B173,'[1]Хар-ки'!$A:$D,4,0),0) -> Обычная | F173: =VLOOKUP(B173,[1]Цены!$A:$C,3,0) -> RUR | G173: =VLOOKUP(B173,[1]Цены!$A:$E,5,0) -> 235.07 | H173: =VLOOKUP(B173,[1]Цены!$A:$E,4,0) -> шт | I173: =IFERROR(VLOOKUP(B173,'[1]Хар-ки'!$A:$E,5,0),"") -> 16 | J173: =VLOOKUP(B173,'[1]Хар-ки'!$A:$F,6,0) -> 0,322 | K173: =VLOOKUP(B173,'[1]Хар-ки'!$A:$G,7,0) -> 0,001350
B174: PA14020P | C174: PP-R Тройник Белый | D174: 75 | E174: =IFERROR(VLOOKUP(B174,'[1]Хар-ки'!$A:$D,4,0),0) -> Обычная | F174: =VLOOKUP(B174,[1]Цены!$A:$C,3,0) -> RUR | G174: =VLOOKUP(B174,[1]Цены!$A:$E,5,0) -> 402.64 | H174: =VLOOKUP(B174,[1]Цены!$A:$E,4,0) -> шт | I174: =IFERROR(VLOOKUP(B174,'[1]Хар-ки'!$A:$E,5,0),"") -> 8 | J174: =VLOOKUP(B174,'[1]Хар-ки'!$A:$F,6,0) -> 0,574 | K174: =VLOOKUP(B174,'[1]Хар-ки'!$A:$G,7,0) -> 0,002126
B175: PA14022P | C175: PP-R Тройник Белый | D175: 90 | E175: =IFERROR(VLOOKUP(B175,'[1]Хар-ки'!$A:$D,4,0),0) -> Обычная | F175: =VLOOKUP(B175,[1]Цены!$A:$C,3,0) -> RUR | G175: =VLOOKUP(B175,[1]Цены!$A:$E,5,0) -> 781.81 | H175: =VLOOKUP(B175,[1]Цены!$A:$E,4,0) -> шт | I175: =IFERROR(VLOOKUP(B175,'[1]Хар-ки'!$A:$E,5,0),"") -> 4 | J175: =VLOOKUP(B175,'[1]Хар-ки'!$A:$F,6,0) -> 0,925 | K175: =VLOOKUP(B175,'[1]Хар-ки'!$A:$G,7,0) -> 0,003900
B176: PA14024P | C176: PP-R Тройник Белый | D176: 110 | E176: =IFERROR(VLOOKUP(B176,'[1]Хар-ки'!$A:$D,4,0),0) -> Обычная | F176: =VLOOKUP(B176,[1]Цены!$A:$C,3,0) -> RUR | G176: =VLOOKUP(B176,[1]Цены!$A:$E,5,0) -> 1,196.48 | H176: =VLOOKUP(B176,[1]Цены!$A:$E,4,0) -> шт | I176: =IFERROR(VLOOKUP(B176,'[1]Хар-ки'!$A:$E,5,0),"") -> 2 | J176: =VLOOKUP(B176,'[1]Хар-ки'!$A:$F,6,0) -> 1,530 | K176: =VLOOKUP(B176,'[1]Хар-ки'!$A:$G,7,0) -> 0,005700
B177: PA14026P | C177: PP-R Тройник Белый | D177: 125 | E177: =IFERROR(VLOOKUP(B177,'[1]Хар-ки'!$A:$D,4,0),0) -> Обычная | F177: =VLOOKUP(B177,[1]Цены!$A:$C,3,0) -> RUR | G177: =VLOOKUP(B177,[1]Цены!$A:$E,5,0) -> 2,312.17 | H177: =VLOOKUP(B177,[1]Цены!$A:$E,4,0) -> шт | I177: =IFERROR(VLOOKUP(B177,'[1]Хар-ки'!$A:$E,5,0),"") -> 2 | J177: =VLOOKUP(B177,'[1]Хар-ки'!$A:$F,6,0) -> 2,313 | K177: =VLOOKUP(B177,'[1]Хар-ки'!$A:$G,7,0) -> 0,010600
B178: PA14028P | C178: PP-R Тройник Белый | D178: 160 | E178: =IFERROR(VLOOKUP(B178,'[1]Хар-ки'!$A:$D,4,0),0) -> Обычная | F178: =VLOOKUP(B178,[1]Цены!$A:$C,3,0) -> RUR | G178: =VLOOKUP(B178,[1]Цены!$A:$E,5,0) -> 11,983.10 | H178: =VLOOKUP(B178,[1]Цены!$A:$E,4,0) -> шт | I178: =IFERROR(VLOOKUP(B178,'[1]Хар-ки'!$A:$E,5,0),"") -> 1 | J178: =VLOOKUP(B178,'[1]Хар-ки'!$A:$F,6,0) -> 4,285 | K178: =VLOOKUP(B178,'[1]Хар-ки'!$A:$G,7,0) -> 0,022260
B179: PA14518P | C179: PP-R Тройник переходной Белый | D179: 20-25-20 | E179: =IFERROR(VLOOKUP(B179,'[1]Хар-ки'!$A:$D,4,0),0) -> Обычная | F179: =VLOOKUP(B179,[1]Цены!$A:$C,3,0) -> RUR | G179: =VLOOKUP(B179,[1]Цены!$A:$E,5,0) -> 18.28 | H179: =VLOOKUP(B179,[1]Цены!$A:$E,4,0) -> шт | I179: =IFERROR(VLOOKUP(B179,'[1]Хар-ки'!$A:$E,5,0),"") -> 200 | J179: =VLOOKUP(B179,'[1]Хар-ки'!$A:$F,6,0) -> 0,032 | K179: =VLOOKUP(B179,'[1]Хар-ки'!$A:$G,7,0) -> 0,000106
B180: PA14520P | C180: PP-R Тройник переходной Белый | D180: 25-20-20 | E180: =IFERROR(VLOOKUP(B180,'[1]Хар-ки'!$A:$D,4,0),0) -> Обычная | F180: =VLOOKUP(B180,[1]Цены!$A:$C,3,0) -> RUR | G180: =VLOOKUP(B180,[1]Цены!$A:$E,5,0) -> 18.65 | H180: =VLOOKUP(B180,[1]Цены!$A:$E,4,0) -> шт | I180: =IFERROR(VLOOKUP(B180,'[1]Хар-ки'!$A:$E,5,0),"") -> 200 | J180: =VLOOKUP(B180,'[1]Хар-ки'!$A:$F,6,0) -> 0,030 | K180: =VLOOKUP(B180,'[1]Хар-ки'!$A:$G,7,0) -> 0,000106
B181: PA14521P | C181: PP-R Тройник переходной Белый | D181: 25-20-25 | E181: =IFERROR(VLOOKUP(B181,'[1]Хар-ки'!$A:$D,4,0),0) -> Обычная | F181: =VLOOKUP(B181,[1]Цены!$A:$C,3,0) -> RUR | G181: =VLOOKUP(B181,[1]Цены!$A:$E,5,0) -> 18.60 | H181: =VLOOKUP(B181,[1]Цены!$A:$E,4,0) -> шт | I181: =IFERROR(VLOOKUP(B181,'[1]Хар-ки'!$A:$E,5,0),"") -> 150 | J181: =VLOOKUP(B181,'[1]Хар-ки'!$A:$F,6,0) -> 0,032 | K181: =VLOOKUP(B181,'[1]Хар-ки'!$A:$G,7,0) -> 0,000144
B182: PA14522P | C182: PP-R Тройник переходной Белый | D182: 25-25-20 | E182: =IFERROR(VLOOKUP(B182,'[1]Хар-ки'!$A:$D,4,0),0) -> Обычная | F182: =VLOOKUP(B182,[1]Цены!$A:$C,3,0) -> RUR | G182: =VLOOKUP(B182,[1]Цены!$A:$E,5,0) -> 23.90 | H182: =VLOOKUP(B182,[1]Цены!$A:$E,4,0) -> шт | I182: =IFERROR(VLOOKUP(B182,'[1]Хар-ки'!$A:$E,5,0),"") -> 150 | J182: =VLOOKUP(B182,'[1]Хар-ки'!$A:$F,6,0) -> 0,036 | K182: =VLOOKUP(B182,'[1]Хар-ки'!$A:$G,7,0) -> 0,000144
B183: PA14530P | C183: PP-R Тройник переходной Белый | D183: 32-20-20 | E183: =IFERROR(VLOOKUP(B183,'[1]Хар-ки'!$A:$D,4,0),0) -> Обычная | F183: =VLOOKUP(B183,[1]Цены!$A:$C,3,0) -> RUR | G183: =VLOOKUP(B183,[1]Цены!$A:$E,5,0) -> 29.78 | H183: =VLOOKUP(B183,[1]Цены!$A:$E,4,0) -> шт | I183: =IFERROR(VLOOKUP(B183,'[1]Хар-ки'!$A:$E,5,0),"") -> 80 | J183: =VLOOKUP(B183,'[1]Хар-ки'!$A:$F,6,0) -> 0,054 | K183: =VLOOKUP(B183,'[1]Хар-ки'!$A:$G,7,0) -> 0,000265
B184: PA14531P | C184: PP-R Тройник переходной Белый | D184: 32-20-25 | E184: =IFERROR(VLOOKUP(B184,'[1]Хар-ки'!$A:$D,4,0),0) -> Обычная | F184: =VLOOKUP(B184,[1]Цены!$A:$C,3,0) -> RUR | G184: =VLOOKUP(B184,[1]Цены!$A:$E,5,0) -> 39.17 | H184: =VLOOKUP(B184,[1]Цены!$A:$E,4,0) -> шт | I184: =IFERROR(VLOOKUP(B184,'[1]Хар-ки'!$A:$E,5,0),"") -> 80 | J184: =VLOOKUP(B184,'[1]Хар-ки'!$A:$F,6,0) -> 0,057 | K184: =VLOOKUP(B184,'[1]Хар-ки'!$A:$G,7,0) -> 0,000265
B185: PA14532P | C185: PP-R Тройник переходной Белый | D185: 32-20-32 | E185: =IFERROR(VLOOKUP(B185,'[1]Хар-ки'!$A:$D,4,0),0) -> Обычная | F185: =VLOOKUP(B185,[1]Цены!$A:$C,3,0) -> RUR | G185: =VLOOKUP(B185,[1]Цены!$A:$E,5,0) -> 28.58 | H185: =VLOOKUP(B185,[1]Цены!$A:$E,4,0) -> шт | I185: =IFERROR(VLOOKUP(B185,'[1]Хар-ки'!$A:$E,5,0),"") -> 100 | J185: =VLOOKUP(B185,'[1]Хар-ки'!$A:$F,6,0) -> 0,046 | K185: =VLOOKUP(B185,'[1]Хар-ки'!$A:$G,7,0) -> 0,000216
B186: PA14533P | C186: PP-R Тройник переходной Белый | D186: 32-25-20 | E186: =IFERROR(VLOOKUP(B186,'[1]Хар-ки'!$A:$D,4,0),0) -> Обычная | F186: =VLOOKUP(B186,[1]Цены!$A:$C,3,0) -> RUR | G186: =VLOOKUP(B186,[1]Цены!$A:$E,5,0) -> 31.79 | H186: =VLOOKUP(B186,[1]Цены!$A:$E,4,0) -> шт | I186: =IFERROR(VLOOKUP(B186,'[1]Хар-ки'!$A:$E,5,0),"") -> 80 | J186: =VLOOKUP(B186,'[1]Хар-ки'!$A:$F,6,0) -> 0,055 | K186: =VLOOKUP(B186,'[1]Хар-ки'!$A:$G,7,0) -> 0,000265
B187: PA14534P | C187: PP-R Тройник переходной Белый | D187: 32-25-25 | E187: =IFERROR(VLOOKUP(B187,'[1]Хар-ки'!$A:$D,4,0),0) -> Обычная | F187: =VLOOKUP(B187,[1]Цены!$A:$C,3,0) -> RUR | G187: =VLOOKUP(B187,[1]Цены!$A:$E,5,0) -> 32.24 | H187: =VLOOKUP(B187,[1]Цены!$A:$E,4,0) -> шт | I187: =IFERROR(VLOOKUP(B187,'[1]Хар-ки'!$A:$E,5,0),"") -> 80 | J187: =VLOOKUP(B187,'[1]Хар-ки'!$A:$F,6,0) -> 0,055 | K187: =VLOOKUP(B187,'[1]Хар-ки'!$A:$G,7,0) -> 0,000265
B188: PA14535P | C188: PP-R Тройник переходной Белый | D188: 32-25-32 | E188: =IFERROR(VLOOKUP(B188,'[1]Хар-ки'!$A:$D,4,0),0) -> Обычная | F188: =VLOOKUP(B188,[1]Цены!$A:$C,3,0) -> RUR | G188: =VLOOKUP(B188,[1]Цены!$A:$E,5,0) -> 30.12 | H188: =VLOOKUP(B188,[1]Цены!$A:$E,4,0) -> шт | I188: =IFERROR(VLOOKUP(B188,'[1]Хар-ки'!$A:$E,5,0),"") -> 80 | J188: =VLOOKUP(B188,'[1]Хар-ки'!$A:$F,6,0) -> 0,053 | K188: =VLOOKUP(B188,'[1]Хар-ки'!$A:$G,7,0) -> 0,000265
B189: PA14540P | C189: PP-R Тройник переходной Белый | D189: 40-20-40 | E189: =IFERROR(VLOOKUP(B189,'[1]Хар-ки'!$A:$D,4,0),0) -> Обычная | F189: =VLOOKUP(B189,[1]Цены!$A:$C,3,0) -> RUR | G189: =VLOOKUP(B189,[1]Цены!$A:$E,5,0) -> 51.97 | H189: =VLOOKUP(B189,[1]Цены!$A:$E,4,0) -> шт | I189: =IFERROR(VLOOKUP(B189,'[1]Хар-ки'!$A:$E,5,0),"") -> 80 | J189: =VLOOKUP(B189,'[1]Хар-ки'!$A:$F,6,0) -> 0,064 | K189: =VLOOKUP(B189,'[1]Хар-ки'!$A:$G,7,0) -> 0,000265
B190: PA14541P | C190: PP-R Тройник переходной Белый | D190: 40-25-40 | E190: =IFERROR(VLOOKUP(B190,'[1]Хар-ки'!$A:$D,4,0),0) -> Обычная | F190: =VLOOKUP(B190,[1]Цены!$A:$C,3,0) -> RUR | G190: =VLOOKUP(B190,[1]Цены!$A:$E,5,0) -> 53.93 | H190: =VLOOKUP(B190,[1]Цены!$A:$E,4,0) -> шт | I190: =IFERROR(VLOOKUP(B190,'[1]Хар-ки'!$A:$E,5,0),"") -> 60 | J190: =VLOOKUP(B190,'[1]Хар-ки'!$A:$F,6,0) -> 0,069 | K190: =VLOOKUP(B190,'[1]Хар-ки'!$A:$G,7,0) -> 0,000353
B191: PA14542P | C191: PP-R Тройник переходной Белый | D191: 40-32-40 | E191: =IFERROR(VLOOKUP(B191,'[1]Хар-ки'!$A:$D,4,0),0) -> Обычная | F191: =VLOOKUP(B191,[1]Цены!$A:$C,3,0) -> RUR | G191: =VLOOKUP(B191,[1]Цены!$A:$E,5,0) -> 60.10 | H191: =VLOOKUP(B191,[1]Цены!$A:$E,4,0) -> шт | I191: =IFERROR(VLOOKUP(B191,'[1]Хар-ки'!$A:$E,5,0),"") -> 60 | J191: =VLOOKUP(B191,'[1]Хар-ки'!$A:$F,6,0) -> 0,079 | K191: =VLOOKUP(B191,'[1]Хар-ки'!$A:$G,7,0) -> 0,000353
B192: PA14559P | C192: PP-R Тройник переходной Белый | D192: 50-20-50 | E192: =IFERROR(VLOOKUP(B192,'[1]Хар-ки'!$A:$D,4,0),0) -> Обычная | F192: =VLOOKUP(B192,[1]Цены!$A:$C,3,0) -> RUR | G192: =VLOOKUP(B192,[1]Цены!$A:$E,5,0) -> 71.90 | H192: =VLOOKUP(B192,[1]Цены!$A:$E,4,0) -> шт | I192: =IFERROR(VLOOKUP(B192,'[1]Хар-ки'!$A:$E,5,0),"") -> 40 | J192: =VLOOKUP(B192,'[1]Хар-ки'!$A:$F,6,0) -> 0,115 | K192: =VLOOKUP(B192,'[1]Хар-ки'!$A:$G,7,0) -> 0,000530
B193: PA14550P | C193: PP-R Тройник переходной Белый | D193: 50-25-50 | E193: =IFERROR(VLOOKUP(B193,'[1]Хар-ки'!$A:$D,4,0),0) -> Обычная | F193: =VLOOKUP(B193,[1]Цены!$A:$C,3,0) -> RUR | G193: =VLOOKUP(B193,[1]Цены!$A:$E,5,0) -> 95.98 | H193: =VLOOKUP(B193,[1]Цены!$A:$E,4,0) -> шт | I193: =IFERROR(VLOOKUP(B193,'[1]Хар-ки'!$A:$E,5,0),"") -> 40 | J193: =VLOOKUP(B193,'[1]Хар-ки'!$A:$F,6,0) -> 0,122 | K193: =VLOOKUP(B193,'[1]Хар-ки'!$A:$G,7,0) -> 0,000540
B194: PA14551P | C194: PP-R Тройник переходной Белый | D194: 50-32-50 | E194: =IFERROR(VLOOKUP(B194,'[1]Хар-ки'!$A:$D,4,0),0) -> Обычная | F194: =VLOOKUP(B194,[1]Цены!$A:$C,3,0) -> RUR | G194: =VLOOKUP(B194,[1]Цены!$A:$E,5,0) -> 110.92 | H194: =VLOOKUP(B194,[1]Цены!$A:$E,4,0) -> шт | I194: =IFERROR(VLOOKUP(B194,'[1]Хар-ки'!$A:$E,5,0),"") -> 40 | J194: =VLOOKUP(B194,'[1]Хар-ки'!$A:$F,6,0) -> 0,136 | K194: =VLOOKUP(B194,'[1]Хар-ки'!$A:$G,7,0) -> 0,000540
B195: PA14552P | C195: PP-R Тройник переходной Белый | D195: 50-40-50 | E195: =IFERROR(VLOOKUP(B195,'[1]Хар-ки'!$A:$D,4,0),0) -> Обычная | F195: =VLOOKUP(B195,[1]Цены!$A:$C,3,0) -> RUR | G195: =VLOOKUP(B195,[1]Цены!$A:$E,5,0) -> 145.55 | H195: =VLOOKUP(B195,[1]Цены!$A:$E,4,0) -> шт | I195: =IFERROR(VLOOKUP(B195,'[1]Хар-ки'!$A:$E,5,0),"") -> 32 | J195: =VLOOKUP(B195,'[1]Хар-ки'!$A:$F,6,0) -> 0,154 | K195: =VLOOKUP(B195,'[1]Хар-ки'!$A:$G,7,0) -> 0,000675
B196: PA14560P | C196: PP-R Тройник переходной Белый | D196: 63-20-63 | E196: =IFERROR(VLOOKUP(B196,'[1]Хар-ки'!$A:$D,4,0),0) -> Обычная | F196: =VLOOKUP(B196,[1]Цены!$A:$C,3,0) -> RUR | G196: =VLOOKUP(B196,[1]Цены!$A:$E,5,0) -> 171.96 | H196: =VLOOKUP(B196,[1]Цены!$A:$E,4,0) -> шт | I196: =IFERROR(VLOOKUP(B196,'[1]Хар-ки'!$A:$E,5,0),"") -> 24 | J196: =VLOOKUP(B196,'[1]Хар-ки'!$A:$F,6,0) -> 0,191 | K196: =VLOOKUP(B196,'[1]Хар-ки'!$A:$G,7,0) -> 0,000883
B197: PA14562P | C197: PP-R Тройник переходной Белый | D197: 63-25-63 | E197: =IFERROR(VLOOKUP(B197,'[1]Хар-ки'!$A:$D,4,0),0) -> Обычная | F197: =VLOOKUP(B197,[1]Цены!$A:$C,3,0) -> RUR | G197: =VLOOKUP(B197,[1]Цены!$A:$E,5,0) -> 177.36 | H197: =VLOOKUP(B197,[1]Цены!$A:$E,4,0) -> шт | I197: =IFERROR(VLOOKUP(B197,'[1]Хар-ки'!$A:$E,5,0),"") -> 24 | J197: =VLOOKUP(B197,'[1]Хар-ки'!$A:$F,6,0) -> 0,210 | K197: =VLOOKUP(B197,'[1]Хар-ки'!$A:$G,7,0) -> 0,000883
B198: PA14563P | C198: PP-R Тройник переходной Белый | D198: 63-32-63 | E198: =IFERROR(VLOOKUP(B198,'[1]Хар-ки'!$A:$D,4,0),0) -> Обычная | F198: =VLOOKUP(B198,[1]Цены!$A:$C,3,0) -> RUR | G198: =VLOOKUP(B198,[1]Цены!$A:$E,5,0) -> 180.60 | H198: =VLOOKUP(B198,[1]Цены!$A:$E,4,0) -> шт | I198: =IFERROR(VLOOKUP(B198,'[1]Хар-ки'!$A:$E,5,0),"") -> 24 | J198: =VLOOKUP(B198,'[1]Хар-ки'!$A:$F,6,0) -> 0,224 | K198: =VLOOKUP(B198,'[1]Хар-ки'!$A:$G,7,0) -> 0,000900
B199: PA14564P | C199: PP-R Тройник переходной Белый | D199: 63-40-63 | E199: =IFERROR(VLOOKUP(B199,'[1]Хар-ки'!$A:$D,4,0),0) -> Обычная | F199: =VLOOKUP(B199,[1]Цены!$A:$C,3,0) -> RUR | G199: =VLOOKUP(B199,[1]Цены!$A:$E,5,0) -> 213.79 | H199: =VLOOKUP(B199,[1]Цены!$A:$E,4,0) -> шт | I199: =IFERROR(VLOOKUP(B199,'[1]Хар-ки'!$A:$E,5,0),"") -> 16 | J199: =VLOOKUP(B199,'[1]Хар-ки'!$A:$F,6,0) -> 0,246 | K199: =VLOOKUP(B199,'[1]Хар-ки'!$A:$G,7,0) -> 0,001325
B200: PA14565P | C200: PP-R Тройник переходной Белый | D200: 63-50-63 | E200: =IFERROR(VLOOKUP(B200,'[1]Хар-ки'!$A:$D,4,0),0) -> Обычная | F200: =VLOOKUP(B200,[1]Цены!$A:$C,3,0) -> RUR | G200: =VLOOKUP(B200,[1]Цены!$A:$E,5,0) -> 295.33 | H200: =VLOOKUP(B200,[1]Цены!$A:$E,4,0) -> шт | I200: =IFERROR(VLOOKUP(B200,'[1]Хар-ки'!$A:$E,5,0),"") -> 16 | J200: =VLOOKUP(B200,'[1]Хар-ки'!$A:$F,6,0) -> 0,284 | K200: =VLOOKUP(B200,'[1]Хар-ки'!$A:$G,7,0) -> 0,001325
B201: PA14570P | C201: PP-R Тройник переходной Белый | D201: 75-25-75 | E201: =IFERROR(VLOOKUP(B201,'[1]Хар-ки'!$A:$D,4,0),0) -> Обычная | F201: =VLOOKUP(B201,[1]Цены!$A:$C,3,0) -> RUR | G201: =VLOOKUP(B201,[1]Цены!$A:$E,5,0) -> 329.59 | H201: =VLOOKUP(B201,[1]Цены!$A:$E,4,0) -> шт | I201: =IFERROR(VLOOKUP(B201,'[1]Хар-ки'!$A:$E,5,0),"") -> 12 | J201: =VLOOKUP(B201,'[1]Хар-ки'!$A:$F,6,0) -> 0,357 | K201: =VLOOKUP(B201,'[1]Хар-ки'!$A:$G,7,0) -> 0,001350
B202: PA14571P | C202: PP-R Тройник переходной Белый | D202: 75-32-75 | E202: =IFERROR(VLOOKUP(B202,'[1]Хар-ки'!$A:$D,4,0),0) -> Обычная | F202: =VLOOKUP(B202,[1]Цены!$A:$C,3,0) -> RUR | G202: =VLOOKUP(B202,[1]Цены!$A:$E,5,0) -> 330.12 | H202: =VLOOKUP(B202,[1]Цены!$A:$E,4,0) -> шт | I202: =IFERROR(VLOOKUP(B202,'[1]Хар-ки'!$A:$E,5,0),"") -> 12 | J202: =VLOOKUP(B202,'[1]Хар-ки'!$A:$F,6,0) -> 0,368 | K202: =VLOOKUP(B202,'[1]Хар-ки'!$A:$G,7,0) -> 0,001300
B203: PA14572P | C203: PP-R Тройник переходной Белый | D203: 75-40-75 | E203: =IFERROR(VLOOKUP(B203,'[1]Хар-ки'!$A:$D,4,0),0) -> Обычная | F203: =VLOOKUP(B203,[1]Цены!$A:$C,3,0) -> RUR | G203: =VLOOKUP(B203,[1]Цены!$A:$E,5,0) -> 482.94 | H203: =VLOOKUP(B203,[1]Цены!$A:$E,4,0) -> шт | I203: =IFERROR(VLOOKUP(B203,'[1]Хар-ки'!$A:$E,5,0),"") -> 10 | J203: =VLOOKUP(B203,'[1]Хар-ки'!$A:$F,6,0) -> 0,377 | K203: =VLOOKUP(B203,'[1]Хар-ки'!$A:$G,7,0) -> 0,001560
B204: PA14573P | C204: PP-R Тройник переходной Белый | D204: 75-50-75 | E204: =IFERROR(VLOOKUP(B204,'[1]Хар-ки'!$A:$D,4,0),0) -> Обычная | F204: =VLOOKUP(B204,[1]Цены!$A:$C,3,0) -> RUR | G204: =VLOOKUP(B204,[1]Цены!$A:$E,5,0) -> 488.88 | H204: =VLOOKUP(B204,[1]Цены!$A:$E,4,0) -> шт | I204: =IFERROR(VLOOKUP(B204,'[1]Хар-ки'!$A:$E,5,0),"") -> 10 | J204: =VLOOKUP(B204,'[1]Хар-ки'!$A:$F,6,0) -> 0,435 | K204: =VLOOKUP(B204,'[1]Хар-ки'!$A:$G,7,0) -> 0,001560
B205: PA14574P | C205: PP-R Тройник переходной Белый | D205: 75-63-75 | E205: =IFERROR(VLOOKUP(B205,'[1]Хар-ки'!$A:$D,4,0),0) -> Обычная | F205: =VLOOKUP(B205,[1]Цены!$A:$C,3,0) -> RUR | G205: =VLOOKUP(B205,[1]Цены!$A:$E,5,0) -> 492.29 | H205: =VLOOKUP(B205,[1]Цены!$A:$E,4,0) -> шт | I205: =IFERROR(VLOOKUP(B205,'[1]Хар-ки'!$A:$E,5,0),"") -> 8 | J205: =VLOOKUP(B205,'[1]Хар-ки'!$A:$F,6,0) -> 0,518 | K205: =VLOOKUP(B205,'[1]Хар-ки'!$A:$G,7,0) -> 0,001950
B206: PA14578P | C206: PP-R Тройник переходной Белый | D206: 90-40-90 | E206: =IFERROR(VLOOKUP(B206,'[1]Хар-ки'!$A:$D,4,0),0) -> Обычная | F206: =VLOOKUP(B206,[1]Цены!$A:$C,3,0) -> RUR | G206: =VLOOKUP(B206,[1]Цены!$A:$E,5,0) -> 505.06 | H206: =VLOOKUP(B206,[1]Цены!$A:$E,4,0) -> шт | I206: =IFERROR(VLOOKUP(B206,'[1]Хар-ки'!$A:$E,5,0),"") -> 4 | J206: =VLOOKUP(B206,'[1]Хар-ки'!$A:$F,6,0) -> 0,769 | K206: =VLOOKUP(B206,'[1]Хар-ки'!$A:$G,7,0) -> 0,003900
B207: PA14580P | C207: PP-R Тройник переходной Белый | D207: 90-50-90 | E207: =IFERROR(VLOOKUP(B207,'[1]Хар-ки'!$A:$D,4,0),0) -> Обычная | F207: =VLOOKUP(B207,[1]Цены!$A:$C,3,0) -> RUR | G207: =VLOOKUP(B207,[1]Цены!$A:$E,5,0) -> 822.08 | H207: =VLOOKUP(B207,[1]Цены!$A:$E,4,0) -> шт | I207: =IFERROR(VLOOKUP(B207,'[1]Хар-ки'!$A:$E,5,0),"") -> 4 | J207: =VLOOKUP(B207,'[1]Хар-ки'!$A:$F,6,0) -> 0,763 | K207: =VLOOKUP(B207,'[1]Хар-ки'!$A:$G,7,0) -> 0,003900
B208: PA14582P | C208: PP-R Тройник переходной Белый | D208: 90-63-90 | E208: =IFERROR(VLOOKUP(B208,'[1]Хар-ки'!$A:$D,4,0),0) -> Обычная | F208: =VLOOKUP(B208,[1]Цены!$A:$C,3,0) -> RUR | G208: =VLOOKUP(B208,[1]Цены!$A:$E,5,0) -> 942.72 | H208: =VLOOKUP(B208,[1]Цены!$A:$E,4,0) -> шт | I208: =IFERROR(VLOOKUP(B208,'[1]Хар-ки'!$A:$E,5,0),"") -> 4 | J208: =VLOOKUP(B208,'[1]Хар-ки'!$A:$F,6,0) -> 0,762 | K208: =VLOOKUP(B208,'[1]Хар-ки'!$A:$G,7,0) -> 0,003900
... 282 more rows

Sheet PPR PRO AQUA (серый)
A8: Фото | B8: Код | C8: Наименование | D8: Типоразмер | E8: Категория товара | F8: Валюта продажи | G8: Цена ПРОДАЖИ с НДС | H8: Ед. измерения | I8: В коробке | J8: Вес кг | K8: Объем м3
B9: PA11008G | C9: =IFERROR(VLOOKUP(B9,'[1]Хар-ки'!$A:$B,2,0),"") -> PP-R Труба SDR 11 Серая | D9: =IFERROR(VLOOKUP(B9,'[1]Хар-ки'!$A:$C,3,0),0) -> 20 | E9: =IFERROR(VLOOKUP(B9,'[1]Хар-ки'!$A:$D,4,0),0) -> Обычная | F9: =VLOOKUP(B9,[1]Цены!$A:$C,3,0) -> RUR | G9: =VLOOKUP(B9,[1]Цены!$A:$E,5,0) -> 59.28 | H9: =VLOOKUP(B9,[1]Цены!$A:$E,4,0) -> м | I9: =IFERROR(VLOOKUP(B9,'[1]Хар-ки'!$A:$E,5,0),"") -> 100 | J9: =VLOOKUP(B9,'[1]Хар-ки'!$A:$F,6,0) -> 0,105 | K9: =VLOOKUP(B9,'[1]Хар-ки'!$A:$G,7,0) -> 0,000566
B10: PA11010G | C10: =IFERROR(VLOOKUP(B10,'[1]Хар-ки'!$A:$B,2,0),"") -> PP-R Труба SDR 11 Серая | D10: =IFERROR(VLOOKUP(B10,'[1]Хар-ки'!$A:$C,3,0),0) -> 25 | E10: =IFERROR(VLOOKUP(B10,'[1]Хар-ки'!$A:$D,4,0),0) -> Обычная | F10: =VLOOKUP(B10,[1]Цены!$A:$C,3,0) -> RUR | G10: =VLOOKUP(B10,[1]Цены!$A:$E,5,0) -> 89.98 | H10: =VLOOKUP(B10,[1]Цены!$A:$E,4,0) -> м | I10: =IFERROR(VLOOKUP(B10,'[1]Хар-ки'!$A:$E,5,0),"") -> 80 | J10: =VLOOKUP(B10,'[1]Хар-ки'!$A:$F,6,0) -> 0,159 | K10: =VLOOKUP(B10,'[1]Хар-ки'!$A:$G,7,0) -> 0,000789
B11: PA11012G | C11: =IFERROR(VLOOKUP(B11,'[1]Хар-ки'!$A:$B,2,0),"") -> PP-R Труба SDR 11 Серая | D11: =IFERROR(VLOOKUP(B11,'[1]Хар-ки'!$A:$C,3,0),0) -> 32 | E11: =IFERROR(VLOOKUP(B11,'[1]Хар-ки'!$A:$D,4,0),0) -> Обычная | F11: =VLOOKUP(B11,[1]Цены!$A:$C,3,0) -> RUR | G11: =VLOOKUP(B11,[1]Цены!$A:$E,5,0) -> 145.74 | H11: =VLOOKUP(B11,[1]Цены!$A:$E,4,0) -> м | I11: =IFERROR(VLOOKUP(B11,'[1]Хар-ки'!$A:$E,5,0),"") -> 48 | J11: =VLOOKUP(B11,'[1]Хар-ки'!$A:$F,6,0) -> 0,255 | K11: =VLOOKUP(B11,'[1]Хар-ки'!$A:$G,7,0) -> 0,001640
B12: PA11014G | C12: =IFERROR(VLOOKUP(B12,'[1]Хар-ки'!$A:$B,2,0),"") -> PP-R Труба SDR 11 Серая | D12: =IFERROR(VLOOKUP(B12,'[1]Хар-ки'!$A:$C,3,0),0) -> 40 | E12: =IFERROR(VLOOKUP(B12,'[1]Хар-ки'!$A:$D,4,0),0) -> Обычная | F12: =VLOOKUP(B12,[1]Цены!$A:$C,3,0) -> RUR | G12: =VLOOKUP(B12,[1]Цены!$A:$E,5,0) -> 228.04 | H12: =VLOOKUP(B12,[1]Цены!$A:$E,4,0) -> м | I12: =IFERROR(VLOOKUP(B12,'[1]Хар-ки'!$A:$E,5,0),"") -> 32 | J12: =VLOOKUP(B12,'[1]Хар-ки'!$A:$F,6,0) -> 0,405 | K12: =VLOOKUP(B12,'[1]Хар-ки'!$A:$G,7,0) -> 0,002002
B13: PA11020G | C13: =IFERROR(VLOOKUP(B13,'[1]Хар-ки'!$A:$B,2,0),"") -> PP-R Труба SDR 11 Серая | D13: =IFERROR(VLOOKUP(B13,'[1]Хар-ки'!$A:$C,3,0),0) -> 75 | E13: =IFERROR(VLOOKUP(B13,'[1]Хар-ки'!$A:$D,4,0),0) -> Обычная | F13: =VLOOKUP(B13,[1]Цены!$A:$C,3,0) -> RUR | G13: =VLOOKUP(B13,[1]Цены!$A:$E,5,0) -> 734.81 | H13: =VLOOKUP(B13,[1]Цены!$A:$E,4,0) -> м | I13: =IFERROR(VLOOKUP(B13,'[1]Хар-ки'!$A:$E,5,0),"") -> 4 | J13: =VLOOKUP(B13,'[1]Хар-ки'!$A:$F,6,0) -> 1,394 | K13: =VLOOKUP(B13,'[1]Хар-ки'!$A:$G,7,0) -> 0,015375
B14: PA11022G | C14: =IFERROR(VLOOKUP(B14,'[1]Хар-ки'!$A:$B,2,0),"") -> PP-R Труба SDR 11 Серая | D14: =IFERROR(VLOOKUP(B14,'[1]Хар-ки'!$A:$C,3,0),0) -> 90 | E14: =IFERROR(VLOOKUP(B14,'[1]Хар-ки'!$A:$D,4,0),0) -> Обычная | F14: =VLOOKUP(B14,[1]Цены!$A:$C,3,0) -> RUR | G14: =VLOOKUP(B14,[1]Цены!$A:$E,5,0) -> 1,058.62 | H14: =VLOOKUP(B14,[1]Цены!$A:$E,4,0) -> м | I14: =IFERROR(VLOOKUP(B14,'[1]Хар-ки'!$A:$E,5,0),"") -> 4 | J14: =VLOOKUP(B14,'[1]Хар-ки'!$A:$F,6,0) -> 2,019 | K14: =VLOOKUP(B14,'[1]Хар-ки'!$A:$G,7,0) -> 0,016144
B15: PA11024G | C15: =IFERROR(VLOOKUP(B15,'[1]Хар-ки'!$A:$B,2,0),"") -> PP-R Труба SDR 11 Серая | D15: =IFERROR(VLOOKUP(B15,'[1]Хар-ки'!$A:$C,3,0),0) -> 110 | E15: =IFERROR(VLOOKUP(B15,'[1]Хар-ки'!$A:$D,4,0),0) -> Обычная | F15: =VLOOKUP(B15,[1]Цены!$A:$C,3,0) -> RUR | G15: =VLOOKUP(B15,[1]Цены!$A:$E,5,0) -> 1,586.57 | H15: =VLOOKUP(B15,[1]Цены!$A:$E,4,0) -> м | I15: =IFERROR(VLOOKUP(B15,'[1]Хар-ки'!$A:$E,5,0),"") -> 4 | J15: =VLOOKUP(B15,'[1]Хар-ки'!$A:$F,6,0) -> 3,005 | K15: =VLOOKUP(B15,'[1]Хар-ки'!$A:$G,7,0) -> 0,014760
B16: PA11026G | C16: =IFERROR(VLOOKUP(B16,'[1]Хар-ки'!$A:$B,2,0),"") -> PP-R Труба SDR 11 Серая | D16: =IFERROR(VLOOKUP(B16,'[1]Хар-ки'!$A:$C,3,0),0) -> 125 | E16: =IFERROR(VLOOKUP(B16,'[1]Хар-ки'!$A:$D,4,0),0) -> Заказная | F16: =VLOOKUP(B16,[1]Цены!$A:$C,3,0) -> RUR | G16: =VLOOKUP(B16,[1]Цены!$A:$E,5,0) -> 2,205.98 | H16: =VLOOKUP(B16,[1]Цены!$A:$E,4,0) -> м | I16: =IFERROR(VLOOKUP(B16,'[1]Хар-ки'!$A:$E,5,0),"") -> 4 | J16: =VLOOKUP(B16,'[1]Хар-ки'!$A:$F,6,0) -> 3,973 | K16: =VLOOKUP(B16,'[1]Хар-ки'!$A:$G,7,0) -> 0,017323
B17: PA11028G | C17: =IFERROR(VLOOKUP(B17,'[1]Хар-ки'!$A:$B,2,0),"") -> PP-R Труба SDR 11 Серая | D17: =IFERROR(VLOOKUP(B17,'[1]Хар-ки'!$A:$C,3,0),0) -> 160 | E17: =IFERROR(VLOOKUP(B17,'[1]Хар-ки'!$A:$D,4,0),0) -> Заказная | F17: =VLOOKUP(B17,[1]Цены!$A:$C,3,0) -> RUR | G17: =VLOOKUP(B17,[1]Цены!$A:$E,5,0) -> 3,694.61 | H17: =VLOOKUP(B17,[1]Цены!$A:$E,4,0) -> м | I17: =IFERROR(VLOOKUP(B17,'[1]Хар-ки'!$A:$E,5,0),"") -> 4 | J17: =VLOOKUP(B17,'[1]Хар-ки'!$A:$F,6,0) -> 6,398 | K17: =VLOOKUP(B17,'[1]Хар-ки'!$A:$G,7,0) -> 0,026240
B18: PA10208PG | C18: =IFERROR(VLOOKUP(B18,'[1]Хар-ки'!$A:$B,2,0),"") -> PP-R Труба SDR 6 Серая 2м | D18: =IFERROR(VLOOKUP(B18,'[1]Хар-ки'!$A:$C,3,0),0) -> 20 | E18: =IFERROR(VLOOKUP(B18,'[1]Хар-ки'!$A:$D,4,0),0) -> Обычная | F18: =VLOOKUP(B18,[1]Цены!$A:$C,3,0) -> RUR | G18: =VLOOKUP(B18,[1]Цены!$A:$E,5,0) -> 79.19 | H18: =VLOOKUP(B18,[1]Цены!$A:$E,4,0) -> м | I18: =IFERROR(VLOOKUP(B18,'[1]Хар-ки'!$A:$E,5,0),"") -> 50 | J18: =VLOOKUP(B18,'[1]Хар-ки'!$A:$F,6,0) -> 0,170 | K18: =VLOOKUP(B18,'[1]Хар-ки'!$A:$G,7,0) -> 0,000504
B19: PA10210PG | C19: =IFERROR(VLOOKUP(B19,'[1]Хар-ки'!$A:$B,2,0),"") -> PP-R Труба SDR 6 Серая 2м | D19: =IFERROR(VLOOKUP(B19,'[1]Хар-ки'!$A:$C,3,0),0) -> 25 | E19: =IFERROR(VLOOKUP(B19,'[1]Хар-ки'!$A:$D,4,0),0) -> Обычная | F19: =VLOOKUP(B19,[1]Цены!$A:$C,3,0) -> RUR | G19: =VLOOKUP(B19,[1]Цены!$A:$E,5,0) -> 123.14 | H19: =VLOOKUP(B19,[1]Цены!$A:$E,4,0) -> м | I19: =IFERROR(VLOOKUP(B19,'[1]Хар-ки'!$A:$E,5,0),"") -> 40 | J19: =VLOOKUP(B19,'[1]Хар-ки'!$A:$F,6,0) -> 0,264 | K19: =VLOOKUP(B19,'[1]Хар-ки'!$A:$G,7,0) -> 0,000525
B20: PA10212PG | C20: =IFERROR(VLOOKUP(B20,'[1]Хар-ки'!$A:$B,2,0),"") -> PP-R Труба SDR 6 Серая 2м | D20: =IFERROR(VLOOKUP(B20,'[1]Хар-ки'!$A:$C,3,0),0) -> 32 | E20: =IFERROR(VLOOKUP(B20,'[1]Хар-ки'!$A:$D,4,0),0) -> Обычная | F20: =VLOOKUP(B20,[1]Цены!$A:$C,3,0) -> RUR | G20: =VLOOKUP(B20,[1]Цены!$A:$E,5,0) -> 202.19 | H20: =VLOOKUP(B20,[1]Цены!$A:$E,4,0) -> м | I20: =IFERROR(VLOOKUP(B20,'[1]Хар-ки'!$A:$E,5,0),"") -> 24 | J20: =VLOOKUP(B20,'[1]Хар-ки'!$A:$F,6,0) -> 0,430 | K20: =VLOOKUP(B20,'[1]Хар-ки'!$A:$G,7,0) -> 0,000875
B21: PA10214PG | C21: =IFERROR(VLOOKUP(B21,'[1]Хар-ки'!$A:$B,2,0),"") -> PP-R Труба SDR 6 Серая 2м | D21: =IFERROR(VLOOKUP(B21,'[1]Хар-ки'!$A:$C,3,0),0) -> 40 | E21: =IFERROR(VLOOKUP(B21,'[1]Хар-ки'!$A:$D,4,0),0) -> Заказная | F21: =VLOOKUP(B21,[1]Цены!$A:$C,3,0) -> RUR | G21: =VLOOKUP(B21,[1]Цены!$A:$E,5,0) -> 323.96 | H21: =VLOOKUP(B21,[1]Цены!$A:$E,4,0) -> м | I21: =IFERROR(VLOOKUP(B21,'[1]Хар-ки'!$A:$E,5,0),"") -> 20 | J21: =VLOOKUP(B21,'[1]Хар-ки'!$A:$F,6,0) -> 0,664 | K21: =VLOOKUP(B21,'[1]Хар-ки'!$A:$G,7,0) -> 0,001680
B22: PA10008PG | C22: =IFERROR(VLOOKUP(B22,'[1]Хар-ки'!$A:$B,2,0),"") -> PP-R Труба SDR 6 Серая | D22: =IFERROR(VLOOKUP(B22,'[1]Хар-ки'!$A:$C,3,0),0) -> 20 | E22: =IFERROR(VLOOKUP(B22,'[1]Хар-ки'!$A:$D,4,0),0) -> Обычная | F22: =VLOOKUP(B22,[1]Цены!$A:$C,3,0) -> RUR | G22: =VLOOKUP(B22,[1]Цены!$A:$E,5,0) -> 79.39 | H22: =VLOOKUP(B22,[1]Цены!$A:$E,4,0) -> м | I22: =IFERROR(VLOOKUP(B22,'[1]Хар-ки'!$A:$E,5,0),"") -> 100 | J22: =VLOOKUP(B22,'[1]Хар-ки'!$A:$F,6,0) -> 0,169 | K22: =VLOOKUP(B22,'[1]Хар-ки'!$A:$G,7,0) -> 0,000517
B23: PA10010PG | C23: =IFERROR(VLOOKUP(B23,'[1]Хар-ки'!$A:$B,2,0),"") -> PP-R Труба SDR 6 Серая | D23: =IFERROR(VLOOKUP(B23,'[1]Хар-ки'!$A:$C,3,0),0) -> 25 | E23: =IFERROR(VLOOKUP(B23,'[1]Хар-ки'!$A:$D,4,0),0) -> Обычная | F23: =VLOOKUP(B23,[1]Цены!$A:$C,3,0) -> RUR | G23: =VLOOKUP(B23,[1]Цены!$A:$E,5,0) -> 124.37 | H23: =VLOOKUP(B23,[1]Цены!$A:$E,4,0) -> м | I23: =IFERROR(VLOOKUP(B23,'[1]Хар-ки'!$A:$E,5,0),"") -> 80 | J23: =VLOOKUP(B23,'[1]Хар-ки'!$A:$F,6,0) -> 0,261 | K23: =VLOOKUP(B23,'[1]Хар-ки'!$A:$G,7,0) -> 0,000800
B24: PA10012PG | C24: =IFERROR(VLOOKUP(B24,'[1]Хар-ки'!$A:$B,2,0),"") -> PP-R Труба SDR 6 Серая | D24: =IFERROR(VLOOKUP(B24,'[1]Хар-ки'!$A:$C,3,0),0) -> 32 | E24: =IFERROR(VLOOKUP(B24,'[1]Хар-ки'!$A:$D,4,0),0) -> Обычная | F24: =VLOOKUP(B24,[1]Цены!$A:$C,3,0) -> RUR | G24: =VLOOKUP(B24,[1]Цены!$A:$E,5,0) -> 203.64 | H24: =VLOOKUP(B24,[1]Цены!$A:$E,4,0) -> м | I24: =IFERROR(VLOOKUP(B24,'[1]Хар-ки'!$A:$E,5,0),"") -> 48 | J24: =VLOOKUP(B24,'[1]Хар-ки'!$A:$F,6,0) -> 0,428 | K24: =VLOOKUP(B24,'[1]Хар-ки'!$A:$G,7,0) -> 0,001333
B25: PA10014PG | C25: =IFERROR(VLOOKUP(B25,'[1]Хар-ки'!$A:$B,2,0),"") -> PP-R Труба SDR 6 Серая | D25: =IFERROR(VLOOKUP(B25,'[1]Хар-ки'!$A:$C,3,0),0) -> 40 | E25: =IFERROR(VLOOKUP(B25,'[1]Хар-ки'!$A:$D,4,0),0) -> Обычная | F25: =VLOOKUP(B25,[1]Цены!$A:$C,3,0) -> RUR | G25: =VLOOKUP(B25,[1]Цены!$A:$E,5,0) -> 314.17 | H25: =VLOOKUP(B25,[1]Цены!$A:$E,4,0) -> м | I25: =IFERROR(VLOOKUP(B25,'[1]Хар-ки'!$A:$E,5,0),"") -> 32 | J25: =VLOOKUP(B25,'[1]Хар-ки'!$A:$F,6,0) -> 0,663 | K25: =VLOOKUP(B25,'[1]Хар-ки'!$A:$G,7,0) -> 0,002002
B26: PA10016PG | C26: =IFERROR(VLOOKUP(B26,'[1]Хар-ки'!$A:$B,2,0),"") -> PP-R Труба SDR 6 Серая | D26: =IFERROR(VLOOKUP(B26,'[1]Хар-ки'!$A:$C,3,0),0) -> 50 | E26: =IFERROR(VLOOKUP(B26,'[1]Хар-ки'!$A:$D,4,0),0) -> Обычная | F26: =VLOOKUP(B26,[1]Цены!$A:$C,3,0) -> RUR | G26: =VLOOKUP(B26,[1]Цены!$A:$E,5,0) -> 522.70 | H26: =VLOOKUP(B26,[1]Цены!$A:$E,4,0) -> м | I26: =IFERROR(VLOOKUP(B26,'[1]Хар-ки'!$A:$E,5,0),"") -> 20 | J26: =VLOOKUP(B26,'[1]Хар-ки'!$A:$F,6,0) -> 1,029 | K26: =VLOOKUP(B26,'[1]Хар-ки'!$A:$G,7,0) -> 0,003075
B27: PA10018G | C27: =IFERROR(VLOOKUP(B27,'[1]Хар-ки'!$A:$B,2,0),"") -> PP-R Труба SDR 6 Серая | D27: =IFERROR(VLOOKUP(B27,'[1]Хар-ки'!$A:$C,3,0),0) -> 63 | E27: =IFERROR(VLOOKUP(B27,'[1]Хар-ки'!$A:$D,4,0),0) -> Обычная | F27: =VLOOKUP(B27,[1]Цены!$A:$C,3,0) -> RUR | G27: =VLOOKUP(B27,[1]Цены!$A:$E,5,0) -> 848.30 | H27: =VLOOKUP(B27,[1]Цены!$A:$E,4,0) -> м | I27: =IFERROR(VLOOKUP(B27,'[1]Хар-ки'!$A:$E,5,0),"") -> 12 | J27: =VLOOKUP(B27,'[1]Хар-ки'!$A:$F,6,0) -> 1,636 | K27: =VLOOKUP(B27,'[1]Хар-ки'!$A:$G,7,0) -> 0,005638
B28: PA10020G | C28: =IFERROR(VLOOKUP(B28,'[1]Хар-ки'!$A:$B,2,0),"") -> PP-R Труба SDR 6 Серая | D28: =IFERROR(VLOOKUP(B28,'[1]Хар-ки'!$A:$C,3,0),0) -> 75 | E28: =IFERROR(VLOOKUP(B28,'[1]Хар-ки'!$A:$D,4,0),0) -> Обычная | F28: =VLOOKUP(B28,[1]Цены!$A:$C,3,0) -> RUR | G28: =VLOOKUP(B28,[1]Цены!$A:$E,5,0) -> 1,164.05 | H28: =VLOOKUP(B28,[1]Цены!$A:$E,4,0) -> м | I28: =IFERROR(VLOOKUP(B28,'[1]Хар-ки'!$A:$E,5,0),"") -> 4 | J28: =VLOOKUP(B28,'[1]Хар-ки'!$A:$F,6,0) -> 2,315 | K28: =VLOOKUP(B28,'[1]Хар-ки'!$A:$G,7,0) -> 0,018450
B29: PA10022G | C29: =IFERROR(VLOOKUP(B29,'[1]Хар-ки'!$A:$B,2,0),"") -> PP-R Труба SDR 6 Серая | D29: =IFERROR(VLOOKUP(B29,'[1]Хар-ки'!$A:$C,3,0),0) -> 90 | E29: =IFERROR(VLOOKUP(B29,'[1]Хар-ки'!$A:$D,4,0),0) -> Обычная | F29: =VLOOKUP(B29,[1]Цены!$A:$C,3,0) -> RUR | G29: =VLOOKUP(B29,[1]Цены!$A:$E,5,0) -> 1,678.39 | H29: =VLOOKUP(B29,[1]Цены!$A:$E,4,0) -> м | I29: =IFERROR(VLOOKUP(B29,'[1]Хар-ки'!$A:$E,5,0),"") -> 4 | J29: =VLOOKUP(B29,'[1]Хар-ки'!$A:$F,6,0) -> 3,333 | K29: =VLOOKUP(B29,'[1]Хар-ки'!$A:$G,7,0) -> 0,016605
B30: PA10024G | C30: =IFERROR(VLOOKUP(B30,'[1]Хар-ки'!$A:$B,2,0),"") -> PP-R Труба SDR 6 Серая | D30: =IFERROR(VLOOKUP(B30,'[1]Хар-ки'!$A:$C,3,0),0) -> 110 | E30: =IFERROR(VLOOKUP(B30,'[1]Хар-ки'!$A:$D,4,0),0) -> Обычная | F30: =VLOOKUP(B30,[1]Цены!$A:$C,3,0) -> RUR | G30: =VLOOKUP(B30,[1]Цены!$A:$E,5,0) -> 2,499.73 | H30: =VLOOKUP(B30,[1]Цены!$A:$E,4,0) -> м | I30: =IFERROR(VLOOKUP(B30,'[1]Хар-ки'!$A:$E,5,0),"") -> 4 | J30: =VLOOKUP(B30,'[1]Хар-ки'!$A:$F,6,0) -> 4,976 | K30: =VLOOKUP(B30,'[1]Хар-ки'!$A:$G,7,0) -> 0,012403
B31: PA10028G | C31: =IFERROR(VLOOKUP(B31,'[1]Хар-ки'!$A:$B,2,0),"") -> PP-R Труба SDR 6 Серая | D31: =IFERROR(VLOOKUP(B31,'[1]Хар-ки'!$A:$C,3,0),0) -> 160 | E31: =IFERROR(VLOOKUP(B31,'[1]Хар-ки'!$A:$D,4,0),0) -> Заказная | F31: =VLOOKUP(B31,[1]Цены!$A:$C,3,0) -> RUR | G31: =VLOOKUP(B31,[1]Цены!$A:$E,5,0) -> 6,208.38 | H31: =VLOOKUP(B31,[1]Цены!$A:$E,4,0) -> м | I31: =IFERROR(VLOOKUP(B31,'[1]Хар-ки'!$A:$E,5,0),"") -> 4 | J31: =VLOOKUP(B31,'[1]Хар-ки'!$A:$F,6,0) -> 10,628 | K31: =VLOOKUP(B31,'[1]Хар-ки'!$A:$G,7,0) -> 0,026240
B32: PA35008PG | C32: =IFERROR(VLOOKUP(B32,'[1]Хар-ки'!$A:$B,2,0),"") -> PP-R Труба армированная стекловолокном RUBIS SDR 7,4 Серая | D32: =IFERROR(VLOOKUP(B32,'[1]Хар-ки'!$A:$C,3,0),0) -> 20 | E32: =IFERROR(VLOOKUP(B32,'[1]Хар-ки'!$A:$D,4,0),0) -> Обычная | F32: =VLOOKUP(B32,[1]Цены!$A:$C,3,0) -> RUR | G32: =VLOOKUP(B32,[1]Цены!$A:$E,5,0) -> 79.06 | H32: =VLOOKUP(B32,[1]Цены!$A:$E,4,0) -> м | I32: =IFERROR(VLOOKUP(B32,'[1]Хар-ки'!$A:$E,5,0),"") -> 100 | J32: =VLOOKUP(B32,'[1]Хар-ки'!$A:$F,6,0) -> 0,155 | K32: =VLOOKUP(B32,'[1]Хар-ки'!$A:$G,7,0) -> 0,000533
B33: PA35010PG | C33: =IFERROR(VLOOKUP(B33,'[1]Хар-ки'!$A:$B,2,0),"") -> PP-R Труба армированная стекловолокном RUBIS SDR 7,4 Серая | D33: =IFERROR(VLOOKUP(B33,'[1]Хар-ки'!$A:$C,3,0),0) -> 25 | E33: =IFERROR(VLOOKUP(B33,'[1]Хар-ки'!$A:$D,4,0),0) -> Обычная | F33: =VLOOKUP(B33,[1]Цены!$A:$C,3,0) -> RUR | G33: =VLOOKUP(B33,[1]Цены!$A:$E,5,0) -> 121.12 | H33: =VLOOKUP(B33,[1]Цены!$A:$E,4,0) -> м | I33: =IFERROR(VLOOKUP(B33,'[1]Хар-ки'!$A:$E,5,0),"") -> 80 | J33: =VLOOKUP(B33,'[1]Хар-ки'!$A:$F,6,0) -> 0,236 | K33: =VLOOKUP(B33,'[1]Хар-ки'!$A:$G,7,0) -> 0,000866
B34: PA35012PG | C34: =IFERROR(VLOOKUP(B34,'[1]Хар-ки'!$A:$B,2,0),"") -> PP-R Труба армированная стекловолокном RUBIS SDR 7,4 Серая | D34: =IFERROR(VLOOKUP(B34,'[1]Хар-ки'!$A:$C,3,0),0) -> 32 | E34: =IFERROR(VLOOKUP(B34,'[1]Хар-ки'!$A:$D,4,0),0) -> Обычная | F34: =VLOOKUP(B34,[1]Цены!$A:$C,3,0) -> RUR | G34: =VLOOKUP(B34,[1]Цены!$A:$E,5,0) -> 193.85 | H34: =VLOOKUP(B34,[1]Цены!$A:$E,4,0) -> м | I34: =IFERROR(VLOOKUP(B34,'[1]Хар-ки'!$A:$E,5,0),"") -> 48 | J34: =VLOOKUP(B34,'[1]Хар-ки'!$A:$F,6,0) -> 0,381 | K34: =VLOOKUP(B34,'[1]Хар-ки'!$A:$G,7,0) -> 0,001333
B35: PA35014PG | C35: =IFERROR(VLOOKUP(B35,'[1]Хар-ки'!$A:$B,2,0),"") -> PP-R Труба армированная стекловолокном RUBIS SDR 7,4 Серая | D35: =IFERROR(VLOOKUP(B35,'[1]Хар-ки'!$A:$C,3,0),0) -> 40 | E35: =IFERROR(VLOOKUP(B35,'[1]Хар-ки'!$A:$D,4,0),0) -> Обычная | F35: =VLOOKUP(B35,[1]Цены!$A:$C,3,0) -> RUR | G35: =VLOOKUP(B35,[1]Цены!$A:$E,5,0) -> 300.68 | H35: =VLOOKUP(B35,[1]Цены!$A:$E,4,0) -> м | I35: =IFERROR(VLOOKUP(B35,'[1]Хар-ки'!$A:$E,5,0),"") -> 32 | J35: =VLOOKUP(B35,'[1]Хар-ки'!$A:$F,6,0) -> 0,593 | K35: =VLOOKUP(B35,'[1]Хар-ки'!$A:$G,7,0) -> 0,002002
B36: PA35016PG | C36: =IFERROR(VLOOKUP(B36,'[1]Хар-ки'!$A:$B,2,0),"") -> PP-R Труба армированная стекловолокном RUBIS SDR 7,4 Серая | D36: =IFERROR(VLOOKUP(B36,'[1]Хар-ки'!$A:$C,3,0),0) -> 50 | E36: =IFERROR(VLOOKUP(B36,'[1]Хар-ки'!$A:$D,4,0),0) -> Обычная | F36: =VLOOKUP(B36,[1]Цены!$A:$C,3,0) -> RUR | G36: =VLOOKUP(B36,[1]Цены!$A:$E,5,0) -> 479.20 | H36: =VLOOKUP(B36,[1]Цены!$A:$E,4,0) -> м | I36: =IFERROR(VLOOKUP(B36,'[1]Хар-ки'!$A:$E,5,0),"") -> 20 | J36: =VLOOKUP(B36,'[1]Хар-ки'!$A:$F,6,0) -> 0,927 | K36: =VLOOKUP(B36,'[1]Хар-ки'!$A:$G,7,0) -> 0,003075
B37: PA35018PG | C37: =IFERROR(VLOOKUP(B37,'[1]Хар-ки'!$A:$B,2,0),"") -> PP-R Труба армированная стекловолокном RUBIS SDR 7,4 Серая | D37: =IFERROR(VLOOKUP(B37,'[1]Хар-ки'!$A:$C,3,0),0) -> 63 | E37: =IFERROR(VLOOKUP(B37,'[1]Хар-ки'!$A:$D,4,0),0) -> Обычная | F37: =VLOOKUP(B37,[1]Цены!$A:$C,3,0) -> RUR | G37: =VLOOKUP(B37,[1]Цены!$A:$E,5,0) -> 767.83 | H37: =VLOOKUP(B37,[1]Цены!$A:$E,4,0) -> м | I37: =IFERROR(VLOOKUP(B37,'[1]Хар-ки'!$A:$E,5,0),"") -> 12 | J37: =VLOOKUP(B37,'[1]Хар-ки'!$A:$F,6,0) -> 1,460 | K37: =VLOOKUP(B37,'[1]Хар-ки'!$A:$G,7,0) -> 0,006970
B38: PA35020PG | C38: =IFERROR(VLOOKUP(B38,'[1]Хар-ки'!$A:$B,2,0),"") -> PP-R Труба армированная стекловолокном RUBIS SDR 7,4 Серая | D38: =IFERROR(VLOOKUP(B38,'[1]Хар-ки'!$A:$C,3,0),0) -> 75 | E38: =IFERROR(VLOOKUP(B38,'[1]Хар-ки'!$A:$D,4,0),0) -> Обычная | F38: =VLOOKUP(B38,[1]Цены!$A:$C,3,0) -> RUR | G38: =VLOOKUP(B38,[1]Цены!$A:$E,5,0) -> 1,065.16 | H38: =VLOOKUP(B38,[1]Цены!$A:$E,4,0) -> м | I38: =IFERROR(VLOOKUP(B38,'[1]Хар-ки'!$A:$E,5,0),"") -> 4 | J38: =VLOOKUP(B38,'[1]Хар-ки'!$A:$F,6,0) -> 2,077 | K38: =VLOOKUP(B38,'[1]Хар-ки'!$A:$G,7,0) -> 0,015683
B39: PA35022PG | C39: =IFERROR(VLOOKUP(B39,'[1]Хар-ки'!$A:$B,2,0),"") -> PP-R Труба армированная стекловолокном RUBIS SDR 7,4 Серая | D39: =IFERROR(VLOOKUP(B39,'[1]Хар-ки'!$A:$C,3,0),0) -> 90 | E39: =IFERROR(VLOOKUP(B39,'[1]Хар-ки'!$A:$D,4,0),0) -> Заказная | F39: =VLOOKUP(B39,[1]Цены!$A:$C,3,0) -> RUR | G39: =VLOOKUP(B39,[1]Цены!$A:$E,5,0) -> 1,537.31 | H39: =VLOOKUP(B39,[1]Цены!$A:$E,4,0) -> м | I39: =IFERROR(VLOOKUP(B39,'[1]Хар-ки'!$A:$E,5,0),"") -> 4 | J39: =VLOOKUP(B39,'[1]Хар-ки'!$A:$F,6,0) -> 2,979 | K39: =VLOOKUP(B39,'[1]Хар-ки'!$A:$G,7,0) -> 0,012300
B40: PA35026PG | C40: =IFERROR(VLOOKUP(B40,'[1]Хар-ки'!$A:$B,2,0),"") -> PP-R Труба армированная стекловолокном RUBIS SDR 7,4 Серая | D40: =IFERROR(VLOOKUP(B40,'[1]Хар-ки'!$A:$C,3,0),0) -> 125 | E40: =IFERROR(VLOOKUP(B40,'[1]Хар-ки'!$A:$D,4,0),0) -> Заказная | F40: =VLOOKUP(B40,[1]Цены!$A:$C,3,0) -> RUR | G40: =VLOOKUP(B40,[1]Цены!$A:$E,5,0) -> 3,966.60 | H40: =VLOOKUP(B40,[1]Цены!$A:$E,4,0) -> м | I40: =IFERROR(VLOOKUP(B40,'[1]Хар-ки'!$A:$E,5,0),"") -> 4 | J40: =VLOOKUP(B40,'[1]Хар-ки'!$A:$F,6,0) -> 5,949 | K40: =VLOOKUP(B40,'[1]Хар-ки'!$A:$G,7,0) -> 0,017323
B41: PA35028PG | C41: =IFERROR(VLOOKUP(B41,'[1]Хар-ки'!$A:$B,2,0),"") -> PP-R Труба армированная стекловолокном RUBIS SDR 7,4 Серая | D41: =IFERROR(VLOOKUP(B41,'[1]Хар-ки'!$A:$C,3,0),0) -> 160 | E41: =IFERROR(VLOOKUP(B41,'[1]Хар-ки'!$A:$D,4,0),0) -> Заказная | F41: =VLOOKUP(B41,[1]Цены!$A:$C,3,0) -> RUR | G41: =VLOOKUP(B41,[1]Цены!$A:$E,5,0) -> 7,536.04 | H41: =VLOOKUP(B41,[1]Цены!$A:$E,4,0) -> м | I41: =IFERROR(VLOOKUP(B41,'[1]Хар-ки'!$A:$E,5,0),"") -> 4 | J41: =VLOOKUP(B41,'[1]Хар-ки'!$A:$F,6,0) -> 9,611 | K41: =VLOOKUP(B41,'[1]Хар-ки'!$A:$G,7,0) -> 0,026240
B42: PA37208PG | C42: =IFERROR(VLOOKUP(B42,'[1]Хар-ки'!$A:$B,2,0),"") -> PP-R Труба армированная стекловолокном RUBIS SDR 6 Серая 2м | D42: =IFERROR(VLOOKUP(B42,'[1]Хар-ки'!$A:$C,3,0),0) -> 20 | E42: =IFERROR(VLOOKUP(B42,'[1]Хар-ки'!$A:$D,4,0),0) -> Заказная | F42: =VLOOKUP(B42,[1]Цены!$A:$C,3,0) -> RUR | G42: =VLOOKUP(B42,[1]Цены!$A:$E,5,0) -> 89.29 | H42: =VLOOKUP(B42,[1]Цены!$A:$E,4,0) -> м | I42: =IFERROR(VLOOKUP(B42,'[1]Хар-ки'!$A:$E,5,0),"") -> 20 | J42: =VLOOKUP(B42,'[1]Хар-ки'!$A:$F,6,0) -> 0,178 | K42: =VLOOKUP(B42,'[1]Хар-ки'!$A:$G,7,0) -> 0,001260
B43: PA37210PG | C43: =IFERROR(VLOOKUP(B43,'[1]Хар-ки'!$A:$B,2,0),"") -> PP-R Труба армированная стекловолокном RUBIS SDR 6 Серая 2м | D43: =IFERROR(VLOOKUP(B43,'[1]Хар-ки'!$A:$C,3,0),0) -> 25 | E43: =IFERROR(VLOOKUP(B43,'[1]Хар-ки'!$A:$D,4,0),0) -> Заказная | F43: =VLOOKUP(B43,[1]Цены!$A:$C,3,0) -> RUR | G43: =VLOOKUP(B43,[1]Цены!$A:$E,5,0) -> 134.47 | H43: =VLOOKUP(B43,[1]Цены!$A:$E,4,0) -> м | I43: =IFERROR(VLOOKUP(B43,'[1]Хар-ки'!$A:$E,5,0),"") -> 20 | J43: =VLOOKUP(B43,'[1]Хар-ки'!$A:$F,6,0) -> 0,276 | K43: =VLOOKUP(B43,'[1]Хар-ки'!$A:$G,7,0) -> 0,001260
B44: PA37212PG | C44: =IFERROR(VLOOKUP(B44,'[1]Хар-ки'!$A:$B,2,0),"") -> PP-R Труба армированная стекловолокном RUBIS SDR 6 Серая 2м | D44: =IFERROR(VLOOKUP(B44,'[1]Хар-ки'!$A:$C,3,0),0) -> 32 | E44: =IFERROR(VLOOKUP(B44,'[1]Хар-ки'!$A:$D,4,0),0) -> Заказная | F44: =VLOOKUP(B44,[1]Цены!$A:$C,3,0) -> RUR | G44: =VLOOKUP(B44,[1]Цены!$A:$E,5,0) -> 223.57 | H44: =VLOOKUP(B44,[1]Цены!$A:$E,4,0) -> м | I44: =IFERROR(VLOOKUP(B44,'[1]Хар-ки'!$A:$E,5,0),"") -> 20 | J44: =VLOOKUP(B44,'[1]Хар-ки'!$A:$F,6,0) -> 0,450 | K44: =VLOOKUP(B44,'[1]Хар-ки'!$A:$G,7,0) -> 0,001260
B45: PA37214PG | C45: =IFERROR(VLOOKUP(B45,'[1]Хар-ки'!$A:$B,2,0),"") -> PP-R Труба армированная стекловолокном RUBIS SDR 6 Серая 2м | D45: =IFERROR(VLOOKUP(B45,'[1]Хар-ки'!$A:$C,3,0),0) -> 40 | E45: =IFERROR(VLOOKUP(B45,'[1]Хар-ки'!$A:$D,4,0),0) -> Заказная | F45: =VLOOKUP(B45,[1]Цены!$A:$C,3,0) -> RUR | G45: =VLOOKUP(B45,[1]Цены!$A:$E,5,0) -> 351.55 | H45: =VLOOKUP(B45,[1]Цены!$A:$E,4,0) -> м | I45: =IFERROR(VLOOKUP(B45,'[1]Хар-ки'!$A:$E,5,0),"") -> 20 | J45: =VLOOKUP(B45,'[1]Хар-ки'!$A:$F,6,0) -> 0,695 | K45: =VLOOKUP(B45,'[1]Хар-ки'!$A:$G,7,0) -> 0,002100
B46: PA37008PG | C46: =IFERROR(VLOOKUP(B46,'[1]Хар-ки'!$A:$B,2,0),"") -> PP-R Труба армированная стекловолокном RUBIS SDR 6 Серая | D46: =IFERROR(VLOOKUP(B46,'[1]Хар-ки'!$A:$C,3,0),0) -> 20 | E46: =IFERROR(VLOOKUP(B46,'[1]Хар-ки'!$A:$D,4,0),0) -> Обычная | F46: =VLOOKUP(B46,[1]Цены!$A:$C,3,0) -> RUR | G46: =VLOOKUP(B46,[1]Цены!$A:$E,5,0) -> 89.80 | H46: =VLOOKUP(B46,[1]Цены!$A:$E,4,0) -> м | I46: =IFERROR(VLOOKUP(B46,'[1]Хар-ки'!$A:$E,5,0),"") -> 100 | J46: =VLOOKUP(B46,'[1]Хар-ки'!$A:$F,6,0) -> 0,175 | K46: =VLOOKUP(B46,'[1]Хар-ки'!$A:$G,7,0) -> 0,000533
B47: PA37010PG | C47: =IFERROR(VLOOKUP(B47,'[1]Хар-ки'!$A:$B,2,0),"") -> PP-R Труба армированная стекловолокном RUBIS SDR 6 Серая | D47: =IFERROR(VLOOKUP(B47,'[1]Хар-ки'!$A:$C,3,0),0) -> 25 | E47: =IFERROR(VLOOKUP(B47,'[1]Хар-ки'!$A:$D,4,0),0) -> Обычная | F47: =VLOOKUP(B47,[1]Цены!$A:$C,3,0) -> RUR | G47: =VLOOKUP(B47,[1]Цены!$A:$E,5,0) -> 136.42 | H47: =VLOOKUP(B47,[1]Цены!$A:$E,4,0) -> м | I47: =IFERROR(VLOOKUP(B47,'[1]Хар-ки'!$A:$E,5,0),"") -> 80 | J47: =VLOOKUP(B47,'[1]Хар-ки'!$A:$F,6,0) -> 0,273 | K47: =VLOOKUP(B47,'[1]Хар-ки'!$A:$G,7,0) -> 0,000934
B48: PA37012PG | C48: =IFERROR(VLOOKUP(B48,'[1]Хар-ки'!$A:$B,2,0),"") -> PP-R Труба армированная стекловолокном RUBIS SDR 6 Серая | D48: =IFERROR(VLOOKUP(B48,'[1]Хар-ки'!$A:$C,3,0),0) -> 32 | E48: =IFERROR(VLOOKUP(B48,'[1]Хар-ки'!$A:$D,4,0),0) -> Обычная | F48: =VLOOKUP(B48,[1]Цены!$A:$C,3,0) -> RUR | G48: =VLOOKUP(B48,[1]Цены!$A:$E,5,0) -> 226.33 | H48: =VLOOKUP(B48,[1]Цены!$A:$E,4,0) -> м | I48: =IFERROR(VLOOKUP(B48,'[1]Хар-ки'!$A:$E,5,0),"") -> 48 | J48: =VLOOKUP(B48,'[1]Хар-ки'!$A:$F,6,0) -> 0,448 | K48: =VLOOKUP(B48,'[1]Хар-ки'!$A:$G,7,0) -> 0,001333
B49: PA37014PG | C49: =IFERROR(VLOOKUP(B49,'[1]Хар-ки'!$A:$B,2,0),"") -> PP-R Труба армированная стекловолокном RUBIS SDR 6 Серая | D49: =IFERROR(VLOOKUP(B49,'[1]Хар-ки'!$A:$C,3,0),0) -> 40 | E49: =IFERROR(VLOOKUP(B49,'[1]Хар-ки'!$A:$D,4,0),0) -> Обычная | F49: =VLOOKUP(B49,[1]Цены!$A:$C,3,0) -> RUR | G49: =VLOOKUP(B49,[1]Цены!$A:$E,5,0) -> 355.92 | H49: =VLOOKUP(B49,[1]Цены!$A:$E,4,0) -> м | I49: =IFERROR(VLOOKUP(B49,'[1]Хар-ки'!$A:$E,5,0),"") -> 32 | J49: =VLOOKUP(B49,'[1]Хар-ки'!$A:$F,6,0) -> 0,693 | K49: =VLOOKUP(B49,'[1]Хар-ки'!$A:$G,7,0) -> 0,002002
B50: PA37016PG | C50: =IFERROR(VLOOKUP(B50,'[1]Хар-ки'!$A:$B,2,0),"") -> PP-R Труба армированная стекловолокном RUBIS SDR 6 Серая | D50: =IFERROR(VLOOKUP(B50,'[1]Хар-ки'!$A:$C,3,0),0) -> 50 | E50: =IFERROR(VLOOKUP(B50,'[1]Хар-ки'!$A:$D,4,0),0) -> Обычная | F50: =VLOOKUP(B50,[1]Цены!$A:$C,3,0) -> RUR | G50: =VLOOKUP(B50,[1]Цены!$A:$E,5,0) -> 549.10 | H50: =VLOOKUP(B50,[1]Цены!$A:$E,4,0) -> м | I50: =IFERROR(VLOOKUP(B50,'[1]Хар-ки'!$A:$E,5,0),"") -> 20 | J50: =VLOOKUP(B50,'[1]Хар-ки'!$A:$F,6,0) -> 1,077 | K50: =VLOOKUP(B50,'[1]Хар-ки'!$A:$G,7,0) -> 0,004182
B51: PA37018PG | C51: =IFERROR(VLOOKUP(B51,'[1]Хар-ки'!$A:$B,2,0),"") -> PP-R Труба армированная стекловолокном RUBIS SDR 6 Серая | D51: =IFERROR(VLOOKUP(B51,'[1]Хар-ки'!$A:$C,3,0),0) -> 63 | E51: =IFERROR(VLOOKUP(B51,'[1]Хар-ки'!$A:$D,4,0),0) -> Обычная | F51: =VLOOKUP(B51,[1]Цены!$A:$C,3,0) -> RUR | G51: =VLOOKUP(B51,[1]Цены!$A:$E,5,0) -> 872.06 | H51: =VLOOKUP(B51,[1]Цены!$A:$E,4,0) -> м | I51: =IFERROR(VLOOKUP(B51,'[1]Хар-ки'!$A:$E,5,0),"") -> 12 | J51: =VLOOKUP(B51,'[1]Хар-ки'!$A:$F,6,0) -> 1,713 | K51: =VLOOKUP(B51,'[1]Хар-ки'!$A:$G,7,0) -> 0,006560
B52: PA37020PG | C52: =IFERROR(VLOOKUP(B52,'[1]Хар-ки'!$A:$B,2,0),"") -> PP-R Труба армированная стекловолокном RUBIS SDR 6 Серая | D52: =IFERROR(VLOOKUP(B52,'[1]Хар-ки'!$A:$C,3,0),0) -> 75 | E52: =IFERROR(VLOOKUP(B52,'[1]Хар-ки'!$A:$D,4,0),0) -> Обычная | F52: =VLOOKUP(B52,[1]Цены!$A:$C,3,0) -> RUR | G52: =VLOOKUP(B52,[1]Цены!$A:$E,5,0) -> 1,250.20 | H52: =VLOOKUP(B52,[1]Цены!$A:$E,4,0) -> м | I52: =IFERROR(VLOOKUP(B52,'[1]Хар-ки'!$A:$E,5,0),"") -> 4 | J52: =VLOOKUP(B52,'[1]Хар-ки'!$A:$F,6,0) -> 2,424 | K52: =VLOOKUP(B52,'[1]Хар-ки'!$A:$G,7,0) -> 0,006560
B53: PA37022PG | C53: =IFERROR(VLOOKUP(B53,'[1]Хар-ки'!$A:$B,2,0),"") -> PP-R Труба армированная стекловолокном RUBIS SDR 6 Серая | D53: =IFERROR(VLOOKUP(B53,'[1]Хар-ки'!$A:$C,3,0),0) -> 90 | E53: =IFERROR(VLOOKUP(B53,'[1]Хар-ки'!$A:$D,4,0),0) -> Обычная | F53: =VLOOKUP(B53,[1]Цены!$A:$C,3,0) -> RUR | G53: =VLOOKUP(B53,[1]Цены!$A:$E,5,0) -> 1,775.48 | H53: =VLOOKUP(B53,[1]Цены!$A:$E,4,0) -> м | I53: =IFERROR(VLOOKUP(B53,'[1]Хар-ки'!$A:$E,5,0),"") -> 4 | J53: =VLOOKUP(B53,'[1]Хар-ки'!$A:$F,6,0) -> 3,489 | K53: =VLOOKUP(B53,'[1]Хар-ки'!$A:$G,7,0) -> 0,005740
B54: PA37024PG | C54: =IFERROR(VLOOKUP(B54,'[1]Хар-ки'!$A:$B,2,0),"") -> PP-R Труба армированная стекловолокном RUBIS SDR 6 Серая | D54: =IFERROR(VLOOKUP(B54,'[1]Хар-ки'!$A:$C,3,0),0) -> 110 | E54: =IFERROR(VLOOKUP(B54,'[1]Хар-ки'!$A:$D,4,0),0) -> Обычная | F54: =VLOOKUP(B54,[1]Цены!$A:$C,3,0) -> RUR | G54: =VLOOKUP(B54,[1]Цены!$A:$E,5,0) -> 2,712.76 | H54: =VLOOKUP(B54,[1]Цены!$A:$E,4,0) -> м | I54: =IFERROR(VLOOKUP(B54,'[1]Хар-ки'!$A:$E,5,0),"") -> 4 | J54: =VLOOKUP(B54,'[1]Хар-ки'!$A:$F,6,0) -> 5,210 | K54: =VLOOKUP(B54,'[1]Хар-ки'!$A:$G,7,0) -> 0,012403
B55: PA37026PG | C55: =IFERROR(VLOOKUP(B55,'[1]Хар-ки'!$A:$B,2,0),"") -> PP-R Труба армированная стекловолокном RUBIS SDR 6 Серая | D55: =IFERROR(VLOOKUP(B55,'[1]Хар-ки'!$A:$C,3,0),0) -> 125 | E55: =IFERROR(VLOOKUP(B55,'[1]Хар-ки'!$A:$D,4,0),0) -> Заказная | F55: =VLOOKUP(B55,[1]Цены!$A:$C,3,0) -> RUR | G55: =VLOOKUP(B55,[1]Цены!$A:$E,5,0) -> 4,661.40 | H55: =VLOOKUP(B55,[1]Цены!$A:$E,4,0) -> м | I55: =IFERROR(VLOOKUP(B55,'[1]Хар-ки'!$A:$E,5,0),"") -> 4 | J55: =VLOOKUP(B55,'[1]Хар-ки'!$A:$F,6,0) -> 6,828 | K55: =VLOOKUP(B55,'[1]Хар-ки'!$A:$G,7,0) -> 0,017323
B56: PA37028PG | C56: =IFERROR(VLOOKUP(B56,'[1]Хар-ки'!$A:$B,2,0),"") -> PP-R Труба армированная стекловолокном RUBIS SDR 6 Серая | D56: =IFERROR(VLOOKUP(B56,'[1]Хар-ки'!$A:$C,3,0),0) -> 160 | E56: =IFERROR(VLOOKUP(B56,'[1]Хар-ки'!$A:$D,4,0),0) -> Заказная | F56: =VLOOKUP(B56,[1]Цены!$A:$C,3,0) -> RUR | G56: =VLOOKUP(B56,[1]Цены!$A:$E,5,0) -> 8,259.16 | H56: =VLOOKUP(B56,[1]Цены!$A:$E,4,0) -> м | I56: =IFERROR(VLOOKUP(B56,'[1]Хар-ки'!$A:$E,5,0),"") -> 4 | J56: =VLOOKUP(B56,'[1]Хар-ки'!$A:$F,6,0) -> 10,879 | K56: =VLOOKUP(B56,'[1]Хар-ки'!$A:$G,7,0) -> 0,026240
B57: PA39208G | C57: =IFERROR(VLOOKUP(B57,'[1]Хар-ки'!$A:$B,2,0),"") -> PP-R Труба армированная фольгой в центре DUO SDR 6 Серая 2м | D57: =IFERROR(VLOOKUP(B57,'[1]Хар-ки'!$A:$C,3,0),0) -> 20 | E57: =IFERROR(VLOOKUP(B57,'[1]Хар-ки'!$A:$D,4,0),0) -> Заказная | F57: =VLOOKUP(B57,[1]Цены!$A:$C,3,0) -> RUR | G57: =VLOOKUP(B57,[1]Цены!$A:$E,5,0) -> 135.55 | H57: =VLOOKUP(B57,[1]Цены!$A:$E,4,0) -> м | I57: =IFERROR(VLOOKUP(B57,'[1]Хар-ки'!$A:$E,5,0),"") -> 20 | J57: =VLOOKUP(B57,'[1]Хар-ки'!$A:$F,6,0) -> 0,209 | K57: =VLOOKUP(B57,'[1]Хар-ки'!$A:$G,7,0) -> 0,002363
B58: PA39210G | C58: =IFERROR(VLOOKUP(B58,'[1]Хар-ки'!$A:$B,2,0),"") -> PP-R Труба армированная фольгой в центре DUO SDR 6 Серая 2м | D58: =IFERROR(VLOOKUP(B58,'[1]Хар-ки'!$A:$C,3,0),0) -> 25 | E58: =IFERROR(VLOOKUP(B58,'[1]Хар-ки'!$A:$D,4,0),0) -> Заказная | F58: =VLOOKUP(B58,[1]Цены!$A:$C,3,0) -> RUR | G58: =VLOOKUP(B58,[1]Цены!$A:$E,5,0) -> 197.32 | H58: =VLOOKUP(B58,[1]Цены!$A:$E,4,0) -> м | I58: =IFERROR(VLOOKUP(B58,'[1]Хар-ки'!$A:$E,5,0),"") -> 40 | J58: =VLOOKUP(B58,'[1]Хар-ки'!$A:$F,6,0) -> 0,309 | K58: =VLOOKUP(B58,'[1]Хар-ки'!$A:$G,7,0) -> 0,000882
B59: PA39212G | C59: =IFERROR(VLOOKUP(B59,'[1]Хар-ки'!$A:$B,2,0),"") -> PP-R Труба армированная фольгой в центре DUO SDR 6 Серая 2м | D59: =IFERROR(VLOOKUP(B59,'[1]Хар-ки'!$A:$C,3,0),0) -> 32 | E59: =IFERROR(VLOOKUP(B59,'[1]Хар-ки'!$A:$D,4,0),0) -> Заказная | F59: =VLOOKUP(B59,[1]Цены!$A:$C,3,0) -> RUR | G59: =VLOOKUP(B59,[1]Цены!$A:$E,5,0) -> 304.43 | H59: =VLOOKUP(B59,[1]Цены!$A:$E,4,0) -> м | I59: =IFERROR(VLOOKUP(B59,'[1]Хар-ки'!$A:$E,5,0),"") -> 20 | J59: =VLOOKUP(B59,'[1]Хар-ки'!$A:$F,6,0) -> 0,487 | K59: =VLOOKUP(B59,'[1]Хар-ки'!$A:$G,7,0) -> 0,002268
B60: PA39214G | C60: =IFERROR(VLOOKUP(B60,'[1]Хар-ки'!$A:$B,2,0),"") -> PP-R Труба армированная фольгой в центре DUO SDR 6 Серая 2м | D60: =IFERROR(VLOOKUP(B60,'[1]Хар-ки'!$A:$C,3,0),0) -> 40 | E60: =IFERROR(VLOOKUP(B60,'[1]Хар-ки'!$A:$D,4,0),0) -> Заказная | F60: =VLOOKUP(B60,[1]Цены!$A:$C,3,0) -> RUR | G60: =VLOOKUP(B60,[1]Цены!$A:$E,5,0) -> 471.70 | H60: =VLOOKUP(B60,[1]Цены!$A:$E,4,0) -> м | I60: =IFERROR(VLOOKUP(B60,'[1]Хар-ки'!$A:$E,5,0),"") -> 20 | J60: =VLOOKUP(B60,'[1]Хар-ки'!$A:$F,6,0) -> 0,738 | K60: =VLOOKUP(B60,'[1]Хар-ки'!$A:$G,7,0) -> 0,002268
B61: PA39008G | C61: =IFERROR(VLOOKUP(B61,'[1]Хар-ки'!$A:$B,2,0),"") -> PP-R Труба армированная фольгой в центре DUO SDR 6 Серая | D61: =IFERROR(VLOOKUP(B61,'[1]Хар-ки'!$A:$C,3,0),0) -> 20 | E61: =IFERROR(VLOOKUP(B61,'[1]Хар-ки'!$A:$D,4,0),0) -> Обычная | F61: =VLOOKUP(B61,[1]Цены!$A:$C,3,0) -> RUR | G61: =VLOOKUP(B61,[1]Цены!$A:$E,5,0) -> 122.71 | H61: =VLOOKUP(B61,[1]Цены!$A:$E,4,0) -> м | I61: =IFERROR(VLOOKUP(B61,'[1]Хар-ки'!$A:$E,5,0),"") -> 100 | J61: =VLOOKUP(B61,'[1]Хар-ки'!$A:$F,6,0) -> 0,206 | K61: =VLOOKUP(B61,'[1]Хар-ки'!$A:$G,7,0) -> 0,000492
B62: PA39010G | C62: =IFERROR(VLOOKUP(B62,'[1]Хар-ки'!$A:$B,2,0),"") -> PP-R Труба армированная фольгой в центре DUO SDR 6 Серая | D62: =IFERROR(VLOOKUP(B62,'[1]Хар-ки'!$A:$C,3,0),0) -> 25 | E62: =IFERROR(VLOOKUP(B62,'[1]Хар-ки'!$A:$D,4,0),0) -> Обычная | F62: =VLOOKUP(B62,[1]Цены!$A:$C,3,0) -> RUR | G62: =VLOOKUP(B62,[1]Цены!$A:$E,5,0) -> 180.90 | H62: =VLOOKUP(B62,[1]Цены!$A:$E,4,0) -> м | I62: =IFERROR(VLOOKUP(B62,'[1]Хар-ки'!$A:$E,5,0),"") -> 80 | J62: =VLOOKUP(B62,'[1]Хар-ки'!$A:$F,6,0) -> 0,306 | K62: =VLOOKUP(B62,'[1]Хар-ки'!$A:$G,7,0) -> 0,000866
B63: PA39012G | C63: =IFERROR(VLOOKUP(B63,'[1]Хар-ки'!$A:$B,2,0),"") -> PP-R Труба армированная фольгой в центре DUO SDR 6 Серая | D63: =IFERROR(VLOOKUP(B63,'[1]Хар-ки'!$A:$C,3,0),0) -> 32 | E63: =IFERROR(VLOOKUP(B63,'[1]Хар-ки'!$A:$D,4,0),0) -> Обычная | F63: =VLOOKUP(B63,[1]Цены!$A:$C,3,0) -> RUR | G63: =VLOOKUP(B63,[1]Цены!$A:$E,5,0) -> 321.94 | H63: =VLOOKUP(B63,[1]Цены!$A:$E,4,0) -> м | I63: =IFERROR(VLOOKUP(B63,'[1]Хар-ки'!$A:$E,5,0),"") -> 60 | J63: =VLOOKUP(B63,'[1]Хар-ки'!$A:$F,6,0) -> 0,485 | K63: =VLOOKUP(B63,'[1]Хар-ки'!$A:$G,7,0) -> 0,001476
B64: PA39016G | C64: =IFERROR(VLOOKUP(B64,'[1]Хар-ки'!$A:$B,2,0),"") -> PP-R Труба армированная фольгой в центре DUO SDR 6 Серая | D64: =IFERROR(VLOOKUP(B64,'[1]Хар-ки'!$A:$C,3,0),0) -> 50 | E64: =IFERROR(VLOOKUP(B64,'[1]Хар-ки'!$A:$D,4,0),0) -> Обычная | F64: =VLOOKUP(B64,[1]Цены!$A:$C,3,0) -> RUR | G64: =VLOOKUP(B64,[1]Цены!$A:$E,5,0) -> 747.72 | H64: =VLOOKUP(B64,[1]Цены!$A:$E,4,0) -> м | I64: =IFERROR(VLOOKUP(B64,'[1]Хар-ки'!$A:$E,5,0),"") -> 20 | J64: =VLOOKUP(B64,'[1]Хар-ки'!$A:$F,6,0) -> 1,112 | K64: =VLOOKUP(B64,'[1]Хар-ки'!$A:$G,7,0) -> 0,003137
B65: PA39018G | C65: =IFERROR(VLOOKUP(B65,'[1]Хар-ки'!$A:$B,2,0),"") -> PP-R Труба армированная фольгой в центре DUO SDR 6 Серая | D65: =IFERROR(VLOOKUP(B65,'[1]Хар-ки'!$A:$C,3,0),0) -> 63 | E65: =IFERROR(VLOOKUP(B65,'[1]Хар-ки'!$A:$D,4,0),0) -> Обычная | F65: =VLOOKUP(B65,[1]Цены!$A:$C,3,0) -> RUR | G65: =VLOOKUP(B65,[1]Цены!$A:$E,5,0) -> 1,156.19 | H65: =VLOOKUP(B65,[1]Цены!$A:$E,4,0) -> м | I65: =IFERROR(VLOOKUP(B65,'[1]Хар-ки'!$A:$E,5,0),"") -> 16 | J65: =VLOOKUP(B65,'[1]Хар-ки'!$A:$F,6,0) -> 1,740 | K65: =VLOOKUP(B65,'[1]Хар-ки'!$A:$G,7,0) -> 0,004331
B66: PA12008PG | C66: =IFERROR(VLOOKUP(B66,'[1]Хар-ки'!$A:$B,2,0),"") -> PP-R Муфта Серая | D66: =IFERROR(VLOOKUP(B66,'[1]Хар-ки'!$A:$C,3,0),0) -> 20 | E66: =IFERROR(VLOOKUP(B66,'[1]Хар-ки'!$A:$D,4,0),0) -> Обычная | F66: =VLOOKUP(B66,[1]Цены!$A:$C,3,0) -> RUR | G66: =VLOOKUP(B66,[1]Цены!$A:$E,5,0) -> 6.54 | H66: =VLOOKUP(B66,[1]Цены!$A:$E,4,0) -> шт | I66: =IFERROR(VLOOKUP(B66,'[1]Хар-ки'!$A:$E,5,0),"") -> 500 | J66: =VLOOKUP(B66,'[1]Хар-ки'!$A:$F,6,0) -> 0,011 | K66: =VLOOKUP(B66,'[1]Хар-ки'!$A:$G,7,0) -> 0,000042
B67: PA12010PG | C67: =IFERROR(VLOOKUP(B67,'[1]Хар-ки'!$A:$B,2,0),"") -> PP-R Муфта Серая | D67: =IFERROR(VLOOKUP(B67,'[1]Хар-ки'!$A:$C,3,0),0) -> 25 | E67: =IFERROR(VLOOKUP(B67,'[1]Хар-ки'!$A:$D,4,0),0) -> Обычная | F67: =VLOOKUP(B67,[1]Цены!$A:$C,3,0) -> RUR | G67: =VLOOKUP(B67,[1]Цены!$A:$E,5,0) -> 9.76 | H67: =VLOOKUP(B67,[1]Цены!$A:$E,4,0) -> шт | I67: =IFERROR(VLOOKUP(B67,'[1]Хар-ки'!$A:$E,5,0),"") -> 300 | J67: =VLOOKUP(B67,'[1]Хар-ки'!$A:$F,6,0) -> 0,017 | K67: =VLOOKUP(B67,'[1]Хар-ки'!$A:$G,7,0) -> 0,000072
B68: PA12012PG | C68: =IFERROR(VLOOKUP(B68,'[1]Хар-ки'!$A:$B,2,0),"") -> PP-R Муфта Серая | D68: =IFERROR(VLOOKUP(B68,'[1]Хар-ки'!$A:$C,3,0),0) -> 32 | E68: =IFERROR(VLOOKUP(B68,'[1]Хар-ки'!$A:$D,4,0),0) -> Обычная | F68: =VLOOKUP(B68,[1]Цены!$A:$C,3,0) -> RUR | G68: =VLOOKUP(B68,[1]Цены!$A:$E,5,0) -> 17.86 | H68: =VLOOKUP(B68,[1]Цены!$A:$E,4,0) -> шт | I68: =IFERROR(VLOOKUP(B68,'[1]Хар-ки'!$A:$E,5,0),"") -> 175 | J68: =VLOOKUP(B68,'[1]Хар-ки'!$A:$F,6,0) -> 0,030 | K68: =VLOOKUP(B68,'[1]Хар-ки'!$A:$G,7,0) -> 0,000123
B69: PA12014PG | C69: =IFERROR(VLOOKUP(B69,'[1]Хар-ки'!$A:$B,2,0),"") -> PP-R Муфта Серая | D69: =IFERROR(VLOOKUP(B69,'[1]Хар-ки'!$A:$C,3,0),0) -> 40 | E69: =IFERROR(VLOOKUP(B69,'[1]Хар-ки'!$A:$D,4,0),0) -> Обычная | F69: =VLOOKUP(B69,[1]Цены!$A:$C,3,0) -> RUR | G69: =VLOOKUP(B69,[1]Цены!$A:$E,5,0) -> 32.92 | H69: =VLOOKUP(B69,[1]Цены!$A:$E,4,0) -> шт | I69: =IFERROR(VLOOKUP(B69,'[1]Хар-ки'!$A:$E,5,0),"") -> 100 | J69: =VLOOKUP(B69,'[1]Хар-ки'!$A:$F,6,0) -> 0,044 | K69: =VLOOKUP(B69,'[1]Хар-ки'!$A:$G,7,0) -> 0,000216
B70: PA12016PG | C70: =IFERROR(VLOOKUP(B70,'[1]Хар-ки'!$A:$B,2,0),"") -> PP-R Муфта Серая | D70: =IFERROR(VLOOKUP(B70,'[1]Хар-ки'!$A:$C,3,0),0) -> 50 | E70: =IFERROR(VLOOKUP(B70,'[1]Хар-ки'!$A:$D,4,0),0) -> Обычная | F70: =VLOOKUP(B70,[1]Цены!$A:$C,3,0) -> RUR | G70: =VLOOKUP(B70,[1]Цены!$A:$E,5,0) -> 52.54 | H70: =VLOOKUP(B70,[1]Цены!$A:$E,4,0) -> шт | I70: =IFERROR(VLOOKUP(B70,'[1]Хар-ки'!$A:$E,5,0),"") -> 60 | J70: =VLOOKUP(B70,'[1]Хар-ки'!$A:$F,6,0) -> 0,074 | K70: =VLOOKUP(B70,'[1]Хар-ки'!$A:$G,7,0) -> 0,000360
B71: PA12018PG | C71: =IFERROR(VLOOKUP(B71,'[1]Хар-ки'!$A:$B,2,0),"") -> PP-R Муфта Серая | D71: =IFERROR(VLOOKUP(B71,'[1]Хар-ки'!$A:$C,3,0),0) -> 63 | E71: =IFERROR(VLOOKUP(B71,'[1]Хар-ки'!$A:$D,4,0),0) -> Обычная | F71: =VLOOKUP(B71,[1]Цены!$A:$C,3,0) -> RUR | G71: =VLOOKUP(B71,[1]Цены!$A:$E,5,0) -> 100.16 | H71: =VLOOKUP(B71,[1]Цены!$A:$E,4,0) -> шт | I71: =IFERROR(VLOOKUP(B71,'[1]Хар-ки'!$A:$E,5,0),"") -> 42 | J71: =VLOOKUP(B71,'[1]Хар-ки'!$A:$F,6,0) -> 0,133 | K71: =VLOOKUP(B71,'[1]Хар-ки'!$A:$G,7,0) -> 0,000514
B72: PA12020PG | C72: =IFERROR(VLOOKUP(B72,'[1]Хар-ки'!$A:$B,2,0),"") -> PP-R Муфта Серая | D72: =IFERROR(VLOOKUP(B72,'[1]Хар-ки'!$A:$C,3,0),0) -> 75 | E72: =IFERROR(VLOOKUP(B72,'[1]Хар-ки'!$A:$D,4,0),0) -> Обычная | F72: =VLOOKUP(B72,[1]Цены!$A:$C,3,0) -> RUR | G72: =VLOOKUP(B72,[1]Цены!$A:$E,5,0) -> 185.62 | H72: =VLOOKUP(B72,[1]Цены!$A:$E,4,0) -> шт | I72: =IFERROR(VLOOKUP(B72,'[1]Хар-ки'!$A:$E,5,0),"") -> 24 | J72: =VLOOKUP(B72,'[1]Хар-ки'!$A:$F,6,0) -> 0,214 | K72: =VLOOKUP(B72,'[1]Хар-ки'!$A:$G,7,0) -> 0,000650
B73: PA12022PG | C73: =IFERROR(VLOOKUP(B73,'[1]Хар-ки'!$A:$B,2,0),"") -> PP-R Муфта Серая | D73: =IFERROR(VLOOKUP(B73,'[1]Хар-ки'!$A:$C,3,0),0) -> 90 | E73: =IFERROR(VLOOKUP(B73,'[1]Хар-ки'!$A:$D,4,0),0) -> Обычная | F73: =VLOOKUP(B73,[1]Цены!$A:$C,3,0) -> RUR | G73: =VLOOKUP(B73,[1]Цены!$A:$E,5,0) -> 303.59 | H73: =VLOOKUP(B73,[1]Цены!$A:$E,4,0) -> шт | I73: =IFERROR(VLOOKUP(B73,'[1]Хар-ки'!$A:$E,5,0),"") -> 12 | J73: =VLOOKUP(B73,'[1]Хар-ки'!$A:$F,6,0) -> 0,325 | K73: =VLOOKUP(B73,'[1]Хар-ки'!$A:$G,7,0) -> 0,001350
B74: PA12024PG | C74: =IFERROR(VLOOKUP(B74,'[1]Хар-ки'!$A:$B,2,0),"") -> PP-R Муфта Серая | D74: =IFERROR(VLOOKUP(B74,'[1]Хар-ки'!$A:$C,3,0),0) -> 110 | E74: =IFERROR(VLOOKUP(B74,'[1]Хар-ки'!$A:$D,4,0),0) -> Обычная | F74: =VLOOKUP(B74,[1]Цены!$A:$C,3,0) -> RUR | G74: =VLOOKUP(B74,[1]Цены!$A:$E,5,0) -> 569.78 | H74: =VLOOKUP(B74,[1]Цены!$A:$E,4,0) -> шт | I74: =IFERROR(VLOOKUP(B74,'[1]Хар-ки'!$A:$E,5,0),"") -> 6 | J74: =VLOOKUP(B74,'[1]Хар-ки'!$A:$F,6,0) -> 0,619 | K74: =VLOOKUP(B74,'[1]Хар-ки'!$A:$G,7,0) -> 0,002700
B75: PA12026PG | C75: =IFERROR(VLOOKUP(B75,'[1]Хар-ки'!$A:$B,2,0),"") -> PP-R Муфта Серая | D75: =IFERROR(VLOOKUP(B75,'[1]Хар-ки'!$A:$C,3,0),0) -> 125 | E75: =IFERROR(VLOOKUP(B75,'[1]Хар-ки'!$A:$D,4,0),0) -> Заказная | F75: =VLOOKUP(B75,[1]Цены!$A:$C,3,0) -> RUR | G75: =VLOOKUP(B75,[1]Цены!$A:$E,5,0) -> 1,035.67 | H75: =VLOOKUP(B75,[1]Цены!$A:$E,4,0) -> шт | I75: =IFERROR(VLOOKUP(B75,'[1]Хар-ки'!$A:$E,5,0),"") -> 6 | J75: =VLOOKUP(B75,'[1]Хар-ки'!$A:$F,6,0) -> 0,831 | K75: =VLOOKUP(B75,'[1]Хар-ки'!$A:$G,7,0) -> 0,003600
B76: PA12512PG | C76: =IFERROR(VLOOKUP(B76,'[1]Хар-ки'!$A:$B,2,0),"") -> PP-R Муфта переходная Н-В Серая | D76: =IFERROR(VLOOKUP(B76,'[1]Хар-ки'!$A:$C,3,0),0) -> 25-20 | E76: =IFERROR(VLOOKUP(B76,'[1]Хар-ки'!$A:$D,4,0),0) -> Обычная | F76: =VLOOKUP(B76,[1]Цены!$A:$C,3,0) -> RUR | G76: =VLOOKUP(B76,[1]Цены!$A:$E,5,0) -> 7.72 | H76: =VLOOKUP(B76,[1]Цены!$A:$E,4,0) -> шт | I76: =IFERROR(VLOOKUP(B76,'[1]Хар-ки'!$A:$E,5,0),"") -> 500 | J76: =VLOOKUP(B76,'[1]Хар-ки'!$A:$F,6,0) -> 0,013 | K76: =VLOOKUP(B76,'[1]Хар-ки'!$A:$G,7,0) -> 0,000042
B77: PA12514PG | C77: =IFERROR(VLOOKUP(B77,'[1]Хар-ки'!$A:$B,2,0),"") -> PP-R Муфта переходная Н-В Серая | D77: =IFERROR(VLOOKUP(B77,'[1]Хар-ки'!$A:$C,3,0),0) -> 32-20 | E77: =IFERROR(VLOOKUP(B77,'[1]Хар-ки'!$A:$D,4,0),0) -> Обычная | F77: =VLOOKUP(B77,[1]Цены!$A:$C,3,0) -> RUR | G77: =VLOOKUP(B77,[1]Цены!$A:$E,5,0) -> 12.44 | H77: =VLOOKUP(B77,[1]Цены!$A:$E,4,0) -> шт | I77: =IFERROR(VLOOKUP(B77,'[1]Хар-ки'!$A:$E,5,0),"") -> 300 | J77: =VLOOKUP(B77,'[1]Хар-ки'!$A:$F,6,0) -> 0,016 | K77: =VLOOKUP(B77,'[1]Хар-ки'!$A:$G,7,0) -> 0,000072
B78: PA12516PG | C78: =IFERROR(VLOOKUP(B78,'[1]Хар-ки'!$A:$B,2,0),"") -> PP-R Муфта переходная Н-В Серая | D78: =IFERROR(VLOOKUP(B78,'[1]Хар-ки'!$A:$C,3,0),0) -> 32-25 | E78: =IFERROR(VLOOKUP(B78,'[1]Хар-ки'!$A:$D,4,0),0) -> Обычная | F78: =VLOOKUP(B78,[1]Цены!$A:$C,3,0) -> RUR | G78: =VLOOKUP(B78,[1]Цены!$A:$E,5,0) -> 13.42 | H78: =VLOOKUP(B78,[1]Цены!$A:$E,4,0) -> шт | I78: =IFERROR(VLOOKUP(B78,'[1]Хар-ки'!$A:$E,5,0),"") -> 300 | J78: =VLOOKUP(B78,'[1]Хар-ки'!$A:$F,6,0) -> 0,020 | K78: =VLOOKUP(B78,'[1]Хар-ки'!$A:$G,7,0) -> 0,000072
B79: PA12518PG | C79: =IFERROR(VLOOKUP(B79,'[1]Хар-ки'!$A:$B,2,0),"") -> PP-R Муфта переходная Н-В Серая | D79: =IFERROR(VLOOKUP(B79,'[1]Хар-ки'!$A:$C,3,0),0) -> 40-20 | E79: =IFERROR(VLOOKUP(B79,'[1]Хар-ки'!$A:$D,4,0),0) -> Обычная | F79: =VLOOKUP(B79,[1]Цены!$A:$C,3,0) -> RUR | G79: =VLOOKUP(B79,[1]Цены!$A:$E,5,0) -> 19.96 | H79: =VLOOKUP(B79,[1]Цены!$A:$E,4,0) -> шт | I79: =IFERROR(VLOOKUP(B79,'[1]Хар-ки'!$A:$E,5,0),"") -> 200 | J79: =VLOOKUP(B79,'[1]Хар-ки'!$A:$F,6,0) -> 0,024 | K79: =VLOOKUP(B79,'[1]Хар-ки'!$A:$G,7,0) -> 0,000108
B80: PA12520PG | C80: =IFERROR(VLOOKUP(B80,'[1]Хар-ки'!$A:$B,2,0),"") -> PP-R Муфта переходная Н-В Серая | D80: =IFERROR(VLOOKUP(B80,'[1]Хар-ки'!$A:$C,3,0),0) -> 40-25 | E80: =IFERROR(VLOOKUP(B80,'[1]Хар-ки'!$A:$D,4,0),0) -> Обычная | F80: =VLOOKUP(B80,[1]Цены!$A:$C,3,0) -> RUR | G80: =VLOOKUP(B80,[1]Цены!$A:$E,5,0) -> 21.11 | H80: =VLOOKUP(B80,[1]Цены!$A:$E,4,0) -> шт | I80: =IFERROR(VLOOKUP(B80,'[1]Хар-ки'!$A:$E,5,0),"") -> 200 | J80: =VLOOKUP(B80,'[1]Хар-ки'!$A:$F,6,0) -> 0,025 | K80: =VLOOKUP(B80,'[1]Хар-ки'!$A:$G,7,0) -> 0,000108
B81: PA12522PG | C81: =IFERROR(VLOOKUP(B81,'[1]Хар-ки'!$A:$B,2,0),"") -> PP-R Муфта переходная Н-В Серая | D81: =IFERROR(VLOOKUP(B81,'[1]Хар-ки'!$A:$C,3,0),0) -> 40-32 | E81: =IFERROR(VLOOKUP(B81,'[1]Хар-ки'!$A:$D,4,0),0) -> Обычная | F81: =VLOOKUP(B81,[1]Цены!$A:$C,3,0) -> RUR | G81: =VLOOKUP(B81,[1]Цены!$A:$E,5,0) -> 24.82 | H81: =VLOOKUP(B81,[1]Цены!$A:$E,4,0) -> шт | I81: =IFERROR(VLOOKUP(B81,'[1]Хар-ки'!$A:$E,5,0),"") -> 200 | J81: =VLOOKUP(B81,'[1]Хар-ки'!$A:$F,6,0) -> 0,029 | K81: =VLOOKUP(B81,'[1]Хар-ки'!$A:$G,7,0) -> 0,000108
B82: PA12524PG | C82: =IFERROR(VLOOKUP(B82,'[1]Хар-ки'!$A:$B,2,0),"") -> PP-R Муфта переходная Н-В Серая | D82: =IFERROR(VLOOKUP(B82,'[1]Хар-ки'!$A:$C,3,0),0) -> 50-20 | E82: =IFERROR(VLOOKUP(B82,'[1]Хар-ки'!$A:$D,4,0),0) -> Обычная | F82: =VLOOKUP(B82,[1]Цены!$A:$C,3,0) -> RUR | G82: =VLOOKUP(B82,[1]Цены!$A:$E,5,0) -> 32.83 | H82: =VLOOKUP(B82,[1]Цены!$A:$E,4,0) -> шт | I82: =IFERROR(VLOOKUP(B82,'[1]Хар-ки'!$A:$E,5,0),"") -> 120 | J82: =VLOOKUP(B82,'[1]Хар-ки'!$A:$F,6,0) -> 0,043 | K82: =VLOOKUP(B82,'[1]Хар-ки'!$A:$G,7,0) -> 0,000180
B83: PA12526PG | C83: =IFERROR(VLOOKUP(B83,'[1]Хар-ки'!$A:$B,2,0),"") -> PP-R Муфта переходная Н-В Серая | D83: =IFERROR(VLOOKUP(B83,'[1]Хар-ки'!$A:$C,3,0),0) -> 50-25 | E83: =IFERROR(VLOOKUP(B83,'[1]Хар-ки'!$A:$D,4,0),0) -> Обычная | F83: =VLOOKUP(B83,[1]Цены!$A:$C,3,0) -> RUR | G83: =VLOOKUP(B83,[1]Цены!$A:$E,5,0) -> 35.33 | H83: =VLOOKUP(B83,[1]Цены!$A:$E,4,0) -> шт | I83: =IFERROR(VLOOKUP(B83,'[1]Хар-ки'!$A:$E,5,0),"") -> 120 | J83: =VLOOKUP(B83,'[1]Хар-ки'!$A:$F,6,0) -> 0,044 | K83: =VLOOKUP(B83,'[1]Хар-ки'!$A:$G,7,0) -> 0,000180
B84: PA12528PG | C84: =IFERROR(VLOOKUP(B84,'[1]Хар-ки'!$A:$B,2,0),"") -> PP-R Муфта переходная Н-В Серая | D84: =IFERROR(VLOOKUP(B84,'[1]Хар-ки'!$A:$C,3,0),0) -> 50-32 | E84: =IFERROR(VLOOKUP(B84,'[1]Хар-ки'!$A:$D,4,0),0) -> Обычная | F84: =VLOOKUP(B84,[1]Цены!$A:$C,3,0) -> RUR | G84: =VLOOKUP(B84,[1]Цены!$A:$E,5,0) -> 39.37 | H84: =VLOOKUP(B84,[1]Цены!$A:$E,4,0) -> шт | I84: =IFERROR(VLOOKUP(B84,'[1]Хар-ки'!$A:$E,5,0),"") -> 100 | J84: =VLOOKUP(B84,'[1]Хар-ки'!$A:$F,6,0) -> 0,062 | K84: =VLOOKUP(B84,'[1]Хар-ки'!$A:$G,7,0) -> 0,000187
B85: PA12530PG | C85: =IFERROR(VLOOKUP(B85,'[1]Хар-ки'!$A:$B,2,0),"") -> PP-R Муфта переходная Н-В Серая | D85: =IFERROR(VLOOKUP(B85,'[1]Хар-ки'!$A:$C,3,0),0) -> 50-40 | E85: =IFERROR(VLOOKUP(B85,'[1]Хар-ки'!$A:$D,4,0),0) -> Обычная | F85: =VLOOKUP(B85,[1]Цены!$A:$C,3,0) -> RUR | G85: =VLOOKUP(B85,[1]Цены!$A:$E,5,0) -> 46.37 | H85: =VLOOKUP(B85,[1]Цены!$A:$E,4,0) -> шт | I85: =IFERROR(VLOOKUP(B85,'[1]Хар-ки'!$A:$E,5,0),"") -> 80 | J85: =VLOOKUP(B85,'[1]Хар-ки'!$A:$F,6,0) -> 0,063 | K85: =VLOOKUP(B85,'[1]Хар-ки'!$A:$G,7,0) -> 0,000291
B86: PA12531G | C86: =IFERROR(VLOOKUP(B86,'[1]Хар-ки'!$A:$B,2,0),"") -> PP-R Муфта переходная Н-В Серая | D86: =IFERROR(VLOOKUP(B86,'[1]Хар-ки'!$A:$C,3,0),0) -> 63-20 | E86: =IFERROR(VLOOKUP(B86,'[1]Хар-ки'!$A:$D,4,0),0) -> Заказная | F86: =VLOOKUP(B86,[1]Цены!$A:$C,3,0) -> RUR | G86: =VLOOKUP(B86,[1]Цены!$A:$E,5,0) -> 57.85 | H86: =VLOOKUP(B86,[1]Цены!$A:$E,4,0) -> шт | I86: =IFERROR(VLOOKUP(B86,'[1]Хар-ки'!$A:$E,5,0),"") -> 100 | J86: =VLOOKUP(B86,'[1]Хар-ки'!$A:$F,6,0) -> 0,064 | K86: =VLOOKUP(B86,'[1]Хар-ки'!$A:$G,7,0) -> 0,000212
B87: PA12532PG | C87: =IFERROR(VLOOKUP(B87,'[1]Хар-ки'!$A:$B,2,0),"") -> PP-R Муфта переходная Н-В Серая | D87: =IFERROR(VLOOKUP(B87,'[1]Хар-ки'!$A:$C,3,0),0) -> 63-25 | E87: =IFERROR(VLOOKUP(B87,'[1]Хар-ки'!$A:$D,4,0),0) -> Обычная | F87: =VLOOKUP(B87,[1]Цены!$A:$C,3,0) -> RUR | G87: =VLOOKUP(B87,[1]Цены!$A:$E,5,0) -> 59.32 | H87: =VLOOKUP(B87,[1]Цены!$A:$E,4,0) -> шт | I87: =IFERROR(VLOOKUP(B87,'[1]Хар-ки'!$A:$E,5,0),"") -> 90 | J87: =VLOOKUP(B87,'[1]Хар-ки'!$A:$F,6,0) -> 0,069 | K87: =VLOOKUP(B87,'[1]Хар-ки'!$A:$G,7,0) -> 0,000180
B88: PA12534PG | C88: =IFERROR(VLOOKUP(B88,'[1]Хар-ки'!$A:$B,2,0),"") -> PP-R Муфта переходная Н-В Серая | D88: =IFERROR(VLOOKUP(B88,'[1]Хар-ки'!$A:$C,3,0),0) -> 63-32 | E88: =IFERROR(VLOOKUP(B88,'[1]Хар-ки'!$A:$D,4,0),0) -> Обычная | F88: =VLOOKUP(B88,[1]Цены!$A:$C,3,0) -> RUR | G88: =VLOOKUP(B88,[1]Цены!$A:$E,5,0) -> 59.51 | H88: =VLOOKUP(B88,[1]Цены!$A:$E,4,0) -> шт | I88: =IFERROR(VLOOKUP(B88,'[1]Хар-ки'!$A:$E,5,0),"") -> 60 | J88: =VLOOKUP(B88,'[1]Хар-ки'!$A:$F,6,0) -> 0,077 | K88: =VLOOKUP(B88,'[1]Хар-ки'!$A:$G,7,0) -> 0,000260
B89: PA12536PG | C89: =IFERROR(VLOOKUP(B89,'[1]Хар-ки'!$A:$B,2,0),"") -> PP-R Муфта переходная Н-В Серая | D89: =IFERROR(VLOOKUP(B89,'[1]Хар-ки'!$A:$C,3,0),0) -> 63-40 | E89: =IFERROR(VLOOKUP(B89,'[1]Хар-ки'!$A:$D,4,0),0) -> Обычная | F89: =VLOOKUP(B89,[1]Цены!$A:$C,3,0) -> RUR | G89: =VLOOKUP(B89,[1]Цены!$A:$E,5,0) -> 62.46 | H89: =VLOOKUP(B89,[1]Цены!$A:$E,4,0) -> шт | I89: =IFERROR(VLOOKUP(B89,'[1]Хар-ки'!$A:$E,5,0),"") -> 60 | J89: =VLOOKUP(B89,'[1]Хар-ки'!$A:$F,6,0) -> 0,085 | K89: =VLOOKUP(B89,'[1]Хар-ки'!$A:$G,7,0) -> 0,000270
B90: PA12538PG | C90: =IFERROR(VLOOKUP(B90,'[1]Хар-ки'!$A:$B,2,0),"") -> PP-R Муфта переходная Н-В Серая | D90: =IFERROR(VLOOKUP(B90,'[1]Хар-ки'!$A:$C,3,0),0) -> 63-50 | E90: =IFERROR(VLOOKUP(B90,'[1]Хар-ки'!$A:$D,4,0),0) -> Обычная | F90: =VLOOKUP(B90,[1]Цены!$A:$C,3,0) -> RUR | G90: =VLOOKUP(B90,[1]Цены!$A:$E,5,0) -> 76.45 | H90: =VLOOKUP(B90,[1]Цены!$A:$E,4,0) -> шт | I90: =IFERROR(VLOOKUP(B90,'[1]Хар-ки'!$A:$E,5,0),"") -> 48 | J90: =VLOOKUP(B90,'[1]Хар-ки'!$A:$F,6,0) -> 0,107 | K90: =VLOOKUP(B90,'[1]Хар-ки'!$A:$G,7,0) -> 0,000325
B91: PA12540PG | C91: =IFERROR(VLOOKUP(B91,'[1]Хар-ки'!$A:$B,2,0),"") -> PP-R Муфта переходная Н-В Серая | D91: =IFERROR(VLOOKUP(B91,'[1]Хар-ки'!$A:$C,3,0),0) -> 75-50 | E91: =IFERROR(VLOOKUP(B91,'[1]Хар-ки'!$A:$D,4,0),0) -> Обычная | F91: =VLOOKUP(B91,[1]Цены!$A:$C,3,0) -> RUR | G91: =VLOOKUP(B91,[1]Цены!$A:$E,5,0) -> 121.33 | H91: =VLOOKUP(B91,[1]Цены!$A:$E,4,0) -> шт | I91: =IFERROR(VLOOKUP(B91,'[1]Хар-ки'!$A:$E,5,0),"") -> 36 | J91: =VLOOKUP(B91,'[1]Хар-ки'!$A:$F,6,0) -> 0,133 | K91: =VLOOKUP(B91,'[1]Хар-ки'!$A:$G,7,0) -> 0,000520
B92: PA12542PG | C92: =IFERROR(VLOOKUP(B92,'[1]Хар-ки'!$A:$B,2,0),"") -> PP-R Муфта переходная Н-В Серая | D92: =IFERROR(VLOOKUP(B92,'[1]Хар-ки'!$A:$C,3,0),0) -> 75-63 | E92: =IFERROR(VLOOKUP(B92,'[1]Хар-ки'!$A:$D,4,0),0) -> Обычная | F92: =VLOOKUP(B92,[1]Цены!$A:$C,3,0) -> RUR | G92: =VLOOKUP(B92,[1]Цены!$A:$E,5,0) -> 174.19 | H92: =VLOOKUP(B92,[1]Цены!$A:$E,4,0) -> шт | I92: =IFERROR(VLOOKUP(B92,'[1]Хар-ки'!$A:$E,5,0),"") -> 24 | J92: =VLOOKUP(B92,'[1]Хар-ки'!$A:$F,6,0) -> 0,170 | K92: =VLOOKUP(B92,'[1]Хар-ки'!$A:$G,7,0) -> 0,000650
B93: PA12544PG | C93: =IFERROR(VLOOKUP(B93,'[1]Хар-ки'!$A:$B,2,0),"") -> PP-R Муфта переходная Н-В Серая | D93: =IFERROR(VLOOKUP(B93,'[1]Хар-ки'!$A:$C,3,0),0) -> 90-63 | E93: =IFERROR(VLOOKUP(B93,'[1]Хар-ки'!$A:$D,4,0),0) -> Обычная | F93: =VLOOKUP(B93,[1]Цены!$A:$C,3,0) -> RUR | G93: =VLOOKUP(B93,[1]Цены!$A:$E,5,0) -> 213.18 | H93: =VLOOKUP(B93,[1]Цены!$A:$E,4,0) -> шт | I93: =IFERROR(VLOOKUP(B93,'[1]Хар-ки'!$A:$E,5,0),"") -> 18 | J93: =VLOOKUP(B93,'[1]Хар-ки'!$A:$F,6,0) -> 0,230 | K93: =VLOOKUP(B93,'[1]Хар-ки'!$A:$G,7,0) -> 0,000900
B94: PA12546PG | C94: =IFERROR(VLOOKUP(B94,'[1]Хар-ки'!$A:$B,2,0),"") -> PP-R Муфта переходная Н-В Серая | D94: =IFERROR(VLOOKUP(B94,'[1]Хар-ки'!$A:$C,3,0),0) -> 90-75 | E94: =IFERROR(VLOOKUP(B94,'[1]Хар-ки'!$A:$D,4,0),0) -> Обычная | F94: =VLOOKUP(B94,[1]Цены!$A:$C,3,0) -> RUR | G94: =VLOOKUP(B94,[1]Цены!$A:$E,5,0) -> 285.07 | H94: =VLOOKUP(B94,[1]Цены!$A:$E,4,0) -> шт | I94: =IFERROR(VLOOKUP(B94,'[1]Хар-ки'!$A:$E,5,0),"") -> 18 | J94: =VLOOKUP(B94,'[1]Хар-ки'!$A:$F,6,0) -> 0,287 | K94: =VLOOKUP(B94,'[1]Хар-ки'!$A:$G,7,0) -> 0,001040
B95: PA12548PG | C95: =IFERROR(VLOOKUP(B95,'[1]Хар-ки'!$A:$B,2,0),"") -> PP-R Муфта переходная Н-В Серая | D95: =IFERROR(VLOOKUP(B95,'[1]Хар-ки'!$A:$C,3,0),0) -> 110-90 | E95: =IFERROR(VLOOKUP(B95,'[1]Хар-ки'!$A:$D,4,0),0) -> Обычная | F95: =VLOOKUP(B95,[1]Цены!$A:$C,3,0) -> RUR | G95: =VLOOKUP(B95,[1]Цены!$A:$E,5,0) -> 381.30 | H95: =VLOOKUP(B95,[1]Цены!$A:$E,4,0) -> шт | I95: =IFERROR(VLOOKUP(B95,'[1]Хар-ки'!$A:$E,5,0),"") -> 10 | J95: =VLOOKUP(B95,'[1]Хар-ки'!$A:$F,6,0) -> 0,468 | K95: =VLOOKUP(B95,'[1]Хар-ки'!$A:$G,7,0) -> 0,001620
B96: PA12550PG | C96: =IFERROR(VLOOKUP(B96,'[1]Хар-ки'!$A:$B,2,0),"") -> PP-R Муфта переходная Н-В Серая | D96: =IFERROR(VLOOKUP(B96,'[1]Хар-ки'!$A:$C,3,0),0) -> 125-110 | E96: =IFERROR(VLOOKUP(B96,'[1]Хар-ки'!$A:$D,4,0),0) -> Обычная | F96: =VLOOKUP(B96,[1]Цены!$A:$C,3,0) -> RUR | G96: =VLOOKUP(B96,[1]Цены!$A:$E,5,0) -> 1,356.29 | H96: =VLOOKUP(B96,[1]Цены!$A:$E,4,0) -> шт | I96: =IFERROR(VLOOKUP(B96,'[1]Хар-ки'!$A:$E,5,0),"") -> 5 | J96: =VLOOKUP(B96,'[1]Хар-ки'!$A:$F,6,0) -> 0,746 | K96: =VLOOKUP(B96,'[1]Хар-ки'!$A:$G,7,0) -> 0,003240
B97: PA1261008G | C97: =IFERROR(VLOOKUP(B97,'[1]Хар-ки'!$A:$B,2,0),"") -> PP-R Муфта переходная Серая | D97: =IFERROR(VLOOKUP(B97,'[1]Хар-ки'!$A:$C,3,0),0) -> 25-20 | E97: =IFERROR(VLOOKUP(B97,'[1]Хар-ки'!$A:$D,4,0),0) -> Обычная | F97: =VLOOKUP(B97,[1]Цены!$A:$C,3,0) -> RUR | G97: =VLOOKUP(B97,[1]Цены!$A:$E,5,0) -> 10.81 | H97: =VLOOKUP(B97,[1]Цены!$A:$E,4,0) -> шт | I97: =IFERROR(VLOOKUP(B97,'[1]Хар-ки'!$A:$E,5,0),"") -> 300 | J97: =VLOOKUP(B97,'[1]Хар-ки'!$A:$F,6,0) -> 0,016 | K97: =VLOOKUP(B97,'[1]Хар-ки'!$A:$G,7,0) -> 0,000071
B98: PA1261208G | C98: =IFERROR(VLOOKUP(B98,'[1]Хар-ки'!$A:$B,2,0),"") -> PP-R Муфта переходная Серая | D98: =IFERROR(VLOOKUP(B98,'[1]Хар-ки'!$A:$C,3,0),0) -> 32-20 | E98: =IFERROR(VLOOKUP(B98,'[1]Хар-ки'!$A:$D,4,0),0) -> Обычная | F98: =VLOOKUP(B98,[1]Цены!$A:$C,3,0) -> RUR | G98: =VLOOKUP(B98,[1]Цены!$A:$E,5,0) -> 16.30 | H98: =VLOOKUP(B98,[1]Цены!$A:$E,4,0) -> шт | I98: =IFERROR(VLOOKUP(B98,'[1]Хар-ки'!$A:$E,5,0),"") -> 200 | J98: =VLOOKUP(B98,'[1]Хар-ки'!$A:$F,6,0) -> 0,025 | K98: =VLOOKUP(B98,'[1]Хар-ки'!$A:$G,7,0) -> 0,000095
B99: PA1261210G | C99: =IFERROR(VLOOKUP(B99,'[1]Хар-ки'!$A:$B,2,0),"") -> PP-R Муфта переходная Серая | D99: =IFERROR(VLOOKUP(B99,'[1]Хар-ки'!$A:$C,3,0),0) -> 32-25 | E99: =IFERROR(VLOOKUP(B99,'[1]Хар-ки'!$A:$D,4,0),0) -> Обычная | F99: =VLOOKUP(B99,[1]Цены!$A:$C,3,0) -> RUR | G99: =VLOOKUP(B99,[1]Цены!$A:$E,5,0) -> 16.78 | H99: =VLOOKUP(B99,[1]Цены!$A:$E,4,0) -> шт | I99: =IFERROR(VLOOKUP(B99,'[1]Хар-ки'!$A:$E,5,0),"") -> 210 | J99: =VLOOKUP(B99,'[1]Хар-ки'!$A:$F,6,0) -> 0,024 | K99: =VLOOKUP(B99,'[1]Хар-ки'!$A:$G,7,0) -> 0,000091
B100: PA13508PG | C100: =IFERROR(VLOOKUP(B100,'[1]Хар-ки'!$A:$B,2,0),"") -> PP-R Угольник 45 градусов Серый | D100: =IFERROR(VLOOKUP(B100,'[1]Хар-ки'!$A:$C,3,0),0) -> 20 | E100: =IFERROR(VLOOKUP(B100,'[1]Хар-ки'!$A:$D,4,0),0) -> Обычная | F100: =VLOOKUP(B100,[1]Цены!$A:$C,3,0) -> RUR | G100: =VLOOKUP(B100,[1]Цены!$A:$E,5,0) -> 6.74 | H100: =VLOOKUP(B100,[1]Цены!$A:$E,4,0) -> шт | I100: =IFERROR(VLOOKUP(B100,'[1]Хар-ки'!$A:$E,5,0),"") -> 400 | J100: =VLOOKUP(B100,'[1]Хар-ки'!$A:$F,6,0) -> 0,013 | K100: =VLOOKUP(B100,'[1]Хар-ки'!$A:$G,7,0) -> 0,000053
B101: PA13510PG | C101: =IFERROR(VLOOKUP(B101,'[1]Хар-ки'!$A:$B,2,0),"") -> PP-R Угольник 45 градусов Серый | D101: =IFERROR(VLOOKUP(B101,'[1]Хар-ки'!$A:$C,3,0),0) -> 25 | E101: =IFERROR(VLOOKUP(B101,'[1]Хар-ки'!$A:$D,4,0),0) -> Обычная | F101: =VLOOKUP(B101,[1]Цены!$A:$C,3,0) -> RUR | G101: =VLOOKUP(B101,[1]Цены!$A:$E,5,0) -> 11.22 | H101: =VLOOKUP(B101,[1]Цены!$A:$E,4,0) -> шт | I101: =IFERROR(VLOOKUP(B101,'[1]Хар-ки'!$A:$E,5,0),"") -> 250 | J101: =VLOOKUP(B101,'[1]Хар-ки'!$A:$F,6,0) -> 0,019 | K101: =VLOOKUP(B101,'[1]Хар-ки'!$A:$G,7,0) -> 0,000086
B102: PA13512PG | C102: =IFERROR(VLOOKUP(B102,'[1]Хар-ки'!$A:$B,2,0),"") -> PP-R Угольник 45 градусов Серый | D102: =IFERROR(VLOOKUP(B102,'[1]Хар-ки'!$A:$C,3,0),0) -> 32 | E102: =IFERROR(VLOOKUP(B102,'[1]Хар-ки'!$A:$D,4,0),0) -> Обычная | F102: =VLOOKUP(B102,[1]Цены!$A:$C,3,0) -> RUR | G102: =VLOOKUP(B102,[1]Цены!$A:$E,5,0) -> 20.89 | H102: =VLOOKUP(B102,[1]Цены!$A:$E,4,0) -> шт | I102: =IFERROR(VLOOKUP(B102,'[1]Хар-ки'!$A:$E,5,0),"") -> 125 | J102: =VLOOKUP(B102,'[1]Хар-ки'!$A:$F,6,0) -> 0,038 | K102: =VLOOKUP(B102,'[1]Хар-ки'!$A:$G,7,0) -> 0,000173
B103: PA13514PG | C103: =IFERROR(VLOOKUP(B103,'[1]Хар-ки'!$A:$B,2,0),"") -> PP-R Угольник 45 градусов Серый | D103: =IFERROR(VLOOKUP(B103,'[1]Хар-ки'!$A:$C,3,0),0) -> 40 | E103: =IFERROR(VLOOKUP(B103,'[1]Хар-ки'!$A:$D,4,0),0) -> Обычная | F103: =VLOOKUP(B103,[1]Цены!$A:$C,3,0) -> RUR | G103: =VLOOKUP(B103,[1]Цены!$A:$E,5,0) -> 46.10 | H103: =VLOOKUP(B103,[1]Цены!$A:$E,4,0) -> шт | I103: =IFERROR(VLOOKUP(B103,'[1]Хар-ки'!$A:$E,5,0),"") -> 80 | J103: =VLOOKUP(B103,'[1]Хар-ки'!$A:$F,6,0) -> 0,059 | K103: =VLOOKUP(B103,'[1]Хар-ки'!$A:$G,7,0) -> 0,000270
B104: PA13516PG | C104: =IFERROR(VLOOKUP(B104,'[1]Хар-ки'!$A:$B,2,0),"") -> PP-R Угольник 45 градусов Серый | D104: =IFERROR(VLOOKUP(B104,'[1]Хар-ки'!$A:$C,3,0),0) -> 50 | E104: =IFERROR(VLOOKUP(B104,'[1]Хар-ки'!$A:$D,4,0),0) -> Обычная | F104: =VLOOKUP(B104,[1]Цены!$A:$C,3,0) -> RUR | G104: =VLOOKUP(B104,[1]Цены!$A:$E,5,0) -> 78.58 | H104: =VLOOKUP(B104,[1]Цены!$A:$E,4,0) -> шт | I104: =IFERROR(VLOOKUP(B104,'[1]Хар-ки'!$A:$E,5,0),"") -> 40 | J104: =VLOOKUP(B104,'[1]Хар-ки'!$A:$F,6,0) -> 0,113 | K104: =VLOOKUP(B104,'[1]Хар-ки'!$A:$G,7,0) -> 0,000540
B105: PA13518PG | C105: =IFERROR(VLOOKUP(B105,'[1]Хар-ки'!$A:$B,2,0),"") -> PP-R Угольник 45 градусов Серый | D105: =IFERROR(VLOOKUP(B105,'[1]Хар-ки'!$A:$C,3,0),0) -> 63 | E105: =IFERROR(VLOOKUP(B105,'[1]Хар-ки'!$A:$D,4,0),0) -> Обычная | F105: =VLOOKUP(B105,[1]Цены!$A:$C,3,0) -> RUR | G105: =VLOOKUP(B105,[1]Цены!$A:$E,5,0) -> 126.47 | H105: =VLOOKUP(B105,[1]Цены!$A:$E,4,0) -> шт | I105: =IFERROR(VLOOKUP(B105,'[1]Хар-ки'!$A:$E,5,0),"") -> 20 | J105: =VLOOKUP(B105,'[1]Хар-ки'!$A:$F,6,0) -> 0,208 | K105: =VLOOKUP(B105,'[1]Хар-ки'!$A:$G,7,0) -> 0,001080
B106: PA13520PG | C106: =IFERROR(VLOOKUP(B106,'[1]Хар-ки'!$A:$B,2,0),"") -> PP-R Угольник 45 градусов Серый | D106: =IFERROR(VLOOKUP(B106,'[1]Хар-ки'!$A:$C,3,0),0) -> 75 | E106: =IFERROR(VLOOKUP(B106,'[1]Хар-ки'!$A:$D,4,0),0) -> Обычная | F106: =VLOOKUP(B106,[1]Цены!$A:$C,3,0) -> RUR | G106: =VLOOKUP(B106,[1]Цены!$A:$E,5,0) -> 320.71 | H106: =VLOOKUP(B106,[1]Цены!$A:$E,4,0) -> шт | I106: =IFERROR(VLOOKUP(B106,'[1]Хар-ки'!$A:$E,5,0),"") -> 12 | J106: =VLOOKUP(B106,'[1]Хар-ки'!$A:$F,6,0) -> 0,358 | K106: =VLOOKUP(B106,'[1]Хар-ки'!$A:$G,7,0) -> 0,001647
B107: PA13522PG | C107: =IFERROR(VLOOKUP(B107,'[1]Хар-ки'!$A:$B,2,0),"") -> PP-R Угольник 45 градусов Серый | D107: =IFERROR(VLOOKUP(B107,'[1]Хар-ки'!$A:$C,3,0),0) -> 90 | E107: =IFERROR(VLOOKUP(B107,'[1]Хар-ки'!$A:$D,4,0),0) -> Обычная | F107: =VLOOKUP(B107,[1]Цены!$A:$C,3,0) -> RUR | G107: =VLOOKUP(B107,[1]Цены!$A:$E,5,0) -> 555.60 | H107: =VLOOKUP(B107,[1]Цены!$A:$E,4,0) -> шт | I107: =IFERROR(VLOOKUP(B107,'[1]Хар-ки'!$A:$E,5,0),"") -> 6 | J107: =VLOOKUP(B107,'[1]Хар-ки'!$A:$F,6,0) -> 0,569 | K107: =VLOOKUP(B107,'[1]Хар-ки'!$A:$G,7,0) -> 0,002700
B108: PA13008PG | C108: =IFERROR(VLOOKUP(B108,'[1]Хар-ки'!$A:$B,2,0),"") -> PP-R Угольник 90 градусов Серый | D108: =IFERROR(VLOOKUP(B108,'[1]Хар-ки'!$A:$C,3,0),0) -> 20 | E108: =IFERROR(VLOOKUP(B108,'[1]Хар-ки'!$A:$D,4,0),0) -> Обычная | F108: =VLOOKUP(B108,[1]Цены!$A:$C,3,0) -> RUR | G108: =VLOOKUP(B108,[1]Цены!$A:$E,5,0) -> 8.93 | H108: =VLOOKUP(B108,[1]Цены!$A:$E,4,0) -> шт | I108: =IFERROR(VLOOKUP(B108,'[1]Хар-ки'!$A:$E,5,0),"") -> 350 | J108: =VLOOKUP(B108,'[1]Хар-ки'!$A:$F,6,0) -> 0,017 | K108: =VLOOKUP(B108,'[1]Хар-ки'!$A:$G,7,0) -> 0,000062
B109: PA13010PG | C109: =IFERROR(VLOOKUP(B109,'[1]Хар-ки'!$A:$B,2,0),"") -> PP-R Угольник 90 градусов Серый | D109: =IFERROR(VLOOKUP(B109,'[1]Хар-ки'!$A:$C,3,0),0) -> 25 | E109: =IFERROR(VLOOKUP(B109,'[1]Хар-ки'!$A:$D,4,0),0) -> Обычная | F109: =VLOOKUP(B109,[1]Цены!$A:$C,3,0) -> RUR | G109: =VLOOKUP(B109,[1]Цены!$A:$E,5,0) -> 14.26 | H109: =VLOOKUP(B109,[1]Цены!$A:$E,4,0) -> шт | I109: =IFERROR(VLOOKUP(B109,'[1]Хар-ки'!$A:$E,5,0),"") -> 200 | J109: =VLOOKUP(B109,'[1]Хар-ки'!$A:$F,6,0) -> 0,027 | K109: =VLOOKUP(B109,'[1]Хар-ки'!$A:$G,7,0) -> 0,000108
B110: PA13012PG | C110: =IFERROR(VLOOKUP(B110,'[1]Хар-ки'!$A:$B,2,0),"") -> PP-R Угольник 90 градусов Серый | D110: =IFERROR(VLOOKUP(B110,'[1]Хар-ки'!$A:$C,3,0),0) -> 32 | E110: =IFERROR(VLOOKUP(B110,'[1]Хар-ки'!$A:$D,4,0),0) -> Обычная | F110: =VLOOKUP(B110,[1]Цены!$A:$C,3,0) -> RUR | G110: =VLOOKUP(B110,[1]Цены!$A:$E,5,0) -> 26.65 | H110: =VLOOKUP(B110,[1]Цены!$A:$E,4,0) -> шт | I110: =IFERROR(VLOOKUP(B110,'[1]Хар-ки'!$A:$E,5,0),"") -> 100 | J110: =VLOOKUP(B110,'[1]Хар-ки'!$A:$F,6,0) -> 0,047 | K110: =VLOOKUP(B110,'[1]Хар-ки'!$A:$G,7,0) -> 0,000216
B111: PA13014PG | C111: =IFERROR(VLOOKUP(B111,'[1]Хар-ки'!$A:$B,2,0),"") -> PP-R Угольник 90 градусов Серый | D111: =IFERROR(VLOOKUP(B111,'[1]Хар-ки'!$A:$C,3,0),0) -> 40 | E111: =IFERROR(VLOOKUP(B111,'[1]Хар-ки'!$A:$D,4,0),0) -> Обычная | F111: =VLOOKUP(B111,[1]Цены!$A:$C,3,0) -> RUR | G111: =VLOOKUP(B111,[1]Цены!$A:$E,5,0) -> 50.63 | H111: =VLOOKUP(B111,[1]Цены!$A:$E,4,0) -> шт | I111: =IFERROR(VLOOKUP(B111,'[1]Хар-ки'!$A:$E,5,0),"") -> 60 | J111: =VLOOKUP(B111,'[1]Хар-ки'!$A:$F,6,0) -> 0,075 | K111: =VLOOKUP(B111,'[1]Хар-ки'!$A:$G,7,0) -> 0,000360
B112: PA13016PG | C112: =IFERROR(VLOOKUP(B112,'[1]Хар-ки'!$A:$B,2,0),"") -> PP-R Угольник 90 градусов Серый | D112: =IFERROR(VLOOKUP(B112,'[1]Хар-ки'!$A:$C,3,0),0) -> 50 | E112: =IFERROR(VLOOKUP(B112,'[1]Хар-ки'!$A:$D,4,0),0) -> Обычная | F112: =VLOOKUP(B112,[1]Цены!$A:$C,3,0) -> RUR | G112: =VLOOKUP(B112,[1]Цены!$A:$E,5,0) -> 87.13 | H112: =VLOOKUP(B112,[1]Цены!$A:$E,4,0) -> шт | I112: =IFERROR(VLOOKUP(B112,'[1]Хар-ки'!$A:$E,5,0),"") -> 30 | J112: =VLOOKUP(B112,'[1]Хар-ки'!$A:$F,6,0) -> 0,131 | K112: =VLOOKUP(B112,'[1]Хар-ки'!$A:$G,7,0) -> 0,000720
B113: PA13018PG | C113: =IFERROR(VLOOKUP(B113,'[1]Хар-ки'!$A:$B,2,0),"") -> PP-R Угольник 90 градусов Серый | D113: =IFERROR(VLOOKUP(B113,'[1]Хар-ки'!$A:$C,3,0),0) -> 63 | E113: =IFERROR(VLOOKUP(B113,'[1]Хар-ки'!$A:$D,4,0),0) -> Обычная | F113: =VLOOKUP(B113,[1]Цены!$A:$C,3,0) -> RUR | G113: =VLOOKUP(B113,[1]Цены!$A:$E,5,0) -> 173.56 | H113: =VLOOKUP(B113,[1]Цены!$A:$E,4,0) -> шт | I113: =IFERROR(VLOOKUP(B113,'[1]Хар-ки'!$A:$E,5,0),"") -> 20 | J113: =VLOOKUP(B113,'[1]Хар-ки'!$A:$F,6,0) -> 0,261 | K113: =VLOOKUP(B113,'[1]Хар-ки'!$A:$G,7,0) -> 0,001080
B114: PA13020PG | C114: =IFERROR(VLOOKUP(B114,'[1]Хар-ки'!$A:$B,2,0),"") -> PP-R Угольник 90 градусов Серый | D114: =IFERROR(VLOOKUP(B114,'[1]Хар-ки'!$A:$C,3,0),0) -> 75 | E114: =IFERROR(VLOOKUP(B114,'[1]Хар-ки'!$A:$D,4,0),0) -> Обычная | F114: =VLOOKUP(B114,[1]Цены!$A:$C,3,0) -> RUR | G114: =VLOOKUP(B114,[1]Цены!$A:$E,5,0) -> 353.40 | H114: =VLOOKUP(B114,[1]Цены!$A:$E,4,0) -> шт | I114: =IFERROR(VLOOKUP(B114,'[1]Хар-ки'!$A:$E,5,0),"") -> 8 | J114: =VLOOKUP(B114,'[1]Хар-ки'!$A:$F,6,0) -> 0,404 | K114: =VLOOKUP(B114,'[1]Хар-ки'!$A:$G,7,0) -> 0,002025
B115: PA13022PG | C115: =IFERROR(VLOOKUP(B115,'[1]Хар-ки'!$A:$B,2,0),"") -> PP-R Угольник 90 градусов Серый | D115: =IFERROR(VLOOKUP(B115,'[1]Хар-ки'!$A:$C,3,0),0) -> 90 | E115: =IFERROR(VLOOKUP(B115,'[1]Хар-ки'!$A:$D,4,0),0) -> Обычная | F115: =VLOOKUP(B115,[1]Цены!$A:$C,3,0) -> RUR | G115: =VLOOKUP(B115,[1]Цены!$A:$E,5,0) -> 555.98 | H115: =VLOOKUP(B115,[1]Цены!$A:$E,4,0) -> шт | I115: =IFERROR(VLOOKUP(B115,'[1]Хар-ки'!$A:$E,5,0),"") -> 4 | J115: =VLOOKUP(B115,'[1]Хар-ки'!$A:$F,6,0) -> 0,674 | K115: =VLOOKUP(B115,'[1]Хар-ки'!$A:$G,7,0) -> 0,002700
B116: PA13024PG | C116: =IFERROR(VLOOKUP(B116,'[1]Хар-ки'!$A:$B,2,0),"") -> PP-R Угольник 90 градусов Серый | D116: =IFERROR(VLOOKUP(B116,'[1]Хар-ки'!$A:$C,3,0),0) -> 110 | E116: =IFERROR(VLOOKUP(B116,'[1]Хар-ки'!$A:$D,4,0),0) -> Обычная | F116: =VLOOKUP(B116,[1]Цены!$A:$C,3,0) -> RUR | G116: =VLOOKUP(B116,[1]Цены!$A:$E,5,0) -> 765.34 | H116: =VLOOKUP(B116,[1]Цены!$A:$E,4,0) -> шт | I116: =IFERROR(VLOOKUP(B116,'[1]Хар-ки'!$A:$E,5,0),"") -> 2 | J116: =VLOOKUP(B116,'[1]Хар-ки'!$A:$F,6,0) -> 1,266 | K116: =VLOOKUP(B116,'[1]Хар-ки'!$A:$G,7,0) -> 0,005400
B117: PA13026PG | C117: =IFERROR(VLOOKUP(B117,'[1]Хар-ки'!$A:$B,2,0),"") -> PP-R Угольник 90 градусов Серый | D117: =IFERROR(VLOOKUP(B117,'[1]Хар-ки'!$A:$C,3,0),0) -> 125 | E117: =IFERROR(VLOOKUP(B117,'[1]Хар-ки'!$A:$D,4,0),0) -> Заказная | F117: =VLOOKUP(B117,[1]Цены!$A:$C,3,0) -> RUR | G117: =VLOOKUP(B117,[1]Цены!$A:$E,5,0) -> 2,027.95 | H117: =VLOOKUP(B117,[1]Цены!$A:$E,4,0) -> шт | I117: =IFERROR(VLOOKUP(B117,'[1]Хар-ки'!$A:$E,5,0),"") -> 2 | J117: =VLOOKUP(B117,'[1]Хар-ки'!$A:$F,6,0) -> 1,776 | K117: =VLOOKUP(B117,'[1]Хар-ки'!$A:$G,7,0) -> 0,010800
B118: PA13808G | C118: =IFERROR(VLOOKUP(B118,'[1]Хар-ки'!$A:$B,2,0),"") -> PP-R Угольник 45 градусов переходной Н-В Серый | D118: =IFERROR(VLOOKUP(B118,'[1]Хар-ки'!$A:$C,3,0),0) -> 20 | E118: =IFERROR(VLOOKUP(B118,'[1]Хар-ки'!$A:$D,4,0),0) -> Обычная | F118: =VLOOKUP(B118,[1]Цены!$A:$C,3,0) -> RUR | G118: =VLOOKUP(B118,[1]Цены!$A:$E,5,0) -> 27.53 | H118: =VLOOKUP(B118,[1]Цены!$A:$E,4,0) -> шт | I118: =IFERROR(VLOOKUP(B118,'[1]Хар-ки'!$A:$E,5,0),"") -> 200 | J118: =VLOOKUP(B118,'[1]Хар-ки'!$A:$F,6,0) -> 0,013 | K118: =VLOOKUP(B118,'[1]Хар-ки'!$A:$G,7,0) -> 0,000078
B119: PA13810G | C119: =IFERROR(VLOOKUP(B119,'[1]Хар-ки'!$A:$B,2,0),"") -> PP-R Угольник 45 градусов переходной Н-В Серый | D119: =IFERROR(VLOOKUP(B119,'[1]Хар-ки'!$A:$C,3,0),0) -> 25 | E119: =IFERROR(VLOOKUP(B119,'[1]Хар-ки'!$A:$D,4,0),0) -> Обычная | F119: =VLOOKUP(B119,[1]Цены!$A:$C,3,0) -> RUR | G119: =VLOOKUP(B119,[1]Цены!$A:$E,5,0) -> 39.49 | H119: =VLOOKUP(B119,[1]Цены!$A:$E,4,0) -> шт | I119: =IFERROR(VLOOKUP(B119,'[1]Хар-ки'!$A:$E,5,0),"") -> 200 | J119: =VLOOKUP(B119,'[1]Хар-ки'!$A:$F,6,0) -> 0,023 | K119: =VLOOKUP(B119,'[1]Хар-ки'!$A:$G,7,0) -> 0,000094
B120: PA13608PG | C120: =IFERROR(VLOOKUP(B120,'[1]Хар-ки'!$A:$B,2,0),"") -> PP-R Угольник 90 градусов переходной Н-В Серый | D120: =IFERROR(VLOOKUP(B120,'[1]Хар-ки'!$A:$C,3,0),0) -> 20 | E120: =IFERROR(VLOOKUP(B120,'[1]Хар-ки'!$A:$D,4,0),0) -> Обычная | F120: =VLOOKUP(B120,[1]Цены!$A:$C,3,0) -> RUR | G120: =VLOOKUP(B120,[1]Цены!$A:$E,5,0) -> 12.40 | H120: =VLOOKUP(B120,[1]Цены!$A:$E,4,0) -> шт | I120: =IFERROR(VLOOKUP(B120,'[1]Хар-ки'!$A:$E,5,0),"") -> 300 | J120: =VLOOKUP(B120,'[1]Хар-ки'!$A:$F,6,0) -> 0,023 | K120: =VLOOKUP(B120,'[1]Хар-ки'!$A:$G,7,0) -> 0,000072
B121: PA13610PG | C121: =IFERROR(VLOOKUP(B121,'[1]Хар-ки'!$A:$B,2,0),"") -> PP-R Угольник 90 градусов переходной Н-В Серый | D121: =IFERROR(VLOOKUP(B121,'[1]Хар-ки'!$A:$C,3,0),0) -> 25 | E121: =IFERROR(VLOOKUP(B121,'[1]Хар-ки'!$A:$D,4,0),0) -> Обычная | F121: =VLOOKUP(B121,[1]Цены!$A:$C,3,0) -> RUR | G121: =VLOOKUP(B121,[1]Цены!$A:$E,5,0) -> 19.84 | H121: =VLOOKUP(B121,[1]Цены!$A:$E,4,0) -> шт | I121: =IFERROR(VLOOKUP(B121,'[1]Хар-ки'!$A:$E,5,0),"") -> 175 | J121: =VLOOKUP(B121,'[1]Хар-ки'!$A:$F,6,0) -> 0,035 | K121: =VLOOKUP(B121,'[1]Хар-ки'!$A:$G,7,0) -> 0,000109
B122: PA13612PG | C122: =IFERROR(VLOOKUP(B122,'[1]Хар-ки'!$A:$B,2,0),"") -> PP-R Угольник 90 градусов переходной Н-В Серый | D122: =IFERROR(VLOOKUP(B122,'[1]Хар-ки'!$A:$C,3,0),0) -> 32 | E122: =IFERROR(VLOOKUP(B122,'[1]Хар-ки'!$A:$D,4,0),0) -> Обычная | F122: =VLOOKUP(B122,[1]Цены!$A:$C,3,0) -> RUR | G122: =VLOOKUP(B122,[1]Цены!$A:$E,5,0) -> 36.60 | H122: =VLOOKUP(B122,[1]Цены!$A:$E,4,0) -> шт | I122: =IFERROR(VLOOKUP(B122,'[1]Хар-ки'!$A:$E,5,0),"") -> 80 | J122: =VLOOKUP(B122,'[1]Хар-ки'!$A:$F,6,0) -> 0,072 | K122: =VLOOKUP(B122,'[1]Хар-ки'!$A:$G,7,0) -> 0,000270
B123: PA1371008G | C123: =IFERROR(VLOOKUP(B123,'[1]Хар-ки'!$A:$B,2,0),"") -> PP-R Угольник переходной 90 градусов Серый | D123: =IFERROR(VLOOKUP(B123,'[1]Хар-ки'!$A:$C,3,0),0) -> 25-20 | E123: =IFERROR(VLOOKUP(B123,'[1]Хар-ки'!$A:$D,4,0),0) -> Обычная | F123: =VLOOKUP(B123,[1]Цены!$A:$C,3,0) -> RUR | G123: =VLOOKUP(B123,[1]Цены!$A:$E,5,0) -> 25.31 | H123: =VLOOKUP(B123,[1]Цены!$A:$E,4,0) -> шт | I123: =IFERROR(VLOOKUP(B123,'[1]Хар-ки'!$A:$E,5,0),"") -> 200 | J123: =VLOOKUP(B123,'[1]Хар-ки'!$A:$F,6,0) -> 0,019 | K123: =VLOOKUP(B123,'[1]Хар-ки'!$A:$G,7,0) -> 0,000078
B124: PA1371208G | C124: =IFERROR(VLOOKUP(B124,'[1]Хар-ки'!$A:$B,2,0),"") -> PP-R Угольник переходной 90 градусов Серый | D124: =IFERROR(VLOOKUP(B124,'[1]Хар-ки'!$A:$C,3,0),0) -> 32-20 | E124: =IFERROR(VLOOKUP(B124,'[1]Хар-ки'!$A:$D,4,0),0) -> Обычная | F124: =VLOOKUP(B124,[1]Цены!$A:$C,3,0) -> RUR | G124: =VLOOKUP(B124,[1]Цены!$A:$E,5,0) -> 31.63 | H124: =VLOOKUP(B124,[1]Цены!$A:$E,4,0) -> шт | I124: =IFERROR(VLOOKUP(B124,'[1]Хар-ки'!$A:$E,5,0),"") -> 200 | J124: =VLOOKUP(B124,'[1]Хар-ки'!$A:$F,6,0) -> 0,029 | K124: =VLOOKUP(B124,'[1]Хар-ки'!$A:$G,7,0) -> 0,000078
B125: PA14008PG | C125: =IFERROR(VLOOKUP(B125,'[1]Хар-ки'!$A:$B,2,0),"") -> PP-R Тройник Серый | D125: =IFERROR(VLOOKUP(B125,'[1]Хар-ки'!$A:$C,3,0),0) -> 20 | E125: =IFERROR(VLOOKUP(B125,'[1]Хар-ки'!$A:$D,4,0),0) -> Обычная | F125: =VLOOKUP(B125,[1]Цены!$A:$C,3,0) -> RUR | G125: =VLOOKUP(B125,[1]Цены!$A:$E,5,0) -> 11.16 | H125: =VLOOKUP(B125,[1]Цены!$A:$E,4,0) -> шт | I125: =IFERROR(VLOOKUP(B125,'[1]Хар-ки'!$A:$E,5,0),"") -> 200 | J125: =VLOOKUP(B125,'[1]Хар-ки'!$A:$F,6,0) -> 0,022 | K125: =VLOOKUP(B125,'[1]Хар-ки'!$A:$G,7,0) -> 0,000108
B126: PA14010PG | C126: =IFERROR(VLOOKUP(B126,'[1]Хар-ки'!$A:$B,2,0),"") -> PP-R Тройник Серый | D126: =IFERROR(VLOOKUP(B126,'[1]Хар-ки'!$A:$C,3,0),0) -> 25 | E126: =IFERROR(VLOOKUP(B126,'[1]Хар-ки'!$A:$D,4,0),0) -> Обычная | F126: =VLOOKUP(B126,[1]Цены!$A:$C,3,0) -> RUR | G126: =VLOOKUP(B126,[1]Цены!$A:$E,5,0) -> 18.56 | H126: =VLOOKUP(B126,[1]Цены!$A:$E,4,0) -> шт | I126: =IFERROR(VLOOKUP(B126,'[1]Хар-ки'!$A:$E,5,0),"") -> 150 | J126: =VLOOKUP(B126,'[1]Хар-ки'!$A:$F,6,0) -> 0,036 | K126: =VLOOKUP(B126,'[1]Хар-ки'!$A:$G,7,0) -> 0,000144
B127: PA14012PG | C127: =IFERROR(VLOOKUP(B127,'[1]Хар-ки'!$A:$B,2,0),"") -> PP-R Тройник Серый | D127: =IFERROR(VLOOKUP(B127,'[1]Хар-ки'!$A:$C,3,0),0) -> 32 | E127: =IFERROR(VLOOKUP(B127,'[1]Хар-ки'!$A:$D,4,0),0) -> Обычная | F127: =VLOOKUP(B127,[1]Цены!$A:$C,3,0) -> RUR | G127: =VLOOKUP(B127,[1]Цены!$A:$E,5,0) -> 35.02 | H127: =VLOOKUP(B127,[1]Цены!$A:$E,4,0) -> шт | I127: =IFERROR(VLOOKUP(B127,'[1]Хар-ки'!$A:$E,5,0),"") -> 60 | J127: =VLOOKUP(B127,'[1]Хар-ки'!$A:$F,6,0) -> 0,065 | K127: =VLOOKUP(B127,'[1]Хар-ки'!$A:$G,7,0) -> 0,000360
B128: PA14014PG | C128: =IFERROR(VLOOKUP(B128,'[1]Хар-ки'!$A:$B,2,0),"") -> PP-R Тройник Серый | D128: =IFERROR(VLOOKUP(B128,'[1]Хар-ки'!$A:$C,3,0),0) -> 40 | E128: =IFERROR(VLOOKUP(B128,'[1]Хар-ки'!$A:$D,4,0),0) -> Обычная | F128: =VLOOKUP(B128,[1]Цены!$A:$C,3,0) -> RUR | G128: =VLOOKUP(B128,[1]Цены!$A:$E,5,0) -> 63.23 | H128: =VLOOKUP(B128,[1]Цены!$A:$E,4,0) -> шт | I128: =IFERROR(VLOOKUP(B128,'[1]Хар-ки'!$A:$E,5,0),"") -> 40 | J128: =VLOOKUP(B128,'[1]Хар-ки'!$A:$F,6,0) -> 0,098 | K128: =VLOOKUP(B128,'[1]Хар-ки'!$A:$G,7,0) -> 0,000540
B129: PA14016PG | C129: =IFERROR(VLOOKUP(B129,'[1]Хар-ки'!$A:$B,2,0),"") -> PP-R Тройник Серый | D129: =IFERROR(VLOOKUP(B129,'[1]Хар-ки'!$A:$C,3,0),0) -> 50 | E129: =IFERROR(VLOOKUP(B129,'[1]Хар-ки'!$A:$D,4,0),0) -> Обычная | F129: =VLOOKUP(B129,[1]Цены!$A:$C,3,0) -> RUR | G129: =VLOOKUP(B129,[1]Цены!$A:$E,5,0) -> 113.83 | H129: =VLOOKUP(B129,[1]Цены!$A:$E,4,0) -> шт | I129: =IFERROR(VLOOKUP(B129,'[1]Хар-ки'!$A:$E,5,0),"") -> 20 | J129: =VLOOKUP(B129,'[1]Хар-ки'!$A:$F,6,0) -> 0,176 | K129: =VLOOKUP(B129,'[1]Хар-ки'!$A:$G,7,0) -> 0,001080
B130: PA14018PG | C130: =IFERROR(VLOOKUP(B130,'[1]Хар-ки'!$A:$B,2,0),"") -> PP-R Тройник Серый | D130: =IFERROR(VLOOKUP(B130,'[1]Хар-ки'!$A:$C,3,0),0) -> 63 | E130: =IFERROR(VLOOKUP(B130,'[1]Хар-ки'!$A:$D,4,0),0) -> Обычная | F130: =VLOOKUP(B130,[1]Цены!$A:$C,3,0) -> RUR | G130: =VLOOKUP(B130,[1]Цены!$A:$E,5,0) -> 235.07 | H130: =VLOOKUP(B130,[1]Цены!$A:$E,4,0) -> шт | I130: =IFERROR(VLOOKUP(B130,'[1]Хар-ки'!$A:$E,5,0),"") -> 16 | J130: =VLOOKUP(B130,'[1]Хар-ки'!$A:$F,6,0) -> 0,322 | K130: =VLOOKUP(B130,'[1]Хар-ки'!$A:$G,7,0) -> 0,001350
B131: PA14020PG | C131: =IFERROR(VLOOKUP(B131,'[1]Хар-ки'!$A:$B,2,0),"") -> PP-R Тройник Серый | D131: =IFERROR(VLOOKUP(B131,'[1]Хар-ки'!$A:$C,3,0),0) -> 75 | E131: =IFERROR(VLOOKUP(B131,'[1]Хар-ки'!$A:$D,4,0),0) -> Обычная | F131: =VLOOKUP(B131,[1]Цены!$A:$C,3,0) -> RUR | G131: =VLOOKUP(B131,[1]Цены!$A:$E,5,0) -> 402.64 | H131: =VLOOKUP(B131,[1]Цены!$A:$E,4,0) -> шт | I131: =IFERROR(VLOOKUP(B131,'[1]Хар-ки'!$A:$E,5,0),"") -> 8 | J131: =VLOOKUP(B131,'[1]Хар-ки'!$A:$F,6,0) -> 0,578 | K131: =VLOOKUP(B131,'[1]Хар-ки'!$A:$G,7,0) -> 0,002025
B132: PA14022PG | C132: =IFERROR(VLOOKUP(B132,'[1]Хар-ки'!$A:$B,2,0),"") -> PP-R Тройник Серый | D132: =IFERROR(VLOOKUP(B132,'[1]Хар-ки'!$A:$C,3,0),0) -> 90 | E132: =IFERROR(VLOOKUP(B132,'[1]Хар-ки'!$A:$D,4,0),0) -> Обычная | F132: =VLOOKUP(B132,[1]Цены!$A:$C,3,0) -> RUR | G132: =VLOOKUP(B132,[1]Цены!$A:$E,5,0) -> 781.81 | H132: =VLOOKUP(B132,[1]Цены!$A:$E,4,0) -> шт | I132: =IFERROR(VLOOKUP(B132,'[1]Хар-ки'!$A:$E,5,0),"") -> 4 | J132: =VLOOKUP(B132,'[1]Хар-ки'!$A:$F,6,0) -> 0,925 | K132: =VLOOKUP(B132,'[1]Хар-ки'!$A:$G,7,0) -> 0,004050
B133: PA14024PG | C133: =IFERROR(VLOOKUP(B133,'[1]Хар-ки'!$A:$B,2,0),"") -> PP-R Тройник Серый | D133: =IFERROR(VLOOKUP(B133,'[1]Хар-ки'!$A:$C,3,0),0) -> 110 | E133: =IFERROR(VLOOKUP(B133,'[1]Хар-ки'!$A:$D,4,0),0) -> Обычная | F133: =VLOOKUP(B133,[1]Цены!$A:$C,3,0) -> RUR | G133: =VLOOKUP(B133,[1]Цены!$A:$E,5,0) -> 1,196.48 | H133: =VLOOKUP(B133,[1]Цены!$A:$E,4,0) -> шт | I133: =IFERROR(VLOOKUP(B133,'[1]Хар-ки'!$A:$E,5,0),"") -> 2 | J133: =VLOOKUP(B133,'[1]Хар-ки'!$A:$F,6,0) -> 1,537 | K133: =VLOOKUP(B133,'[1]Хар-ки'!$A:$G,7,0) -> 0,005400
B134: PA14026PG | C134: =IFERROR(VLOOKUP(B134,'[1]Хар-ки'!$A:$B,2,0),"") -> PP-R Тройник Серый | D134: =IFERROR(VLOOKUP(B134,'[1]Хар-ки'!$A:$C,3,0),0) -> 125 | E134: =IFERROR(VLOOKUP(B134,'[1]Хар-ки'!$A:$D,4,0),0) -> Заказная | F134: =VLOOKUP(B134,[1]Цены!$A:$C,3,0) -> RUR | G134: =VLOOKUP(B134,[1]Цены!$A:$E,5,0) -> 2,312.17 | H134: =VLOOKUP(B134,[1]Цены!$A:$E,4,0) -> шт | I134: =IFERROR(VLOOKUP(B134,'[1]Хар-ки'!$A:$E,5,0),"") -> 2 | J134: =VLOOKUP(B134,'[1]Хар-ки'!$A:$F,6,0) -> 2,324 | K134: =VLOOKUP(B134,'[1]Хар-ки'!$A:$G,7,0) -> 0,005400
B135: PA14518PG | C135: =IFERROR(VLOOKUP(B135,'[1]Хар-ки'!$A:$B,2,0),"") -> PP-R Тройник переходной Серый | D135: =IFERROR(VLOOKUP(B135,'[1]Хар-ки'!$A:$C,3,0),0) -> 20-25-20 | E135: =IFERROR(VLOOKUP(B135,'[1]Хар-ки'!$A:$D,4,0),0) -> Обычная | F135: =VLOOKUP(B135,[1]Цены!$A:$C,3,0) -> RUR | G135: =VLOOKUP(B135,[1]Цены!$A:$E,5,0) -> 18.28 | H135: =VLOOKUP(B135,[1]Цены!$A:$E,4,0) -> шт | I135: =IFERROR(VLOOKUP(B135,'[1]Хар-ки'!$A:$E,5,0),"") -> 200 | J135: =VLOOKUP(B135,'[1]Хар-ки'!$A:$F,6,0) -> 0,032 | K135: =VLOOKUP(B135,'[1]Хар-ки'!$A:$G,7,0) -> 0,000103
B136: PA14520PG | C136: =IFERROR(VLOOKUP(B136,'[1]Хар-ки'!$A:$B,2,0),"") -> PP-R Тройник переходной Серый | D136: =IFERROR(VLOOKUP(B136,'[1]Хар-ки'!$A:$C,3,0),0) -> 25-20-20 | E136: =IFERROR(VLOOKUP(B136,'[1]Хар-ки'!$A:$D,4,0),0) -> Обычная | F136: =VLOOKUP(B136,[1]Цены!$A:$C,3,0) -> RUR | G136: =VLOOKUP(B136,[1]Цены!$A:$E,5,0) -> 18.65 | H136: =VLOOKUP(B136,[1]Цены!$A:$E,4,0) -> шт | I136: =IFERROR(VLOOKUP(B136,'[1]Хар-ки'!$A:$E,5,0),"") -> 200 | J136: =VLOOKUP(B136,'[1]Хар-ки'!$A:$F,6,0) -> 0,030 | K136: =VLOOKUP(B136,'[1]Хар-ки'!$A:$G,7,0) -> 0,000094
B137: PA14521PG | C137: =IFERROR(VLOOKUP(B137,'[1]Хар-ки'!$A:$B,2,0),"") -> PP-R Тройник переходной Серый | D137: =IFERROR(VLOOKUP(B137,'[1]Хар-ки'!$A:$C,3,0),0) -> 25-20-25 | E137: =IFERROR(VLOOKUP(B137,'[1]Хар-ки'!$A:$D,4,0),0) -> Обычная | F137: =VLOOKUP(B137,[1]Цены!$A:$C,3,0) -> RUR | G137: =VLOOKUP(B137,[1]Цены!$A:$E,5,0) -> 18.60 | H137: =VLOOKUP(B137,[1]Цены!$A:$E,4,0) -> шт | I137: =IFERROR(VLOOKUP(B137,'[1]Хар-ки'!$A:$E,5,0),"") -> 150 | J137: =VLOOKUP(B137,'[1]Хар-ки'!$A:$F,6,0) -> 0,032 | K137: =VLOOKUP(B137,'[1]Хар-ки'!$A:$G,7,0) -> 0,000144
B138: PA14522PG | C138: =IFERROR(VLOOKUP(B138,'[1]Хар-ки'!$A:$B,2,0),"") -> PP-R Тройник переходной Серый | D138: =IFERROR(VLOOKUP(B138,'[1]Хар-ки'!$A:$C,3,0),0) -> 25-25-20 | E138: =IFERROR(VLOOKUP(B138,'[1]Хар-ки'!$A:$D,4,0),0) -> Обычная | F138: =VLOOKUP(B138,[1]Цены!$A:$C,3,0) -> RUR | G138: =VLOOKUP(B138,[1]Цены!$A:$E,5,0) -> 23.90 | H138: =VLOOKUP(B138,[1]Цены!$A:$E,4,0) -> шт | I138: =IFERROR(VLOOKUP(B138,'[1]Хар-ки'!$A:$E,5,0),"") -> 150 | J138: =VLOOKUP(B138,'[1]Хар-ки'!$A:$F,6,0) -> 0,036 | K138: =VLOOKUP(B138,'[1]Хар-ки'!$A:$G,7,0) -> 0,000144
B139: PA14530PG | C139: =IFERROR(VLOOKUP(B139,'[1]Хар-ки'!$A:$B,2,0),"") -> PP-R Тройник переходной Серый | D139: =IFERROR(VLOOKUP(B139,'[1]Хар-ки'!$A:$C,3,0),0) -> 32-20-20 | E139: =IFERROR(VLOOKUP(B139,'[1]Хар-ки'!$A:$D,4,0),0) -> Заказная | F139: =VLOOKUP(B139,[1]Цены!$A:$C,3,0) -> RUR | G139: =VLOOKUP(B139,[1]Цены!$A:$E,5,0) -> 29.78 | H139: =VLOOKUP(B139,[1]Цены!$A:$E,4,0) -> шт | I139: =IFERROR(VLOOKUP(B139,'[1]Хар-ки'!$A:$E,5,0),"") -> 80 | J139: =VLOOKUP(B139,'[1]Хар-ки'!$A:$F,6,0) -> 0,055 | K139: =VLOOKUP(B139,'[1]Хар-ки'!$A:$G,7,0) -> 0,000270
B140: PA14531PG | C140: =IFERROR(VLOOKUP(B140,'[1]Хар-ки'!$A:$B,2,0),"") -> PP-R Тройник переходной Серый | D140: =IFERROR(VLOOKUP(B140,'[1]Хар-ки'!$A:$C,3,0),0) -> 32-20-25 | E140: =IFERROR(VLOOKUP(B140,'[1]Хар-ки'!$A:$D,4,0),0) -> Обычная | F140: =VLOOKUP(B140,[1]Цены!$A:$C,3,0) -> RUR | G140: =VLOOKUP(B140,[1]Цены!$A:$E,5,0) -> 39.17 | H140: =VLOOKUP(B140,[1]Цены!$A:$E,4,0) -> шт | I140: =IFERROR(VLOOKUP(B140,'[1]Хар-ки'!$A:$E,5,0),"") -> 80 | J140: =VLOOKUP(B140,'[1]Хар-ки'!$A:$F,6,0) -> 0,055 | K140: =VLOOKUP(B140,'[1]Хар-ки'!$A:$G,7,0) -> 0,000270
B141: PA14532PG | C141: =IFERROR(VLOOKUP(B141,'[1]Хар-ки'!$A:$B,2,0),"") -> PP-R Тройник переходной Серый | D141: =IFERROR(VLOOKUP(B141,'[1]Хар-ки'!$A:$C,3,0),0) -> 32-20-32 | E141: =IFERROR(VLOOKUP(B141,'[1]Хар-ки'!$A:$D,4,0),0) -> Обычная | F141: =VLOOKUP(B141,[1]Цены!$A:$C,3,0) -> RUR | G141: =VLOOKUP(B141,[1]Цены!$A:$E,5,0) -> 28.58 | H141: =VLOOKUP(B141,[1]Цены!$A:$E,4,0) -> шт | I141: =IFERROR(VLOOKUP(B141,'[1]Хар-ки'!$A:$E,5,0),"") -> 100 | J141: =VLOOKUP(B141,'[1]Хар-ки'!$A:$F,6,0) -> 0,046 | K141: =VLOOKUP(B141,'[1]Хар-ки'!$A:$G,7,0) -> 0,000216
B142: PA14533PG | C142: =IFERROR(VLOOKUP(B142,'[1]Хар-ки'!$A:$B,2,0),"") -> PP-R Тройник переходной Серый | D142: =IFERROR(VLOOKUP(B142,'[1]Хар-ки'!$A:$C,3,0),0) -> 32-25-20 | E142: =IFERROR(VLOOKUP(B142,'[1]Хар-ки'!$A:$D,4,0),0) -> Обычная | F142: =VLOOKUP(B142,[1]Цены!$A:$C,3,0) -> RUR | G142: =VLOOKUP(B142,[1]Цены!$A:$E,5,0) -> 31.79 | H142: =VLOOKUP(B142,[1]Цены!$A:$E,4,0) -> шт | I142: =IFERROR(VLOOKUP(B142,'[1]Хар-ки'!$A:$E,5,0),"") -> 80 | J142: =VLOOKUP(B142,'[1]Хар-ки'!$A:$F,6,0) -> 0,056 | K142: =VLOOKUP(B142,'[1]Хар-ки'!$A:$G,7,0) -> 0,000270
B143: PA14534PG | C143: =IFERROR(VLOOKUP(B143,'[1]Хар-ки'!$A:$B,2,0),"") -> PP-R Тройник переходной Серый | D143: =IFERROR(VLOOKUP(B143,'[1]Хар-ки'!$A:$C,3,0),0) -> 32-25-25 | E143: =IFERROR(VLOOKUP(B143,'[1]Хар-ки'!$A:$D,4,0),0) -> Обычная | F143: =VLOOKUP(B143,[1]Цены!$A:$C,3,0) -> RUR | G143: =VLOOKUP(B143,[1]Цены!$A:$E,5,0) -> 32.24 | H143: =VLOOKUP(B143,[1]Цены!$A:$E,4,0) -> шт | I143: =IFERROR(VLOOKUP(B143,'[1]Хар-ки'!$A:$E,5,0),"") -> 80 | J143: =VLOOKUP(B143,'[1]Хар-ки'!$A:$F,6,0) -> 0,055 | K143: =VLOOKUP(B143,'[1]Хар-ки'!$A:$G,7,0) -> 0,000270
B144: PA14535PG | C144: =IFERROR(VLOOKUP(B144,'[1]Хар-ки'!$A:$B,2,0),"") -> PP-R Тройник переходной Серый | D144: =IFERROR(VLOOKUP(B144,'[1]Хар-ки'!$A:$C,3,0),0) -> 32-25-32 | E144: =IFERROR(VLOOKUP(B144,'[1]Хар-ки'!$A:$D,4,0),0) -> Обычная | F144: =VLOOKUP(B144,[1]Цены!$A:$C,3,0) -> RUR | G144: =VLOOKUP(B144,[1]Цены!$A:$E,5,0) -> 30.12 | H144: =VLOOKUP(B144,[1]Цены!$A:$E,4,0) -> шт | I144: =IFERROR(VLOOKUP(B144,'[1]Хар-ки'!$A:$E,5,0),"") -> 80 | J144: =VLOOKUP(B144,'[1]Хар-ки'!$A:$F,6,0) -> 0,053 | K144: =VLOOKUP(B144,'[1]Хар-ки'!$A:$G,7,0) -> 0,000270
B145: PA14540PG | C145: =IFERROR(VLOOKUP(B145,'[1]Хар-ки'!$A:$B,2,0),"") -> PP-R Тройник переходной Серый | D145: =IFERROR(VLOOKUP(B145,'[1]Хар-ки'!$A:$C,3,0),0) -> 40-20-40 | E145: =IFERROR(VLOOKUP(B145,'[1]Хар-ки'!$A:$D,4,0),0) -> Обычная | F145: =VLOOKUP(B145,[1]Цены!$A:$C,3,0) -> RUR | G145: =VLOOKUP(B145,[1]Цены!$A:$E,5,0) -> 51.97 | H145: =VLOOKUP(B145,[1]Цены!$A:$E,4,0) -> шт | I145: =IFERROR(VLOOKUP(B145,'[1]Хар-ки'!$A:$E,5,0),"") -> 80 | J145: =VLOOKUP(B145,'[1]Хар-ки'!$A:$F,6,0) -> 0,064 | K145: =VLOOKUP(B145,'[1]Хар-ки'!$A:$G,7,0) -> 0,000270
B146: PA14541PG | C146: =IFERROR(VLOOKUP(B146,'[1]Хар-ки'!$A:$B,2,0),"") -> PP-R Тройник переходной Серый | D146: =IFERROR(VLOOKUP(B146,'[1]Хар-ки'!$A:$C,3,0),0) -> 40-25-40 | E146: =IFERROR(VLOOKUP(B146,'[1]Хар-ки'!$A:$D,4,0),0) -> Обычная | F146: =VLOOKUP(B146,[1]Цены!$A:$C,3,0) -> RUR | G146: =VLOOKUP(B146,[1]Цены!$A:$E,5,0) -> 53.93 | H146: =VLOOKUP(B146,[1]Цены!$A:$E,4,0) -> шт | I146: =IFERROR(VLOOKUP(B146,'[1]Хар-ки'!$A:$E,5,0),"") -> 60 | J146: =VLOOKUP(B146,'[1]Хар-ки'!$A:$F,6,0) -> 0,069 | K146: =VLOOKUP(B146,'[1]Хар-ки'!$A:$G,7,0) -> 0,000360
B147: PA14542PG | C147: =IFERROR(VLOOKUP(B147,'[1]Хар-ки'!$A:$B,2,0),"") -> PP-R Тройник переходной Серый | D147: =IFERROR(VLOOKUP(B147,'[1]Хар-ки'!$A:$C,3,0),0) -> 40-32-40 | E147: =IFERROR(VLOOKUP(B147,'[1]Хар-ки'!$A:$D,4,0),0) -> Обычная | F147: =VLOOKUP(B147,[1]Цены!$A:$C,3,0) -> RUR | G147: =VLOOKUP(B147,[1]Цены!$A:$E,5,0) -> 60.10 | H147: =VLOOKUP(B147,[1]Цены!$A:$E,4,0) -> шт | I147: =IFERROR(VLOOKUP(B147,'[1]Хар-ки'!$A:$E,5,0),"") -> 60 | J147: =VLOOKUP(B147,'[1]Хар-ки'!$A:$F,6,0) -> 0,080 | K147: =VLOOKUP(B147,'[1]Хар-ки'!$A:$G,7,0) -> 0,000360
B148: PA14550PG | C148: =IFERROR(VLOOKUP(B148,'[1]Хар-ки'!$A:$B,2,0),"") -> PP-R Тройник переходной Серый | D148: =IFERROR(VLOOKUP(B148,'[1]Хар-ки'!$A:$C,3,0),0) -> 50-25-50 | E148: =IFERROR(VLOOKUP(B148,'[1]Хар-ки'!$A:$D,4,0),0) -> Обычная | F148: =VLOOKUP(B148,[1]Цены!$A:$C,3,0) -> RUR | G148: =VLOOKUP(B148,[1]Цены!$A:$E,5,0) -> 95.98 | H148: =VLOOKUP(B148,[1]Цены!$A:$E,4,0) -> шт | I148: =IFERROR(VLOOKUP(B148,'[1]Хар-ки'!$A:$E,5,0),"") -> 40 | J148: =VLOOKUP(B148,'[1]Хар-ки'!$A:$F,6,0) -> 0,123 | K148: =VLOOKUP(B148,'[1]Хар-ки'!$A:$G,7,0) -> 0,000540
B149: PA14551PG | C149: =IFERROR(VLOOKUP(B149,'[1]Хар-ки'!$A:$B,2,0),"") -> PP-R Тройник переходной Серый | D149: =IFERROR(VLOOKUP(B149,'[1]Хар-ки'!$A:$C,3,0),0) -> 50-32-50 | E149: =IFERROR(VLOOKUP(B149,'[1]Хар-ки'!$A:$D,4,0),0) -> Обычная | F149: =VLOOKUP(B149,[1]Цены!$A:$C,3,0) -> RUR | G149: =VLOOKUP(B149,[1]Цены!$A:$E,5,0) -> 110.92 | H149: =VLOOKUP(B149,[1]Цены!$A:$E,4,0) -> шт | I149: =IFERROR(VLOOKUP(B149,'[1]Хар-ки'!$A:$E,5,0),"") -> 40 | J149: =VLOOKUP(B149,'[1]Хар-ки'!$A:$F,6,0) -> 0,132 | K149: =VLOOKUP(B149,'[1]Хар-ки'!$A:$G,7,0) -> 0,000540
B150: PA14552PG | C150: =IFERROR(VLOOKUP(B150,'[1]Хар-ки'!$A:$B,2,0),"") -> PP-R Тройник переходной Серый | D150: =IFERROR(VLOOKUP(B150,'[1]Хар-ки'!$A:$C,3,0),0) -> 50-40-50 | E150: =IFERROR(VLOOKUP(B150,'[1]Хар-ки'!$A:$D,4,0),0) -> Обычная | F150: =VLOOKUP(B150,[1]Цены!$A:$C,3,0) -> RUR | G150: =VLOOKUP(B150,[1]Цены!$A:$E,5,0) -> 145.55 | H150: =VLOOKUP(B150,[1]Цены!$A:$E,4,0) -> шт | I150: =IFERROR(VLOOKUP(B150,'[1]Хар-ки'!$A:$E,5,0),"") -> 32 | J150: =VLOOKUP(B150,'[1]Хар-ки'!$A:$F,6,0) -> 0,152 | K150: =VLOOKUP(B150,'[1]Хар-ки'!$A:$G,7,0) -> 0,000675
B151: PA14559PG | C151: =IFERROR(VLOOKUP(B151,'[1]Хар-ки'!$A:$B,2,0),"") -> PP-R Тройник переходной Серый | D151: =IFERROR(VLOOKUP(B151,'[1]Хар-ки'!$A:$C,3,0),0) -> 50-20-50 | E151: =IFERROR(VLOOKUP(B151,'[1]Хар-ки'!$A:$D,4,0),0) -> Обычная | F151: =VLOOKUP(B151,[1]Цены!$A:$C,3,0) -> RUR | G151: =VLOOKUP(B151,[1]Цены!$A:$E,5,0) -> 71.90 | H151: =VLOOKUP(B151,[1]Цены!$A:$E,4,0) -> шт | I151: =IFERROR(VLOOKUP(B151,'[1]Хар-ки'!$A:$E,5,0),"") -> 40 | J151: =VLOOKUP(B151,'[1]Хар-ки'!$A:$F,6,0) -> 0,117 | K151: =VLOOKUP(B151,'[1]Хар-ки'!$A:$G,7,0) -> 0,000540
B152: PA14560PG | C152: =IFERROR(VLOOKUP(B152,'[1]Хар-ки'!$A:$B,2,0),"") -> PP-R Тройник переходной Серый | D152: =IFERROR(VLOOKUP(B152,'[1]Хар-ки'!$A:$C,3,0),0) -> 63-20-63 | E152: =IFERROR(VLOOKUP(B152,'[1]Хар-ки'!$A:$D,4,0),0) -> Обычная | F152: =VLOOKUP(B152,[1]Цены!$A:$C,3,0) -> RUR | G152: =VLOOKUP(B152,[1]Цены!$A:$E,5,0) -> 171.96 | H152: =VLOOKUP(B152,[1]Цены!$A:$E,4,0) -> шт | I152: =IFERROR(VLOOKUP(B152,'[1]Хар-ки'!$A:$E,5,0),"") -> 24 | J152: =VLOOKUP(B152,'[1]Хар-ки'!$A:$F,6,0) -> 0,192 | K152: =VLOOKUP(B152,'[1]Хар-ки'!$A:$G,7,0) -> 0,000900
B153: PA14562PG | C153: =IFERROR(VLOOKUP(B153,'[1]Хар-ки'!$A:$B,2,0),"") -> PP-R Тройник переходной Серый | D153: =IFERROR(VLOOKUP(B153,'[1]Хар-ки'!$A:$C,3,0),0) -> 63-25-63 | E153: =IFERROR(VLOOKUP(B153,'[1]Хар-ки'!$A:$D,4,0),0) -> Обычная | F153: =VLOOKUP(B153,[1]Цены!$A:$C,3,0) -> RUR | G153: =VLOOKUP(B153,[1]Цены!$A:$E,5,0) -> 177.36 | H153: =VLOOKUP(B153,[1]Цены!$A:$E,4,0) -> шт | I153: =IFERROR(VLOOKUP(B153,'[1]Хар-ки'!$A:$E,5,0),"") -> 24 | J153: =VLOOKUP(B153,'[1]Хар-ки'!$A:$F,6,0) -> 0,207 | K153: =VLOOKUP(B153,'[1]Хар-ки'!$A:$G,7,0) -> 0,000900
B154: PA14563PG | C154: =IFERROR(VLOOKUP(B154,'[1]Хар-ки'!$A:$B,2,0),"") -> PP-R Тройник переходной Серый | D154: =IFERROR(VLOOKUP(B154,'[1]Хар-ки'!$A:$C,3,0),0) -> 63-32-63 | E154: =IFERROR(VLOOKUP(B154,'[1]Хар-ки'!$A:$D,4,0),0) -> Обычная | F154: =VLOOKUP(B154,[1]Цены!$A:$C,3,0) -> RUR | G154: =VLOOKUP(B154,[1]Цены!$A:$E,5,0) -> 180.60 | H154: =VLOOKUP(B154,[1]Цены!$A:$E,4,0) -> шт | I154: =IFERROR(VLOOKUP(B154,'[1]Хар-ки'!$A:$E,5,0),"") -> 24 | J154: =VLOOKUP(B154,'[1]Хар-ки'!$A:$F,6,0) -> 0,228 | K154: =VLOOKUP(B154,'[1]Хар-ки'!$A:$G,7,0) -> 0,000900
B155: PA14564PG | C155: =IFERROR(VLOOKUP(B155,'[1]Хар-ки'!$A:$B,2,0),"") -> PP-R Тройник переходной Серый | D155: =IFERROR(VLOOKUP(B155,'[1]Хар-ки'!$A:$C,3,0),0) -> 63-40-63 | E155: =IFERROR(VLOOKUP(B155,'[1]Хар-ки'!$A:$D,4,0),0) -> Обычная | F155: =VLOOKUP(B155,[1]Цены!$A:$C,3,0) -> RUR | G155: =VLOOKUP(B155,[1]Цены!$A:$E,5,0) -> 213.79 | H155: =VLOOKUP(B155,[1]Цены!$A:$E,4,0) -> шт | I155: =IFERROR(VLOOKUP(B155,'[1]Хар-ки'!$A:$E,5,0),"") -> 16 | J155: =VLOOKUP(B155,'[1]Хар-ки'!$A:$F,6,0) -> 0,246 | K155: =VLOOKUP(B155,'[1]Хар-ки'!$A:$G,7,0) -> 0,001325
B156: PA14565PG | C156: =IFERROR(VLOOKUP(B156,'[1]Хар-ки'!$A:$B,2,0),"") -> PP-R Тройник переходной Серый | D156: =IFERROR(VLOOKUP(B156,'[1]Хар-ки'!$A:$C,3,0),0) -> 63-50-63 | E156: =IFERROR(VLOOKUP(B156,'[1]Хар-ки'!$A:$D,4,0),0) -> Обычная | F156: =VLOOKUP(B156,[1]Цены!$A:$C,3,0) -> RUR | G156: =VLOOKUP(B156,[1]Цены!$A:$E,5,0) -> 295.33 | H156: =VLOOKUP(B156,[1]Цены!$A:$E,4,0) -> шт | I156: =IFERROR(VLOOKUP(B156,'[1]Хар-ки'!$A:$E,5,0),"") -> 16 | J156: =VLOOKUP(B156,'[1]Хар-ки'!$A:$F,6,0) -> 0,279 | K156: =VLOOKUP(B156,'[1]Хар-ки'!$A:$G,7,0) -> 0,001325
B157: PA14570PG | C157: =IFERROR(VLOOKUP(B157,'[1]Хар-ки'!$A:$B,2,0),"") -> PP-R Тройник переходной Серый | D157: =IFERROR(VLOOKUP(B157,'[1]Хар-ки'!$A:$C,3,0),0) -> 75-25-75 | E157: =IFERROR(VLOOKUP(B157,'[1]Хар-ки'!$A:$D,4,0),0) -> Обычная | F157: =VLOOKUP(B157,[1]Цены!$A:$C,3,0) -> RUR | G157: =VLOOKUP(B157,[1]Цены!$A:$E,5,0) -> 329.59 | H157: =VLOOKUP(B157,[1]Цены!$A:$E,4,0) -> шт | I157: =IFERROR(VLOOKUP(B157,'[1]Хар-ки'!$A:$E,5,0),"") -> 12 | J157: =VLOOKUP(B157,'[1]Хар-ки'!$A:$F,6,0) -> 0,349 | K157: =VLOOKUP(B157,'[1]Хар-ки'!$A:$G,7,0) -> 0,001300
B158: PA14571PG | C158: =IFERROR(VLOOKUP(B158,'[1]Хар-ки'!$A:$B,2,0),"") -> PP-R Тройник переходной Серый | D158: =IFERROR(VLOOKUP(B158,'[1]Хар-ки'!$A:$C,3,0),0) -> 75-32-75 | E158: =IFERROR(VLOOKUP(B158,'[1]Хар-ки'!$A:$D,4,0),0) -> Обычная | F158: =VLOOKUP(B158,[1]Цены!$A:$C,3,0) -> RUR | G158: =VLOOKUP(B158,[1]Цены!$A:$E,5,0) -> 330.12 | H158: =VLOOKUP(B158,[1]Цены!$A:$E,4,0) -> шт | I158: =IFERROR(VLOOKUP(B158,'[1]Хар-ки'!$A:$E,5,0),"") -> 12 | J158: =VLOOKUP(B158,'[1]Хар-ки'!$A:$F,6,0) -> 0,366 | K158: =VLOOKUP(B158,'[1]Хар-ки'!$A:$G,7,0) -> 0,001350
B159: PA14572PG | C159: =IFERROR(VLOOKUP(B159,'[1]Хар-ки'!$A:$B,2,0),"") -> PP-R Тройник переходной Серый | D159: =IFERROR(VLOOKUP(B159,'[1]Хар-ки'!$A:$C,3,0),0) -> 75-40-75 | E159: =IFERROR(VLOOKUP(B159,'[1]Хар-ки'!$A:$D,4,0),0) -> Обычная | F159: =VLOOKUP(B159,[1]Цены!$A:$C,3,0) -> RUR | G159: =VLOOKUP(B159,[1]Цены!$A:$E,5,0) -> 482.94 | H159: =VLOOKUP(B159,[1]Цены!$A:$E,4,0) -> шт | I159: =IFERROR(VLOOKUP(B159,'[1]Хар-ки'!$A:$E,5,0),"") -> 10 | J159: =VLOOKUP(B159,'[1]Хар-ки'!$A:$F,6,0) -> 0,378 | K159: =VLOOKUP(B159,'[1]Хар-ки'!$A:$G,7,0) -> 0,001560
B160: PA14573PG | C160: =IFERROR(VLOOKUP(B160,'[1]Хар-ки'!$A:$B,2,0),"") -> PP-R Тройник переходной Серый | D160: =IFERROR(VLOOKUP(B160,'[1]Хар-ки'!$A:$C,3,0),0) -> 75-50-75 | E160: =IFERROR(VLOOKUP(B160,'[1]Хар-ки'!$A:$D,4,0),0) -> Обычная | F160: =VLOOKUP(B160,[1]Цены!$A:$C,3,0) -> RUR | G160: =VLOOKUP(B160,[1]Цены!$A:$E,5,0) -> 488.88 | H160: =VLOOKUP(B160,[1]Цены!$A:$E,4,0) -> шт | I160: =IFERROR(VLOOKUP(B160,'[1]Хар-ки'!$A:$E,5,0),"") -> 10 | J160: =VLOOKUP(B160,'[1]Хар-ки'!$A:$F,6,0) -> 0,432 | K160: =VLOOKUP(B160,'[1]Хар-ки'!$A:$G,7,0) -> 0,001560
B161: PA14574PG | C161: =IFERROR(VLOOKUP(B161,'[1]Хар-ки'!$A:$B,2,0),"") -> PP-R Тройник переходной Серый | D161: =IFERROR(VLOOKUP(B161,'[1]Хар-ки'!$A:$C,3,0),0) -> 75-63-75 | E161: =IFERROR(VLOOKUP(B161,'[1]Хар-ки'!$A:$D,4,0),0) -> Обычная | F161: =VLOOKUP(B161,[1]Цены!$A:$C,3,0) -> RUR | G161: =VLOOKUP(B161,[1]Цены!$A:$E,5,0) -> 492.29 | H161: =VLOOKUP(B161,[1]Цены!$A:$E,4,0) -> шт | I161: =IFERROR(VLOOKUP(B161,'[1]Хар-ки'!$A:$E,5,0),"") -> 8 | J161: =VLOOKUP(B161,'[1]Хар-ки'!$A:$F,6,0) -> 0,520 | K161: =VLOOKUP(B161,'[1]Хар-ки'!$A:$G,7,0) -> 0,002025
B162: PA14578PG | C162: =IFERROR(VLOOKUP(B162,'[1]Хар-ки'!$A:$B,2,0),"") -> PP-R Тройник переходной Серый | D162: =IFERROR(VLOOKUP(B162,'[1]Хар-ки'!$A:$C,3,0),0) -> 90-40-90 | E162: =IFERROR(VLOOKUP(B162,'[1]Хар-ки'!$A:$D,4,0),0) -> Обычная | F162: =VLOOKUP(B162,[1]Цены!$A:$C,3,0) -> RUR | G162: =VLOOKUP(B162,[1]Цены!$A:$E,5,0) -> 505.06 | H162: =VLOOKUP(B162,[1]Цены!$A:$E,4,0) -> шт | I162: =IFERROR(VLOOKUP(B162,'[1]Хар-ки'!$A:$E,5,0),"") -> 4 | J162: =VLOOKUP(B162,'[1]Хар-ки'!$A:$F,6,0) -> 0,767 | K162: =VLOOKUP(B162,'[1]Хар-ки'!$A:$G,7,0) -> 0,004050
B163: PA14580PG | C163: =IFERROR(VLOOKUP(B163,'[1]Хар-ки'!$A:$B,2,0),"") -> PP-R Тройник переходной Серый | D163: =IFERROR(VLOOKUP(B163,'[1]Хар-ки'!$A:$C,3,0),0) -> 90-50-90 | E163: =IFERROR(VLOOKUP(B163,'[1]Хар-ки'!$A:$D,4,0),0) -> Обычная | F163: =VLOOKUP(B163,[1]Цены!$A:$C,3,0) -> RUR | G163: =VLOOKUP(B163,[1]Цены!$A:$E,5,0) -> 822.08 | H163: =VLOOKUP(B163,[1]Цены!$A:$E,4,0) -> шт | I163: =IFERROR(VLOOKUP(B163,'[1]Хар-ки'!$A:$E,5,0),"") -> 4 | J163: =VLOOKUP(B163,'[1]Хар-ки'!$A:$F,6,0) -> 0,765 | K163: =VLOOKUP(B163,'[1]Хар-ки'!$A:$G,7,0) -> 0,004050
B164: PA14582PG | C164: =IFERROR(VLOOKUP(B164,'[1]Хар-ки'!$A:$B,2,0),"") -> PP-R Тройник переходной Серый | D164: =IFERROR(VLOOKUP(B164,'[1]Хар-ки'!$A:$C,3,0),0) -> 90-63-90 | E164: =IFERROR(VLOOKUP(B164,'[1]Хар-ки'!$A:$D,4,0),0) -> Обычная | F164: =VLOOKUP(B164,[1]Цены!$A:$C,3,0) -> RUR | G164: =VLOOKUP(B164,[1]Цены!$A:$E,5,0) -> 942.72 | H164: =VLOOKUP(B164,[1]Цены!$A:$E,4,0) -> шт | I164: =IFERROR(VLOOKUP(B164,'[1]Хар-ки'!$A:$E,5,0),"") -> 4 | J164: =VLOOKUP(B164,'[1]Хар-ки'!$A:$F,6,0) -> 0,757 | K164: =VLOOKUP(B164,'[1]Хар-ки'!$A:$G,7,0) -> 0,004050
B165: PA14584PG | C165: =IFERROR(VLOOKUP(B165,'[1]Хар-ки'!$A:$B,2,0),"") -> PP-R Тройник переходной Серый | D165: =IFERROR(VLOOKUP(B165,'[1]Хар-ки'!$A:$C,3,0),0) -> 90-75-90 | E165: =IFERROR(VLOOKUP(B165,'[1]Хар-ки'!$A:$D,4,0),0) -> Обычная | F165: =VLOOKUP(B165,[1]Цены!$A:$C,3,0) -> RUR | G165: =VLOOKUP(B165,[1]Цены!$A:$E,5,0) -> 960.02 | H165: =VLOOKUP(B165,[1]Цены!$A:$E,4,0) -> шт | I165: =IFERROR(VLOOKUP(B165,'[1]Хар-ки'!$A:$E,5,0),"") -> 4 | J165: =VLOOKUP(B165,'[1]Хар-ки'!$A:$F,6,0) -> 0,788 | K165: =VLOOKUP(B165,'[1]Хар-ки'!$A:$G,7,0) -> 0,004050
B166: PA14586G | C166: =IFERROR(VLOOKUP(B166,'[1]Хар-ки'!$A:$B,2,0),"") -> PP-R Тройник переходной Серый | D166: =IFERROR(VLOOKUP(B166,'[1]Хар-ки'!$A:$C,3,0),0) -> 110-50-110 | E166: =IFERROR(VLOOKUP(B166,'[1]Хар-ки'!$A:$D,4,0),0) -> Обычная | F166: =VLOOKUP(B166,[1]Цены!$A:$C,3,0) -> RUR | G166: =VLOOKUP(B166,[1]Цены!$A:$E,5,0) -> 960.84 | H166: =VLOOKUP(B166,[1]Цены!$A:$E,4,0) -> шт | I166: =IFERROR(VLOOKUP(B166,'[1]Хар-ки'!$A:$E,5,0),"") -> 2 | J166: =VLOOKUP(B166,'[1]Хар-ки'!$A:$F,6,0) -> 0,962 | K166: =VLOOKUP(B166,'[1]Хар-ки'!$A:$G,7,0) -> 0,009360
B167: PA14596PG | C167: =IFERROR(VLOOKUP(B167,'[1]Хар-ки'!$A:$B,2,0),"") -> PP-R Тройник переходной Серый | D167: =IFERROR(VLOOKUP(B167,'[1]Хар-ки'!$A:$C,3,0),0) -> 110-63-110 | E167: =IFERROR(VLOOKUP(B167,'[1]Хар-ки'!$A:$D,4,0),0) -> Обычная | F167: =VLOOKUP(B167,[1]Цены!$A:$C,3,0) -> RUR | G167: =VLOOKUP(B167,[1]Цены!$A:$E,5,0) -> 1,140.64 | H167: =VLOOKUP(B167,[1]Цены!$A:$E,4,0) -> шт | I167: =IFERROR(VLOOKUP(B167,'[1]Хар-ки'!$A:$E,5,0),"") -> 2 | J167: =VLOOKUP(B167,'[1]Хар-ки'!$A:$F,6,0) -> 1,109 | K167: =VLOOKUP(B167,'[1]Хар-ки'!$A:$G,7,0) -> 0,005400
B168: PA14598PG | C168: =IFERROR(VLOOKUP(B168,'[1]Хар-ки'!$A:$B,2,0),"") -> PP-R Тройник переходной Серый | D168: =IFERROR(VLOOKUP(B168,'[1]Хар-ки'!$A:$C,3,0),0) -> 110-75-110 | E168: =IFERROR(VLOOKUP(B168,'[1]Хар-ки'!$A:$D,4,0),0) -> Обычная | F168: =VLOOKUP(B168,[1]Цены!$A:$C,3,0) -> RUR | G168: =VLOOKUP(B168,[1]Цены!$A:$E,5,0) -> 1,552.28 | H168: =VLOOKUP(B168,[1]Цены!$A:$E,4,0) -> шт | I168: =IFERROR(VLOOKUP(B168,'[1]Хар-ки'!$A:$E,5,0),"") -> 2 | J168: =VLOOKUP(B168,'[1]Хар-ки'!$A:$F,6,0) -> 1,183 | K168: =VLOOKUP(B168,'[1]Хар-ки'!$A:$G,7,0) -> 0,005400
B169: PA14600PG | C169: =IFERROR(VLOOKUP(B169,'[1]Хар-ки'!$A:$B,2,0),"") -> PP-R Тройник переходной Серый | D169: =IFERROR(VLOOKUP(B169,'[1]Хар-ки'!$A:$C,3,0),0) -> 110-90-110 | E169: =IFERROR(VLOOKUP(B169,'[1]Хар-ки'!$A:$D,4,0),0) -> Обычная | F169: =VLOOKUP(B169,[1]Цены!$A:$C,3,0) -> RUR | G169: =VLOOKUP(B169,[1]Цены!$A:$E,5,0) -> 1,620.47 | H169: =VLOOKUP(B169,[1]Цены!$A:$E,4,0) -> шт | I169: =IFERROR(VLOOKUP(B169,'[1]Хар-ки'!$A:$E,5,0),"") -> 2 | J169: =VLOOKUP(B169,'[1]Хар-ки'!$A:$F,6,0) -> 1,303 | K169: =VLOOKUP(B169,'[1]Хар-ки'!$A:$G,7,0) -> 0,005400
B170: PA17308PG | C170: =IFERROR(VLOOKUP(B170,'[1]Хар-ки'!$A:$B,2,0),"") -> PP-R Тройник двухплоскостной Серый | D170: =IFERROR(VLOOKUP(B170,'[1]Хар-ки'!$A:$C,3,0),0) -> 20 | E170: =IFERROR(VLOOKUP(B170,'[1]Хар-ки'!$A:$D,4,0),0) -> Обычная | F170: =VLOOKUP(B170,[1]Цены!$A:$C,3,0) -> RUR | G170: =VLOOKUP(B170,[1]Цены!$A:$E,5,0) -> 19.54 | H170: =VLOOKUP(B170,[1]Цены!$A:$E,4,0) -> шт | I170: =IFERROR(VLOOKUP(B170,'[1]Хар-ки'!$A:$E,5,0),"") -> 200 | J170: =VLOOKUP(B170,'[1]Хар-ки'!$A:$F,6,0) -> 0,021 | K170: =VLOOKUP(B170,'[1]Хар-ки'!$A:$G,7,0) -> 0,000106
B171: PA17310PG | C171: =IFERROR(VLOOKUP(B171,'[1]Хар-ки'!$A:$B,2,0),"") -> PP-R Тройник двухплоскостной Серый | D171: =IFERROR(VLOOKUP(B171,'[1]Хар-ки'!$A:$C,3,0),0) -> 25 | E171: =IFERROR(VLOOKUP(B171,'[1]Хар-ки'!$A:$D,4,0),0) -> Обычная | F171: =VLOOKUP(B171,[1]Цены!$A:$C,3,0) -> RUR | G171: =VLOOKUP(B171,[1]Цены!$A:$E,5,0) -> 24.54 | H171: =VLOOKUP(B171,[1]Цены!$A:$E,4,0) -> шт | I171: =IFERROR(VLOOKUP(B171,'[1]Хар-ки'!$A:$E,5,0),"") -> 150 | J171: =VLOOKUP(B171,'[1]Хар-ки'!$A:$F,6,0) -> 0,031 | K171: =VLOOKUP(B171,'[1]Хар-ки'!$A:$G,7,0) -> 0,000141
B172: PA15008PG | C172: =IFERROR(VLOOKUP(B172,'[1]Хар-ки'!$A:$B,2,0),"") -> PP-R Заглушка Серая | D172: =IFERROR(VLOOKUP(B172,'[1]Хар-ки'!$A:$C,3,0),0) -> 20 | E172: =IFERROR(VLOOKUP(B172,'[1]Хар-ки'!$A:$D,4,0),0) -> Обычная | F172: =VLOOKUP(B172,[1]Цены!$A:$C,3,0) -> RUR | G172: =VLOOKUP(B172,[1]Цены!$A:$E,5,0) -> 5.74 | H172: =VLOOKUP(B172,[1]Цены!$A:$E,4,0) -> шт | I172: =IFERROR(VLOOKUP(B172,'[1]Хар-ки'!$A:$E,5,0),"") -> 600 | J172: =VLOOKUP(B172,'[1]Хар-ки'!$A:$F,6,0) -> 0,010 | K172: =VLOOKUP(B172,'[1]Хар-ки'!$A:$G,7,0) -> 0,000036
B173: PA15010PG | C173: =IFERROR(VLOOKUP(B173,'[1]Хар-ки'!$A:$B,2,0),"") -> PP-R Заглушка Серая | D173: =IFERROR(VLOOKUP(B173,'[1]Хар-ки'!$A:$C,3,0),0) -> 25 | E173: =IFERROR(VLOOKUP(B173,'[1]Хар-ки'!$A:$D,4,0),0) -> Обычная | F173: =VLOOKUP(B173,[1]Цены!$A:$C,3,0) -> RUR | G173: =VLOOKUP(B173,[1]Цены!$A:$E,5,0) -> 8.15 | H173: =VLOOKUP(B173,[1]Цены!$A:$E,4,0) -> шт | I173: =IFERROR(VLOOKUP(B173,'[1]Хар-ки'!$A:$E,5,0),"") -> 400 | J173: =VLOOKUP(B173,'[1]Хар-ки'!$A:$F,6,0) -> 0,014 | K173: =VLOOKUP(B173,'[1]Хар-ки'!$A:$G,7,0) -> 0,000054
B174: PA15012PG | C174: =IFERROR(VLOOKUP(B174,'[1]Хар-ки'!$A:$B,2,0),"") -> PP-R Заглушка Серая | D174: =IFERROR(VLOOKUP(B174,'[1]Хар-ки'!$A:$C,3,0),0) -> 32 | E174: =IFERROR(VLOOKUP(B174,'[1]Хар-ки'!$A:$D,4,0),0) -> Обычная | F174: =VLOOKUP(B174,[1]Цены!$A:$C,3,0) -> RUR | G174: =VLOOKUP(B174,[1]Цены!$A:$E,5,0) -> 15.37 | H174: =VLOOKUP(B174,[1]Цены!$A:$E,4,0) -> шт | I174: =IFERROR(VLOOKUP(B174,'[1]Хар-ки'!$A:$E,5,0),"") -> 200 | J174: =VLOOKUP(B174,'[1]Хар-ки'!$A:$F,6,0) -> 0,024 | K174: =VLOOKUP(B174,'[1]Хар-ки'!$A:$G,7,0) -> 0,000108
B175: PA15014PG | C175: =IFERROR(VLOOKUP(B175,'[1]Хар-ки'!$A:$B,2,0),"") -> PP-R Заглушка Серая | D175: =IFERROR(VLOOKUP(B175,'[1]Хар-ки'!$A:$C,3,0),0) -> 40 | E175: =IFERROR(VLOOKUP(B175,'[1]Хар-ки'!$A:$D,4,0),0) -> Обычная | F175: =VLOOKUP(B175,[1]Цены!$A:$C,3,0) -> RUR | G175: =VLOOKUP(B175,[1]Цены!$A:$E,5,0) -> 31.63 | H175: =VLOOKUP(B175,[1]Цены!$A:$E,4,0) -> шт | I175: =IFERROR(VLOOKUP(B175,'[1]Хар-ки'!$A:$E,5,0),"") -> 150 | J175: =VLOOKUP(B175,'[1]Хар-ки'!$A:$F,6,0) -> 0,041 | K175: =VLOOKUP(B175,'[1]Хар-ки'!$A:$G,7,0) -> 0,000144
B176: PA15016PG | C176: =IFERROR(VLOOKUP(B176,'[1]Хар-ки'!$A:$B,2,0),"") -> PP-R Заглушка Серая | D176: =IFERROR(VLOOKUP(B176,'[1]Хар-ки'!$A:$C,3,0),0) -> 50 | E176: =IFERROR(VLOOKUP(B176,'[1]Хар-ки'!$A:$D,4,0),0) -> Обычная | F176: =VLOOKUP(B176,[1]Цены!$A:$C,3,0) -> RUR | G176: =VLOOKUP(B176,[1]Цены!$A:$E,5,0) -> 54.23 | H176: =VLOOKUP(B176,[1]Цены!$A:$E,4,0) -> шт | I176: =IFERROR(VLOOKUP(B176,'[1]Хар-ки'!$A:$E,5,0),"") -> 80 | J176: =VLOOKUP(B176,'[1]Хар-ки'!$A:$F,6,0) -> 0,069 | K176: =VLOOKUP(B176,'[1]Хар-ки'!$A:$G,7,0) -> 0,000203
B177: PA15018PG | C177: =IFERROR(VLOOKUP(B177,'[1]Хар-ки'!$A:$B,2,0),"") -> PP-R Заглушка Серая | D177: =IFERROR(VLOOKUP(B177,'[1]Хар-ки'!$A:$C,3,0),0) -> 63 | E177: =IFERROR(VLOOKUP(B177,'[1]Хар-ки'!$A:$D,4,0),0) -> Обычная | F177: =VLOOKUP(B177,[1]Цены!$A:$C,3,0) -> RUR | G177: =VLOOKUP(B177,[1]Цены!$A:$E,5,0) -> 115.39 | H177: =VLOOKUP(B177,[1]Цены!$A:$E,4,0) -> шт | I177: =IFERROR(VLOOKUP(B177,'[1]Хар-ки'!$A:$E,5,0),"") -> 48 | J177: =VLOOKUP(B177,'[1]Хар-ки'!$A:$F,6,0) -> 0,121 | K177: =VLOOKUP(B177,'[1]Хар-ки'!$A:$G,7,0) -> 0,000450
B178: PA15020PG | C178: =IFERROR(VLOOKUP(B178,'[1]Хар-ки'!$A:$B,2,0),"") -> PP-R Заглушка Серая | D178: =IFERROR(VLOOKUP(B178,'[1]Хар-ки'!$A:$C,3,0),0) -> 75 | E178: =IFERROR(VLOOKUP(B178,'[1]Хар-ки'!$A:$D,4,0),0) -> Обычная | F178: =VLOOKUP(B178,[1]Цены!$A:$C,3,0) -> RUR | G178: =VLOOKUP(B178,[1]Цены!$A:$E,5,0) -> 233.58 | H178: =VLOOKUP(B178,[1]Цены!$A:$E,4,0) -> шт | I178: =IFERROR(VLOOKUP(B178,'[1]Хар-ки'!$A:$E,5,0),"") -> 30 | J178: =VLOOKUP(B178,'[1]Хар-ки'!$A:$F,6,0) -> 0,204 | K178: =VLOOKUP(B178,'[1]Хар-ки'!$A:$G,7,0) -> 0,000540
B179: PA15022PG | C179: =IFERROR(VLOOKUP(B179,'[1]Хар-ки'!$A:$B,2,0),"") -> PP-R Заглушка Серая | D179: =IFERROR(VLOOKUP(B179,'[1]Хар-ки'!$A:$C,3,0),0) -> 90 | E179: =IFERROR(VLOOKUP(B179,'[1]Хар-ки'!$A:$D,4,0),0) -> Обычная | F179: =VLOOKUP(B179,[1]Цены!$A:$C,3,0) -> RUR | G179: =VLOOKUP(B179,[1]Цены!$A:$E,5,0) -> 288.92 | H179: =VLOOKUP(B179,[1]Цены!$A:$E,4,0) -> шт | I179: =IFERROR(VLOOKUP(B179,'[1]Хар-ки'!$A:$E,5,0),"") -> 18 | J179: =VLOOKUP(B179,'[1]Хар-ки'!$A:$F,6,0) -> 0,334 | K179: =VLOOKUP(B179,'[1]Хар-ки'!$A:$G,7,0) -> 0,001200
B180: PA15024G | C180: =IFERROR(VLOOKUP(B180,'[1]Хар-ки'!$A:$B,2,0),"") -> PP-R Заглушка Серая | D180: =IFERROR(VLOOKUP(B180,'[1]Хар-ки'!$A:$C,3,0),0) -> 110 | E180: =IFERROR(VLOOKUP(B180,'[1]Хар-ки'!$A:$D,4,0),0) -> Обычная | F180: =VLOOKUP(B180,[1]Цены!$A:$C,3,0) -> RUR | G180: =VLOOKUP(B180,[1]Цены!$A:$E,5,0) -> 457.54 | H180: =VLOOKUP(B180,[1]Цены!$A:$E,4,0) -> шт | I180: =IFERROR(VLOOKUP(B180,'[1]Хар-ки'!$A:$E,5,0),"") -> 8 | J180: =VLOOKUP(B180,'[1]Хар-ки'!$A:$F,6,0) -> 0,534 | K180: =VLOOKUP(B180,'[1]Хар-ки'!$A:$G,7,0) -> 0,002500
B181: PA15508PG | C181: =IFERROR(VLOOKUP(B181,'[1]Хар-ки'!$A:$B,2,0),"") -> PP-R Заглушка резьбовая Серая 20 | D181: =IFERROR(VLOOKUP(B181,'[1]Хар-ки'!$A:$C,3,0),0) -> 1/2 | E181: =IFERROR(VLOOKUP(B181,'[1]Хар-ки'!$A:$D,4,0),0) -> Обычная | F181: =VLOOKUP(B181,[1]Цены!$A:$C,3,0) -> RUR | G181: =VLOOKUP(B181,[1]Цены!$A:$E,5,0) -> 5.66 | H181: =VLOOKUP(B181,[1]Цены!$A:$E,4,0) -> шт | I181: =IFERROR(VLOOKUP(B181,'[1]Хар-ки'!$A:$E,5,0),"") -> 600 | J181: =VLOOKUP(B181,'[1]Хар-ки'!$A:$F,6,0) -> 0,008 | K181: =VLOOKUP(B181,'[1]Хар-ки'!$A:$G,7,0) -> 0,000036
B182: PA15510PG | C182: =IFERROR(VLOOKUP(B182,'[1]Хар-ки'!$A:$B,2,0),"") -> PP-R Заглушка резьбовая Серая 25 | D182: =IFERROR(VLOOKUP(B182,'[1]Хар-ки'!$A:$C,3,0),0) -> 3/4 | E182: =IFERROR(VLOOKUP(B182,'[1]Хар-ки'!$A:$D,4,0),0) -> Обычная | F182: =VLOOKUP(B182,[1]Цены!$A:$C,3,0) -> RUR | G182: =VLOOKUP(B182,[1]Цены!$A:$E,5,0) -> 8.15 | H182: =VLOOKUP(B182,[1]Цены!$A:$E,4,0) -> шт | I182: =IFERROR(VLOOKUP(B182,'[1]Хар-ки'!$A:$E,5,0),"") -> 400 | J182: =VLOOKUP(B182,'[1]Хар-ки'!$A:$F,6,0) -> 0,010 | K182: =VLOOKUP(B182,'[1]Хар-ки'!$A:$G,7,0) -> 0,000054
B183: PA16116PG | C183: =IFERROR(VLOOKUP(B183,'[1]Хар-ки'!$A:$B,2,0),"") -> PP-R Обвод с муфтами короткий Серый | D183: =IFERROR(VLOOKUP(B183,'[1]Хар-ки'!$A:$C,3,0),0) -> 20 | E183: =IFERROR(VLOOKUP(B183,'[1]Хар-ки'!$A:$D,4,0),0) -> Обычная | F183: =VLOOKUP(B183,[1]Цены!$A:$C,3,0) -> RUR | G183: =VLOOKUP(B183,[1]Цены!$A:$E,5,0) -> 18.88 | H183: =VLOOKUP(B183,[1]Цены!$A:$E,4,0) -> шт | I183: =IFERROR(VLOOKUP(B183,'[1]Хар-ки'!$A:$E,5,0),"") -> 150 | J183: =VLOOKUP(B183,'[1]Хар-ки'!$A:$F,6,0) -> 0,030 | K183: =VLOOKUP(B183,'[1]Хар-ки'!$A:$G,7,0) -> 0,000108
B184: PA16118PG | C184: =IFERROR(VLOOKUP(B184,'[1]Хар-ки'!$A:$B,2,0),"") -> PP-R Обвод с муфтами короткий Серый | D184: =IFERROR(VLOOKUP(B184,'[1]Хар-ки'!$A:$C,3,0),0) -> 25 | E184: =IFERROR(VLOOKUP(B184,'[1]Хар-ки'!$A:$D,4,0),0) -> Обычная | F184: =VLOOKUP(B184,[1]Цены!$A:$C,3,0) -> RUR | G184: =VLOOKUP(B184,[1]Цены!$A:$E,5,0) -> 29.08 | H184: =VLOOKUP(B184,[1]Цены!$A:$E,4,0) -> шт | I184: =IFERROR(VLOOKUP(B184,'[1]Хар-ки'!$A:$E,5,0),"") -> 80 | J184: =VLOOKUP(B184,'[1]Хар-ки'!$A:$F,6,0) -> 0,049 | K184: =VLOOKUP(B184,'[1]Хар-ки'!$A:$G,7,0) -> 0,000203
B185: PA16120PG | C185: =IFERROR(VLOOKUP(B185,'[1]Хар-ки'!$A:$B,2,0),"") -> PP-R Обвод с муфтами короткий Серый | D185: =IFERROR(VLOOKUP(B185,'[1]Хар-ки'!$A:$C,3,0),0) -> 32 | E185: =IFERROR(VLOOKUP(B185,'[1]Хар-ки'!$A:$D,4,0),0) -> Обычная | F185: =VLOOKUP(B185,[1]Цены!$A:$C,3,0) -> RUR | G185: =VLOOKUP(B185,[1]Цены!$A:$E,5,0) -> 57.94 | H185: =VLOOKUP(B185,[1]Цены!$A:$E,4,0) -> шт | I185: =IFERROR(VLOOKUP(B185,'[1]Хар-ки'!$A:$E,5,0),"") -> 40 | J185: =VLOOKUP(B185,'[1]Хар-ки'!$A:$F,6,0) -> 0,104 | K185: =VLOOKUP(B185,'[1]Хар-ки'!$A:$G,7,0) -> 0,000405
B186: PA16008PG | C186: =IFERROR(VLOOKUP(B186,'[1]Хар-ки'!$A:$B,2,0),"") -> PP-R Обвод Серый | D186: =IFERROR(VLOOKUP(B186,'[1]Хар-ки'!$A:$C,3,0),0) -> 20 | E186: =IFERROR(VLOOKUP(B186,'[1]Хар-ки'!$A:$D,4,0),0) -> Обычная | F186: =VLOOKUP(B186,[1]Цены!$A:$C,3,0) -> RUR | G186: =VLOOKUP(B186,[1]Цены!$A:$E,5,0) -> 36.82 | H186: =VLOOKUP(B186,[1]Цены!$A:$E,4,0) -> шт | I186: =IFERROR(VLOOKUP(B186,'[1]Хар-ки'!$A:$E,5,0),"") -> 100 | J186: =VLOOKUP(B186,'[1]Хар-ки'!$A:$F,6,0) -> 0,050 | K186: =VLOOKUP(B186,'[1]Хар-ки'!$A:$G,7,0) -> 0,000156
B187: PA16010PG | C187: =IFERROR(VLOOKUP(B187,'[1]Хар-ки'!$A:$B,2,0),"") -> PP-R Обвод Серый | D187: =IFERROR(VLOOKUP(B187,'[1]Хар-ки'!$A:$C,3,0),0) -> 25 | E187: =IFERROR(VLOOKUP(B187,'[1]Хар-ки'!$A:$D,4,0),0) -> Обычная | F187: =VLOOKUP(B187,[1]Цены!$A:$C,3,0) -> RUR | G187: =VLOOKUP(B187,[1]Цены!$A:$E,5,0) -> 49.76 | H187: =VLOOKUP(B187,[1]Цены!$A:$E,4,0) -> шт | I187: =IFERROR(VLOOKUP(B187,'[1]Хар-ки'!$A:$E,5,0),"") -> 50 | J187: =VLOOKUP(B187,'[1]Хар-ки'!$A:$F,6,0) -> 0,082 | K187: =VLOOKUP(B187,'[1]Хар-ки'!$A:$G,7,0) -> 0,000312
B188: PA16012PG | C188: =IFERROR(VLOOKUP(B188,'[1]Хар-ки'!$A:$B,2,0),"") -> PP-R Обвод Серый | D188: =IFERROR(VLOOKUP(B188,'[1]Хар-ки'!$A:$C,3,0),0) -> 32 | E188: =IFERROR(VLOOKUP(B188,'[1]Хар-ки'!$A:$D,4,0),0) -> Обычная | F188: =VLOOKUP(B188,[1]Цены!$A:$C,3,0) -> RUR | G188: =VLOOKUP(B188,[1]Цены!$A:$E,5,0) -> 95.70 | H188: =VLOOKUP(B188,[1]Цены!$A:$E,4,0) -> шт | I188: =IFERROR(VLOOKUP(B188,'[1]Хар-ки'!$A:$E,5,0),"") -> 30 | J188: =VLOOKUP(B188,'[1]Хар-ки'!$A:$F,6,0) -> 0,153 | K188: =VLOOKUP(B188,'[1]Хар-ки'!$A:$G,7,0) -> 0,000720
B189: PA16014PG | C189: =IFERROR(VLOOKUP(B189,'[1]Хар-ки'!$A:$B,2,0),"") -> PP-R Обвод Серый | D189: =IFERROR(VLOOKUP(B189,'[1]Хар-ки'!$A:$C,3,0),0) -> 40 | E189: =IFERROR(VLOOKUP(B189,'[1]Хар-ки'!$A:$D,4,0),0) -> Обычная | F189: =VLOOKUP(B189,[1]Цены!$A:$C,3,0) -> RUR | G189: =VLOOKUP(B189,[1]Цены!$A:$E,5,0) -> 216.20 | H189: =VLOOKUP(B189,[1]Цены!$A:$E,4,0) -> шт | I189: =IFERROR(VLOOKUP(B189,'[1]Хар-ки'!$A:$E,5,0),"") -> 20 | J189: =VLOOKUP(B189,'[1]Хар-ки'!$A:$F,6,0) -> 0,285 | K189: =VLOOKUP(B189,'[1]Хар-ки'!$A:$G,7,0) -> 0,000936
B190: PA18006PG | C190: =IFERROR(VLOOKUP(B190,'[1]Хар-ки'!$A:$B,2,0),"") -> PP-R Опора одинарная Серая | D190: =IFERROR(VLOOKUP(B190,'[1]Хар-ки'!$A:$C,3,0),0) -> 16 | E190: =IFERROR(VLOOKUP(B190,'[1]Хар-ки'!$A:$D,4,0),0) -> Обычная | F190: =VLOOKUP(B190,[1]Цены!$A:$C,3,0) -> RUR | G190: =VLOOKUP(B190,[1]Цены!$A:$E,5,0) -> 3.18 | H190: =VLOOKUP(B190,[1]Цены!$A:$E,4,0) -> шт | I190: =IFERROR(VLOOKUP(B190,'[1]Хар-ки'!$A:$E,5,0),"") -> 800 | J190: =VLOOKUP(B190,'[1]Хар-ки'!$A:$F,6,0) -> 0,005 | K190: =VLOOKUP(B190,'[1]Хар-ки'!$A:$G,7,0) -> 0,000027
B191: PA18008PG | C191: =IFERROR(VLOOKUP(B191,'[1]Хар-ки'!$A:$B,2,0),"") -> PP-R Опора одинарная Серая | D191: =IFERROR(VLOOKUP(B191,'[1]Хар-ки'!$A:$C,3,0),0) -> 20 | E191: =IFERROR(VLOOKUP(B191,'[1]Хар-ки'!$A:$D,4,0),0) -> Обычная | F191: =VLOOKUP(B191,[1]Цены!$A:$C,3,0) -> RUR | G191: =VLOOKUP(B191,[1]Цены!$A:$E,5,0) -> 3.94 | H191: =VLOOKUP(B191,[1]Цены!$A:$E,4,0) -> шт | I191: =IFERROR(VLOOKUP(B191,'[1]Хар-ки'!$A:$E,5,0),"") -> 500 | J191: =VLOOKUP(B191,'[1]Хар-ки'!$A:$F,6,0) -> 0,007 | K191: =VLOOKUP(B191,'[1]Хар-ки'!$A:$G,7,0) -> 0,000042
B192: PA18010PG | C192: =IFERROR(VLOOKUP(B192,'[1]Хар-ки'!$A:$B,2,0),"") -> PP-R Опора одинарная Серая | D192: =IFERROR(VLOOKUP(B192,'[1]Хар-ки'!$A:$C,3,0),0) -> 25 | E192: =IFERROR(VLOOKUP(B192,'[1]Хар-ки'!$A:$D,4,0),0) -> Обычная | F192: =VLOOKUP(B192,[1]Цены!$A:$C,3,0) -> RUR | G192: =VLOOKUP(B192,[1]Цены!$A:$E,5,0) -> 5.10 | H192: =VLOOKUP(B192,[1]Цены!$A:$E,4,0) -> шт | I192: =IFERROR(VLOOKUP(B192,'[1]Хар-ки'!$A:$E,5,0),"") -> 400 | J192: =VLOOKUP(B192,'[1]Хар-ки'!$A:$F,6,0) -> 0,009 | K192: =VLOOKUP(B192,'[1]Хар-ки'!$A:$G,7,0) -> 0,000053
B193: PA18012PG | C193: =IFERROR(VLOOKUP(B193,'[1]Хар-ки'!$A:$B,2,0),"") -> PP-R Опора одинарная Серая | D193: =IFERROR(VLOOKUP(B193,'[1]Хар-ки'!$A:$C,3,0),0) -> 32 | E193: =IFERROR(VLOOKUP(B193,'[1]Хар-ки'!$A:$D,4,0),0) -> Обычная | F193: =VLOOKUP(B193,[1]Цены!$A:$C,3,0) -> RUR | G193: =VLOOKUP(B193,[1]Цены!$A:$E,5,0) -> 6.16 | H193: =VLOOKUP(B193,[1]Цены!$A:$E,4,0) -> шт | I193: =IFERROR(VLOOKUP(B193,'[1]Хар-ки'!$A:$E,5,0),"") -> 300 | J193: =VLOOKUP(B193,'[1]Хар-ки'!$A:$F,6,0) -> 0,011 | K193: =VLOOKUP(B193,'[1]Хар-ки'!$A:$G,7,0) -> 0,000071
B194: PA18014PG | C194: =IFERROR(VLOOKUP(B194,'[1]Хар-ки'!$A:$B,2,0),"") -> PP-R Опора одинарная Серая | D194: =IFERROR(VLOOKUP(B194,'[1]Хар-ки'!$A:$C,3,0),0) -> 40 | E194: =IFERROR(VLOOKUP(B194,'[1]Хар-ки'!$A:$D,4,0),0) -> Обычная | F194: =VLOOKUP(B194,[1]Цены!$A:$C,3,0) -> RUR | G194: =VLOOKUP(B194,[1]Цены!$A:$E,5,0) -> 11.28 | H194: =VLOOKUP(B194,[1]Цены!$A:$E,4,0) -> шт | I194: =IFERROR(VLOOKUP(B194,'[1]Хар-ки'!$A:$E,5,0),"") -> 350 | J194: =VLOOKUP(B194,'[1]Хар-ки'!$A:$F,6,0) -> 0,012 | K194: =VLOOKUP(B194,'[1]Хар-ки'!$A:$G,7,0) -> 0,000061
B195: PA18016PG | C195: =IFERROR(VLOOKUP(B195,'[1]Хар-ки'!$A:$B,2,0),"") -> PP-R Опора одинарная Серая | D195: =IFERROR(VLOOKUP(B195,'[1]Хар-ки'!$A:$C,3,0),0) -> 50 | E195: =IFERROR(VLOOKUP(B195,'[1]Хар-ки'!$A:$D,4,0),0) -> Обычная | F195: =VLOOKUP(B195,[1]Цены!$A:$C,3,0) -> RUR | G195: =VLOOKUP(B195,[1]Цены!$A:$E,5,0) -> 19.22 | H195: =VLOOKUP(B195,[1]Цены!$A:$E,4,0) -> шт | I195: =IFERROR(VLOOKUP(B195,'[1]Хар-ки'!$A:$E,5,0),"") -> 200 | J195: =VLOOKUP(B195,'[1]Хар-ки'!$A:$F,6,0) -> 0,019 | K195: =VLOOKUP(B195,'[1]Хар-ки'!$A:$G,7,0) -> 0,000106
B196: PA18018PG | C196: =IFERROR(VLOOKUP(B196,'[1]Хар-ки'!$A:$B,2,0),"") -> PP-R Опора одинарная Серая | D196: =IFERROR(VLOOKUP(B196,'[1]Хар-ки'!$A:$C,3,0),0) -> 63 | E196: =IFERROR(VLOOKUP(B196,'[1]Хар-ки'!$A:$D,4,0),0) -> Обычная | F196: =VLOOKUP(B196,[1]Цены!$A:$C,3,0) -> RUR | G196: =VLOOKUP(B196,[1]Цены!$A:$E,5,0) -> 24.68 | H196: =VLOOKUP(B196,[1]Цены!$A:$E,4,0) -> шт | I196: =IFERROR(VLOOKUP(B196,'[1]Хар-ки'!$A:$E,5,0),"") -> 200 | J196: =VLOOKUP(B196,'[1]Хар-ки'!$A:$F,6,0) -> 0,017 | K196: =VLOOKUP(B196,'[1]Хар-ки'!$A:$G,7,0) -> 0,000106
B197: PA18508PG | C197: =IFERROR(VLOOKUP(B197,'[1]Хар-ки'!$A:$B,2,0),"") -> PP-R Опора двойная Серая | D197: =IFERROR(VLOOKUP(B197,'[1]Хар-ки'!$A:$C,3,0),0) -> 20 | E197: =IFERROR(VLOOKUP(B197,'[1]Хар-ки'!$A:$D,4,0),0) -> Обычная | F197: =VLOOKUP(B197,[1]Цены!$A:$C,3,0) -> RUR | G197: =VLOOKUP(B197,[1]Цены!$A:$E,5,0) -> 9.40 | H197: =VLOOKUP(B197,[1]Цены!$A:$E,4,0) -> шт | I197: =IFERROR(VLOOKUP(B197,'[1]Хар-ки'!$A:$E,5,0),"") -> 200 | J197: =VLOOKUP(B197,'[1]Хар-ки'!$A:$F,6,0) -> 0,017 | K197: =VLOOKUP(B197,'[1]Хар-ки'!$A:$G,7,0) -> 0,000106
B198: PA18510PG | C198: =IFERROR(VLOOKUP(B198,'[1]Хар-ки'!$A:$B,2,0),"") -> PP-R Опора двойная Серая | D198: =IFERROR(VLOOKUP(B198,'[1]Хар-ки'!$A:$C,3,0),0) -> 25 | E198: =IFERROR(VLOOKUP(B198,'[1]Хар-ки'!$A:$D,4,0),0) -> Обычная | F198: =VLOOKUP(B198,[1]Цены!$A:$C,3,0) -> RUR | G198: =VLOOKUP(B198,[1]Цены!$A:$E,5,0) -> 10.75 | H198: =VLOOKUP(B198,[1]Цены!$A:$E,4,0) -> шт | I198: =IFERROR(VLOOKUP(B198,'[1]Хар-ки'!$A:$E,5,0),"") -> 200 | J198: =VLOOKUP(B198,'[1]Хар-ки'!$A:$F,6,0) -> 0,020 | K198: =VLOOKUP(B198,'[1]Хар-ки'!$A:$G,7,0) -> 0,000106
B199: PA18512G | C199: =IFERROR(VLOOKUP(B199,'[1]Хар-ки'!$A:$B,2,0),"") -> PP-R Опора двойная Серая | D199: =IFERROR(VLOOKUP(B199,'[1]Хар-ки'!$A:$C,3,0),0) -> 32 | E199: =IFERROR(VLOOKUP(B199,'[1]Хар-ки'!$A:$D,4,0),0) -> Заказная | F199: =VLOOKUP(B199,[1]Цены!$A:$C,3,0) -> RUR | G199: =VLOOKUP(B199,[1]Цены!$A:$E,5,0) -> 14.24 | H199: =VLOOKUP(B199,[1]Цены!$A:$E,4,0) -> шт | I199: =IFERROR(VLOOKUP(B199,'[1]Хар-ки'!$A:$E,5,0),"") -> 150 | J199: =VLOOKUP(B199,'[1]Хар-ки'!$A:$F,6,0) -> 0,015 | K199: =VLOOKUP(B199,'[1]Хар-ки'!$A:$G,7,0) -> 0,000125
B200: PA18908g | C200: =IFERROR(VLOOKUP(B200,'[1]Хар-ки'!$A:$B,2,0),"") -> PP-R Опора с защелкой Серая | D200: =IFERROR(VLOOKUP(B200,'[1]Хар-ки'!$A:$C,3,0),0) -> 20 | E200: =IFERROR(VLOOKUP(B200,'[1]Хар-ки'!$A:$D,4,0),0) -> Заказная | F200: =VLOOKUP(B200,[1]Цены!$A:$C,3,0) -> RUR | G200: =VLOOKUP(B200,[1]Цены!$A:$E,5,0) -> 6.26 | H200: =VLOOKUP(B200,[1]Цены!$A:$E,4,0) -> шт | I200: =IFERROR(VLOOKUP(B200,'[1]Хар-ки'!$A:$E,5,0),"") -> 1000 | J200: =VLOOKUP(B200,'[1]Хар-ки'!$A:$F,6,0) -> 0,005 | K200: =VLOOKUP(B200,'[1]Хар-ки'!$A:$G,7,0) -> 0,000037
B201: PA18910g | C201: =IFERROR(VLOOKUP(B201,'[1]Хар-ки'!$A:$B,2,0),"") -> PP-R Опора с защелкой Серая | D201: =IFERROR(VLOOKUP(B201,'[1]Хар-ки'!$A:$C,3,0),0) -> 25 | E201: =IFERROR(VLOOKUP(B201,'[1]Хар-ки'!$A:$D,4,0),0) -> Заказная | F201: =VLOOKUP(B201,[1]Цены!$A:$C,3,0) -> RUR | G201: =VLOOKUP(B201,[1]Цены!$A:$E,5,0) -> 8.15 | H201: =VLOOKUP(B201,[1]Цены!$A:$E,4,0) -> шт | I201: =IFERROR(VLOOKUP(B201,'[1]Хар-ки'!$A:$E,5,0),"") -> 800 | J201: =VLOOKUP(B201,'[1]Хар-ки'!$A:$F,6,0) -> 0,007 | K201: =VLOOKUP(B201,'[1]Хар-ки'!$A:$G,7,0) -> 0,000047
B202: PA18912g | C202: =IFERROR(VLOOKUP(B202,'[1]Хар-ки'!$A:$B,2,0),"") -> PP-R Опора с защелкой Серая | D202: =IFERROR(VLOOKUP(B202,'[1]Хар-ки'!$A:$C,3,0),0) -> 32 | E202: =IFERROR(VLOOKUP(B202,'[1]Хар-ки'!$A:$D,4,0),0) -> Заказная | F202: =VLOOKUP(B202,[1]Цены!$A:$C,3,0) -> RUR | G202: =VLOOKUP(B202,[1]Цены!$A:$E,5,0) -> 10.82 | H202: =VLOOKUP(B202,[1]Цены!$A:$E,4,0) -> шт | I202: =IFERROR(VLOOKUP(B202,'[1]Хар-ки'!$A:$E,5,0),"") -> 500 | J202: =VLOOKUP(B202,'[1]Хар-ки'!$A:$F,6,0) -> 0,008 | K202: =VLOOKUP(B202,'[1]Хар-ки'!$A:$G,7,0) -> 0,000074
B203: PA18914g | C203: =IFERROR(VLOOKUP(B203,'[1]Хар-ки'!$A:$B,2,0),"") -> PP-R Опора с защелкой Серая | D203: =IFERROR(VLOOKUP(B203,'[1]Хар-ки'!$A:$C,3,0),0) -> 40 | E203: =IFERROR(VLOOKUP(B203,'[1]Хар-ки'!$A:$D,4,0),0) -> Обычная | F203: =VLOOKUP(B203,[1]Цены!$A:$C,3,0) -> RUR | G203: =VLOOKUP(B203,[1]Цены!$A:$E,5,0) -> 11.53 | H203: =VLOOKUP(B203,[1]Цены!$A:$E,4,0) -> шт | I203: =IFERROR(VLOOKUP(B203,'[1]Хар-ки'!$A:$E,5,0),"") -> 250 | J203: =VLOOKUP(B203,'[1]Хар-ки'!$A:$F,6,0) -> 0,012 | K203: =VLOOKUP(B203,'[1]Хар-ки'!$A:$G,7,0) -> 0,000085
B204: PA18916g | C204: =IFERROR(VLOOKUP(B204,'[1]Хар-ки'!$A:$B,2,0),"") -> PP-R Опора с защелкой Серая | D204: =IFERROR(VLOOKUP(B204,'[1]Хар-ки'!$A:$C,3,0),0) -> 50 | E204: =IFERROR(VLOOKUP(B204,'[1]Хар-ки'!$A:$D,4,0),0) -> Обычная | F204: =VLOOKUP(B204,[1]Цены!$A:$C,3,0) -> RUR | G204: =VLOOKUP(B204,[1]Цены!$A:$E,5,0) -> 14.50 | H204: =VLOOKUP(B204,[1]Цены!$A:$E,4,0) -> шт | I204: =IFERROR(VLOOKUP(B204,'[1]Хар-ки'!$A:$E,5,0),"") -> 175 | J204: =VLOOKUP(B204,'[1]Хар-ки'!$A:$F,6,0) -> 0,018 | K204: =VLOOKUP(B204,'[1]Хар-ки'!$A:$G,7,0) -> 0,000121
B205: PA18918g | C205: =IFERROR(VLOOKUP(B205,'[1]Хар-ки'!$A:$B,2,0),"") -> PP-R Опора с защелкой Серая | D205: =IFERROR(VLOOKUP(B205,'[1]Хар-ки'!$A:$C,3,0),0) -> 63 | E205: =IFERROR(VLOOKUP(B205,'[1]Хар-ки'!$A:$D,4,0),0) -> Заказная | F205: =VLOOKUP(B205,[1]Цены!$A:$C,3,0) -> RUR | G205: =VLOOKUP(B205,[1]Цены!$A:$E,5,0) -> 32.26 | H205: =VLOOKUP(B205,[1]Цены!$A:$E,4,0) -> шт | I205: =IFERROR(VLOOKUP(B205,'[1]Хар-ки'!$A:$E,5,0),"") -> 200 | J205: =VLOOKUP(B205,'[1]Хар-ки'!$A:$F,6,0) -> 0,016 | K205: =VLOOKUP(B205,'[1]Хар-ки'!$A:$G,7,0) -> 0,000186
B206: PA17008PG | C206: =IFERROR(VLOOKUP(B206,'[1]Хар-ки'!$A:$B,2,0),"") -> PP-R Крестовина Серая | D206: =IFERROR(VLOOKUP(B206,'[1]Хар-ки'!$A:$C,3,0),0) -> 20 | E206: =IFERROR(VLOOKUP(B206,'[1]Хар-ки'!$A:$D,4,0),0) -> Обычная | F206: =VLOOKUP(B206,[1]Цены!$A:$C,3,0) -> RUR | G206: =VLOOKUP(B206,[1]Цены!$A:$E,5,0) -> 30.44 | H206: =VLOOKUP(B206,[1]Цены!$A:$E,4,0) -> шт | I206: =IFERROR(VLOOKUP(B206,'[1]Хар-ки'!$A:$E,5,0),"") -> 150 | J206: =VLOOKUP(B206,'[1]Хар-ки'!$A:$F,6,0) -> 0,028 | K206: =VLOOKUP(B206,'[1]Хар-ки'!$A:$G,7,0) -> 0,000108
B207: PA17010PG | C207: =IFERROR(VLOOKUP(B207,'[1]Хар-ки'!$A:$B,2,0),"") -> PP-R Крестовина Серая | D207: =IFERROR(VLOOKUP(B207,'[1]Хар-ки'!$A:$C,3,0),0) -> 25 | E207: =IFERROR(VLOOKUP(B207,'[1]Хар-ки'!$A:$D,4,0),0) -> Обычная | F207: =VLOOKUP(B207,[1]Цены!$A:$C,3,0) -> RUR | G207: =VLOOKUP(B207,[1]Цены!$A:$E,5,0) -> 38.56 | H207: =VLOOKUP(B207,[1]Цены!$A:$E,4,0) -> шт | I207: =IFERROR(VLOOKUP(B207,'[1]Хар-ки'!$A:$E,5,0),"") -> 100 | J207: =VLOOKUP(B207,'[1]Хар-ки'!$A:$F,6,0) -> 0,042 | K207: =VLOOKUP(B207,'[1]Хар-ки'!$A:$G,7,0) -> 0,000162
... 178 more rows

Sheet PRO AQUA COMFORT
A9: Фото | B9: Код | C9: Наименование | D9: Типоразмер | E9: Категория товара | F9: Валюта ПРОДАЖИ | G9: Цена ПРОДАЖИ с НДС | H9: Ед. измерения | I9: В коробке | J9: Вес кг | K9: Объем м3
B10: 113015 | C10: =IFERROR(VLOOKUP(B10,'[1]Хар-ки'!$A:$B,2,0),"") -> PP Труба для внутренней канализации Pro Aqua Comfort | D10: =IFERROR(VLOOKUP(B10,'[1]Хар-ки'!$A:$C,3,0),0) -> 32x 150 | E10: =IFERROR(VLOOKUP(B10,'[1]Хар-ки'!$A:$D,4,0),0) -> Обычная | F10: =VLOOKUP(B10,[1]Цены!$A:$C,3,0) -> RUR | G10: =VLOOKUP(B10,[1]Цены!$A:$E,5,0) -> 57.91 | H10: =VLOOKUP(B10,[1]Цены!$A:$E,4,0) -> шт | I10: =IFERROR(VLOOKUP(B10,'[1]Хар-ки'!$A:$E,5,0),"") -> 64 | J10: =VLOOKUP(B10,'[1]Хар-ки'!$A:$F,6,0) -> 0,044 | K10: =VLOOKUP(B10,'[1]Хар-ки'!$A:$G,7,0) -> 0,000305
B11: 113025 | C11: =IFERROR(VLOOKUP(B11,'[1]Хар-ки'!$A:$B,2,0),"") -> PP Труба для внутренней канализации Pro Aqua Comfort | D11: =IFERROR(VLOOKUP(B11,'[1]Хар-ки'!$A:$C,3,0),0) -> 32x 250 | E11: =IFERROR(VLOOKUP(B11,'[1]Хар-ки'!$A:$D,4,0),0) -> Обычная | F11: =VLOOKUP(B11,[1]Цены!$A:$C,3,0) -> RUR | G11: =VLOOKUP(B11,[1]Цены!$A:$E,5,0) -> 66.40 | H11: =VLOOKUP(B11,[1]Цены!$A:$E,4,0) -> шт | I11: =IFERROR(VLOOKUP(B11,'[1]Хар-ки'!$A:$E,5,0),"") -> 60 | J11: =VLOOKUP(B11,'[1]Хар-ки'!$A:$F,6,0) -> 0,064 | K11: =VLOOKUP(B11,'[1]Хар-ки'!$A:$G,7,0) -> 0,000442
B12: 113050 | C12: =IFERROR(VLOOKUP(B12,'[1]Хар-ки'!$A:$B,2,0),"") -> PP Труба для внутренней канализации Pro Aqua Comfort | D12: =IFERROR(VLOOKUP(B12,'[1]Хар-ки'!$A:$C,3,0),0) -> 32x 500 | E12: =IFERROR(VLOOKUP(B12,'[1]Хар-ки'!$A:$D,4,0),0) -> Обычная | F12: =VLOOKUP(B12,[1]Цены!$A:$C,3,0) -> RUR | G12: =VLOOKUP(B12,[1]Цены!$A:$E,5,0) -> 80.86 | H12: =VLOOKUP(B12,[1]Цены!$A:$E,4,0) -> шт | I12: =IFERROR(VLOOKUP(B12,'[1]Хар-ки'!$A:$E,5,0),"") -> 32 | J12: =VLOOKUP(B12,'[1]Хар-ки'!$A:$F,6,0) -> 0,111 | K12: =VLOOKUP(B12,'[1]Хар-ки'!$A:$G,7,0) -> 0,000828
B13: 113075 | C13: =IFERROR(VLOOKUP(B13,'[1]Хар-ки'!$A:$B,2,0),"") -> PP Труба для внутренней канализации Pro Aqua Comfort | D13: =IFERROR(VLOOKUP(B13,'[1]Хар-ки'!$A:$C,3,0),0) -> 32x 750 | E13: =IFERROR(VLOOKUP(B13,'[1]Хар-ки'!$A:$D,4,0),0) -> Обычная | F13: =VLOOKUP(B13,[1]Цены!$A:$C,3,0) -> RUR | G13: =VLOOKUP(B13,[1]Цены!$A:$E,5,0) -> 112.27 | H13: =VLOOKUP(B13,[1]Цены!$A:$E,4,0) -> шт | I13: =IFERROR(VLOOKUP(B13,'[1]Хар-ки'!$A:$E,5,0),"") -> 60 | J13: =VLOOKUP(B13,'[1]Хар-ки'!$A:$F,6,0) -> 0,153 | K13: =VLOOKUP(B13,'[1]Хар-ки'!$A:$G,7,0) -> 0,001983
B14: 113100 | C14: =IFERROR(VLOOKUP(B14,'[1]Хар-ки'!$A:$B,2,0),"") -> PP Труба для внутренней канализации Pro Aqua Comfort | D14: =IFERROR(VLOOKUP(B14,'[1]Хар-ки'!$A:$C,3,0),0) -> 32x1000 | E14: =IFERROR(VLOOKUP(B14,'[1]Хар-ки'!$A:$D,4,0),0) -> Обычная | F14: =VLOOKUP(B14,[1]Цены!$A:$C,3,0) -> RUR | G14: =VLOOKUP(B14,[1]Цены!$A:$E,5,0) -> 113.98 | H14: =VLOOKUP(B14,[1]Цены!$A:$E,4,0) -> шт | I14: =IFERROR(VLOOKUP(B14,'[1]Хар-ки'!$A:$E,5,0),"") -> 60 | J14: =VLOOKUP(B14,'[1]Хар-ки'!$A:$F,6,0) -> 0,192 | K14: =VLOOKUP(B14,'[1]Хар-ки'!$A:$G,7,0) -> 0,002551
B15: 113150 | C15: =IFERROR(VLOOKUP(B15,'[1]Хар-ки'!$A:$B,2,0),"") -> PP Труба для внутренней канализации Pro Aqua Comfort | D15: =IFERROR(VLOOKUP(B15,'[1]Хар-ки'!$A:$C,3,0),0) -> 32x1500 | E15: =IFERROR(VLOOKUP(B15,'[1]Хар-ки'!$A:$D,4,0),0) -> Обычная | F15: =VLOOKUP(B15,[1]Цены!$A:$C,3,0) -> RUR | G15: =VLOOKUP(B15,[1]Цены!$A:$E,5,0) -> 169.27 | H15: =VLOOKUP(B15,[1]Цены!$A:$E,4,0) -> шт | I15: =IFERROR(VLOOKUP(B15,'[1]Хар-ки'!$A:$E,5,0),"") -> 60 | J15: =VLOOKUP(B15,'[1]Хар-ки'!$A:$F,6,0) -> 0,281 | K15: =VLOOKUP(B15,'[1]Хар-ки'!$A:$G,7,0) -> 0,003675
B16: 113200 | C16: =IFERROR(VLOOKUP(B16,'[1]Хар-ки'!$A:$B,2,0),"") -> PP Труба для внутренней канализации Pro Aqua Comfort | D16: =IFERROR(VLOOKUP(B16,'[1]Хар-ки'!$A:$C,3,0),0) -> 32x2000 | E16: =IFERROR(VLOOKUP(B16,'[1]Хар-ки'!$A:$D,4,0),0) -> Обычная | F16: =VLOOKUP(B16,[1]Цены!$A:$C,3,0) -> RUR | G16: =VLOOKUP(B16,[1]Цены!$A:$E,5,0) -> 200.94 | H16: =VLOOKUP(B16,[1]Цены!$A:$E,4,0) -> шт | I16: =IFERROR(VLOOKUP(B16,'[1]Хар-ки'!$A:$E,5,0),"") -> 60 | J16: =VLOOKUP(B16,'[1]Хар-ки'!$A:$F,6,0) -> 0,372 | K16: =VLOOKUP(B16,'[1]Хар-ки'!$A:$G,7,0) -> 0,004514
B17: 114015 | C17: =IFERROR(VLOOKUP(B17,'[1]Хар-ки'!$A:$B,2,0),"") -> PP Труба для внутренней канализации Pro Aqua Comfort | D17: =IFERROR(VLOOKUP(B17,'[1]Хар-ки'!$A:$C,3,0),0) -> 40x 150 | E17: =IFERROR(VLOOKUP(B17,'[1]Хар-ки'!$A:$D,4,0),0) -> Обычная | F17: =VLOOKUP(B17,[1]Цены!$A:$C,3,0) -> RUR | G17: =VLOOKUP(B17,[1]Цены!$A:$E,5,0) -> 67.18 | H17: =VLOOKUP(B17,[1]Цены!$A:$E,4,0) -> шт | I17: =IFERROR(VLOOKUP(B17,'[1]Хар-ки'!$A:$E,5,0),"") -> 84 | J17: =VLOOKUP(B17,'[1]Хар-ки'!$A:$F,6,0) -> 0,063 | K17: =VLOOKUP(B17,'[1]Хар-ки'!$A:$G,7,0) -> 0,000577
B18: 114025 | C18: =IFERROR(VLOOKUP(B18,'[1]Хар-ки'!$A:$B,2,0),"") -> PP Труба для внутренней канализации Pro Aqua Comfort | D18: =IFERROR(VLOOKUP(B18,'[1]Хар-ки'!$A:$C,3,0),0) -> 40x 250 | E18: =IFERROR(VLOOKUP(B18,'[1]Хар-ки'!$A:$D,4,0),0) -> Обычная | F18: =VLOOKUP(B18,[1]Цены!$A:$C,3,0) -> RUR | G18: =VLOOKUP(B18,[1]Цены!$A:$E,5,0) -> 76.99 | H18: =VLOOKUP(B18,[1]Цены!$A:$E,4,0) -> шт | I18: =IFERROR(VLOOKUP(B18,'[1]Хар-ки'!$A:$E,5,0),"") -> 84 | J18: =VLOOKUP(B18,'[1]Хар-ки'!$A:$F,6,0) -> 0,081 | K18: =VLOOKUP(B18,'[1]Хар-ки'!$A:$G,7,0) -> 0,000793
B19: 114050 | C19: =IFERROR(VLOOKUP(B19,'[1]Хар-ки'!$A:$B,2,0),"") -> PP Труба для внутренней канализации Pro Aqua Comfort | D19: =IFERROR(VLOOKUP(B19,'[1]Хар-ки'!$A:$C,3,0),0) -> 40x 500 | E19: =IFERROR(VLOOKUP(B19,'[1]Хар-ки'!$A:$D,4,0),0) -> Обычная | F19: =VLOOKUP(B19,[1]Цены!$A:$C,3,0) -> RUR | G19: =VLOOKUP(B19,[1]Цены!$A:$E,5,0) -> 99.95 | H19: =VLOOKUP(B19,[1]Цены!$A:$E,4,0) -> шт | I19: =IFERROR(VLOOKUP(B19,'[1]Хар-ки'!$A:$E,5,0),"") -> 84 | J19: =VLOOKUP(B19,'[1]Хар-ки'!$A:$F,6,0) -> 0,140 | K19: =VLOOKUP(B19,'[1]Хар-ки'!$A:$G,7,0) -> 0,001353
B20: 114075 | C20: =IFERROR(VLOOKUP(B20,'[1]Хар-ки'!$A:$B,2,0),"") -> PP Труба для внутренней канализации Pro Aqua Comfort | D20: =IFERROR(VLOOKUP(B20,'[1]Хар-ки'!$A:$C,3,0),0) -> 40x 750 | E20: =IFERROR(VLOOKUP(B20,'[1]Хар-ки'!$A:$D,4,0),0) -> Обычная | F20: =VLOOKUP(B20,[1]Цены!$A:$C,3,0) -> RUR | G20: =VLOOKUP(B20,[1]Цены!$A:$E,5,0) -> 118.85 | H20: =VLOOKUP(B20,[1]Цены!$A:$E,4,0) -> шт | I20: =IFERROR(VLOOKUP(B20,'[1]Хар-ки'!$A:$E,5,0),"") -> 60 | J20: =VLOOKUP(B20,'[1]Хар-ки'!$A:$F,6,0) -> 0,202 | K20: =VLOOKUP(B20,'[1]Хар-ки'!$A:$G,7,0) -> 0,002720
B21: 114100 | C21: =IFERROR(VLOOKUP(B21,'[1]Хар-ки'!$A:$B,2,0),"") -> PP Труба для внутренней канализации Pro Aqua Comfort | D21: =IFERROR(VLOOKUP(B21,'[1]Хар-ки'!$A:$C,3,0),0) -> 40x1000 | E21: =IFERROR(VLOOKUP(B21,'[1]Хар-ки'!$A:$D,4,0),0) -> Обычная | F21: =VLOOKUP(B21,[1]Цены!$A:$C,3,0) -> RUR | G21: =VLOOKUP(B21,[1]Цены!$A:$E,5,0) -> 136.30 | H21: =VLOOKUP(B21,[1]Цены!$A:$E,4,0) -> шт | I21: =IFERROR(VLOOKUP(B21,'[1]Хар-ки'!$A:$E,5,0),"") -> 60 | J21: =VLOOKUP(B21,'[1]Хар-ки'!$A:$F,6,0) -> 0,257 | K21: =VLOOKUP(B21,'[1]Хар-ки'!$A:$G,7,0) -> 0,003575
B22: 114150 | C22: =IFERROR(VLOOKUP(B22,'[1]Хар-ки'!$A:$B,2,0),"") -> PP Труба для внутренней канализации Pro Aqua Comfort | D22: =IFERROR(VLOOKUP(B22,'[1]Хар-ки'!$A:$C,3,0),0) -> 40x1500 | E22: =IFERROR(VLOOKUP(B22,'[1]Хар-ки'!$A:$D,4,0),0) -> Обычная | F22: =VLOOKUP(B22,[1]Цены!$A:$C,3,0) -> RUR | G22: =VLOOKUP(B22,[1]Цены!$A:$E,5,0) -> 176.42 | H22: =VLOOKUP(B22,[1]Цены!$A:$E,4,0) -> шт | I22: =IFERROR(VLOOKUP(B22,'[1]Хар-ки'!$A:$E,5,0),"") -> 60 | J22: =VLOOKUP(B22,'[1]Хар-ки'!$A:$F,6,0) -> 0,371 | K22: =VLOOKUP(B22,'[1]Хар-ки'!$A:$G,7,0) -> 0,003681
B23: 114200 | C23: =IFERROR(VLOOKUP(B23,'[1]Хар-ки'!$A:$B,2,0),"") -> PP Труба для внутренней канализации Pro Aqua Comfort | D23: =IFERROR(VLOOKUP(B23,'[1]Хар-ки'!$A:$C,3,0),0) -> 40x2000 | E23: =IFERROR(VLOOKUP(B23,'[1]Хар-ки'!$A:$D,4,0),0) -> Обычная | F23: =VLOOKUP(B23,[1]Цены!$A:$C,3,0) -> RUR | G23: =VLOOKUP(B23,[1]Цены!$A:$E,5,0) -> 247.62 | H23: =VLOOKUP(B23,[1]Цены!$A:$E,4,0) -> шт | I23: =IFERROR(VLOOKUP(B23,'[1]Хар-ки'!$A:$E,5,0),"") -> 60 | J23: =VLOOKUP(B23,'[1]Хар-ки'!$A:$F,6,0) -> 0,479 | K23: =VLOOKUP(B23,'[1]Хар-ки'!$A:$G,7,0) -> 0,006720
B24: 500041 | C24: =IFERROR(VLOOKUP(B24,'[1]Хар-ки'!$A:$B,2,0),"") -> PP Труба для внутренней канализации Pro Aqua Comfort | D24: =IFERROR(VLOOKUP(B24,'[1]Хар-ки'!$A:$C,3,0),0) -> 50x 150 | E24: =IFERROR(VLOOKUP(B24,'[1]Хар-ки'!$A:$D,4,0),0) -> Обычная | F24: =VLOOKUP(B24,[1]Цены!$A:$C,3,0) -> RUR | G24: =VLOOKUP(B24,[1]Цены!$A:$E,5,0) -> 70.70 | H24: =VLOOKUP(B24,[1]Цены!$A:$E,4,0) -> шт | I24: =IFERROR(VLOOKUP(B24,'[1]Хар-ки'!$A:$E,5,0),"") -> 60 | J24: =VLOOKUP(B24,'[1]Хар-ки'!$A:$F,6,0) -> 0,070 | K24: =VLOOKUP(B24,'[1]Хар-ки'!$A:$G,7,0) -> 0,000808
B25: 500043 | C25: =IFERROR(VLOOKUP(B25,'[1]Хар-ки'!$A:$B,2,0),"") -> PP Труба для внутренней канализации Pro Aqua Comfort | D25: =IFERROR(VLOOKUP(B25,'[1]Хар-ки'!$A:$C,3,0),0) -> 50x 250 | E25: =IFERROR(VLOOKUP(B25,'[1]Хар-ки'!$A:$D,4,0),0) -> Обычная | F25: =VLOOKUP(B25,[1]Цены!$A:$C,3,0) -> RUR | G25: =VLOOKUP(B25,[1]Цены!$A:$E,5,0) -> 76.69 | H25: =VLOOKUP(B25,[1]Цены!$A:$E,4,0) -> шт | I25: =IFERROR(VLOOKUP(B25,'[1]Хар-ки'!$A:$E,5,0),"") -> 60 | J25: =VLOOKUP(B25,'[1]Хар-ки'!$A:$F,6,0) -> 0,097 | K25: =VLOOKUP(B25,'[1]Хар-ки'!$A:$G,7,0) -> 0,001150
B26: 500045 | C26: =IFERROR(VLOOKUP(B26,'[1]Хар-ки'!$A:$B,2,0),"") -> PP Труба для внутренней канализации Pro Aqua Comfort | D26: =IFERROR(VLOOKUP(B26,'[1]Хар-ки'!$A:$C,3,0),0) -> 50x 500 | E26: =IFERROR(VLOOKUP(B26,'[1]Хар-ки'!$A:$D,4,0),0) -> Обычная | F26: =VLOOKUP(B26,[1]Цены!$A:$C,3,0) -> RUR | G26: =VLOOKUP(B26,[1]Цены!$A:$E,5,0) -> 100.12 | H26: =VLOOKUP(B26,[1]Цены!$A:$E,4,0) -> шт | I26: =IFERROR(VLOOKUP(B26,'[1]Хар-ки'!$A:$E,5,0),"") -> 60 | J26: =VLOOKUP(B26,'[1]Хар-ки'!$A:$F,6,0) -> 0,172 | K26: =VLOOKUP(B26,'[1]Хар-ки'!$A:$G,7,0) -> 0,001873
B27: 500047 | C27: =IFERROR(VLOOKUP(B27,'[1]Хар-ки'!$A:$B,2,0),"") -> PP Труба для внутренней канализации Pro Aqua Comfort | D27: =IFERROR(VLOOKUP(B27,'[1]Хар-ки'!$A:$C,3,0),0) -> 50x 750 | E27: =IFERROR(VLOOKUP(B27,'[1]Хар-ки'!$A:$D,4,0),0) -> Обычная | F27: =VLOOKUP(B27,[1]Цены!$A:$C,3,0) -> RUR | G27: =VLOOKUP(B27,[1]Цены!$A:$E,5,0) -> 131.18 | H27: =VLOOKUP(B27,[1]Цены!$A:$E,4,0) -> шт | I27: =IFERROR(VLOOKUP(B27,'[1]Хар-ки'!$A:$E,5,0),"") -> 50 | J27: =VLOOKUP(B27,'[1]Хар-ки'!$A:$F,6,0) -> 0,248 | K27: =VLOOKUP(B27,'[1]Хар-ки'!$A:$G,7,0) -> 0,003973
B28: 500049 | C28: =IFERROR(VLOOKUP(B28,'[1]Хар-ки'!$A:$B,2,0),"") -> PP Труба для внутренней канализации Pro Aqua Comfort | D28: =IFERROR(VLOOKUP(B28,'[1]Хар-ки'!$A:$C,3,0),0) -> 50x1000 | E28: =IFERROR(VLOOKUP(B28,'[1]Хар-ки'!$A:$D,4,0),0) -> Обычная | F28: =VLOOKUP(B28,[1]Цены!$A:$C,3,0) -> RUR | G28: =VLOOKUP(B28,[1]Цены!$A:$E,5,0) -> 155.02 | H28: =VLOOKUP(B28,[1]Цены!$A:$E,4,0) -> шт | I28: =IFERROR(VLOOKUP(B28,'[1]Хар-ки'!$A:$E,5,0),"") -> 50 | J28: =VLOOKUP(B28,'[1]Хар-ки'!$A:$F,6,0) -> 0,347 | K28: =VLOOKUP(B28,'[1]Хар-ки'!$A:$G,7,0) -> 0,004762
B29: 500051 | C29: =IFERROR(VLOOKUP(B29,'[1]Хар-ки'!$A:$B,2,0),"") -> PP Труба для внутренней канализации Pro Aqua Comfort | D29: =IFERROR(VLOOKUP(B29,'[1]Хар-ки'!$A:$C,3,0),0) -> 50x1500 | E29: =IFERROR(VLOOKUP(B29,'[1]Хар-ки'!$A:$D,4,0),0) -> Обычная | F29: =VLOOKUP(B29,[1]Цены!$A:$C,3,0) -> RUR | G29: =VLOOKUP(B29,[1]Цены!$A:$E,5,0) -> 217.39 | H29: =VLOOKUP(B29,[1]Цены!$A:$E,4,0) -> шт | I29: =IFERROR(VLOOKUP(B29,'[1]Хар-ки'!$A:$E,5,0),"") -> 50 | J29: =VLOOKUP(B29,'[1]Хар-ки'!$A:$F,6,0) -> 0,459 | K29: =VLOOKUP(B29,'[1]Хар-ки'!$A:$G,7,0) -> 0,007488
B30: 500053 | C30: =IFERROR(VLOOKUP(B30,'[1]Хар-ки'!$A:$B,2,0),"") -> PP Труба для внутренней канализации Pro Aqua Comfort | D30: =IFERROR(VLOOKUP(B30,'[1]Хар-ки'!$A:$C,3,0),0) -> 50x2000 | E30: =IFERROR(VLOOKUP(B30,'[1]Хар-ки'!$A:$D,4,0),0) -> Обычная | F30: =VLOOKUP(B30,[1]Цены!$A:$C,3,0) -> RUR | G30: =VLOOKUP(B30,[1]Цены!$A:$E,5,0) -> 268.04 | H30: =VLOOKUP(B30,[1]Цены!$A:$E,4,0) -> шт | I30: =IFERROR(VLOOKUP(B30,'[1]Хар-ки'!$A:$E,5,0),"") -> 50 | J30: =VLOOKUP(B30,'[1]Хар-ки'!$A:$F,6,0) -> 0,613 | K30: =VLOOKUP(B30,'[1]Хар-ки'!$A:$G,7,0) -> 0,009052
B31: 500055 | C31: =IFERROR(VLOOKUP(B31,'[1]Хар-ки'!$A:$B,2,0),"") -> PP Труба для внутренней канализации Pro Aqua Comfort | D31: =IFERROR(VLOOKUP(B31,'[1]Хар-ки'!$A:$C,3,0),0) -> 50x3000 | E31: =IFERROR(VLOOKUP(B31,'[1]Хар-ки'!$A:$D,4,0),0) -> Обычная | F31: =VLOOKUP(B31,[1]Цены!$A:$C,3,0) -> RUR | G31: =VLOOKUP(B31,[1]Цены!$A:$E,5,0) -> 396.52 | H31: =VLOOKUP(B31,[1]Цены!$A:$E,4,0) -> шт | I31: =IFERROR(VLOOKUP(B31,'[1]Хар-ки'!$A:$E,5,0),"") -> 50 | J31: =VLOOKUP(B31,'[1]Хар-ки'!$A:$F,6,0) -> 0,882 | K31: =VLOOKUP(B31,'[1]Хар-ки'!$A:$G,7,0) -> 0,013913
A32: x | B32: 500061 | C32: =IFERROR(VLOOKUP(B32,'[1]Хар-ки'!$A:$B,2,0),"") -> PP Труба для внутренней канализации Pro Aqua Comfort | D32: =IFERROR(VLOOKUP(B32,'[1]Хар-ки'!$A:$C,3,0),0) -> 75x 150 | E32: =IFERROR(VLOOKUP(B32,'[1]Хар-ки'!$A:$D,4,0),0) -> Обычная | F32: =VLOOKUP(B32,[1]Цены!$A:$C,3,0) -> RUR | G32: =VLOOKUP(B32,[1]Цены!$A:$E,5,0) -> 99.36 | H32: =VLOOKUP(B32,[1]Цены!$A:$E,4,0) -> шт | I32: =IFERROR(VLOOKUP(B32,'[1]Хар-ки'!$A:$E,5,0),"") -> 28 | J32: =VLOOKUP(B32,'[1]Хар-ки'!$A:$F,6,0) -> 0,132 | K32: =VLOOKUP(B32,'[1]Хар-ки'!$A:$G,7,0) -> 0,001661
B33: 500063 | C33: =IFERROR(VLOOKUP(B33,'[1]Хар-ки'!$A:$B,2,0),"") -> PP Труба для внутренней канализации Pro Aqua Comfort | D33: =IFERROR(VLOOKUP(B33,'[1]Хар-ки'!$A:$C,3,0),0) -> 75x 250 | E33: =IFERROR(VLOOKUP(B33,'[1]Хар-ки'!$A:$D,4,0),0) -> Обычная | F33: =VLOOKUP(B33,[1]Цены!$A:$C,3,0) -> RUR | G33: =VLOOKUP(B33,[1]Цены!$A:$E,5,0) -> 128.09 | H33: =VLOOKUP(B33,[1]Цены!$A:$E,4,0) -> шт | I33: =IFERROR(VLOOKUP(B33,'[1]Хар-ки'!$A:$E,5,0),"") -> 28 | J33: =VLOOKUP(B33,'[1]Хар-ки'!$A:$F,6,0) -> 0,185 | K33: =VLOOKUP(B33,'[1]Хар-ки'!$A:$G,7,0) -> 0,002353
B34: 500065 | C34: =IFERROR(VLOOKUP(B34,'[1]Хар-ки'!$A:$B,2,0),"") -> PP Труба для внутренней канализации Pro Aqua Comfort | D34: =IFERROR(VLOOKUP(B34,'[1]Хар-ки'!$A:$C,3,0),0) -> 75x 500 | E34: =IFERROR(VLOOKUP(B34,'[1]Хар-ки'!$A:$D,4,0),0) -> Обычная | F34: =VLOOKUP(B34,[1]Цены!$A:$C,3,0) -> RUR | G34: =VLOOKUP(B34,[1]Цены!$A:$E,5,0) -> 172.74 | H34: =VLOOKUP(B34,[1]Цены!$A:$E,4,0) -> шт | I34: =IFERROR(VLOOKUP(B34,'[1]Хар-ки'!$A:$E,5,0),"") -> 20 | J34: =VLOOKUP(B34,'[1]Хар-ки'!$A:$F,6,0) -> 0,274 | K34: =VLOOKUP(B34,'[1]Хар-ки'!$A:$G,7,0) -> 0,006482
B35: 500067 | C35: =IFERROR(VLOOKUP(B35,'[1]Хар-ки'!$A:$B,2,0),"") -> PP Труба для внутренней канализации Pro Aqua Comfort | D35: =IFERROR(VLOOKUP(B35,'[1]Хар-ки'!$A:$C,3,0),0) -> 75x 750 | E35: =IFERROR(VLOOKUP(B35,'[1]Хар-ки'!$A:$D,4,0),0) -> Обычная | F35: =VLOOKUP(B35,[1]Цены!$A:$C,3,0) -> RUR | G35: =VLOOKUP(B35,[1]Цены!$A:$E,5,0) -> 252.01 | H35: =VLOOKUP(B35,[1]Цены!$A:$E,4,0) -> шт | I35: =IFERROR(VLOOKUP(B35,'[1]Хар-ки'!$A:$E,5,0),"") -> 20 | J35: =VLOOKUP(B35,'[1]Хар-ки'!$A:$F,6,0) -> 0,422 | K35: =VLOOKUP(B35,'[1]Хар-ки'!$A:$G,7,0) -> 0,009096
B36: 500069 | C36: =IFERROR(VLOOKUP(B36,'[1]Хар-ки'!$A:$B,2,0),"") -> PP Труба для внутренней канализации Pro Aqua Comfort | D36: =IFERROR(VLOOKUP(B36,'[1]Хар-ки'!$A:$C,3,0),0) -> 75x1000 | E36: =IFERROR(VLOOKUP(B36,'[1]Хар-ки'!$A:$D,4,0),0) -> Обычная | F36: =VLOOKUP(B36,[1]Цены!$A:$C,3,0) -> RUR | G36: =VLOOKUP(B36,[1]Цены!$A:$E,5,0) -> 302.40 | H36: =VLOOKUP(B36,[1]Цены!$A:$E,4,0) -> шт | I36: =IFERROR(VLOOKUP(B36,'[1]Хар-ки'!$A:$E,5,0),"") -> 20 | J36: =VLOOKUP(B36,'[1]Хар-ки'!$A:$F,6,0) -> 0,498 | K36: =VLOOKUP(B36,'[1]Хар-ки'!$A:$G,7,0) -> 0,007921
B37: 500071 | C37: =IFERROR(VLOOKUP(B37,'[1]Хар-ки'!$A:$B,2,0),"") -> PP Труба для внутренней канализации Pro Aqua Comfort | D37: =IFERROR(VLOOKUP(B37,'[1]Хар-ки'!$A:$C,3,0),0) -> 75x1500 | E37: =IFERROR(VLOOKUP(B37,'[1]Хар-ки'!$A:$D,4,0),0) -> Обычная | F37: =VLOOKUP(B37,[1]Цены!$A:$C,3,0) -> RUR | G37: =VLOOKUP(B37,[1]Цены!$A:$E,5,0) -> 427.34 | H37: =VLOOKUP(B37,[1]Цены!$A:$E,4,0) -> шт | I37: =IFERROR(VLOOKUP(B37,'[1]Хар-ки'!$A:$E,5,0),"") -> 20 | J37: =VLOOKUP(B37,'[1]Хар-ки'!$A:$F,6,0) -> 0,739 | K37: =VLOOKUP(B37,'[1]Хар-ки'!$A:$G,7,0) -> 0,011457
B38: 500073 | C38: =IFERROR(VLOOKUP(B38,'[1]Хар-ки'!$A:$B,2,0),"") -> PP Труба для внутренней канализации Pro Aqua Comfort | D38: =IFERROR(VLOOKUP(B38,'[1]Хар-ки'!$A:$C,3,0),0) -> 75x2000 | E38: =IFERROR(VLOOKUP(B38,'[1]Хар-ки'!$A:$D,4,0),0) -> Обычная | F38: =VLOOKUP(B38,[1]Цены!$A:$C,3,0) -> RUR | G38: =VLOOKUP(B38,[1]Цены!$A:$E,5,0) -> 543.11 | H38: =VLOOKUP(B38,[1]Цены!$A:$E,4,0) -> шт | I38: =IFERROR(VLOOKUP(B38,'[1]Хар-ки'!$A:$E,5,0),"") -> 20 | J38: =VLOOKUP(B38,'[1]Хар-ки'!$A:$F,6,0) -> 0,927 | K38: =VLOOKUP(B38,'[1]Хар-ки'!$A:$G,7,0) -> 0,014994
B39: 500075 | C39: =IFERROR(VLOOKUP(B39,'[1]Хар-ки'!$A:$B,2,0),"") -> PP Труба для внутренней канализации Pro Aqua Comfort | D39: =IFERROR(VLOOKUP(B39,'[1]Хар-ки'!$A:$C,3,0),0) -> 75x3000 | E39: =IFERROR(VLOOKUP(B39,'[1]Хар-ки'!$A:$D,4,0),0) -> Обычная | F39: =VLOOKUP(B39,[1]Цены!$A:$C,3,0) -> RUR | G39: =VLOOKUP(B39,[1]Цены!$A:$E,5,0) -> 767.96 | H39: =VLOOKUP(B39,[1]Цены!$A:$E,4,0) -> шт | I39: =IFERROR(VLOOKUP(B39,'[1]Хар-ки'!$A:$E,5,0),"") -> 20 | J39: =VLOOKUP(B39,'[1]Хар-ки'!$A:$F,6,0) -> 1,462 | K39: =VLOOKUP(B39,'[1]Хар-ки'!$A:$G,7,0) -> 0,022066
B40: 500081 | C40: =IFERROR(VLOOKUP(B40,'[1]Хар-ки'!$A:$B,2,0),"") -> PP Труба для внутренней канализации Pro Aqua Comfort | D40: =IFERROR(VLOOKUP(B40,'[1]Хар-ки'!$A:$C,3,0),0) -> 110x 150 | E40: =IFERROR(VLOOKUP(B40,'[1]Хар-ки'!$A:$D,4,0),0) -> Обычная | F40: =VLOOKUP(B40,[1]Цены!$A:$C,3,0) -> RUR | G40: =VLOOKUP(B40,[1]Цены!$A:$E,5,0) -> 163.00 | H40: =VLOOKUP(B40,[1]Цены!$A:$E,4,0) -> шт | I40: =IFERROR(VLOOKUP(B40,'[1]Хар-ки'!$A:$E,5,0),"") -> 30 | J40: =VLOOKUP(B40,'[1]Хар-ки'!$A:$F,6,0) -> 0,239 | K40: =VLOOKUP(B40,'[1]Хар-ки'!$A:$G,7,0) -> 0,003414
B41: 500083 | C41: =IFERROR(VLOOKUP(B41,'[1]Хар-ки'!$A:$B,2,0),"") -> PP Труба для внутренней канализации Pro Aqua Comfort | D41: =IFERROR(VLOOKUP(B41,'[1]Хар-ки'!$A:$C,3,0),0) -> 110x 250 | E41: =IFERROR(VLOOKUP(B41,'[1]Хар-ки'!$A:$D,4,0),0) -> Обычная | F41: =VLOOKUP(B41,[1]Цены!$A:$C,3,0) -> RUR | G41: =VLOOKUP(B41,[1]Цены!$A:$E,5,0) -> 207.94 | H41: =VLOOKUP(B41,[1]Цены!$A:$E,4,0) -> шт | I41: =IFERROR(VLOOKUP(B41,'[1]Хар-ки'!$A:$E,5,0),"") -> 30 | J41: =VLOOKUP(B41,'[1]Хар-ки'!$A:$F,6,0) -> 0,323 | K41: =VLOOKUP(B41,'[1]Хар-ки'!$A:$G,7,0) -> 0,005047
B42: 500085 | C42: =IFERROR(VLOOKUP(B42,'[1]Хар-ки'!$A:$B,2,0),"") -> PP Труба для внутренней канализации Pro Aqua Comfort | D42: =IFERROR(VLOOKUP(B42,'[1]Хар-ки'!$A:$C,3,0),0) -> 110x 500 | E42: =IFERROR(VLOOKUP(B42,'[1]Хар-ки'!$A:$D,4,0),0) -> Обычная | F42: =VLOOKUP(B42,[1]Цены!$A:$C,3,0) -> RUR | G42: =VLOOKUP(B42,[1]Цены!$A:$E,5,0) -> 301.75 | H42: =VLOOKUP(B42,[1]Цены!$A:$E,4,0) -> шт | I42: =IFERROR(VLOOKUP(B42,'[1]Хар-ки'!$A:$E,5,0),"") -> 20 | J42: =VLOOKUP(B42,'[1]Хар-ки'!$A:$F,6,0) -> 0,607 | K42: =VLOOKUP(B42,'[1]Хар-ки'!$A:$G,7,0) -> 0,010669
B43: 500087 | C43: =IFERROR(VLOOKUP(B43,'[1]Хар-ки'!$A:$B,2,0),"") -> PP Труба для внутренней канализации Pro Aqua Comfort | D43: =IFERROR(VLOOKUP(B43,'[1]Хар-ки'!$A:$C,3,0),0) -> 110x 750 | E43: =IFERROR(VLOOKUP(B43,'[1]Хар-ки'!$A:$D,4,0),0) -> Обычная | F43: =VLOOKUP(B43,[1]Цены!$A:$C,3,0) -> RUR | G43: =VLOOKUP(B43,[1]Цены!$A:$E,5,0) -> 421.62 | H43: =VLOOKUP(B43,[1]Цены!$A:$E,4,0) -> шт | I43: =IFERROR(VLOOKUP(B43,'[1]Хар-ки'!$A:$E,5,0),"") -> 20 | J43: =VLOOKUP(B43,'[1]Хар-ки'!$A:$F,6,0) -> 0,796 | K43: =VLOOKUP(B43,'[1]Хар-ки'!$A:$G,7,0) -> 0,014642
B44: 500089 | C44: =IFERROR(VLOOKUP(B44,'[1]Хар-ки'!$A:$B,2,0),"") -> PP Труба для внутренней канализации Pro Aqua Comfort | D44: =IFERROR(VLOOKUP(B44,'[1]Хар-ки'!$A:$C,3,0),0) -> 110x1000 | E44: =IFERROR(VLOOKUP(B44,'[1]Хар-ки'!$A:$D,4,0),0) -> Обычная | F44: =VLOOKUP(B44,[1]Цены!$A:$C,3,0) -> RUR | G44: =VLOOKUP(B44,[1]Цены!$A:$E,5,0) -> 461.58 | H44: =VLOOKUP(B44,[1]Цены!$A:$E,4,0) -> шт | I44: =IFERROR(VLOOKUP(B44,'[1]Хар-ки'!$A:$E,5,0),"") -> 20 | J44: =VLOOKUP(B44,'[1]Хар-ки'!$A:$F,6,0) -> 1,032 | K44: =VLOOKUP(B44,'[1]Хар-ки'!$A:$G,7,0) -> 0,019048
B45: 500091 | C45: =IFERROR(VLOOKUP(B45,'[1]Хар-ки'!$A:$B,2,0),"") -> PP Труба для внутренней канализации Pro Aqua Comfort | D45: =IFERROR(VLOOKUP(B45,'[1]Хар-ки'!$A:$C,3,0),0) -> 110x1500 | E45: =IFERROR(VLOOKUP(B45,'[1]Хар-ки'!$A:$D,4,0),0) -> Обычная | F45: =VLOOKUP(B45,[1]Цены!$A:$C,3,0) -> RUR | G45: =VLOOKUP(B45,[1]Цены!$A:$E,5,0) -> 677.33 | H45: =VLOOKUP(B45,[1]Цены!$A:$E,4,0) -> шт | I45: =IFERROR(VLOOKUP(B45,'[1]Хар-ки'!$A:$E,5,0),"") -> 20 | J45: =VLOOKUP(B45,'[1]Хар-ки'!$A:$F,6,0) -> 1,484 | K45: =VLOOKUP(B45,'[1]Хар-ки'!$A:$G,7,0) -> 0,028868
B46: 500093 | C46: =IFERROR(VLOOKUP(B46,'[1]Хар-ки'!$A:$B,2,0),"") -> PP Труба для внутренней канализации Pro Aqua Comfort | D46: =IFERROR(VLOOKUP(B46,'[1]Хар-ки'!$A:$C,3,0),0) -> 110x2000 | E46: =IFERROR(VLOOKUP(B46,'[1]Хар-ки'!$A:$D,4,0),0) -> Обычная | F46: =VLOOKUP(B46,[1]Цены!$A:$C,3,0) -> RUR | G46: =VLOOKUP(B46,[1]Цены!$A:$E,5,0) -> 791.62 | H46: =VLOOKUP(B46,[1]Цены!$A:$E,4,0) -> шт | I46: =IFERROR(VLOOKUP(B46,'[1]Хар-ки'!$A:$E,5,0),"") -> 20 | J46: =VLOOKUP(B46,'[1]Хар-ки'!$A:$F,6,0) -> 2,003 | K46: =VLOOKUP(B46,'[1]Хар-ки'!$A:$G,7,0) -> 0,037079
B47: 500095 | C47: =IFERROR(VLOOKUP(B47,'[1]Хар-ки'!$A:$B,2,0),"") -> PP Труба для внутренней канализации Pro Aqua Comfort | D47: =IFERROR(VLOOKUP(B47,'[1]Хар-ки'!$A:$C,3,0),0) -> 110x3000 | E47: =IFERROR(VLOOKUP(B47,'[1]Хар-ки'!$A:$D,4,0),0) -> Обычная | F47: =VLOOKUP(B47,[1]Цены!$A:$C,3,0) -> RUR | G47: =VLOOKUP(B47,[1]Цены!$A:$E,5,0) -> 1,215.26 | H47: =VLOOKUP(B47,[1]Цены!$A:$E,4,0) -> шт | I47: =IFERROR(VLOOKUP(B47,'[1]Хар-ки'!$A:$E,5,0),"") -> 20 | J47: =VLOOKUP(B47,'[1]Хар-ки'!$A:$F,6,0) -> 2,766 | K47: =VLOOKUP(B47,'[1]Хар-ки'!$A:$G,7,0) -> 0,055598
B48: 300320P | C48: =IFERROR(VLOOKUP(B48,'[1]Хар-ки'!$A:$B,2,0),"") -> PP Муфта двухраструбная Pro Aqua Comfort | D48: =IFERROR(VLOOKUP(B48,'[1]Хар-ки'!$A:$C,3,0),0) -> 32 | E48: =IFERROR(VLOOKUP(B48,'[1]Хар-ки'!$A:$D,4,0),0) -> Обычная | F48: =VLOOKUP(B48,[1]Цены!$A:$C,3,0) -> RUR | G48: =VLOOKUP(B48,[1]Цены!$A:$E,5,0) -> 65.27 | H48: =VLOOKUP(B48,[1]Цены!$A:$E,4,0) -> шт | I48: =IFERROR(VLOOKUP(B48,'[1]Хар-ки'!$A:$E,5,0),"") -> 100 | J48: =VLOOKUP(B48,'[1]Хар-ки'!$A:$F,6,0) -> 0,025 | K48: =VLOOKUP(B48,'[1]Хар-ки'!$A:$G,7,0) -> 0,000195
B49: 300421 | C49: =IFERROR(VLOOKUP(B49,'[1]Хар-ки'!$A:$B,2,0),"") -> PP Муфта двухраструбная Pro Aqua Comfort | D49: =IFERROR(VLOOKUP(B49,'[1]Хар-ки'!$A:$C,3,0),0) -> 40 | E49: =IFERROR(VLOOKUP(B49,'[1]Хар-ки'!$A:$D,4,0),0) -> Обычная | F49: =VLOOKUP(B49,[1]Цены!$A:$C,3,0) -> RUR | G49: =VLOOKUP(B49,[1]Цены!$A:$E,5,0) -> 65.27 | H49: =VLOOKUP(B49,[1]Цены!$A:$E,4,0) -> шт | I49: =IFERROR(VLOOKUP(B49,'[1]Хар-ки'!$A:$E,5,0),"") -> 75 | J49: =VLOOKUP(B49,'[1]Хар-ки'!$A:$F,6,0) -> 0,039 | K49: =VLOOKUP(B49,'[1]Хар-ки'!$A:$G,7,0) -> 0,000260
B50: 300520 | C50: =IFERROR(VLOOKUP(B50,'[1]Хар-ки'!$A:$B,2,0),"") -> PP Муфта двухраструбная Pro Aqua Comfort | D50: =IFERROR(VLOOKUP(B50,'[1]Хар-ки'!$A:$C,3,0),0) -> 50 | E50: =IFERROR(VLOOKUP(B50,'[1]Хар-ки'!$A:$D,4,0),0) -> Обычная | F50: =VLOOKUP(B50,[1]Цены!$A:$C,3,0) -> RUR | G50: =VLOOKUP(B50,[1]Цены!$A:$E,5,0) -> 72.18 | H50: =VLOOKUP(B50,[1]Цены!$A:$E,4,0) -> шт | I50: =IFERROR(VLOOKUP(B50,'[1]Хар-ки'!$A:$E,5,0),"") -> 45 | J50: =VLOOKUP(B50,'[1]Хар-ки'!$A:$F,6,0) -> 0,044 | K50: =VLOOKUP(B50,'[1]Хар-ки'!$A:$G,7,0) -> 0,000433
B51: 300720 | C51: =IFERROR(VLOOKUP(B51,'[1]Хар-ки'!$A:$B,2,0),"") -> PP Муфта двухраструбная Pro Aqua Comfort | D51: =IFERROR(VLOOKUP(B51,'[1]Хар-ки'!$A:$C,3,0),0) -> 75 | E51: =IFERROR(VLOOKUP(B51,'[1]Хар-ки'!$A:$D,4,0),0) -> Обычная | F51: =VLOOKUP(B51,[1]Цены!$A:$C,3,0) -> RUR | G51: =VLOOKUP(B51,[1]Цены!$A:$E,5,0) -> 100.14 | H51: =VLOOKUP(B51,[1]Цены!$A:$E,4,0) -> шт | I51: =IFERROR(VLOOKUP(B51,'[1]Хар-ки'!$A:$E,5,0),"") -> 18 | J51: =VLOOKUP(B51,'[1]Хар-ки'!$A:$F,6,0) -> 0,098 | K51: =VLOOKUP(B51,'[1]Хар-ки'!$A:$G,7,0) -> 0,001083
B52: 301120 | C52: =IFERROR(VLOOKUP(B52,'[1]Хар-ки'!$A:$B,2,0),"") -> PP Муфта двухраструбная Pro Aqua Comfort | D52: =IFERROR(VLOOKUP(B52,'[1]Хар-ки'!$A:$C,3,0),0) -> 110 | E52: =IFERROR(VLOOKUP(B52,'[1]Хар-ки'!$A:$D,4,0),0) -> Обычная | F52: =VLOOKUP(B52,[1]Цены!$A:$C,3,0) -> RUR | G52: =VLOOKUP(B52,[1]Цены!$A:$E,5,0) -> 144.84 | H52: =VLOOKUP(B52,[1]Цены!$A:$E,4,0) -> шт | I52: =IFERROR(VLOOKUP(B52,'[1]Хар-ки'!$A:$E,5,0),"") -> 60 | J52: =VLOOKUP(B52,'[1]Хар-ки'!$A:$F,6,0) -> 0,183 | K52: =VLOOKUP(B52,'[1]Хар-ки'!$A:$G,7,0) -> 0,002000
B53: 300310P | C53: =IFERROR(VLOOKUP(B53,'[1]Хар-ки'!$A:$B,2,0),"") -> PP Муфта ремонтная Pro Aqua Comfort | D53: =IFERROR(VLOOKUP(B53,'[1]Хар-ки'!$A:$C,3,0),0) -> 32 | E53: =IFERROR(VLOOKUP(B53,'[1]Хар-ки'!$A:$D,4,0),0) -> Обычная | F53: =VLOOKUP(B53,[1]Цены!$A:$C,3,0) -> RUR | G53: =VLOOKUP(B53,[1]Цены!$A:$E,5,0) -> 65.27 | H53: =VLOOKUP(B53,[1]Цены!$A:$E,4,0) -> шт | I53: =IFERROR(VLOOKUP(B53,'[1]Хар-ки'!$A:$E,5,0),"") -> 100 | J53: =VLOOKUP(B53,'[1]Хар-ки'!$A:$F,6,0) -> 0,024 | K53: =VLOOKUP(B53,'[1]Хар-ки'!$A:$G,7,0) -> 0,000195
B54: 300411 | C54: =IFERROR(VLOOKUP(B54,'[1]Хар-ки'!$A:$B,2,0),"") -> PP Муфта ремонтная Pro Aqua Comfort | D54: =IFERROR(VLOOKUP(B54,'[1]Хар-ки'!$A:$C,3,0),0) -> 40 | E54: =IFERROR(VLOOKUP(B54,'[1]Хар-ки'!$A:$D,4,0),0) -> Обычная | F54: =VLOOKUP(B54,[1]Цены!$A:$C,3,0) -> RUR | G54: =VLOOKUP(B54,[1]Цены!$A:$E,5,0) -> 65.27 | H54: =VLOOKUP(B54,[1]Цены!$A:$E,4,0) -> шт | I54: =IFERROR(VLOOKUP(B54,'[1]Хар-ки'!$A:$E,5,0),"") -> 75 | J54: =VLOOKUP(B54,'[1]Хар-ки'!$A:$F,6,0) -> 0,037 | K54: =VLOOKUP(B54,'[1]Хар-ки'!$A:$G,7,0) -> 0,000260
B55: 300510 | C55: =IFERROR(VLOOKUP(B55,'[1]Хар-ки'!$A:$B,2,0),"") -> PP Муфта ремонтная Pro Aqua Comfort | D55: =IFERROR(VLOOKUP(B55,'[1]Хар-ки'!$A:$C,3,0),0) -> 50 | E55: =IFERROR(VLOOKUP(B55,'[1]Хар-ки'!$A:$D,4,0),0) -> Обычная | F55: =VLOOKUP(B55,[1]Цены!$A:$C,3,0) -> RUR | G55: =VLOOKUP(B55,[1]Цены!$A:$E,5,0) -> 72.18 | H55: =VLOOKUP(B55,[1]Цены!$A:$E,4,0) -> шт | I55: =IFERROR(VLOOKUP(B55,'[1]Хар-ки'!$A:$E,5,0),"") -> 45 | J55: =VLOOKUP(B55,'[1]Хар-ки'!$A:$F,6,0) -> 0,044 | K55: =VLOOKUP(B55,'[1]Хар-ки'!$A:$G,7,0) -> 0,000433
B56: 300710 | C56: =IFERROR(VLOOKUP(B56,'[1]Хар-ки'!$A:$B,2,0),"") -> PP Муфта ремонтная Pro Aqua Comfort | D56: =IFERROR(VLOOKUP(B56,'[1]Хар-ки'!$A:$C,3,0),0) -> 75 | E56: =IFERROR(VLOOKUP(B56,'[1]Хар-ки'!$A:$D,4,0),0) -> Обычная | F56: =VLOOKUP(B56,[1]Цены!$A:$C,3,0) -> RUR | G56: =VLOOKUP(B56,[1]Цены!$A:$E,5,0) -> 100.14 | H56: =VLOOKUP(B56,[1]Цены!$A:$E,4,0) -> шт | I56: =IFERROR(VLOOKUP(B56,'[1]Хар-ки'!$A:$E,5,0),"") -> 18 | J56: =VLOOKUP(B56,'[1]Хар-ки'!$A:$F,6,0) -> 0,096 | K56: =VLOOKUP(B56,'[1]Хар-ки'!$A:$G,7,0) -> 0,001083
B57: 301110 | C57: =IFERROR(VLOOKUP(B57,'[1]Хар-ки'!$A:$B,2,0),"") -> PP Муфта ремонтная Pro Aqua Comfort | D57: =IFERROR(VLOOKUP(B57,'[1]Хар-ки'!$A:$C,3,0),0) -> 110 | E57: =IFERROR(VLOOKUP(B57,'[1]Хар-ки'!$A:$D,4,0),0) -> Обычная | F57: =VLOOKUP(B57,[1]Цены!$A:$C,3,0) -> RUR | G57: =VLOOKUP(B57,[1]Цены!$A:$E,5,0) -> 137.72 | H57: =VLOOKUP(B57,[1]Цены!$A:$E,4,0) -> шт | I57: =IFERROR(VLOOKUP(B57,'[1]Хар-ки'!$A:$E,5,0),"") -> 60 | J57: =VLOOKUP(B57,'[1]Хар-ки'!$A:$F,6,0) -> 0,161 | K57: =VLOOKUP(B57,'[1]Хар-ки'!$A:$G,7,0) -> 0,002000
B58: 203245 | C58: =IFERROR(VLOOKUP(B58,'[1]Хар-ки'!$A:$B,2,0),"") -> PP Тройник Pro Aqua Comfort | D58: =IFERROR(VLOOKUP(B58,'[1]Хар-ки'!$A:$C,3,0),0) -> 32x32/45 | E58: =IFERROR(VLOOKUP(B58,'[1]Хар-ки'!$A:$D,4,0),0) -> Обычная | F58: =VLOOKUP(B58,[1]Цены!$A:$C,3,0) -> RUR | G58: =VLOOKUP(B58,[1]Цены!$A:$E,5,0) -> 79.55 | H58: =VLOOKUP(B58,[1]Цены!$A:$E,4,0) -> шт | I58: =IFERROR(VLOOKUP(B58,'[1]Хар-ки'!$A:$E,5,0),"") -> 60 | J58: =VLOOKUP(B58,'[1]Хар-ки'!$A:$F,6,0) -> 0,045 | K58: =VLOOKUP(B58,'[1]Хар-ки'!$A:$G,7,0) -> 0,000325
B59: 203287 | C59: =IFERROR(VLOOKUP(B59,'[1]Хар-ки'!$A:$B,2,0),"") -> PP Тройник Pro Aqua Comfort | D59: =IFERROR(VLOOKUP(B59,'[1]Хар-ки'!$A:$C,3,0),0) -> 32x32/87,5 | E59: =IFERROR(VLOOKUP(B59,'[1]Хар-ки'!$A:$D,4,0),0) -> Обычная | F59: =VLOOKUP(B59,[1]Цены!$A:$C,3,0) -> RUR | G59: =VLOOKUP(B59,[1]Цены!$A:$E,5,0) -> 79.55 | H59: =VLOOKUP(B59,[1]Цены!$A:$E,4,0) -> шт | I59: =IFERROR(VLOOKUP(B59,'[1]Хар-ки'!$A:$E,5,0),"") -> 60 | J59: =VLOOKUP(B59,'[1]Хар-ки'!$A:$F,6,0) -> 0,043 | K59: =VLOOKUP(B59,'[1]Хар-ки'!$A:$G,7,0) -> 0,000325
B60: 214445 | C60: =IFERROR(VLOOKUP(B60,'[1]Хар-ки'!$A:$B,2,0),"") -> PP Тройник Pro Aqua Comfort | D60: =IFERROR(VLOOKUP(B60,'[1]Хар-ки'!$A:$C,3,0),0) -> 40x40/45 | E60: =IFERROR(VLOOKUP(B60,'[1]Хар-ки'!$A:$D,4,0),0) -> Обычная | F60: =VLOOKUP(B60,[1]Цены!$A:$C,3,0) -> RUR | G60: =VLOOKUP(B60,[1]Цены!$A:$E,5,0) -> 80.56 | H60: =VLOOKUP(B60,[1]Цены!$A:$E,4,0) -> шт | I60: =IFERROR(VLOOKUP(B60,'[1]Хар-ки'!$A:$E,5,0),"") -> 28 | J60: =VLOOKUP(B60,'[1]Хар-ки'!$A:$F,6,0) -> 0,068 | K60: =VLOOKUP(B60,'[1]Хар-ки'!$A:$G,7,0) -> 0,000696
B61: 214487 | C61: =IFERROR(VLOOKUP(B61,'[1]Хар-ки'!$A:$B,2,0),"") -> PP Тройник Pro Aqua Comfort | D61: =IFERROR(VLOOKUP(B61,'[1]Хар-ки'!$A:$C,3,0),0) -> 40x40/87,5 | E61: =IFERROR(VLOOKUP(B61,'[1]Хар-ки'!$A:$D,4,0),0) -> Обычная | F61: =VLOOKUP(B61,[1]Цены!$A:$C,3,0) -> RUR | G61: =VLOOKUP(B61,[1]Цены!$A:$E,5,0) -> 80.56 | H61: =VLOOKUP(B61,[1]Цены!$A:$E,4,0) -> шт | I61: =IFERROR(VLOOKUP(B61,'[1]Хар-ки'!$A:$E,5,0),"") -> 28 | J61: =VLOOKUP(B61,'[1]Хар-ки'!$A:$F,6,0) -> 0,068 | K61: =VLOOKUP(B61,'[1]Хар-ки'!$A:$G,7,0) -> 0,000696
B62: 215445 | C62: =IFERROR(VLOOKUP(B62,'[1]Хар-ки'!$A:$B,2,0),"") -> PP Тройник Pro Aqua Comfort | D62: =IFERROR(VLOOKUP(B62,'[1]Хар-ки'!$A:$C,3,0),0) -> 50x40/45 | E62: =IFERROR(VLOOKUP(B62,'[1]Хар-ки'!$A:$D,4,0),0) -> Обычная | F62: =VLOOKUP(B62,[1]Цены!$A:$C,3,0) -> RUR | G62: =VLOOKUP(B62,[1]Цены!$A:$E,5,0) -> 84.28 | H62: =VLOOKUP(B62,[1]Цены!$A:$E,4,0) -> шт | I62: =IFERROR(VLOOKUP(B62,'[1]Хар-ки'!$A:$E,5,0),"") -> 20 | J62: =VLOOKUP(B62,'[1]Хар-ки'!$A:$F,6,0) -> 0,092 | K62: =VLOOKUP(B62,'[1]Хар-ки'!$A:$G,7,0) -> 0,000975
B63: 215487 | C63: =IFERROR(VLOOKUP(B63,'[1]Хар-ки'!$A:$B,2,0),"") -> PP Тройник Pro Aqua Comfort | D63: =IFERROR(VLOOKUP(B63,'[1]Хар-ки'!$A:$C,3,0),0) -> 50x40/87,5 | E63: =IFERROR(VLOOKUP(B63,'[1]Хар-ки'!$A:$D,4,0),0) -> Обычная | F63: =VLOOKUP(B63,[1]Цены!$A:$C,3,0) -> RUR | G63: =VLOOKUP(B63,[1]Цены!$A:$E,5,0) -> 84.28 | H63: =VLOOKUP(B63,[1]Цены!$A:$E,4,0) -> шт | I63: =IFERROR(VLOOKUP(B63,'[1]Хар-ки'!$A:$E,5,0),"") -> 28 | J63: =VLOOKUP(B63,'[1]Хар-ки'!$A:$F,6,0) -> 0,075 | K63: =VLOOKUP(B63,'[1]Хар-ки'!$A:$G,7,0) -> 0,000696
B64: 205545 | C64: =IFERROR(VLOOKUP(B64,'[1]Хар-ки'!$A:$B,2,0),"") -> PP Тройник Pro Aqua Comfort | D64: =IFERROR(VLOOKUP(B64,'[1]Хар-ки'!$A:$C,3,0),0) -> 50x50/45 | E64: =IFERROR(VLOOKUP(B64,'[1]Хар-ки'!$A:$D,4,0),0) -> Обычная | F64: =VLOOKUP(B64,[1]Цены!$A:$C,3,0) -> RUR | G64: =VLOOKUP(B64,[1]Цены!$A:$E,5,0) -> 82.70 | H64: =VLOOKUP(B64,[1]Цены!$A:$E,4,0) -> шт | I64: =IFERROR(VLOOKUP(B64,'[1]Хар-ки'!$A:$E,5,0),"") -> 18 | J64: =VLOOKUP(B64,'[1]Хар-ки'!$A:$F,6,0) -> 0,097 | K64: =VLOOKUP(B64,'[1]Хар-ки'!$A:$G,7,0) -> 0,001083
B65: 205587 | C65: =IFERROR(VLOOKUP(B65,'[1]Хар-ки'!$A:$B,2,0),"") -> PP Тройник Pro Aqua Comfort | D65: =IFERROR(VLOOKUP(B65,'[1]Хар-ки'!$A:$C,3,0),0) -> 50x50/87,5 | E65: =IFERROR(VLOOKUP(B65,'[1]Хар-ки'!$A:$D,4,0),0) -> Обычная | F65: =VLOOKUP(B65,[1]Цены!$A:$C,3,0) -> RUR | G65: =VLOOKUP(B65,[1]Цены!$A:$E,5,0) -> 82.70 | H65: =VLOOKUP(B65,[1]Цены!$A:$E,4,0) -> шт | I65: =IFERROR(VLOOKUP(B65,'[1]Хар-ки'!$A:$E,5,0),"") -> 18 | J65: =VLOOKUP(B65,'[1]Хар-ки'!$A:$F,6,0) -> 0,094 | K65: =VLOOKUP(B65,'[1]Хар-ки'!$A:$G,7,0) -> 0,001083
B66: 207545 | C66: =IFERROR(VLOOKUP(B66,'[1]Хар-ки'!$A:$B,2,0),"") -> PP Тройник Pro Aqua Comfort | D66: =IFERROR(VLOOKUP(B66,'[1]Хар-ки'!$A:$C,3,0),0) -> 75x50/45 | E66: =IFERROR(VLOOKUP(B66,'[1]Хар-ки'!$A:$D,4,0),0) -> Обычная | F66: =VLOOKUP(B66,[1]Цены!$A:$C,3,0) -> RUR | G66: =VLOOKUP(B66,[1]Цены!$A:$E,5,0) -> 130.73 | H66: =VLOOKUP(B66,[1]Цены!$A:$E,4,0) -> шт | I66: =IFERROR(VLOOKUP(B66,'[1]Хар-ки'!$A:$E,5,0),"") -> 60 | J66: =VLOOKUP(B66,'[1]Хар-ки'!$A:$F,6,0) -> 0,126 | K66: =VLOOKUP(B66,'[1]Хар-ки'!$A:$G,7,0) -> 0,002000
B67: 207587 | C67: =IFERROR(VLOOKUP(B67,'[1]Хар-ки'!$A:$B,2,0),"") -> PP Тройник Pro Aqua Comfort | D67: =IFERROR(VLOOKUP(B67,'[1]Хар-ки'!$A:$C,3,0),0) -> 75x50/87,5 | E67: =IFERROR(VLOOKUP(B67,'[1]Хар-ки'!$A:$D,4,0),0) -> Обычная | F67: =VLOOKUP(B67,[1]Цены!$A:$C,3,0) -> RUR | G67: =VLOOKUP(B67,[1]Цены!$A:$E,5,0) -> 130.73 | H67: =VLOOKUP(B67,[1]Цены!$A:$E,4,0) -> шт | I67: =IFERROR(VLOOKUP(B67,'[1]Хар-ки'!$A:$E,5,0),"") -> 60 | J67: =VLOOKUP(B67,'[1]Хар-ки'!$A:$F,6,0) -> 0,116 | K67: =VLOOKUP(B67,'[1]Хар-ки'!$A:$G,7,0) -> 0,002000
B68: 207745 | C68: =IFERROR(VLOOKUP(B68,'[1]Хар-ки'!$A:$B,2,0),"") -> PP Тройник Pro Aqua Comfort | D68: =IFERROR(VLOOKUP(B68,'[1]Хар-ки'!$A:$C,3,0),0) -> 75x75/45 | E68: =IFERROR(VLOOKUP(B68,'[1]Хар-ки'!$A:$D,4,0),0) -> Обычная | F68: =VLOOKUP(B68,[1]Цены!$A:$C,3,0) -> RUR | G68: =VLOOKUP(B68,[1]Цены!$A:$E,5,0) -> 157.49 | H68: =VLOOKUP(B68,[1]Цены!$A:$E,4,0) -> шт | I68: =IFERROR(VLOOKUP(B68,'[1]Хар-ки'!$A:$E,5,0),"") -> 40 | J68: =VLOOKUP(B68,'[1]Хар-ки'!$A:$F,6,0) -> 0,200 | K68: =VLOOKUP(B68,'[1]Хар-ки'!$A:$G,7,0) -> 0,003000
B69: 207787 | C69: =IFERROR(VLOOKUP(B69,'[1]Хар-ки'!$A:$B,2,0),"") -> PP Тройник Pro Aqua Comfort | D69: =IFERROR(VLOOKUP(B69,'[1]Хар-ки'!$A:$C,3,0),0) -> 75x75/87,5 | E69: =IFERROR(VLOOKUP(B69,'[1]Хар-ки'!$A:$D,4,0),0) -> Обычная | F69: =VLOOKUP(B69,[1]Цены!$A:$C,3,0) -> RUR | G69: =VLOOKUP(B69,[1]Цены!$A:$E,5,0) -> 157.49 | H69: =VLOOKUP(B69,[1]Цены!$A:$E,4,0) -> шт | I69: =IFERROR(VLOOKUP(B69,'[1]Хар-ки'!$A:$E,5,0),"") -> 50 | J69: =VLOOKUP(B69,'[1]Хар-ки'!$A:$F,6,0) -> 0,139 | K69: =VLOOKUP(B69,'[1]Хар-ки'!$A:$G,7,0) -> 0,002400
B70: 201545 | C70: =IFERROR(VLOOKUP(B70,'[1]Хар-ки'!$A:$B,2,0),"") -> PP Тройник Pro Aqua Comfort | D70: =IFERROR(VLOOKUP(B70,'[1]Хар-ки'!$A:$C,3,0),0) -> 110x 50/45 | E70: =IFERROR(VLOOKUP(B70,'[1]Хар-ки'!$A:$D,4,0),0) -> Обычная | F70: =VLOOKUP(B70,[1]Цены!$A:$C,3,0) -> RUR | G70: =VLOOKUP(B70,[1]Цены!$A:$E,5,0) -> 156.26 | H70: =VLOOKUP(B70,[1]Цены!$A:$E,4,0) -> шт | I70: =IFERROR(VLOOKUP(B70,'[1]Хар-ки'!$A:$E,5,0),"") -> 30 | J70: =VLOOKUP(B70,'[1]Хар-ки'!$A:$F,6,0) -> 0,303 | K70: =VLOOKUP(B70,'[1]Хар-ки'!$A:$G,7,0) -> 0,004000
B71: 201587 | C71: =IFERROR(VLOOKUP(B71,'[1]Хар-ки'!$A:$B,2,0),"") -> PP Тройник Pro Aqua Comfort | D71: =IFERROR(VLOOKUP(B71,'[1]Хар-ки'!$A:$C,3,0),0) -> 110x 50/87,5 | E71: =IFERROR(VLOOKUP(B71,'[1]Хар-ки'!$A:$D,4,0),0) -> Обычная | F71: =VLOOKUP(B71,[1]Цены!$A:$C,3,0) -> RUR | G71: =VLOOKUP(B71,[1]Цены!$A:$E,5,0) -> 155.78 | H71: =VLOOKUP(B71,[1]Цены!$A:$E,4,0) -> шт | I71: =IFERROR(VLOOKUP(B71,'[1]Хар-ки'!$A:$E,5,0),"") -> 30 | J71: =VLOOKUP(B71,'[1]Хар-ки'!$A:$F,6,0) -> 0,268 | K71: =VLOOKUP(B71,'[1]Хар-ки'!$A:$G,7,0) -> 0,004000
B72: 201745 | C72: =IFERROR(VLOOKUP(B72,'[1]Хар-ки'!$A:$B,2,0),"") -> PP Тройник Pro Aqua Comfort | D72: =IFERROR(VLOOKUP(B72,'[1]Хар-ки'!$A:$C,3,0),0) -> 110x75/45 | E72: =IFERROR(VLOOKUP(B72,'[1]Хар-ки'!$A:$D,4,0),0) -> Обычная | F72: =VLOOKUP(B72,[1]Цены!$A:$C,3,0) -> RUR | G72: =VLOOKUP(B72,[1]Цены!$A:$E,5,0) -> 226.36 | H72: =VLOOKUP(B72,[1]Цены!$A:$E,4,0) -> шт | I72: =IFERROR(VLOOKUP(B72,'[1]Хар-ки'!$A:$E,5,0),"") -> 20 | J72: =VLOOKUP(B72,'[1]Хар-ки'!$A:$F,6,0) -> 0,271 | K72: =VLOOKUP(B72,'[1]Хар-ки'!$A:$G,7,0) -> 0,006000
B73: 201787 | C73: =IFERROR(VLOOKUP(B73,'[1]Хар-ки'!$A:$B,2,0),"") -> PP Тройник Pro Aqua Comfort | D73: =IFERROR(VLOOKUP(B73,'[1]Хар-ки'!$A:$C,3,0),0) -> 110x75/87,5 | E73: =IFERROR(VLOOKUP(B73,'[1]Хар-ки'!$A:$D,4,0),0) -> Обычная | F73: =VLOOKUP(B73,[1]Цены!$A:$C,3,0) -> RUR | G73: =VLOOKUP(B73,[1]Цены!$A:$E,5,0) -> 226.36 | H73: =VLOOKUP(B73,[1]Цены!$A:$E,4,0) -> шт | I73: =IFERROR(VLOOKUP(B73,'[1]Хар-ки'!$A:$E,5,0),"") -> 25 | J73: =VLOOKUP(B73,'[1]Хар-ки'!$A:$F,6,0) -> 0,241 | K73: =VLOOKUP(B73,'[1]Хар-ки'!$A:$G,7,0) -> 0,004800
B74: 201145 | C74: =IFERROR(VLOOKUP(B74,'[1]Хар-ки'!$A:$B,2,0),"") -> PP Тройник Pro Aqua Comfort | D74: =IFERROR(VLOOKUP(B74,'[1]Хар-ки'!$A:$C,3,0),0) -> 110x110/45 | E74: =IFERROR(VLOOKUP(B74,'[1]Хар-ки'!$A:$D,4,0),0) -> Обычная | F74: =VLOOKUP(B74,[1]Цены!$A:$C,3,0) -> RUR | G74: =VLOOKUP(B74,[1]Цены!$A:$E,5,0) -> 254.15 | H74: =VLOOKUP(B74,[1]Цены!$A:$E,4,0) -> шт | I74: =IFERROR(VLOOKUP(B74,'[1]Хар-ки'!$A:$E,5,0),"") -> 15 | J74: =VLOOKUP(B74,'[1]Хар-ки'!$A:$F,6,0) -> 0,443 | K74: =VLOOKUP(B74,'[1]Хар-ки'!$A:$G,7,0) -> 0,008000
B75: 201187 | C75: =IFERROR(VLOOKUP(B75,'[1]Хар-ки'!$A:$B,2,0),"") -> PP Тройник Pro Aqua Comfort | D75: =IFERROR(VLOOKUP(B75,'[1]Хар-ки'!$A:$C,3,0),0) -> 110x110/87,5 | E75: =IFERROR(VLOOKUP(B75,'[1]Хар-ки'!$A:$D,4,0),0) -> Обычная | F75: =VLOOKUP(B75,[1]Цены!$A:$C,3,0) -> RUR | G75: =VLOOKUP(B75,[1]Цены!$A:$E,5,0) -> 224.93 | H75: =VLOOKUP(B75,[1]Цены!$A:$E,4,0) -> шт | I75: =IFERROR(VLOOKUP(B75,'[1]Хар-ки'!$A:$E,5,0),"") -> 20 | J75: =VLOOKUP(B75,'[1]Хар-ки'!$A:$F,6,0) -> 0,315 | K75: =VLOOKUP(B75,'[1]Хар-ки'!$A:$G,7,0) -> 0,006000
B76: 100345P | C76: =IFERROR(VLOOKUP(B76,'[1]Хар-ки'!$A:$B,2,0),"") -> PP Отвод Pro Aqua Comfort | D76: =IFERROR(VLOOKUP(B76,'[1]Хар-ки'!$A:$C,3,0),0) -> 32x45 | E76: =IFERROR(VLOOKUP(B76,'[1]Хар-ки'!$A:$D,4,0),0) -> Обычная | F76: =VLOOKUP(B76,[1]Цены!$A:$C,3,0) -> RUR | G76: =VLOOKUP(B76,[1]Цены!$A:$E,5,0) -> 41.48 | H76: =VLOOKUP(B76,[1]Цены!$A:$E,4,0) -> шт | I76: =IFERROR(VLOOKUP(B76,'[1]Хар-ки'!$A:$E,5,0),"") -> 100 | J76: =VLOOKUP(B76,'[1]Хар-ки'!$A:$F,6,0) -> 0,025 | K76: =VLOOKUP(B76,'[1]Хар-ки'!$A:$G,7,0) -> 0,000195
B77: 110387 | C77: =IFERROR(VLOOKUP(B77,'[1]Хар-ки'!$A:$B,2,0),"") -> PP Отвод Pro Aqua Comfort | D77: =IFERROR(VLOOKUP(B77,'[1]Хар-ки'!$A:$C,3,0),0) -> 32х87,5 | E77: =IFERROR(VLOOKUP(B77,'[1]Хар-ки'!$A:$D,4,0),0) -> Обычная | F77: =VLOOKUP(B77,[1]Цены!$A:$C,3,0) -> RUR | G77: =VLOOKUP(B77,[1]Цены!$A:$E,5,0) -> 41.48 | H77: =VLOOKUP(B77,[1]Цены!$A:$E,4,0) -> шт | I77: =IFERROR(VLOOKUP(B77,'[1]Хар-ки'!$A:$E,5,0),"") -> 90 | J77: =VLOOKUP(B77,'[1]Хар-ки'!$A:$F,6,0) -> 0,029 | K77: =VLOOKUP(B77,'[1]Хар-ки'!$A:$G,7,0) -> 0,000217
B78: 110445 | C78: =IFERROR(VLOOKUP(B78,'[1]Хар-ки'!$A:$B,2,0),"") -> PP Отвод Pro Aqua Comfort | D78: =IFERROR(VLOOKUP(B78,'[1]Хар-ки'!$A:$C,3,0),0) -> 40x45 | E78: =IFERROR(VLOOKUP(B78,'[1]Хар-ки'!$A:$D,4,0),0) -> Обычная | F78: =VLOOKUP(B78,[1]Цены!$A:$C,3,0) -> RUR | G78: =VLOOKUP(B78,[1]Цены!$A:$E,5,0) -> 42.12 | H78: =VLOOKUP(B78,[1]Цены!$A:$E,4,0) -> шт | I78: =IFERROR(VLOOKUP(B78,'[1]Хар-ки'!$A:$E,5,0),"") -> 60 | J78: =VLOOKUP(B78,'[1]Хар-ки'!$A:$F,6,0) -> 0,038 | K78: =VLOOKUP(B78,'[1]Хар-ки'!$A:$G,7,0) -> 0,000325
B79: 110487 | C79: =IFERROR(VLOOKUP(B79,'[1]Хар-ки'!$A:$B,2,0),"") -> PP Отвод Pro Aqua Comfort | D79: =IFERROR(VLOOKUP(B79,'[1]Хар-ки'!$A:$C,3,0),0) -> 40x87,5 | E79: =IFERROR(VLOOKUP(B79,'[1]Хар-ки'!$A:$D,4,0),0) -> Обычная | F79: =VLOOKUP(B79,[1]Цены!$A:$C,3,0) -> RUR | G79: =VLOOKUP(B79,[1]Цены!$A:$E,5,0) -> 42.12 | H79: =VLOOKUP(B79,[1]Цены!$A:$E,4,0) -> шт | I79: =IFERROR(VLOOKUP(B79,'[1]Хар-ки'!$A:$E,5,0),"") -> 50 | J79: =VLOOKUP(B79,'[1]Хар-ки'!$A:$F,6,0) -> 0,048 | K79: =VLOOKUP(B79,'[1]Хар-ки'!$A:$G,7,0) -> 0,000390
B80: 100515 | C80: =IFERROR(VLOOKUP(B80,'[1]Хар-ки'!$A:$B,2,0),"") -> PP Отвод Pro Aqua Comfort | D80: =IFERROR(VLOOKUP(B80,'[1]Хар-ки'!$A:$C,3,0),0) -> 50x15 | E80: =IFERROR(VLOOKUP(B80,'[1]Хар-ки'!$A:$D,4,0),0) -> Обычная | F80: =VLOOKUP(B80,[1]Цены!$A:$C,3,0) -> RUR | G80: =VLOOKUP(B80,[1]Цены!$A:$E,5,0) -> 55.36 | H80: =VLOOKUP(B80,[1]Цены!$A:$E,4,0) -> шт | I80: =IFERROR(VLOOKUP(B80,'[1]Хар-ки'!$A:$E,5,0),"") -> 40 | J80: =VLOOKUP(B80,'[1]Хар-ки'!$A:$F,6,0) -> 0,050 | K80: =VLOOKUP(B80,'[1]Хар-ки'!$A:$G,7,0) -> 0,000488
B81: 100530 | C81: =IFERROR(VLOOKUP(B81,'[1]Хар-ки'!$A:$B,2,0),"") -> PP Отвод Pro Aqua Comfort | D81: =IFERROR(VLOOKUP(B81,'[1]Хар-ки'!$A:$C,3,0),0) -> 50x30 | E81: =IFERROR(VLOOKUP(B81,'[1]Хар-ки'!$A:$D,4,0),0) -> Обычная | F81: =VLOOKUP(B81,[1]Цены!$A:$C,3,0) -> RUR | G81: =VLOOKUP(B81,[1]Цены!$A:$E,5,0) -> 47.70 | H81: =VLOOKUP(B81,[1]Цены!$A:$E,4,0) -> шт | I81: =IFERROR(VLOOKUP(B81,'[1]Хар-ки'!$A:$E,5,0),"") -> 40 | J81: =VLOOKUP(B81,'[1]Хар-ки'!$A:$F,6,0) -> 0,065 | K81: =VLOOKUP(B81,'[1]Хар-ки'!$A:$G,7,0) -> 0,000488
B82: 100545 | C82: =IFERROR(VLOOKUP(B82,'[1]Хар-ки'!$A:$B,2,0),"") -> PP Отвод Pro Aqua Comfort | D82: =IFERROR(VLOOKUP(B82,'[1]Хар-ки'!$A:$C,3,0),0) -> 50x45 | E82: =IFERROR(VLOOKUP(B82,'[1]Хар-ки'!$A:$D,4,0),0) -> Обычная | F82: =VLOOKUP(B82,[1]Цены!$A:$C,3,0) -> RUR | G82: =VLOOKUP(B82,[1]Цены!$A:$E,5,0) -> 41.28 | H82: =VLOOKUP(B82,[1]Цены!$A:$E,4,0) -> шт | I82: =IFERROR(VLOOKUP(B82,'[1]Хар-ки'!$A:$E,5,0),"") -> 40 | J82: =VLOOKUP(B82,'[1]Хар-ки'!$A:$F,6,0) -> 0,054 | K82: =VLOOKUP(B82,'[1]Хар-ки'!$A:$G,7,0) -> 0,000488
B83: 100567 | C83: =IFERROR(VLOOKUP(B83,'[1]Хар-ки'!$A:$B,2,0),"") -> PP Отвод Pro Aqua Comfort | D83: =IFERROR(VLOOKUP(B83,'[1]Хар-ки'!$A:$C,3,0),0) -> 50x67 | E83: =IFERROR(VLOOKUP(B83,'[1]Хар-ки'!$A:$D,4,0),0) -> Обычная | F83: =VLOOKUP(B83,[1]Цены!$A:$C,3,0) -> RUR | G83: =VLOOKUP(B83,[1]Цены!$A:$E,5,0) -> 52.73 | H83: =VLOOKUP(B83,[1]Цены!$A:$E,4,0) -> шт | I83: =IFERROR(VLOOKUP(B83,'[1]Хар-ки'!$A:$E,5,0),"") -> 40 | J83: =VLOOKUP(B83,'[1]Хар-ки'!$A:$F,6,0) -> 0,060 | K83: =VLOOKUP(B83,'[1]Хар-ки'!$A:$G,7,0) -> 0,000488
B84: 100587 | C84: =IFERROR(VLOOKUP(B84,'[1]Хар-ки'!$A:$B,2,0),"") -> PP Отвод Pro Aqua Comfort | D84: =IFERROR(VLOOKUP(B84,'[1]Хар-ки'!$A:$C,3,0),0) -> 50x87,5 | E84: =IFERROR(VLOOKUP(B84,'[1]Хар-ки'!$A:$D,4,0),0) -> Обычная | F84: =VLOOKUP(B84,[1]Цены!$A:$C,3,0) -> RUR | G84: =VLOOKUP(B84,[1]Цены!$A:$E,5,0) -> 41.28 | H84: =VLOOKUP(B84,[1]Цены!$A:$E,4,0) -> шт | I84: =IFERROR(VLOOKUP(B84,'[1]Хар-ки'!$A:$E,5,0),"") -> 30 | J84: =VLOOKUP(B84,'[1]Хар-ки'!$A:$F,6,0) -> 0,061 | K84: =VLOOKUP(B84,'[1]Хар-ки'!$A:$G,7,0) -> 0,000676
B85: 100715 | C85: =IFERROR(VLOOKUP(B85,'[1]Хар-ки'!$A:$B,2,0),"") -> PP Отвод Pro Aqua Comfort | D85: =IFERROR(VLOOKUP(B85,'[1]Хар-ки'!$A:$C,3,0),0) -> 75x15 | E85: =IFERROR(VLOOKUP(B85,'[1]Хар-ки'!$A:$D,4,0),0) -> Обычная | F85: =VLOOKUP(B85,[1]Цены!$A:$C,3,0) -> RUR | G85: =VLOOKUP(B85,[1]Цены!$A:$E,5,0) -> 99.43 | H85: =VLOOKUP(B85,[1]Цены!$A:$E,4,0) -> шт | I85: =IFERROR(VLOOKUP(B85,'[1]Хар-ки'!$A:$E,5,0),"") -> 20 | J85: =VLOOKUP(B85,'[1]Хар-ки'!$A:$F,6,0) -> 0,070 | K85: =VLOOKUP(B85,'[1]Хар-ки'!$A:$G,7,0) -> 0,000975
B86: 100730 | C86: =IFERROR(VLOOKUP(B86,'[1]Хар-ки'!$A:$B,2,0),"") -> PP Отвод Pro Aqua Comfort | D86: =IFERROR(VLOOKUP(B86,'[1]Хар-ки'!$A:$C,3,0),0) -> 75x30 | E86: =IFERROR(VLOOKUP(B86,'[1]Хар-ки'!$A:$D,4,0),0) -> Обычная | F86: =VLOOKUP(B86,[1]Цены!$A:$C,3,0) -> RUR | G86: =VLOOKUP(B86,[1]Цены!$A:$E,5,0) -> 99.43 | H86: =VLOOKUP(B86,[1]Цены!$A:$E,4,0) -> шт | I86: =IFERROR(VLOOKUP(B86,'[1]Хар-ки'!$A:$E,5,0),"") -> 17 | J86: =VLOOKUP(B86,'[1]Хар-ки'!$A:$F,6,0) -> 0,074 | K86: =VLOOKUP(B86,'[1]Хар-ки'!$A:$G,7,0) -> 0,001147
B87: 100745 | C87: =IFERROR(VLOOKUP(B87,'[1]Хар-ки'!$A:$B,2,0),"") -> PP Отвод Pro Aqua Comfort | D87: =IFERROR(VLOOKUP(B87,'[1]Хар-ки'!$A:$C,3,0),0) -> 75x45 | E87: =IFERROR(VLOOKUP(B87,'[1]Хар-ки'!$A:$D,4,0),0) -> Обычная | F87: =VLOOKUP(B87,[1]Цены!$A:$C,3,0) -> RUR | G87: =VLOOKUP(B87,[1]Цены!$A:$E,5,0) -> 99.43 | H87: =VLOOKUP(B87,[1]Цены!$A:$E,4,0) -> шт | I87: =IFERROR(VLOOKUP(B87,'[1]Хар-ки'!$A:$E,5,0),"") -> 15 | J87: =VLOOKUP(B87,'[1]Хар-ки'!$A:$F,6,0) -> 0,110 | K87: =VLOOKUP(B87,'[1]Хар-ки'!$A:$G,7,0) -> 0,001352
B88: 100767 | C88: =IFERROR(VLOOKUP(B88,'[1]Хар-ки'!$A:$B,2,0),"") -> PP Отвод Pro Aqua Comfort | D88: =IFERROR(VLOOKUP(B88,'[1]Хар-ки'!$A:$C,3,0),0) -> 75x67 | E88: =IFERROR(VLOOKUP(B88,'[1]Хар-ки'!$A:$D,4,0),0) -> Обычная | F88: =VLOOKUP(B88,[1]Цены!$A:$C,3,0) -> RUR | G88: =VLOOKUP(B88,[1]Цены!$A:$E,5,0) -> 99.43 | H88: =VLOOKUP(B88,[1]Цены!$A:$E,4,0) -> шт | I88: =IFERROR(VLOOKUP(B88,'[1]Хар-ки'!$A:$E,5,0),"") -> 15 | J88: =VLOOKUP(B88,'[1]Хар-ки'!$A:$F,6,0) -> 0,086 | K88: =VLOOKUP(B88,'[1]Хар-ки'!$A:$G,7,0) -> 0,001300
B89: 100787 | C89: =IFERROR(VLOOKUP(B89,'[1]Хар-ки'!$A:$B,2,0),"") -> PP Отвод Pro Aqua Comfort | D89: =IFERROR(VLOOKUP(B89,'[1]Хар-ки'!$A:$C,3,0),0) -> 75x87,5 | E89: =IFERROR(VLOOKUP(B89,'[1]Хар-ки'!$A:$D,4,0),0) -> Обычная | F89: =VLOOKUP(B89,[1]Цены!$A:$C,3,0) -> RUR | G89: =VLOOKUP(B89,[1]Цены!$A:$E,5,0) -> 99.43 | H89: =VLOOKUP(B89,[1]Цены!$A:$E,4,0) -> шт | I89: =IFERROR(VLOOKUP(B89,'[1]Хар-ки'!$A:$E,5,0),"") -> 12 | J89: =VLOOKUP(B89,'[1]Хар-ки'!$A:$F,6,0) -> 0,128 | K89: =VLOOKUP(B89,'[1]Хар-ки'!$A:$G,7,0) -> 0,001625
B90: 100115 | C90: =IFERROR(VLOOKUP(B90,'[1]Хар-ки'!$A:$B,2,0),"") -> PP Отвод Pro Aqua Comfort | D90: =IFERROR(VLOOKUP(B90,'[1]Хар-ки'!$A:$C,3,0),0) -> 110x15 | E90: =IFERROR(VLOOKUP(B90,'[1]Хар-ки'!$A:$D,4,0),0) -> Обычная | F90: =VLOOKUP(B90,[1]Цены!$A:$C,3,0) -> RUR | G90: =VLOOKUP(B90,[1]Цены!$A:$E,5,0) -> 133.72 | H90: =VLOOKUP(B90,[1]Цены!$A:$E,4,0) -> шт | I90: =IFERROR(VLOOKUP(B90,'[1]Хар-ки'!$A:$E,5,0),"") -> 40 | J90: =VLOOKUP(B90,'[1]Хар-ки'!$A:$F,6,0) -> 0,170 | K90: =VLOOKUP(B90,'[1]Хар-ки'!$A:$G,7,0) -> 0,003000
B91: 100130 | C91: =IFERROR(VLOOKUP(B91,'[1]Хар-ки'!$A:$B,2,0),"") -> PP Отвод Pro Aqua Comfort | D91: =IFERROR(VLOOKUP(B91,'[1]Хар-ки'!$A:$C,3,0),0) -> 110x30 | E91: =IFERROR(VLOOKUP(B91,'[1]Хар-ки'!$A:$D,4,0),0) -> Обычная | F91: =VLOOKUP(B91,[1]Цены!$A:$C,3,0) -> RUR | G91: =VLOOKUP(B91,[1]Цены!$A:$E,5,0) -> 123.82 | H91: =VLOOKUP(B91,[1]Цены!$A:$E,4,0) -> шт | I91: =IFERROR(VLOOKUP(B91,'[1]Хар-ки'!$A:$E,5,0),"") -> 40 | J91: =VLOOKUP(B91,'[1]Хар-ки'!$A:$F,6,0) -> 0,174 | K91: =VLOOKUP(B91,'[1]Хар-ки'!$A:$G,7,0) -> 0,003000
B92: 100145 | C92: =IFERROR(VLOOKUP(B92,'[1]Хар-ки'!$A:$B,2,0),"") -> PP Отвод Pro Aqua Comfort | D92: =IFERROR(VLOOKUP(B92,'[1]Хар-ки'!$A:$C,3,0),0) -> 110x45 | E92: =IFERROR(VLOOKUP(B92,'[1]Хар-ки'!$A:$D,4,0),0) -> Обычная | F92: =VLOOKUP(B92,[1]Цены!$A:$C,3,0) -> RUR | G92: =VLOOKUP(B92,[1]Цены!$A:$E,5,0) -> 117.97 | H92: =VLOOKUP(B92,[1]Цены!$A:$E,4,0) -> шт | I92: =IFERROR(VLOOKUP(B92,'[1]Хар-ки'!$A:$E,5,0),"") -> 40 | J92: =VLOOKUP(B92,'[1]Хар-ки'!$A:$F,6,0) -> 0,210 | K92: =VLOOKUP(B92,'[1]Хар-ки'!$A:$G,7,0) -> 0,003000
B93: 100167 | C93: =IFERROR(VLOOKUP(B93,'[1]Хар-ки'!$A:$B,2,0),"") -> PP Отвод Pro Aqua Comfort | D93: =IFERROR(VLOOKUP(B93,'[1]Хар-ки'!$A:$C,3,0),0) -> 110x67 | E93: =IFERROR(VLOOKUP(B93,'[1]Хар-ки'!$A:$D,4,0),0) -> Обычная | F93: =VLOOKUP(B93,[1]Цены!$A:$C,3,0) -> RUR | G93: =VLOOKUP(B93,[1]Цены!$A:$E,5,0) -> 138.04 | H93: =VLOOKUP(B93,[1]Цены!$A:$E,4,0) -> шт | I93: =IFERROR(VLOOKUP(B93,'[1]Хар-ки'!$A:$E,5,0),"") -> 35 | J93: =VLOOKUP(B93,'[1]Хар-ки'!$A:$F,6,0) -> 0,214 | K93: =VLOOKUP(B93,'[1]Хар-ки'!$A:$G,7,0) -> 0,003429
B94: 100187 | C94: =IFERROR(VLOOKUP(B94,'[1]Хар-ки'!$A:$B,2,0),"") -> PP Отвод Pro Aqua Comfort | D94: =IFERROR(VLOOKUP(B94,'[1]Хар-ки'!$A:$C,3,0),0) -> 110x87,5 | E94: =IFERROR(VLOOKUP(B94,'[1]Хар-ки'!$A:$D,4,0),0) -> Обычная | F94: =VLOOKUP(B94,[1]Цены!$A:$C,3,0) -> RUR | G94: =VLOOKUP(B94,[1]Цены!$A:$E,5,0) -> 134.20 | H94: =VLOOKUP(B94,[1]Цены!$A:$E,4,0) -> шт | I94: =IFERROR(VLOOKUP(B94,'[1]Хар-ки'!$A:$E,5,0),"") -> 30 | J94: =VLOOKUP(B94,'[1]Хар-ки'!$A:$F,6,0) -> 0,246 | K94: =VLOOKUP(B94,'[1]Хар-ки'!$A:$G,7,0) -> 0,004000
B95: 10010587L | C95: =IFERROR(VLOOKUP(B95,'[1]Хар-ки'!$A:$B,2,0),"") -> PP Отвод с выходом левый Pro Aqua Comfort | D95: =IFERROR(VLOOKUP(B95,'[1]Хар-ки'!$A:$C,3,0),0) -> 110x50/87,5 | E95: =IFERROR(VLOOKUP(B95,'[1]Хар-ки'!$A:$D,4,0),0) -> Обычная | F95: =VLOOKUP(B95,[1]Цены!$A:$C,3,0) -> RUR | G95: =VLOOKUP(B95,[1]Цены!$A:$E,5,0) -> 321.79 | H95: =VLOOKUP(B95,[1]Цены!$A:$E,4,0) -> шт | I95: =IFERROR(VLOOKUP(B95,'[1]Хар-ки'!$A:$E,5,0),"") -> 28 | J95: =VLOOKUP(B95,'[1]Хар-ки'!$A:$F,6,0) -> 0,243 | K95: =VLOOKUP(B95,'[1]Хар-ки'!$A:$G,7,0) -> 0,004286
B96: 10010545L | C96: =IFERROR(VLOOKUP(B96,'[1]Хар-ки'!$A:$B,2,0),"") -> PP Отвод с выходом левый Pro Aqua Comfort | D96: =IFERROR(VLOOKUP(B96,'[1]Хар-ки'!$A:$C,3,0),0) -> 110x50/45 | E96: =IFERROR(VLOOKUP(B96,'[1]Хар-ки'!$A:$D,4,0),0) -> Обычная | F96: =VLOOKUP(B96,[1]Цены!$A:$C,3,0) -> RUR | G96: =VLOOKUP(B96,[1]Цены!$A:$E,5,0) -> 335.96 | H96: =VLOOKUP(B96,[1]Цены!$A:$E,4,0) -> шт | I96: =IFERROR(VLOOKUP(B96,'[1]Хар-ки'!$A:$E,5,0),"") -> 30 | J96: =VLOOKUP(B96,'[1]Хар-ки'!$A:$F,6,0) -> 0,213 | K96: =VLOOKUP(B96,'[1]Хар-ки'!$A:$G,7,0) -> 0,004000
B97: 10010587R | C97: =IFERROR(VLOOKUP(B97,'[1]Хар-ки'!$A:$B,2,0),"") -> PP Отвод с выходом правый Pro Aqua Comfort | D97: =IFERROR(VLOOKUP(B97,'[1]Хар-ки'!$A:$C,3,0),0) -> 110x50/87,5 | E97: =IFERROR(VLOOKUP(B97,'[1]Хар-ки'!$A:$D,4,0),0) -> Обычная | F97: =VLOOKUP(B97,[1]Цены!$A:$C,3,0) -> RUR | G97: =VLOOKUP(B97,[1]Цены!$A:$E,5,0) -> 321.79 | H97: =VLOOKUP(B97,[1]Цены!$A:$E,4,0) -> шт | I97: =IFERROR(VLOOKUP(B97,'[1]Хар-ки'!$A:$E,5,0),"") -> 28 | J97: =VLOOKUP(B97,'[1]Хар-ки'!$A:$F,6,0) -> 0,243 | K97: =VLOOKUP(B97,'[1]Хар-ки'!$A:$G,7,0) -> 0,004286
B98: 10010545R | C98: =IFERROR(VLOOKUP(B98,'[1]Хар-ки'!$A:$B,2,0),"") -> PP Отвод с выходом правый Pro Aqua Comfort | D98: =IFERROR(VLOOKUP(B98,'[1]Хар-ки'!$A:$C,3,0),0) -> 110x50/45 | E98: =IFERROR(VLOOKUP(B98,'[1]Хар-ки'!$A:$D,4,0),0) -> Обычная | F98: =VLOOKUP(B98,[1]Цены!$A:$C,3,0) -> RUR | G98: =VLOOKUP(B98,[1]Цены!$A:$E,5,0) -> 335.96 | H98: =VLOOKUP(B98,[1]Цены!$A:$E,4,0) -> шт | I98: =IFERROR(VLOOKUP(B98,'[1]Хар-ки'!$A:$E,5,0),"") -> 30 | J98: =VLOOKUP(B98,'[1]Хар-ки'!$A:$F,6,0) -> 0,213 | K98: =VLOOKUP(B98,'[1]Хар-ки'!$A:$G,7,0) -> 0,004000
B99: 10010545LR | C99: =IFERROR(VLOOKUP(B99,'[1]Хар-ки'!$A:$B,2,0),"") -> PP Отвод с выходом левый правый Pro Aqua Comfort | D99: =IFERROR(VLOOKUP(B99,'[1]Хар-ки'!$A:$C,3,0),0) -> 110x50/45 | E99: =IFERROR(VLOOKUP(B99,'[1]Хар-ки'!$A:$D,4,0),0) -> Обычная | F99: =VLOOKUP(B99,[1]Цены!$A:$C,3,0) -> RUR | G99: =VLOOKUP(B99,[1]Цены!$A:$E,5,0) -> 371.86 | H99: =VLOOKUP(B99,[1]Цены!$A:$E,4,0) -> шт | I99: =IFERROR(VLOOKUP(B99,'[1]Хар-ки'!$A:$E,5,0),"") -> 25 | J99: =VLOOKUP(B99,'[1]Хар-ки'!$A:$F,6,0) -> 0,213 | K99: =VLOOKUP(B99,'[1]Хар-ки'!$A:$G,7,0) -> 0,004800
B100: 10010587F | C100: =IFERROR(VLOOKUP(B100,'[1]Хар-ки'!$A:$B,2,0),"") -> PP Отвод с выходом фронтальный Pro Aqua Comfort | D100: =IFERROR(VLOOKUP(B100,'[1]Хар-ки'!$A:$C,3,0),0) -> 110x50/87,5 | E100: =IFERROR(VLOOKUP(B100,'[1]Хар-ки'!$A:$D,4,0),0) -> Обычная | F100: =VLOOKUP(B100,[1]Цены!$A:$C,3,0) -> RUR | G100: =VLOOKUP(B100,[1]Цены!$A:$E,5,0) -> 321.79 | H100: =VLOOKUP(B100,[1]Цены!$A:$E,4,0) -> шт | I100: =IFERROR(VLOOKUP(B100,'[1]Хар-ки'!$A:$E,5,0),"") -> 28 | J100: =VLOOKUP(B100,'[1]Хар-ки'!$A:$F,6,0) -> 0,241 | K100: =VLOOKUP(B100,'[1]Хар-ки'!$A:$G,7,0) -> 0,004286
B101: 10010587U | C101: =IFERROR(VLOOKUP(B101,'[1]Хар-ки'!$A:$B,2,0),"") -> PP Отвод с выходом прямой Pro Aqua Comfort | D101: =IFERROR(VLOOKUP(B101,'[1]Хар-ки'!$A:$C,3,0),0) -> 110x50/87,5 | E101: =IFERROR(VLOOKUP(B101,'[1]Хар-ки'!$A:$D,4,0),0) -> Обычная | F101: =VLOOKUP(B101,[1]Цены!$A:$C,3,0) -> RUR | G101: =VLOOKUP(B101,[1]Цены!$A:$E,5,0) -> 321.79 | H101: =VLOOKUP(B101,[1]Цены!$A:$E,4,0) -> шт | I101: =IFERROR(VLOOKUP(B101,'[1]Хар-ки'!$A:$E,5,0),"") -> 28 | J101: =VLOOKUP(B101,'[1]Хар-ки'!$A:$F,6,0) -> 0,282 | K101: =VLOOKUP(B101,'[1]Хар-ки'!$A:$G,7,0) -> 0,004286
